Workbook

Sheet Using the Model
B7: INSTRUCTIONS
B8: Step 1 | C8: Please read over the information and diagrams below
B9: Step 2 | C9: Navigate to the Interface tab (Tab number 2)
B10: Step 3 | C10: On the Interface tab, you will presented with various options to select & complete (See examples below)
B11: Step 4 | C11: Each block the requires your information/inputs must be completed to ensure the end results are accuarate
B12: Step 5 | C12: Every effort has been made to provide you with accuarte, industry specific data. The Built-in Assumptions and Production Assumptions tabs provide data that the user can ammend if necessary
B13: Step 6 | C13: The remaining tabs in the excel sheet will automatically update according to the data selected and inputs used. It is not recommended these sheets are changed.
B14: Step 7 | C14: Consult the Generic Economic Model User Manual for a detailed information & guidelines on the model
B17: THE INTERFACE - PRODUCTION INFO
B34: THE INTERFACE - APPLICANT INFO (TELL US ABOUT YOU)
B54: THE INTERFACE - QUICK FACTS (OBTAIN YOUR RESULTS)
B74: THE INTERFACE - QUICK FACTS (SPECIES REQUIREMENTS)

Sheet Interface
B1: Economic Analysis Model For the R&D aquaculture projects
E7: African Sharptooth Catfish | F7: <Please Select a Location> | G7: Recirculation Aquaculture System (RAS) | H7: Local Markets | I7: 50 | J7: 50
I8: Farm Gate Price (R/kg) | J8: Fish in Tonnes (Per Annum)
E11: Applicant's Profile
E13: OPERATIONAL | F13: FARM | G13: SURETY | H13: FINANCING | I13: PERCENTAGE DEBT
E14: <Select Operational Status> | F14: No | G14: Yes | H14: Debt/Equity | I14: 0.2
F15: =IF($E$14=Validation!H10,"If facility already exists, please change this option to YES"," ") -> 
E16: LENGTH OF PRODUCTION/ TARGET WEIGHT | F16: TUNNEL SYSTEM | G16: EXISTING RAS SYSTEM | H16: SKILLS LEVEL
E17: 7 Months/920grams | F17: Yes | G17: <Do you have an existing RAS system?> | H17: Formal education (certificate, diploma, degrees)
E18: =IF(OR(E17=Validation!D42,E17=Validation!D43),"No established/existing market for this portion size is available"," Please ensure that you have selected an appropriateper price") -> Please ensure that you have selected an appropriateper price | F18: =IF(AND($F$7="KwaZulu-Natal",$G$7=Validation!$F$3),"RAS may work in northern extremity of KZN (near the border) without greenhouse tunnels, but even then reduces the growth period by four months in winter when water temperatures are down to 17 degrees C"," ") ->  | G18: Only Applicable for Aquaponics Systems
E20: Quick Facts
E22: Financial Aspects
E24: INTERNAL RATE OF RETURN | F24: PROFITABILITY INDEX/COST-BENEFIT RATIO | G24: LOAN AMOUNT FOR WORKING CAPITAL | H24: LOAN AMOUNT FOR INFRASTRUCTURE & FACILITY | I24: INTEREST RATE | J24: PAYBACK PERIOD
E25: =IF(G7=" Recirculation Aquaculture System (RAS)",'IRR - RAS'!D20,IF(G7="Pond culture",'IRR - Pond'!D20,IF(G7="Aquaponics",'IRR - Aqua'!D20,IF(G7="Cage culture",'IRR - Cage'!D20,IF(G7=Validation!F7,'IRR - Flow'!D19,IF(G7=Validation!F8,'IRR - Race'!D20,0)))))) -> 0.2506732106 | F25: =IF(G7=" Recirculation Aquaculture System (RAS)",'NPV & PI - RAS'!D20,IF(G7="Pond culture",'NPV & PI - Pond'!D20,IF(G7="Aquaponics",'NPV & PI - Aqua'!D20,IF(G7="Cage culture",'NPV & PI - Cage'!D20,IF(G7=Validation!F7,'NPV & PI - Flow'!D20,IF(G7=Validation!F8,'NPV & PI - Race'!D20,"Please select different system")))))) -> 2.729136743 | G25: =IF(G7=Validation!F5,'Working Capital - Pond'!C39,IF(G7=Validation!F3,'Working Capital - RAS'!C38,IF(G7=Validation!F4,'Working Capital - Aqua'!C41,IF(G7=Validation!F6,'Working Capital - Cage'!C36,IF(G7=Validation!F7,'Working Capital - Flow'!C38,IF(G7=Validation!F8,'Working Capital - Race'!C38,"Please select a different system")))))) -> 923998.7038 | H25: =IF(G7="Pond culture",'CAPEX '!R34,IF(G7=" Recirculation Aquaculture System (RAS)",'CAPEX '!J35,IF(G7="Aquaponics",'CAPEX '!Z38,IF(G7="Cage culture",'CAPEX '!S64,IF(G7=Validation!F7,'CAPEX '!AB102,IF(G7=Validation!F8,'CAPEX '!AB73,"Please select different system")))))) -> 2343549.254 | I25: =IF(H14="DEBT",RISK!C25,IF(H14="DEBT/EQUITY",RISK!C25,0)) -> 0.0825 | J25: 20
E27: Operational Aspects
E28: OPERATING PERMITS | G28: YEAR UNTIL PROFITABLE | H28: YEAR UNTIL +CASHFLOW | I28: FARM SIZE REQUIRED (ha) | J28: # OF EMPLOYEES REQUIRED IN FIRST YEAR
E29: =IF($J$7<Validation!B$22,'Production Assumptions'!$C$147,IF($J$7<Validation!$B$202,'Production Assumptions'!$C$148,'Production Assumptions'!$C$149)) -> Provincial Permit and Basic Assessment Required | G29: =IF(G7=" Recirculation Aquaculture System (RAS)",(INDEX('IS - RAS'!C4:N4,1,MATCH(0,'IS - RAS'!C50:N50,1)+1)),IF(G7="Pond culture",(INDEX('IS - Pond'!C4:N4,1,MATCH(0,'IS - Pond'!C51:N51,1)+1)),IF(G7="Aquaponics",(INDEX('IS - Aqua'!C4:N4,1,MATCH(0,'IS - Aqua'!C58:N58,1)+1)),IF(G7="Cage culture",(INDEX('IS - Cage'!C4:N4,1,MATCH(0,'IS - Cage'!C48:N48,1)+1)),IF(G7="Flow-Through",(INDEX('IS - Flow'!C4:N4,1,MATCH(0,'IS - Flow'!C46:N46,1)+1)),IF(G7=Validation!F8,(INDEX('IS - Race'!C4:N4,1,MATCH(0,'IS - Race'!C45:N45,1)+1)))))))) -> YEAR 6 | H29: =IF(G7=" Recirculation Aquaculture System (RAS)",(INDEX('CF - RAS'!C4:N4,1,MATCH(0,'CF - RAS'!C35:N35,1)+1)),IF(G7="Pond culture",(INDEX('CF - Pond'!C4:N4,1,MATCH(0,'CF - Pond'!C35:N35,1)+1)),IF(G7="Aquaponics",(INDEX('CF - Aqua'!C4:N4,1,MATCH(0,'CF - Aqua'!C35:N35,1)+1)),IF(G7="Cage culture",(INDEX('CF - Cage'!C4:N4,1,MATCH(0,'CF - Cage'!C35:N35,1)+1)),IF(G7=Validation!F7,(INDEX('CF - Flow'!C4:N4,1,MATCH(0,'CF - Flow'!C35:N35,1)+1)),IF(G7=Validation!F8,(INDEX('CF - Race'!C4:N4,1,MATCH(0,'CF - Race'!C35:N35,1)+1)))))))) -> Year 1 | I29: =IF($G$7=" Recirculation Aquaculture System (RAS)",'CAPEX '!E13,IF($G$7="Aquaponics",'CAPEX '!W13,IF(G7=Validation!F7,'CAPEX '!W84,IF(G7=Validation!F8,'CAPEX '!W51,IF(G7=Validation!F5,'CAPEX '!N13,IF(G7=Validation!F6,'CAPEX '!N47,0)))))) -> 1.102278 | J29: =IF(G7="Pond culture",HR!D112,IF(G7=" Recirculation Aquaculture System (RAS)",HR!D110,IF(G7="Aquaponics",HR!D111,IF(G7="Cage Culture",HR!D113,IF(G7=Validation!F7,HR!D114,IF(G7=Validation!F8,HR!D115,"Please select a different system")))))) -> 6
E31: Species Requirements
F33: OPTIMAL TEMPERATURE | G33: FINGERLINGS REQUIRED (MONTH 1) | H33: SURVIVAL RATE | I33: OPTIMAL pH
F34: 28 -30˚C | G34: ='Production Cycle'!$B$178 -> 5103.082262 | H34: ='Production Assumptions'!$C$23 -> 0.85 | I34: Between 6-9
F38: SALINITY | G38: OXYGEN | H38: NITRITE | I38: AMMONIA
F39: Less than 4 ppt | G39: between 4 and 6 mg/L | H39: Less than 5mg/l NO₂-N | I39: less than 2 mg/l NH₃-N
F42: *These figures and calculations are based on assumptions, please consult with a professional Aquaculture expert for more assistance and guidance before developing an aquaculture facility.

Sheet Validation (hidden)
B1: Tonnage | D1: Species | F1: Systems | H1: Markets
B2: <Please Select Tonnage> | D2: <Please Select a Species> | F2: <Please Select a System> | H2: <Please Select a Market>
B3: 1 | D3: Abalone | F3: Recirculation Aquaculture System (RAS) | H3: Local Markets
B4: 2 | D4: Catfish | F4: Aquaponics | H4: International Markets
B5: 3 | D5: Freshwater Ornamental | F5: Pond culture
B6: 4 | D6: Marine Ornamental | F6: Cage Culture
B7: 5 | D7: Marron | F7: Flow-Through | H7: Operational Status
B8: 6 | D8: Rainbow Trout | F8: Raceways | H8: <Select Operational Status>
B9: 7 | D9: Tilapia Mossambicus | H9: Start-Up
B10: 8 | D10: Tilapia Nile | H10: Existing
B11: 9
B12: 10 | F12: Skills level
B13: 11 | D13: Location | F13: <Please Select a Skills Level> | H13: Investor
B14: 12 | D14: <Please Select a Location> | F14: No skills in Aquaculture | H14: <Do you already have a investor?>
B15: 13 | D15: Eastern Cape | F15: Work experience (1-2 years) | H15: Yes
B16: 14 | D16: Gauteng | F16: Work experience (3-5 years) | H16: No
B17: 15 | D17: KwaZulu-Natal | F17: Work experience (over 5 years)
B18: 16 | D18: Limpopo | F18: Formal education (certificate, diploma, degrees)
B19: 17 | D19: Mpumalanga | H19: YEARS FOR LOAN
B20: 18 | D20: North West | H20: <Please select a payback period>
B21: 19 | D21: Northern Cape | F21: Existing Farm | H21: 1
B22: 20 | D22: The Free State | F22: <Do you already have a Farm?> | H22: =H21+1 -> 2
B23: 21 | D23: Western Cape | F23: Yes | H23: =H22+1 -> 3
B24: 22 | F24: No | H24: 4
B25: 23 | H25: 5
B26: 24 | D26: LOAN | H26: 6
B27: 25 | D27: <Type of financing> | F27: TUNNEL SYSTEM | H27: 7
B28: 26 | D28: Debt | F28: <Tunnel System?> | H28: 8
B29: 27 | D29: Equity | F29: Yes | H29: 9
B30: 28 | D30: Debt/Equity | F30: No | H30: 10
B31: 29 | F31: Existing Ras | H31: 11
B32: 30 | D32: NATURAL POND | F32: <Do you have an existing RAS system?> | H32: 12
B33: 31 | D33: <Will a natural pond be used?> | F33: Yes | H33: 13
B34: 32 | D34: Yes | F34: No | H34: 14
B35: 33 | D35: No | F35: PRICE INCREASE % | H35: 15
B36: 34 | F36: <Please select an appropriate selling price?> | H36: 16
B37: 35 | D37: Length of production/ target weight | F37: 1 | H37: 17
B38: 36 | D38: <Please select the length of production(target weight)> | F38: 2 | H38: 18
B39: 37 | D39: 1 Month /10grams | F39: 3 | H39: 19
B40: 38 | D40: 2 Months/27grams | F40: 4 | H40: 20
B41: 39 | D41: 3 Months/68grams | F41: 5 | H41: Percentage Debt
B42: 40 | D42: 4 Months/162grams | F42: 6 | H42: <Select % to be financed through debt>
B43: 41 | D43: 5 Months/341grams | F43: 7 | H43: 0.05
B44: 42 | D44: 6 Months/592grams | F44: 8 | H44: 0.1
B45: 43 | D45: 7 Months/920grams | F45: 9 | H45: 0.15
B46: 44 | D46: 8 Months/1000grams | F46: 10 | H46: 0.2
B47: 45 | F47: 11 | H47: 0.25
B48: 46 | F48: 12 | H48: 0.3
B49: 47 | F49: 13 | H49: 0.35
B50: 48 | F50: 14 | H50: 0.4
B51: 49 | F51: 15 | H51: 0.45
B52: 50 | F52: 16 | H52: 0.5
B53: 51 | F53: 17 | H53: 0.55
B54: 52 | D54: Existing RAS | F54: 18 | H54: 0.6
B55: 53 | D55: <Do you currently have a RAS system?> | F55: 19 | H55: 0.65
B56: 54 | D56: Yes | F56: 20 | H56: 0.7
B57: 55 | D57: No | F57: 21 | H57: 0.75
B58: 56 | D58: How many ponds? | F58: 22 | H58: 0.8
B59: 57 | D59: <Select the number of Ponds that you currently have?> | F59: 23 | H59: 0.85
B60: 58 | D60: 0 | F60: 24 | H60: 0.9
B61: 59 | D61: 1 | F61: 25 | H61: 0.95
B62: 60 | D62: 2 | F62: 26 | H62: 1
B63: 61 | D63: 3 | F63: 27
B64: 62 | D64: 4 | F64: 28
B65: 63 | D65: 5 | F65: 29
B66: 64 | D66: 6 | F66: 30
B67: 65 | D67: 7 | F67: 31
B68: 66 | D68: 8 | F68: 32
B69: 67 | D69: 9 | F69: 33
B70: 68 | D70: 10 | F70: 34
B71: 69 | D71: 11 | F71: 35
B72: 70 | D72: 12 | F72: 36
B73: 71 | D73: 13 | F73: 37
B74: 72 | D74: 14 | F74: 38
B75: 73 | D75: 15 | F75: 39
B76: 74 | D76: 16 | F76: 40
B77: 75 | D77: 17 | F77: =F76+1 -> 41
B78: 76 | D78: 18 | F78: =F77+1 -> 42
B79: 77 | D79: 19 | F79: 43
B80: 78 | D80: 20 | F80: 44
B81: 79 | D81: 21 | F81: 45
B82: 80 | D82: 22 | F82: 46
B83: 81 | D83: 23 | F83: 47
B84: 82 | D84: 24 | F84: 48
B85: 83 | D85: 25 | F85: 49
B86: 84 | D86: 26 | F86: 50
B87: 85 | D87: 27 | F87: 51
B88: 86 | D88: 28 | F88: 52
B89: 87 | D89: 29 | F89: 53
B90: 88 | D90: 30 | F90: 54
B91: 89 | D91: 31 | F91: 55
B92: 90 | D92: 32 | F92: 56
B93: 91 | D93: 33 | F93: 57
B94: 92 | D94: 34 | F94: 58
B95: 93 | D95: 35 | F95: 59
B96: 94 | D96: 36 | F96: 60
B97: 95 | D97: 37 | F97: 61
B98: 96 | D98: 38 | F98: 62
B99: 97 | D99: 39 | F99: 63
B100: 98 | D100: 40 | F100: 64
B101: 99 | D101: 41 | F101: 65
B102: 100 | D102: 42 | F102: 66
B103: 101 | D103: 43 | F103: 67
B104: 102 | D104: 44 | F104: 68
B105: 103 | D105: 45 | F105: 69
B106: 104 | D106: 46 | F106: 70
B107: 105 | D107: 47 | F107: 71
B108: 106 | D108: 48 | F108: 72
B109: 107 | D109: 49 | F109: 73
B110: 108 | D110: 50 | F110: 74
B111: 109 | D111: 51 | F111: 75
B112: 110 | D112: 52 | F112: 76
B113: 111 | D113: 53 | F113: 77
B114: 112 | D114: 54 | F114: 78
B115: 113 | D115: 55 | F115: 79
B116: 114 | D116: 56 | F116: 80
B117: 115 | D117: 57 | F117: 81
B118: 116 | D118: 58 | F118: 82
B119: 117 | D119: 59 | F119: 83
B120: 118 | D120: 60 | F120: 84
B121: 119 | F121: 85
B122: 120 | F122: 86
B123: 121 | F123: 87
B124: 122 | F124: 88
B125: 123 | F125: 89
B126: 124 | F126: 90
B127: 125 | F127: 91
B128: 126 | F128: 92
B129: 127 | F129: 93
B130: 128 | F130: 94
B131: 129 | F131: 95
B132: 130 | F132: 96
B133: 131 | F133: 97
B134: 132 | F134: 98
B135: 133 | F135: 99
B136: 134 | F136: 100
B137: 135 | F137: 101
B138: 136 | F138: 102
B139: 137 | F139: 103
B140: 138 | F140: 104
B141: 139 | F141: 105
B142: 140 | F142: =F141+1 -> 106
B143: 141 | F143: 107
B144: 142 | F144: 108
B145: 143 | F145: 109
B146: 144 | F146: 110
B147: 145 | F147: 111
B148: 146 | F148: 112
B149: 147 | F149: 113
B150: 148 | F150: 114
B151: 149 | F151: 115
B152: 150 | F152: 116
B153: 151 | F153: 117
B154: 152 | F154: 118
B155: 153 | F155: 119
B156: 154 | F156: 120
B157: 155 | F157: 121
B158: 156 | F158: 122
B159: 157 | F159: 123
B160: 158 | F160: 124
B161: 159 | F161: 125
B162: 160 | F162: 126
B163: 161 | F163: 127
B164: 162 | F164: 128
B165: 163 | F165: =F164+1 -> 129
B166: 164 | F166: =F165+1 -> 130
B167: 165 | F167: 131
B168: 166 | F168: 132
B169: 167 | F169: 133
B170: 168 | F170: 134
B171: 169 | F171: 135
B172: 170 | F172: 136
B173: 171 | F173: 137
B174: 172 | F174: 138
B175: 173 | F175: 139
B176: 174 | F176: 140
B177: 175 | F177: 141
B178: 176 | F178: 142
B179: 177 | F179: 143
B180: 178 | F180: 144
B181: 179 | F181: 145
B182: 180 | F182: 146
B183: 181 | F183: 147
B184: 182 | F184: 148
B185: 183 | F185: 149
B186: 184 | F186: 150
B187: 185
B188: 186
B189: 187
B190: 188
B191: 189
B192: 190
B193: 191
B194: 192
B195: 193
B196: 194
B197: 195
B198: 196
B199: 197
B200: 198
... 5302 more rows

Sheet Built-In Assumptions
B1: Built-In Assumptions
D4: GENERAL ASSUMPTIONS
D5: CPI | E5: 0.051
D6: Business Tax | E6: 0.28
D7: Exchange rate $/R (20/01/2018) | E7: 12.17
D8: Water (per kl) for 2016/17 | E8: 0 | H8: *As per DAFF
D9: Electricity (per kWh) | E9: 1.09 | H9: * Eskom
D10: Minimum price of Security | E10: 800
D11: Minimum price of Insurance | E11: 5000
D12: Vet services (once a month) if less than 10 tons is produced in a cycle | E12: 1500
D13: Health and safety apparel | E13: 500
D14: Stationary | E14: 100
D15: Fingerling Price ( less 20 000/pm) | E15: 1.5 | H15: * Industry quotes
D16: Bulk Fingerling Price (more 20 000/pm) | E16: =E15/1.1 -> 1.363636364 | H16: * Industry quotes
D17: Average feed price (per kg) | E17: 12
D18: Fuel costs | E18: 13.9
D19: Fuel consumption 2 to 5 tonne bakkie (R/Km) | E19: 20
D20: Cost of Office Construction (per m²) | E20: 8350 | H20: * 2017/18 Construction Industry Standards
D21: Cost of Storage & Feed Facilities (per m²) | E21: 5850 | H21: * 2017/18 Construction Industry Standards
D22: Cost of Cold Storage (per m²) | E22: 14550 | H22: * 2017/18 Construction Industry Standards
D23: Tunnels (per m²) | E23: 638 | H23: * Industry Quotes 2018
D24: Land price (Dry land crop) | E24: 246346 | H24: * National Average over a two year period
D26: HUMAN RESOURCE ASSUMPTIONS
D27: Skills level | E27: Salary
D28: High skilled | E28: 22500
D29: Medium skilled | E29: 10000
D30: Low skilled | E30: 4000

Sheet Production Assumptions
A1: PRODUCTION ASSUMPTIONS - CATFISH MODEL
B3: GENERAL ASSUMPTIONS
E4: Pond Culture Assumptions | H4: m2 grow space that can be accomodated
B5: CPI | C5: ='Built-In Assumptions'!E5 -> 0.051 | E5: Fertiliser (50kgs) | G5: 435 | H5: Leafy greens- 40–50 grams of feed per square metre per day | I5: 40
B6: Days per month | C6: 30 | E6: High quality disinfectant chemicals | G6: 100 | H6: No plants that can be accomodated
B7: CPI in percentage | C7: =C5+1 -> 1.051 | E7: water treatment chemical 70% chlorine calcium hypochlorite | G7: =5000/12 -> 416.6666667 | H7: Leafy greens 20-25 per square metre | I7: 20
B8: Business Tax | C8: ='Built-In Assumptions'!E6 -> 0.28 | E8: Fertiliser used per pond (kgs/hectare) | G8: 500
B9: Vet services (once a month) | C9: ='Built-In Assumptions'!E12 -> 1500 | E9: Fertiliser Required per m2 | G9: =(500/10000) -> 0.05 | H9: Vegetables (P.a) tons | I9: 2.36
B10: Water (per kl) for 2017 | C10: 0 | E10: liters of water per year | F10: 0 | G10: =F10*C10 -> 0 | H10: Vegetables (P.m) | I10: =I9/12 -> 0.1966666667 | Z10: l12
B11: water price increases by: (pa) | C11: 1.051 | E11: Pond Water filling per month | F11: =IF(Interface!$F$7=Validation!$D$15,TEMPERATURE!$M$28,IF(Interface!$F$7=Validation!$D$16,TEMPERATURE!$M$21,IF(Interface!$F$7=Validation!$D$17,TEMPERATURE!$M$25,IF(Interface!$F$7=Validation!$D$19,TEMPERATURE!$M$24,IF(Interface!$F$7=Validation!$D$20,TEMPERATURE!$M$22,IF(Interface!$F$7=Validation!$D$21,TEMPERATURE!$M$27,IF(Interface!$F$7=Validation!$D$22,TEMPERATURE!$M$23,TEMPERATURE!$M$26))))))) -> 0.001217475 | H11: Vegetables -pm-kgs | I11: =I10*1000 -> 196.6666667
B12: Security | C12: ='Built-In Assumptions'!E10 -> 800 | E12: Aquaponics Assumptions
B13: Electricity (per kWh) | C13: ='Built-In Assumptions'!E9 -> 1.09 | D13: Eskom | E13: Seedlings: | H13: Veggie | I13: Per Annum Kg/m2
B14: Electricity/m2 | C14: 20.14 | E14: Spinach | G14: 1.5 | H14: Spinach | I14: =19/12 -> 1.583333333
B15: Insurance | C15: ='Built-In Assumptions'!E11 -> 5000 | E15: Basil | G15: 1.75 | H15: Basil | I15: =21/12 -> 1.75
B16: Sale price: R/kg | C16: =Interface!$I$7 -> 50 | E16: Lettuce | G16: 1.25 | H16: Lettuce | I16: =29/12 -> 2.416666667
B17: ='Built-In Assumptions'!D15 -> Fingerling Price ( less 20 000/pm) | C17: ='Built-In Assumptions'!E15 -> 1.5 | E17: Bak Choi | G17: 1.2 | H17: Choi | I17: =20/12 -> 1.666666667
B18: ='Built-In Assumptions'!D16 -> Bulk Fingerling Price (more 20 000/pm) | C18: ='Built-In Assumptions'!E16 -> 1.363636364 | E18: Average price of seedlings | G18: =SUM(G14:G17)/4 -> 1.425 | H18: ADDITIONAL
B19: Land price (Dry land crop)/ha | C19: ='Built-In Assumptions'!E24 -> 246346 | E19: Average system biomass (kg) | G19: 0.2623460427 | H19: Chemicals/Nutrients/Pest Care | I19: 700
B20: Electricity - (hours/annum) | C20: =365*24 -> 8760 | E20: Prices of veggies (R/kg) | H20: Grow Medium | I20: =450+220+54+59 -> 783
B21: Electricity per tank (RAS) | C21: =IF(Interface!$F$17=Validation!$F$29,'Production Assumptions'!$D$30,'Production Assumptions'!$D$34) -> 0 | E21: =E14 -> Spinach | G21: 7.62 | H21: PORTION of WATER reuse for aquaponics
B22: Months of production applicable to mortality rate | C22: 8 | E22: =E15 -> Basil | G22: 16.98 | H22: water resue portion | I22: 0.2
B23: Expected Survival % over 8 months | C23: 0.85 | E23: Lettuce | G23: 11.61
B24: Mortality rate over 8 months | C24: =1-C23 -> 0.15 | E24: Bak Choi | G24: 6.13
B25: Average Monthly Mortality Rate | C25: =C24/C22 -> 0.01875 | E25: Average plant sales price(R/kg) | G25: =SUM(G21:G24)/4 -> 10.585
B29: Inputs | C29: Unit | D29: Price | F29: Feeding | G29: Price/kg | H29: FEED AVERAGE | I29: * Based quote from L. ter Morshuizen
B30: RAS_Electricity consumption (Kwh/month) ( tunnel) | D30: =IF(Interface!$F$17="YES",(IF(Interface!$F$7="Eastern Cape",TEMPERATURE!$J$13,IF(Interface!$F$7="Mpumalanga",TEMPERATURE!$J$9,IF(Interface!$F$7="Limpopo",TEMPERATURE!$J$5,IF(Interface!$F$7="North West",TEMPERATURE!$J$7,IF(Interface!$F$7="The Free State",TEMPERATURE!$J$8,IF(Interface!$F$7="Kwazulu-Natal",TEMPERATURE!$J$10,IF(Interface!$F$7="Western Cape",TEMPERATURE!$J$11,IF(Interface!$F$7="Northern Cape",TEMPERATURE!$J$12,IF(Interface!$F$7="Gauteng",TEMPERATURE!$J$6,0))))))))))) -> 0 | F30: Pellet feed | G30: 12 | H30: =G30 -> 12
B31: RAS_Electricity consumption (Kwh/hr) | C31: 0.85 | D31: =C31*C13 -> 0.9265 | F31: Stocking Density | G31: Price/kg | H31: 12
B32: RAS_ Electricity consumption (Kwh/day) | D32: =D31*24 -> 22.236 | F32: Initial Stocking density (10-100g size, land-based nursery tanks, ALL systems). (fish /m3) | G32: 2150
B33: RAS_Electricity consumption (Kwh/month) | D33: =$D$32*$C$6 -> 667.08 | F33: Initial Stocking density >100g. (kg/m3) - RAS, Aquaponics, Raceway | G33: 45
B34: RAS_Electricity consumption (Kwh/month) (No tunnel) | D34: =IF(Interface!$F$17="YES",0,(IF(Interface!$F$7="Eastern Cape",TEMPERATURE!$H$13,IF(Interface!$F$7="Mpumalanga",TEMPERATURE!$H$9,IF(Interface!$F$7="Limpopo",TEMPERATURE!$H$5,IF(Interface!$F$7="North West",TEMPERATURE!$H$7,IF(Interface!$F$7="The Free State",TEMPERATURE!$H$8,IF(Interface!$F$7="Kwazulu-Natal",TEMPERATURE!$H$10,IF(Interface!$F$7="Western Cape",TEMPERATURE!$H$11,IF(Interface!$F$7="Northern Cape",TEMPERATURE!$H$12,TEMPERATURE!$H$6)))))))))) -> 0 | F34: Final Standing Stock (Stocking density) >100g. (kg/m3) - Pond | G34: 1.6
F35: Final Standing Stock (stocking density) >100g. (kg/m3) - cage | G35: 6.4
F36: Final Standing Stock (stocking density) >100g. (kg/m3) - flow through | G36: 200
F37: % of fish mass/day (month 1) | G37: 0.048
F38: % of fish mass/day (month 2) | G38: 0.041
F39: % of fish mass/day (month 3) | G39: 0.037
F40: % of fish mass/day (month 4) | G40: 0.02
F41: % of fish mass/day (month 5) | G41: 0.016
F42: % of fish mass/day (month 6) | G42: 0.013
F43: % of fish mass/day (month 7+) | G43: 0.012
B46: HUMAN RESOURCES | E46: RAS | F46: tons | H46: Pond | K46: Aquaponics | N46: Cage | Q46: FlowThrough | T46: Raceway
B47: Skills level | C47: Salary | D47: No. of employees | E47: Ratio (person per ton) | F47: =Interface!$J$7 -> 50 | H47: Ratio (person per ton) | I47: =Interface!$J$7 -> 50 | K47: Ratio (person per ton) | L47: =Interface!$J$7 -> 50 | N47: Ratio (person per ton) | O47: =Interface!$J$7 -> 50 | Q47: Ratio (person per ton) | R47: =Interface!$J$7 -> 50 | T47: Ratio (person per ton) | U47: =Interface!$J$7 -> 50
B48: High skilled | C48: ='Built-In Assumptions'!E28 -> 22500 | E48: 0.001 | F48: =IF(Interface!$J$7<8,0.5,IF(Interface!$J$7<=100,1,IF(Interface!$J$7>=101,ROUNDUP((1+G48),1)))) -> 1 | G48: =E48*$F$47 -> 0.05 | H48: 0.001 | I48: =IF(Interface!$J$7<8,0.5,IF(Interface!$J$7<=100,1,IF(Interface!$J$7>=101,ROUNDUP((1+J48),1)))) -> 1 | J48: 0.02 | K48: 0.002 | L48: =IF(Interface!$J$7<8,0.5,IF(Interface!$J$7<=100,1,IF(Interface!$J$7>=101,ROUNDUP((1+M48),1)))) -> 1 | M48: =K48*$F$47 -> 0.1 | N48: 0.002 | O48: =IF(Interface!$J$7<8,0.5,IF(Interface!$J$7<=50,1,IF(Interface!$J$7<=100,1,IF(Interface!$J$7>=101,ROUNDUP((1+P48),1))))) -> 1 | P48: =N48*$R$47 -> 0.1 | Q48: 0.001 | R48: =IF(Interface!$J$7<8,0.5,IF(Interface!$J$7<=100,1,IF(Interface!$J$7>=101,ROUNDUP((1+S48),1)))) -> 1 | S48: =Q48*$R$47 -> 0.05 | T48: 0.001 | U48: =IF(Interface!$J$7<8,0.5,IF(Interface!$J$7<=100,1,IF(Interface!$J$7>=101,ROUNDUP((1+V48),1)))) -> 1 | V48: =T48*$F$47 -> 0.05
B49: Medium skilled | C49: ='Built-In Assumptions'!E29 -> 10000 | E49: 0.01 | F49: =IF(Interface!$J$7<=50,0,IF(Interface!$J$7>50,ROUNDUP((1+G49),1))) -> 0 | G49: =E49*$F$47 -> 0.5 | H49: 0.001 | I49: =IF(Interface!$J$7<=50,0,IF(Interface!$J$7>50,ROUNDUP((1+J49),1))) -> 0 | J49: =H49*$I$47 -> 0.05 | K49: 0.01 | L49: =IF(Interface!$J$7<=15,1,IF(Interface!$J$7>15,ROUNDUP((1+M49),1))) -> 1.5 | M49: =K49*$L$47 -> 0.5 | N49: 0.01 | O49: =IF(Interface!$J$7<=50,0,IF(Interface!$J$7>50,ROUNDUP((1+P49),1))) -> 0 | P49: =N49*$F$47 -> 0.5 | Q49: 0.01 | R49: =IF(Interface!$J$7<=50,0,IF(Interface!$J$7>50,ROUNDUP((1+S49),1))) -> 0 | S49: =Q49*$F$47 -> 0.5 | T49: 0.01 | U49: =IF(Interface!$J$7<=50,0,IF(Interface!$J$7>50,ROUNDUP((1+V49),1))) -> 0 | V49: =T49*$F$47 -> 0.5
B50: Low skilled | C50: ='Built-In Assumptions'!E30 -> 4000 | E50: 0.04 | F50: =IF(Interface!$J$7<10,1,IF(Interface!$J$7<=49,3,IF(Interface!$J$7<=100,5,ROUNDUP((1+G50),1)))) -> 5 | G50: =E50*$F$47 -> 2 | H50: 0.05 | I50: =IF(Interface!$J$7<10,1,IF(Interface!$J$7<=49,3,IF(Interface!$J$7<=100,5,ROUNDUP((1+J50),1)))) -> 5 | J50: =H50*$I$47 -> 2.5 | K50: 0.04 | L50: =IF(Interface!$J$7<=8,2,IF(Interface!$J$7<=10,4,IF(Interface!$J$7<=50,5,IF(Interface!$J$7<=100,6,ROUNDUP((1+M50),1))))) -> 5 | M50: =K50*$F$47 -> 2 | N50: 0.02 | O50: =IF(Interface!$J$7<10,1,IF(Interface!$J$7<=49,3,IF(Interface!$J$7<=100,5,ROUNDUP((1+P50),1)))) -> 5 | P50: =N50*$F$47 -> 1 | Q50: 0.03 | R50: =IF(Interface!$J$7<10,1,IF(Interface!$J$7<=49,3,IF(Interface!$J$7<=100,5,ROUNDUP((1+S50),1)))) -> 5 | S50: =Q50*$F$47 -> 1.5 | T50: 0.03 | U50: =IF(Interface!$J$7<10,1,IF(Interface!$J$7<=49,3,IF(Interface!$J$7<=100,5,ROUNDUP((1+V50),1)))) -> 5 | V50: =T50*$F$47 -> 1.5
C51: =SUM(C48:C50) -> 36500 | E51: Number of people: | F51: =ROUNDDOWN(F50+F49+F48,0) -> 6 | H51: Number of people: | I51: =I48+I49+I50 -> 6 | K51: Number of people: | L51: =ROUNDDOWN(L50+L49+L48,0) -> 7 | N51: Number of people: | O51: =ROUNDDOWN(O50+O49+O48,0) -> 6 | Q51: Number of people: | R51: =ROUNDDOWN(R50+R49+R48,0) -> 6 | T51: Number of people: | U51: =ROUNDDOWN(U50+U49+U48,0) -> 6
B54: Assumption: Working Capital -RAS
C55: Debtors Recovery Rate | D55: RateRecovery Period
C56: 12 | D56: 1
B58: Expected to receive 11 of the 12 months payments in present year and the last month in the following year
C60: YEAR 1 | D60: YEAR 2 | E60: YEAR 3 | F60: YEAR 4 | G60: YEAR 5 | H60: YEAR 6 | I60: YEAR 7 | J60: YEAR 8 | K60: YEAR 9 | L60: YEAR 10
B61: INCOME | C61: ='IS - RAS'!D7 -> 1257244.284 | D61: ='IS - RAS'!E7 -> 2642727.485 | E61: ='IS - RAS'!F7 -> 2777506.587 | F61: ='IS - RAS'!G7 -> 2919159.423 | G61: ='IS - RAS'!H7 -> 3068036.553 | H61: ='IS - RAS'!I7 -> 3224506.417 | I61: ='IS - RAS'!J7 -> 3388956.245 | J61: ='IS - RAS'!K7 -> 3561793.013 | K61: ='IS - RAS'!L7 -> 3743444.457 | L61: ='IS - RAS'!M7 -> 3934360.124
B62: EFFECT ON CASH | C62: =(($C$56-$D$56)/$C$56*C61+($D$56/$C$56)*C64) -> 1152473.927 | D62: =(($C$56-$D$56)/$C$56*D61+($D$56/$C$56)*C61) -> 2527270.552 | E62: =(($C$56-$D$56)/$C$56*E61+($D$56/$C$56)*D61) -> 2766274.995 | F62: =(($C$56-$D$56)/$C$56*F61+($D$56/$C$56)*E61) -> 2907355.02 | G62: =(($C$56-$D$56)/$C$56*G61+($D$56/$C$56)*F61) -> 3055630.126 | H62: =(($C$56-$D$56)/$C$56*H61+($D$56/$C$56)*G61) -> 3211467.262 | I62: 3375252.092 | J62: 3547389.949 | K62: 3728306.837 | L62: 3918450.485
B63: DEBTORS | C63: =C61-C62 -> 104770.357 | D63: =C63+D61-D62 -> 220227.2904 | E63: =D63+E61-E62 -> 231458.8822 | F63: =E63+F61-F62 -> 243263.2852 | G63: =F63+G61-G62 -> 255669.7128 | H63: =G63+H61-H62 -> 268708.8681 | I63: =H63+I61-I62 -> 282413.0204 | J63: =I63+J61-J62 -> 296816.0844 | K63: 311953.7047 | L63: 327863.3437
B65: Assumption: Working Capital_POND
C66: Debtors Recovery Rate | D66: RateRecovery Period
C67: 12 | D67: 1
B69: Expected to receive 11 of the 12 months payments in present year and the last month in the following year
C71: YEAR 1 | D71: YEAR 2 | E71: YEAR 3 | F71: YEAR 4 | G71: YEAR 5 | H71: YEAR 6 | I71: YEAR 7 | J71: YEAR 8 | K71: YEAR 9 | L71: YEAR 10
B72: INCOME | C72: ='IS - Pond'!D7 -> 1257244.284 | D72: ='IS - Pond'!E7 -> 2642727.485 | E72: ='IS - Pond'!F7 -> 2777506.587 | F72: ='IS - Pond'!G7 -> 2919159.423 | G72: ='IS - Pond'!H7 -> 3068036.553 | H72: ='IS - Pond'!I7 -> 3224506.417 | I72: ='IS - Pond'!J7 -> 3388956.245 | J72: ='IS - Pond'!K7 -> 3561793.013 | K72: ='IS - Pond'!L7 -> 3743444.457 | L72: ='IS - Pond'!M7 -> 3934360.124
B73: EFFECT ON CASH | C73: =(($C$67-$D$67)/$C$67*C72+($D$67/$C$67)*C75) -> 1152473.927 | D73: =(($C$56-$D$56)/$C$56*D72+($D$56/$C$56)*C72) -> 2527270.552 | E73: =(($C$56-$D$56)/$C$56*E72+($D$56/$C$56)*D72) -> 2766274.995 | F73: =(($C$56-$D$56)/$C$56*F72+($D$56/$C$56)*E72) -> 2907355.02 | G73: =(($C$56-$D$56)/$C$56*G72+($D$56/$C$56)*F72) -> 3055630.126 | H73: =(($C$56-$D$56)/$C$56*H72+($D$56/$C$56)*G72) -> 3211467.262 | I73: 3375252.092 | J73: 3547389.949 | K73: 3728306.837 | L73: 3918450.485
B74: DEBTORS | C74: =C72-C73 -> 104770.357 | D74: =C74+D72-D73 -> 220227.2904 | E74: =D74+E72-E73 -> 231458.8822 | F74: =E74+F72-F73 -> 243263.2852 | G74: =F74+G72-G73 -> 255669.7128 | H74: =G74+H72-H73 -> 268708.8681 | I74: =H74+I72-I73 -> 282413.0204 | J74: =I74+J72-J73 -> 296816.0844 | K74: 311953.7047 | L74: 327863.3437
B77: Assumption: Working Capital_Aquaponics
C78: Debtors Recovery Rate | D78: RateRecovery Period
C79: 12 | D79: 1
B81: Expected to receive 11 of the 12 months payments in present year and the last month in the following year
C83: YEAR 1 | D83: YEAR 2 | E83: YEAR 3 | F83: YEAR 4 | G83: YEAR 5 | H83: YEAR 6 | I83: YEAR 7 | J83: YEAR 8 | K83: YEAR 9 | L83: YEAR 10
B84: INCOME | C84: ='IS - Aqua'!D11 -> 1285304.474 | D84: ='IS - Aqua'!E11 -> 2642727.485 | E84: ='IS - Aqua'!F11 -> 2777506.587 | F84: ='IS - Aqua'!G11 -> 2919159.423 | G84: ='IS - Aqua'!H11 -> 3068036.553 | H84: ='IS - Aqua'!I11 -> 3224506.417 | I84: ='IS - Aqua'!J11 -> 3388956.245 | J84: ='IS - Aqua'!K11 -> 3561793.013 | K84: ='IS - Aqua'!L11 -> 3743444.457 | L84: ='IS - Aqua'!M11 -> 3934360.124
B85: EFFECT ON CASH | C85: =(($C$56-$D$56)/$C$56*C84+($D$56/$C$56)*C87) -> 1178195.768 | D85: =(($C$56-$D$56)/$C$56*D84+($D$56/$C$56)*C84) -> 2529608.901 | E85: =(($C$56-$D$56)/$C$56*E84+($D$56/$C$56)*D84) -> 2766274.995 | F85: =(($C$56-$D$56)/$C$56*F84+($D$56/$C$56)*E84) -> 2907355.02 | G85: =(($C$56-$D$56)/$C$56*G84+($D$56/$C$56)*F84) -> 3055630.126 | H85: =(($C$56-$D$56)/$C$56*H84+($D$56/$C$56)*G84) -> 3211467.262 | I85: 3375252.092 | J85: 3547389.949 | K85: 3728306.837 | L85: 3918450.485
B86: DEBTORS | C86: =C84-C85 -> 107108.7062 | D86: =C86+D84-D85 -> 220227.2904 | E86: =D86+E84-E85 -> 231458.8822 | F86: =E86+F84-F85 -> 243263.2852 | G86: =F86+G84-G85 -> 255669.7128 | H86: =G86+H84-H85 -> 268708.8681 | I86: =H86+I84-I85 -> 282413.0204 | J86: =I86+J84-J85 -> 296816.0844 | K86: =J86+K84-K85 -> 311953.7047 | L86: =K86+L84-L85 -> 327863.3437
B88: Assumption: Working Capital_Cage
C89: Debtors Recovery Rate | D89: RateRecovery Period
C90: 12 | D90: 1
B92: Expected to receive 11 of the 12 months payments in present year and the last month in the following year
C94: YEAR 1 | D94: YEAR 2 | E94: YEAR 3 | F94: YEAR 4 | G94: YEAR 5 | H94: YEAR 6 | I94: YEAR 7 | J94: YEAR 8 | K94: YEAR 9 | L94: YEAR 10
B95: INCOME | C95: ='IS - Cage'!D7 -> 1257244.284 | D95: ='IS - Cage'!E7 -> 2642727.485 | E95: ='IS - Cage'!F7 -> 2777506.587 | F95: ='IS - Cage'!G7 -> 2919159.423 | G95: ='IS - Cage'!H7 -> 3068036.553 | H95: ='IS - Cage'!I7 -> 3224506.417 | I95: ='IS - Cage'!J7 -> 3388956.245 | J95: ='IS - Cage'!K7 -> 3561793.013 | K95: ='IS - Cage'!L7 -> 3743444.457 | L95: ='IS - Cage'!M7 -> 3934360.124
B96: EFFECT ON CASH | C96: =(($C$56-$D$56)/$C$56*C95+($D$56/$C$56)*C121) -> 1152473.927 | D96: =(($C$56-$D$56)/$C$56*D95+($D$56/$C$56)*C95) -> 2527270.552 | E96: =(($C$56-$D$56)/$C$56*E95+($D$56/$C$56)*D95) -> 2766274.995 | F96: =(($C$56-$D$56)/$C$56*F95+($D$56/$C$56)*E95) -> 2907355.02 | G96: =(($C$56-$D$56)/$C$56*G95+($D$56/$C$56)*F95) -> 3055630.126 | H96: =(($C$56-$D$56)/$C$56*H95+($D$56/$C$56)*G95) -> 3211467.262 | I96: 3375252.092 | J96: 3547389.949 | K96: 3728306.837 | L96: 3918450.485
B97: DEBTORS | C97: =C95-C96 -> 104770.357 | D97: =C97+D95-D96 -> 220227.2904 | E97: =D97+E95-E96 -> 231458.8822 | F97: =E97+F95-F96 -> 243263.2852 | G97: =F97+G95-G96 -> 255669.7128 | H97: =G97+H95-H96 -> 268708.8681 | I97: =H97+I95-I96 -> 282413.0204 | J97: =I97+J95-J96 -> 296816.0844 | K97: =J97+K95-K96 -> 311953.7047 | L97: =K97+L95-L96 -> 327863.3437
B99: Assumption: Working Capital_Flowthrough
C100: Debtors Recovery Rate | D100: RateRecovery Period
C101: 12 | D101: 1
B103: Expected to receive 11 of the 12 months payments in present year and the last month in the following year
C105: YEAR 1 | D105: YEAR 2 | E105: YEAR 3 | F105: YEAR 4 | G105: YEAR 5 | H105: YEAR 6 | I105: YEAR 7 | J105: YEAR 8 | K105: YEAR 9 | L105: YEAR 10
B106: INCOME | C106: ='IS - Flow'!D6 -> 1257244.284 | D106: ='IS - Flow'!E6 -> 2642727.485 | E106: ='IS - Flow'!F6 -> 2777506.587 | F106: ='IS - Flow'!G6 -> 2919159.423 | G106: ='IS - Flow'!H6 -> 3068036.553 | H106: ='IS - Flow'!I6 -> 3224506.417 | I106: ='IS - Flow'!J6 -> 3388956.245 | J106: ='IS - Flow'!K6 -> 3561793.013 | K106: ='IS - Flow'!L6 -> 3743444.457 | L106: ='IS - Flow'!M6 -> 3934360.124
B107: EFFECT ON CASH | C107: =(($C$101-$D$101)/$C$101*C106+($D$101/$C$101)*E100) -> 1152473.927 | D107: =(($C$101-$D$101)/$C$101*D106+($D$101/$C$101)*$E100) -> 2422500.195 | E107: =(($C$101-$D$101)/$C$101*E106+($D$101/$C$101)*$E100) -> 2546047.704 | F107: =(($C$101-$D$101)/$C$101*F106+($D$101/$C$101)*$E100) -> 2675896.137 | G107: =(($C$101-$D$101)/$C$101*G106+($D$101/$C$101)*$E100) -> 2812366.84 | H107: =(($C$101-$D$101)/$C$101*H106+($D$101/$C$101)*$E100) -> 2955797.549 | I107: 3106543.224 | J107: 3264976.929 | K107: 3431490.752 | L107: 3606496.78
B108: DEBTORS | C108: =C106-C107 -> 104770.357 | D108: =C108+D106-D107 -> 324997.6474 | E108: =D108+E106-E107 -> 556456.5296 | F108: =E108+F106-F107 -> 799719.8149 | G108: =F108+G106-G107 -> 1055389.528 | H108: =G108+H106-H107 -> 1324098.396 | I108: =H108+I106-I107 -> 1606511.416 | J108: =I108+J106-J107 -> 1903327.501 | K108: =J108+K106-K107 -> 2215281.205 | L108: =K108+L106-L107 -> 2543144.549
B110: Assumption: Working Capital_Raceway
C111: Debtors Recovery Rate | D111: RateRecovery Period
C112: 12 | D112: 1
B114: Expected to receive 11 of the 12 months payments in present year and the last month in the following year
C116: YEAR 1 | D116: YEAR 2 | E116: YEAR 3 | F116: YEAR 4 | G116: YEAR 5 | H116: YEAR 6 | I116: YEAR 7 | J116: YEAR 8 | K116: YEAR 9 | L116: YEAR 10
B117: INCOME | C117: ='IS - Race'!D6 -> 15000000 | D117: ='IS - Race'!E6 -> 31530000 | E117: ='IS - Race'!F6 -> 33138030 | F117: ='IS - Race'!G6 -> 34828069.53 | G117: ='IS - Race'!H6 -> 36604301.08 | H117: ='IS - Race'!I6 -> 38471120.43 | I117: ='IS - Race'!J6 -> 40433147.57 | J117: ='IS - Race'!K6 -> 42495238.1 | K117: ='IS - Race'!L6 -> 44662495.24 | L117: ='IS - Race'!M6 -> 46940282.5
B118: EFFECT ON CASH | C118: =(($C$112-$D$112)/$C$112*C117+($D$112/$C$112)*E111) -> 13750000 | D118: =(($C$112-$D$112)/$C$112*D117+($D$112/$C$112)*$E111) -> 28902500 | E118: =(($C$112-$D$112)/$C$112*E117+($D$112/$C$112)*$E111) -> 30376527.5 | F118: =(($C$112-$D$112)/$C$112*F117+($D$112/$C$112)*$E111) -> 31925730.4 | G118: =(($C$112-$D$112)/$C$112*G117+($D$112/$C$112)*$E111) -> 33553942.65 | H118: =(($C$112-$D$112)/$C$112*H117+($D$112/$C$112)*$E111) -> 35265193.73 | I118: 37063718.61 | J118: 38953968.26 | K118: 40940620.64 | L118: 43028592.29
B119: DEBTORS | C119: =C117-C118 -> 1250000 | D119: =C119+D117-D118 -> 3877500 | E119: =D119+E117-E118 -> 6639002.5 | F119: =E119+F117-F118 -> 9541341.628 | G119: =F119+G117-G118 -> 12591700.05 | H119: =G119+H117-H118 -> 15797626.75 | I119: =H119+I117-I118 -> 19167055.72 | J119: =I119+J117-J118 -> 22708325.56 | K119: =J119+K117-K118 -> 26430200.16 | L119: =K119+L117-L118 -> 30341890.37
E122: Water Testing Costs (less 20 tons)
B123: Assumptions on costs and increases
B124: Increase in Insurance | C124: 0.02 | E124: water testing equipment - pH, temp, EC, DO combo meter | F124: 10000
B125: Market size | C125: =IF(Interface!$E$17=Validation!$D$52,0.475,IF(Interface!$E$17=Validation!$D$51,0.44,IF(Interface!$E$17=Validation!$D$50,0.4,IF(Interface!$E$17=Validation!$D$49,0.365,IF(Interface!$E$17=Validation!$D$48,0.33,IF(Interface!$E$17=Validation!$D$47,0.3,IF(Interface!$E$17=Validation!$D$46,0.26,IF(Interface!$E$17=Validation!$D$45,0.225,IF(Interface!$E$17=Validation!$D$44,0.195,IF(Interface!$E$17=Validation!$D$43,0.17,IF(Interface!$E$17=Validation!$D$42,0.14,IF(Interface!$E$17=Validation!$D$41,0.11,IF(Interface!$E$17=Validation!D40,0.07,0.04))))))))))))) -> 0.225 | E125: ~per year consumables | F125: 2000
B126: Transport cost (local) | C126: =D161 -> 60000.00365 | E126: Test kits for ammonia and nitrite | F126: 6000
B127: Telephone costs | C127: =IF(AND(Interface!$H$7=Validation!$H$4,Interface!$J$7<10),500,IF(AND(Interface!$H$7=Validation!$H$4,Interface!$J$7<100),1000,IF(AND(Interface!$H$7=Validation!$H$4,Interface!$J$7>100),2000,IF(AND(Interface!$H$7=Validation!$H$3,Interface!$J$7<10),250,IF(AND(Interface!$H$7=Validation!$H$3,Interface!$J$7<100),500,1000))))) -> 500
B128: increase in transport cost | C128: 0.01 | E128: Water Treatment Costs (more 20 tons)
B129: Sumps and waste water treatment | C129: =IF(Interface!$J$7<10,500,IF(Interface!$J$7<100,1000,1500*(Interface!$J$7*0.015))) -> 1000 | E129: Water Test Equipment | F129: 50000
B130: increase in Sumps and waste water treatment | C130: 0.03 | E130: Per year consumables per 20 tons | F130: 3000
B131: Legal & licencing | E131: Per year consumables selected scale | F131: =Interface!J7/20*F130 -> 7500
B132: Health and safety apparel | C132: ='Built-In Assumptions'!E13 -> 500
B133: Stationary | C133: ='Built-In Assumptions'!E14 -> 100
B134: Cleaning materials | C134: 800
B135: increase in cleaning materials | C135: 0.01
B136: Vet Services | C136: =IF(Interface!$J$7<10,'Built-In Assumptions'!E12,IF(Interface!J7<100,5000*(1.1),10000*(1.02))) -> 5500
B137: Increase in vet services | C137: 0.01
B138: Bank Charges | C138: =1.9/100 -> 0.019
B139: increase in charges | C139: 0.002
B140: Marketing | C140: =IF(Interface!$J$7<10,500,500*(1+(0.01*Interface!$J$7))) -> 750
B141: increase in marketing | C141: 0.01
B142: Percentage of variable costs kept as a reserve | C142: =IF(Interface!$J$7<4,0.01,0.02) -> 0.02
B143: Transport cost (International) | C143: =D162 -> 275000.0037
C144: 0.1
B146: Tonnages | C146: Permits | D146: Price
B147: Tons <20 | C147: Provincial Permit | D147: =6000 -> 6000
B148: Tons <200 | C148: Provincial Permit and Basic Assessment Required | D148: 200000
B149: Tons>200 | C149: Provincial Permit and Basic Assessment Required | D149: =(300000+800000)/2 -> 550000
B151: Conversion | C151: 1000
B152: Liters per cubic foot | C152: 28.3906
B153: liters per cubic meter | C153: 1000
B154: I cubic feet to 1 cubic meter | C154: 0.0283168
B155: # market sized fish needed for desired scale/yr | C155: =Interface!$J$7*1000/'Production Assumptions'!$C$125 -> 222222.2222
B156: # market sized fish needed for desired scale/month | C156: =C155/12 -> 18518.51852
B159: 2kg Weight conversion - Fuel | C159: 1.46e-07
B160: Weight conversion - Fuel | C160: =C159/2 -> 7.3e-08
B161: Local Radius (KM) from farm (max) | C161: =IF(OR(Interface!$F$7=Validation!$D$15,Interface!$F$7=Validation!$D$16,Interface!$F$7=Validation!$D$23,Interface!$F$7=Validation!$D$17),120,IF(OR(Interface!$F$7=Validation!$D$18,Interface!$F$7=Validation!$D$19,Interface!$F$7=Validation!$D$20,Interface!$F$7=Validation!$D$22),50,120))*(Interface!$J$7/2) -> 3000 | D161: =(C164*C161)+(C163*C160) -> 60000.00365
B162: International Radius (KM) from farm (max) | C162: =IF(OR(Interface!$F$7=Validation!$D$15,Interface!$F$7=Validation!$D$16,Interface!$F$7=Validation!$D$23,Interface!$F$7=Validation!$D$17),240,IF(OR(Interface!$F$7=Validation!$D$18,Interface!$F$7=Validation!$D$19,Interface!$F$7=Validation!$D$20,Interface!$F$7=Validation!$D$22),400,550))*(Interface!$J$7/2) -> 13750 | D162: =(C164*C162)+(C163*C160) -> 275000.0037
B163: KGs of fish | C163: =Interface!$J$7*1000 -> 50000
B164: 2 to 5 tonne bakkie (R/Km) | C164: ='Built-In Assumptions'!E19 -> 20

Sheet Containment Unit Calculations
B2: POND CALCULATIONS - CIRCULAR, PLASTIC TANKS for 10-100g | L2: RAS & AQUAPONICS GROW OUT CONTAINMENTS - CIRCULAR PLASTIC | V2: FLOW THROUGH GROW OUT | AF2: FLOW THROUGH WETLAND/SETTLEMENT AREA
B3: 10 - 100g fish | D3: 1 ton | E3: 3 ton | F3: 5 ton | G3: 8 ton | H3: 10 ton | I3: 100 ton | L3: 10 - 100g fish | N3: 1 ton | O3: 3 ton | P3: 5 ton | Q3: 8 ton | R3: 10 ton | S3: 100 ton | V3: 100g + fish | X3: 1 ton | Y3: 3 ton | Z3: 5 ton | AA3: 8 ton | AB3: 10 ton | AC3: 100 ton | AH3: 1 ton | AI3: 3 ton | AJ3: 5 ton | AK3: 8 ton | AL3: 10 ton | AM3: 100 ton
B4: Volume (m3) | D4: 1 | E4: 1 | F4: 5.4 | G4: 5.4 | H4: 5.4 | I4: 5.4 | L4: Volume (m3) | N4: 1 | O4: 1 | P4: 1 | Q4: 1 | R4: 1 | S4: 5.4 | V4: Volume (m3) | X4: 0.8 | Y4: 1 | Z4: 1 | AA4: 1 | AB4: 5.4 | AC4: 13.82 | AF4: Area | AH4: 10 | AI4: 30 | AJ4: 90 | AK4: 270 | AL4: 810 | AM4: 10000
B5: Diameter (m) | D5: 1.3 | E5: 1.3 | F5: 2.5 | G5: 2.5 | H5: 2.5 | I5: 2.5 | L5: Diameter (m) | N5: 1.3 | O5: 1.3 | P5: 1.3 | Q5: 1.3 | R5: 1.3 | S5: 2.5 | V5: Diameter (m) | X5: 1.3 | Y5: 1.3 | Z5: 1.3 | AA5: 1.3 | AB5: 2.5 | AC5: 4 | AF5: Price per tank | AG5: 100 | AH5: =AH4*$AG$5 -> 1000 | AI5: =AI4*$AG$5 -> 3000 | AJ5: 9000 | AK5: 27000 | AL5: 81000 | AM5: 1000000
B6: Depth (m) | D6: 0.8 | E6: 0.8 | F6: 1.1 | G6: 1.1 | H6: 1.1 | I6: 1.1 | L6: Depth (m) | N6: 0.8 | O6: 0.8 | P6: 0.8 | Q6: 0.8 | R6: 0.8 | S6: 1.1 | V6: Depth (m) | X6: 0.6 | Y6: 0.75 | Z6: 0.75 | AA6: 0.75 | AB6: 1.1 | AC6: 1.1
B7: Footprint | D7: =((D5+1)^2)*'Production Cycle'!$B$162 -> 21.16 | E7: =((E5+1)^2)*'Production Cycle'!$B$162 -> 21.16 | F7: =((F5+1)^2)*'Production Cycle'!$B$162 -> 49 | G7: =((G5+1)^2)*'Production Cycle'!$B$162 -> 49 | H7: =((H5+1)^2)*'Production Cycle'!$B$162 -> 49 | I7: =((I5+1)^2)*'Production Cycle'!$B$162 -> 49 | L7: Footprint | N7: =((N5+1)^2)*'Production Cycle'!$B$165 -> 52.9 | O7: =((O5+1)^2)*'Production Cycle'!$B$165 -> 52.9 | P7: =((P5+1)^2)*'Production Cycle'!$B$165 -> 52.9 | Q7: =((Q5+1)^2)*'Production Cycle'!$B$165 -> 52.9 | R7: =((R5+1)^2)*'Production Cycle'!$B$165 -> 52.9 | S7: =((S5+1)^2)*'Production Cycle'!$B$165 -> 122.5 | V7: Footprint | X7: =((X5+1)^2)*'Production Cycle'!$B$169 -> 52.9 | Y7: =((Y5+1)^2)*'Production Cycle'!$B$169 -> 52.9 | Z7: =((Z5+1)^2)*'Production Cycle'!$B$169 -> 52.9 | AA7: =((AA5+1)^2)*'Production Cycle'!$B$169 -> 52.9 | AB7: =((AB5+1)^2)*'Production Cycle'!$B$169 -> 122.5 | AC7: =((AC5+1)^2)*'Production Cycle'!$B$169 -> 250
B8: Price per tank | D8: 1100 | E8: 1100 | F8: 3400 | G8: 3400 | H8: 3400 | I8: 3400 | L8: Price per tank | N8: 1100 | O8: 1100 | P8: 1100 | Q8: 1100 | R8: 1100 | S8: 3400 | V8: Price per tank | X8: 500 | Y8: 1100 | Z8: 1100 | AA8: 1100 | AB8: 3400 | AC8: 6000
B10: POND CALCULATIONS -EARTHEN PONDS for >100g
B11: 100g + fish | C11: Price | D11: 1 ton | E11: 3 ton | F11: 5 ton | G11: 8 ton | H11: 10 ton | I11: 100 ton | L11: RACEWAY GROW OUT CONTAINMENTS - CIRCULAR PLASTIC | V11: FLOW-THROUGH FINGERLINGS
B12: Volume (m3) | D12: 200 | E12: 200 | F12: 500 | G12: 800 | H12: 1000 | I12: 1000 | L12: 10 - 100g fish | N12: 1 ton | O12: 3 ton | P12: 5 ton | Q12: 8 ton | R12: 10 ton | S12: 100 ton | V12: 10-100g fish | X12: 1 ton | Y12: 3 ton | Z12: 5 ton | AA12: 8 ton | AB12: 10 ton | AC12: 100 ton
B13: length (m) | D13: 25 | E13: 25 | F13: 40 | G13: 40 | H13: 40 | I13: 40 | L13: Volume (m3) | N13: 1 | O13: 1 | P13: 1 | Q13: 1 | R13: 1 | S13: 5.4 | V13: Volume (m3) | X13: 0.1 | Y13: 1 | Z13: 1 | AA13: 1 | AB13: 1 | AC13: 5.4
B14: width (m) | D14: 6.4 | E14: 6.4 | F14: 10 | G14: 16 | H14: 20 | I14: 20 | L14: Diameter (m) | N14: 1.3 | O14: 1.3 | P14: 1.3 | Q14: 1.3 | R14: 1.3 | S14: 2.5 | V14: Diameter (m) | X14: 0.65 | Y14: 1.3 | Z14: 1.3 | AA14: 1.3 | AB14: 1.3 | AC14: 2.5
B15: Depth (m) | D15: 1.3 | E15: 1.3 | F15: 1.3 | G15: =G12/(G13*G14) -> 1.25 | H15: 1.25 | I15: 1.25 | L15: Depth (m) | N15: 0.75 | O15: 0.75 | P15: 0.75 | Q15: 0.75 | R15: 0.75 | S15: 1.1 | V15: Depth (m) | X15: 0.3 | Y15: 0.75 | Z15: 0.75 | AA15: 0.75 | AB15: 0.75 | AC15: 1.1
B16: Excavation (m3) | C16: 86 | D16: =D13*D14*D15*$C$16 -> 17888 | E16: =(E13*E14*E15)*$C$16 -> 17888 | F16: =F13*F14*F15*$C$16 -> 44720 | G16: =G13*G14*G15*$C$16 -> 68800 | H16: =H13*H14*H15*$C$16 -> 86000 | I16: =I13*I14*I15*$C$16 -> 86000 | L16: Footprint | N16: =((N14+1)^2)*'Production Cycle'!$B$166 -> 21.16 | O16: =((O14+1)^2)*'Production Cycle'!$B$166 -> 21.16 | P16: =((P14+1)^2)*'Production Cycle'!$B$166 -> 21.16 | Q16: =((Q14+1)^2)*'Production Cycle'!$B$166 -> 21.16 | R16: =((R14+1)^2)*'Production Cycle'!$B$166 -> 21.16 | S16: =((S14+1)^2)*'Production Cycle'!$B$166 -> 49 | V16: Footprint | X16: =((X14+1)^2)*'Production Cycle'!$B$168 -> 10.89 | Y16: =((Y14+1)^2)*'Production Cycle'!$B$168 -> 21.16 | Z16: =((Z14+1)^2)*'Production Cycle'!$B$168 -> 21.16 | AA16: =((AA14+1)^2)*'Production Cycle'!$B$168 -> 21.16 | AB16: =((AB14+1)^2)*'Production Cycle'!$B$168 -> 21.16 | AC16: =((AC14+1)^2)*'Production Cycle'!$B$168 -> 49
B17: Bentonite (m2) | C17: 30 | D17: =D14*D13*$C$17 -> 4800 | E17: 4800 | F17: 12000 | G17: 19200 | H17: 24000 | I17: 24000 | L17: Price per tank | N17: 1100 | O17: 1100 | P17: 1100 | Q17: 1100 | R17: 1100 | S17: 3400 | V17: Price per tank | X17: 500 | Y17: 1100 | Z17: 1100 | AA17: 1100 | AB17: 1100 | AC17: 3400
B18: Footprint | D18: =(D13*D14)*'Production Cycle'!$B$163 -> 800 | E18: =(E13*E14)*'Production Cycle'!$B$163 -> 800 | F18: =(F13*F14)*'Production Cycle'!$B$163 -> 2000 | G18: =(G13*G14)*'Production Cycle'!$B$163 -> 3200 | H18: =(H13*H14)*'Production Cycle'!$B$163 -> 4000 | I18: =I12*'Production Cycle'!$B$163 -> 5000
B19: Price per pond | D19: =D16+D17 -> 22688 | E19: 22688 | F19: 56720 | G19: 88000 | H19: 110000 | I19: 110000
L20: RACEWAY GROW OUT CONTAINMENTS - CEMENT TANKS | V20: AQUAPONICS - PLANT SYSTEM | Z20: AQUAPONICS - SUMP/HEADER TANK
L21: 100g+ | N21: 1 ton | O21: 3 ton | P21: 5 ton | Q21: 8 ton | R21: 10 ton | S21: 100 ton | V21: Grow tanks/bed - Deep water raft
B22: RAS/RACEWAY/AQUAPONICS/POND | L22: Volume (m3) | N22: 1 | O22: 1 | P22: 1 | Q22: 1 | R22: 5 | S22: 26.4 | V22: Volume (m3) | X22: =X23*X24*X25 -> 1.5 | Z22: Volume of sump & header | AA22: 0.1 | AB22: =X32*AA22 -> 17.1731834
B23: Settlement tanks swirl/lamella | D23: 1 ton | E23: 3 ton | F23: 5 ton | G23: 8 ton | H23: 10 ton | I23: 100 ton | L23: Length (m) | N23: 2 | O23: 2 | P23: 2 | Q23: 2 | R23: 4 | S23: 11 | V23: Length | X23: 5 | Z23: Tank size | AB23: 5.4
B24: Volume (m3) | D24: 1 | E24: 1 | F24: =E24 -> 1 | G24: 5.4 | H24: 5.4 | I24: 5.4 | L24: Width (m) | N24: 1 | O24: 1 | P24: 1 | Q24: 1 | R24: 1.25 | S24: 2 | V24: Width | X24: 1 | Z24: Number of tanks (1m3) | AB24: =ROUNDUP(AB22/AB23,0) -> 4
B25: Diameter (m) | D25: 0.75 | E25: 0.75 | F25: =E25 -> 0.75 | G25: 1.1 | H25: 1.1 | I25: 1.1 | L25: Depth (m) | N25: 0.5 | O25: 0.5 | P25: 0.5 | Q25: 0.5 | R25: 1 | S25: 1.2 | V25: Depth | X25: 0.3 | Z25: Footprint | AB25: =((2.5+1)^2)*AB24 -> 49
B26: Depth (m) | D26: 1.302940032 | E26: 1.302940032 | F26: =E26 -> 1.302940032 | G26: 2.5 | H26: 2.5 | I26: 2.5 | L26: Number of Tanks | N26: 6 | O26: 9 | P26: 12 | Q26: 18 | R26: 9 | S26: 12 | V26: Grow Bed/tank flow rate ( 5 tubes @ 0.12 m3/hr) | X26: =5*0.12 -> 0.6 | Z26: Price per tank (1m3) | AB26: =IF(AB23=5.4,3400,0) -> 3400
B27: Footprint (RAS) | D27: =((D25+1)^2)*'Bio-Model'!$D$22 -> 12.25 | E27: =((E25+1)^2)*'Bio-Model'!$D$22 -> 12.25 | F27: =((F25+1)^2)*'Bio-Model'!$D$22 -> 12.25 | G27: =((G25+1)^2)*'Bio-Model'!$D$22 -> 17.64 | H27: =((H25+1)^2)*'Bio-Model'!$D$22 -> 17.64 | I27: =((I25+1)^2)*'Bio-Model'!$D$22 -> 17.64 | L27: Footprint | N27: =N23*N24*N26 -> 12 | O27: =O23*O24*O26 -> 18 | P27: 24 | Q27: 36 | R27: 45 | S27: 264 | V27: Turn over | X27: =X22/X26 -> 2.5
B28: Footprint (Race) | D28: =((D25+1)^2)*'Bio-Model'!$D$55 -> 27.5625 | E28: =((E25+1)^2)*'Bio-Model'!$D$55 -> 27.5625 | F28: =((F25+1)^2)*'Bio-Model'!$D$55 -> 27.5625 | G28: =((G25+1)^2)*'Bio-Model'!$D$55 -> 39.69 | H28: =((H25+1)^2)*'Bio-Model'!$D$55 -> 39.69 | I28: =((I25+1)^2)*'Bio-Model'!$D$55 -> 39.69 | L28: Price per tank | N28: 878.4 | O28: 878.4 | P28: 878.4 | Q28: 878.4 | R28: 1906.55 | S28: 3939.58 | V28: Avg Daily Feed | W28: g | X28: ='CAPEX '!AC6 -> 22897.57787
B29: Footprint (Pond) | D29: =((D25+1)^2)*'Bio-Model'!$D$39 -> 3.0625 | E29: =((E25+1)^2)*'Bio-Model'!$D$39 -> 3.0625 | F29: =((F25+1)^2)*'Bio-Model'!$D$39 -> 3.0625 | G29: =((G25+1)^2)*'Bio-Model'!$D$39 -> 4.41 | H29: =((H25+1)^2)*'Bio-Model'!$D$39 -> 4.41 | I29: =((I25+1)^2)*'Bio-Model'!$D$39 -> 4.41 | V29: m2 of plants | W29: 40 | X29: =X28/W29 -> 572.4394467
B30: Price per tank | D30: 2000 | E30: 2000 | F30: 2000 | G30: 6000 | H30: 6000 | I30: 6000 | V30: No of plants (per/m2) | W30: 20 | X30: =X29*W30 -> 11448.78893
L31: CAGE - FLOATING CAGES | V31: Price per m2 | W31: 150 | X31: =W31*X29 -> 85865.91701
L32: Volume (m3) | N32: ='Production Cycle'!C171 -> 3274.073656 | V32: Plant system vol | W32: m3 | X32: =X29*X25 -> 171.731834
B33: Storage Dam/Ponds | D33: 1 ton | E33: 3 ton | F33: 5 ton | G33: 8 ton | H33: 10 ton | I33: 100 ton | L33: Price per m2 | N33: 171
B34: Length | C34: m | D34: 25 | E34: 25 | F34: 25 | G34: 25 | H34: 25 | I34: 25 | L34: Cages price | N34: =N33*N32 -> 559866.5952
B35: Width | C35: m | D35: 6.4 | E35: 6.4 | F35: 6.4 | G35: 1.1 | H35: 1.1 | I35: 1.1
B36: Depth | C36: m3 | D36: 1.25 | E36: 1.25 | F36: 1.25 | G36: 1.25 | H36: 1.25 | I36: 1.25
B37: Vol | D37: 200 | E37: 200 | F37: 500 | G37: 800 | H37: 1000 | I37: 1000 | L37: CAGE GROW OUT CONTAINMENTS
B38: No pond | D38: 1 | E38: 1 | F38: 1 | G38: 1 | H38: 1 | I38: 4 | L38: 10 - 100g fish | N38: 1 ton | O38: 3 ton | P38: 5 ton | Q38: 8 ton | R38: 10 ton | S38: 100 ton
B39: Footprint | D39: =D37*D38 -> 200 | E39: =E37*E38 -> 200 | F39: 500 | G39: 800 | H39: 1000 | I39: 4000 | L39: Volume (m3) | N39: 1 | O39: 1 | P39: 1 | Q39: 1 | R39: 1 | S39: 5.4
B40: cost per pond | D40: 15600 | E40: 15600 | F40: 39000 | G40: 62400 | H40: 78000 | I40: 78000 | L40: Diameter (m) | N40: 1.3 | O40: 1.3 | P40: 1.3 | Q40: 1.3 | R40: 1.3 | S40: 2.5
L41: Depth (m) | N41: 0.8 | O41: 0.8 | P41: 0.8 | Q41: 0.8 | R41: 0.8 | S41: 1.1
L42: Price per tank | N42: 1100 | O42: 1100 | P42: 1100 | Q42: 1100 | R42: 1100 | S42: 3400
B43: STORAGE TANKS RAS/RACE/FLOW/AQUA
B44: Volume (m3) of tanks | D44: 5.4
B45: Diameter (m) | D45: 2.5
B46: Depth (m) | D46: 1.1
B47: Footprint | D47: =((D45+1)^2)*'Production Cycle'!$B$162 -> 49
B48: Price per tank | D48: 6000
B49: Proportion of system stored | D49: 0.2

Sheet Piping Calculations (hidden)
A1: RAS | C1: 1 ton | D1: 3 ton | E1: 5 ton | F1: 8 ton | G1: 10 ton | H1: 100 ton | J1: RACEWAY | L1: 1 ton | M1: 3 ton | N1: 5 ton | O1: 8 ton | P1: 10 ton | Q1: 100 ton
A2: Settlement Tanks | C2: ='CAPEX '!$D$24*'Containment Unit Calculations'!D25 -> 3 | D2: ='CAPEX '!$D$24*'Containment Unit Calculations'!E25 -> 3 | E2: ='CAPEX '!$D$24*'Containment Unit Calculations'!F25 -> 3 | F2: ='CAPEX '!$D$24*'Containment Unit Calculations'!G25 -> 4.4 | G2: ='CAPEX '!$D$24*'Containment Unit Calculations'!H25 -> 4.4 | H2: ='CAPEX '!$D$24*'Containment Unit Calculations'!I25 -> 4.4 | J2: Settlement Tanks | L2: ='CAPEX '!$W$62*'Containment Unit Calculations'!D25 -> 6.75 | M2: ='CAPEX '!$W$62*'Containment Unit Calculations'!E25 -> 6.75 | N2: ='CAPEX '!$W$62*'Containment Unit Calculations'!F25 -> 6.75 | O2: ='CAPEX '!$W$62*'Containment Unit Calculations'!G25 -> 9.9 | P2: ='CAPEX '!$W$62*'Containment Unit Calculations'!H25 -> 9.9 | Q2: ='CAPEX '!$W$62*'Containment Unit Calculations'!I25 -> 9.9
A3: Biofilter Tanks | C3: ='CAPEX '!$E$22*'Bio-Model'!L28 -> 1.3 | D3: ='CAPEX '!$E$22*'Bio-Model'!M28 -> 1.3 | E3: ='CAPEX '!$E$22*'Bio-Model'!N28 -> 1.3 | F3: ='CAPEX '!$E$22*'Bio-Model'!O28 -> 2.5 | G3: ='CAPEX '!$E$22*'Bio-Model'!P28 -> 2.5 | H3: ='CAPEX '!$E$22*'Bio-Model'!Q28 -> 2.5 | J3: Biofilter Tanks | L3: ='CAPEX '!$W$60*'Bio-Model'!L28 -> 3.9 | M3: ='CAPEX '!$W$60*'Bio-Model'!M28 -> 3.9 | N3: ='CAPEX '!$W$60*'Bio-Model'!N28 -> 3.9 | O3: ='CAPEX '!$W$60*'Bio-Model'!O28 -> 7.5 | P3: ='CAPEX '!$W$60*'Bio-Model'!P28 -> 7.5 | Q3: ='CAPEX '!$W$60*'Bio-Model'!Q28 -> 7.5
A4: 10-100g Grow out | C4: ='CAPEX '!$D$16*'Containment Unit Calculations'!N5 -> 5.2 | D4: ='CAPEX '!$D$16*'Containment Unit Calculations'!O5 -> 5.2 | E4: ='CAPEX '!$D$16*'Containment Unit Calculations'!P5 -> 5.2 | F4: ='CAPEX '!$D$16*'Containment Unit Calculations'!Q5 -> 5.2 | G4: ='CAPEX '!$D$16*'Containment Unit Calculations'!R5 -> 5.2 | H4: ='CAPEX '!$D$16*'Containment Unit Calculations'!S5 -> 10 | J4: 10-100g Grow out | L4: ='Containment Unit Calculations'!N23*'CAPEX '!$W$54 -> 8 | M4: ='Containment Unit Calculations'!O23*'CAPEX '!$W$54 -> 8 | N4: ='Containment Unit Calculations'!P23*'CAPEX '!$W$54 -> 8 | O4: ='Containment Unit Calculations'!Q23*'CAPEX '!$W$54 -> 8 | P4: ='Containment Unit Calculations'!R23*'CAPEX '!$W$54 -> 16 | Q4: ='Containment Unit Calculations'!S23*'CAPEX '!$W$54 -> 44
A5: 100g Grow out | C5: ='CAPEX '!$D$17*'Containment Unit Calculations'!N5 -> 13 | D5: ='CAPEX '!$D$17*'Containment Unit Calculations'!O5 -> 13 | E5: ='CAPEX '!$D$17*'Containment Unit Calculations'!P5 -> 13 | F5: ='CAPEX '!$D$17*'Containment Unit Calculations'!Q5 -> 13 | G5: ='CAPEX '!$D$17*'Containment Unit Calculations'!R5 -> 13 | H5: ='CAPEX '!$D$17*'Containment Unit Calculations'!S5 -> 25 | J5: 100g Grow out | L5: ='Containment Unit Calculations'!N22*'CAPEX '!$W$55 -> 10 | M5: ='Containment Unit Calculations'!O22*'CAPEX '!$W$55 -> 10 | N5: ='Containment Unit Calculations'!P22*'CAPEX '!$W$55 -> 10 | O5: ='Containment Unit Calculations'!Q22*'CAPEX '!$W$55 -> 10 | P5: ='Containment Unit Calculations'!R22*'CAPEX '!$W$55 -> 50 | Q5: ='Containment Unit Calculations'!S22*'CAPEX '!$W$55 -> 264
A6: Total Required (m) | C6: =SUM(C2:C5)*2 -> 45 | D6: =SUM(D2:D5)*2 -> 45 | E6: 45 | F6: 50.2 | G6: 50.2 | H6: 83.8 | J6: Total Required (m) | L6: =SUM(L2:L5)*2 -> 57.3 | M6: =SUM(M2:M5)*2 -> 57.3 | N6: =SUM(N2:N5)*2 -> 57.3 | O6: =SUM(O2:O5)*2 -> 70.8 | P6: =SUM(P2:P5)*2 -> 166.8 | Q6: =SUM(Q2:Q5)*2 -> 650.8
A7: Costs | B7: 200 | C7: =C6*$B$7 -> 9000 | D7: =D6*$B$7 -> 9000 | E7: 9000 | F7: 10040 | G7: 10040 | H7: 16760 | J7: Costs | K7: 200 | L7: =L6*$B$7 -> 11460 | M7: =M6*$B$7 -> 11460 | N7: =N6*$B$7 -> 11460 | O7: =O6*$B$7 -> 14160 | P7: =P6*$B$7 -> 33360 | Q7: =Q6*$B$7 -> 130160
A10: POND | C10: 1 ton | D10: 3 ton | E10: 5 ton | F10: 8 ton | G10: 10 ton | H10: 100 ton | J10: FLOW THROUGH | L10: 1 ton | M10: 3 ton | N10: 5 ton | O10: 8 ton | P10: 10 ton | Q10: 100 ton
A11: Settlement Tanks | C11: ='CAPEX '!$N$24*'Containment Unit Calculations'!D25 -> 0.75 | D11: ='CAPEX '!$N$24*'Containment Unit Calculations'!E25 -> 0.75 | E11: ='CAPEX '!$N$24*'Containment Unit Calculations'!F25 -> 0.75 | F11: ='CAPEX '!$N$24*'Containment Unit Calculations'!G25 -> 1.1 | G11: ='CAPEX '!$N$24*'Containment Unit Calculations'!H25 -> 1.1 | H11: ='CAPEX '!$N$24*'Containment Unit Calculations'!I25 -> 1.1 | J11: 10-100g Grow out | L11: ='CAPEX '!$W$87*'Containment Unit Calculations'!X14 -> 2.6 | M11: ='CAPEX '!$W$87*'Containment Unit Calculations'!Y14 -> 5.2 | N11: ='CAPEX '!$W$87*'Containment Unit Calculations'!Z14 -> 5.2 | O11: ='CAPEX '!$W$87*'Containment Unit Calculations'!AA14 -> 5.2 | P11: ='CAPEX '!$W$87*'Containment Unit Calculations'!AB14 -> 5.2 | Q11: ='CAPEX '!$W$87*'Containment Unit Calculations'!AC14 -> 10
A12: Biofilter Tanks | C12: ='CAPEX '!$M$22*'Bio-Model'!L28 -> 7.02 | D12: ='CAPEX '!$M$22*'Bio-Model'!M28 -> 7.02 | E12: ='CAPEX '!$M$22*'Bio-Model'!N28 -> 7.02 | F12: ='CAPEX '!$M$22*'Bio-Model'!O28 -> 13.5 | G12: ='CAPEX '!$M$22*'Bio-Model'!P28 -> 13.5 | H12: ='CAPEX '!$M$22*'Bio-Model'!Q28 -> 13.5 | J12: 100g Grow out | L12: ='CAPEX '!$W$88*'Containment Unit Calculations'!X5 -> 13 | M12: ='CAPEX '!$W$88*'Containment Unit Calculations'!Y5 -> 13 | N12: ='CAPEX '!$W$88*'Containment Unit Calculations'!Z5 -> 13 | O12: ='CAPEX '!$W$88*'Containment Unit Calculations'!AA5 -> 13 | P12: ='CAPEX '!$W$88*'Containment Unit Calculations'!AB5 -> 25 | Q12: ='CAPEX '!$W$88*'Containment Unit Calculations'!AC5 -> 40
A13: 10-100g Grow out | C13: ='Containment Unit Calculations'!D5*'CAPEX '!$N$16 -> 5.2 | D13: ='Containment Unit Calculations'!E5*'CAPEX '!$N$16 -> 5.2 | E13: ='Containment Unit Calculations'!F5*'CAPEX '!$N$16 -> 10 | F13: ='Containment Unit Calculations'!G5*'CAPEX '!$N$16 -> 10 | G13: ='Containment Unit Calculations'!H5*'CAPEX '!$N$16 -> 10 | H13: ='Containment Unit Calculations'!I5*'CAPEX '!$N$16 -> 10 | J13: Total Required (m) | L13: =SUM(L11:L12)*2 -> 31.2 | M13: 36.4 | N13: 36.4 | O13: 36.4 | P13: 60.4 | Q13: 100
A14: 100g Grow out Ponds | C14: ='CAPEX '!$N$17*'Containment Unit Calculations'!D13 -> 125 | D14: ='CAPEX '!$N$17*'Containment Unit Calculations'!E13 -> 125 | E14: ='CAPEX '!$N$17*'Containment Unit Calculations'!F13 -> 200 | F14: ='CAPEX '!$N$17*'Containment Unit Calculations'!G13 -> 200 | G14: ='CAPEX '!$N$17*'Containment Unit Calculations'!H13 -> 200 | H14: ='CAPEX '!$N$17*'Containment Unit Calculations'!I13 -> 200 | J14: Costs | K14: 200 | L14: =L13*$B$7 -> 6240 | M14: =M13*$B$7 -> 7280 | N14: =N13*$B$7 -> 7280 | O14: =O13*$B$7 -> 7280 | P14: =P13*$B$7 -> 12080 | Q14: =Q13*$B$7 -> 20000
A15: Water Ponds | C15: ='Containment Unit Calculations'!D34*'Containment Unit Calculations'!D38 -> 25 | D15: ='Containment Unit Calculations'!E34*'Containment Unit Calculations'!E38 -> 25 | E15: ='Containment Unit Calculations'!F34*'Containment Unit Calculations'!F38 -> 25 | F15: ='Containment Unit Calculations'!G34*'Containment Unit Calculations'!G38 -> 25 | G15: ='Containment Unit Calculations'!H34*'Containment Unit Calculations'!H38 -> 25 | H15: ='Containment Unit Calculations'!I34*'Containment Unit Calculations'!I38 -> 100
A16: Total Required (m) | C16: =SUM(C11:C15)*2 -> 325.94 | D16: =SUM(D11:D15)*2 -> 325.94 | E16: 485.54 | F16: 499.2 | G16: 499.2 | H16: 649.2
A17: Costs | B17: 200 | C17: =C16*$B$7 -> 65188 | D17: =D16*$B$7 -> 65188 | E17: =E16*$B$7 -> 97108 | F17: =F16*$B$7 -> 99840 | G17: =G16*$B$7 -> 99840 | H17: =H16*$B$7 -> 129840 | J17: Aquaponics | L17: m
J18: Plant grow out containments length (m) | L18: ='Containment Unit Calculations'!X29/'Containment Unit Calculations'!X24 -> 572.4394467
J19: Total Required (m) 25mm diam irrigation piping and connectors | L19: =SUM(L18:L18)*2 -> 1144.878893
J20: Costs | K20: 20 | L20: =L19*$K$20 -> 22897.57787

Sheet Bio-Model
A1: BIO-MODEL & SETTLEMENT TANKS
A3: Biofilter Assumptions
A4: Hungary model
A5: Portion of system
A6: Solids settlement + biofilter | B6: 0.33
A8: Biofilter - RAS
A9: TAN removal per day (0.4-0.6g/m2/day)
A10: For removal of TAN from 1 kg of feed , 70-80m2 of biofilter needed (about 0.5m3 biofilter vlume)
D11: =Interface!$J$7 -> 50
A12: recirc vol
A13: Biofileter surface area per 1 kg dailyl feed | D13: 75
A14: Daily feed amount | D14: =IF(Interface!E17=Validation!D39,'Production Cycle'!B157,IF(Interface!E17=Validation!D40,'Production Cycle'!C157,IF(Interface!E17=Validation!D41,'Production Cycle'!D157,IF(Interface!E17=Validation!D42,'Production Cycle'!E157,IF(Interface!E17=Validation!D43,'Production Cycle'!F157,IF(Interface!E17=Validation!D44,'Production Cycle'!G157,IF(Interface!E17=Validation!D45,'Production Cycle'!H157,IF(Interface!E17=Validation!D46,'Production Cycle'!I157))))))))/30 -> 114.4878893
A15: Biofilter surface area needed m | D15: =D14*D13 -> 8586.591701
A16: Biofilter media vol needed at (800 m2/m3) | D16: =D15/800 -> 10.73323963
A17: Biofilter tank volume | D17: =D16*1.1 -> 11.80656359
A18: Biofilter tank size (m3) | D18: =IF(Interface!J7<=3,'Containment Unit Calculations'!E4,IF(Interface!$J$7<=5,'Containment Unit Calculations'!F4,IF(Interface!$J$7<=10,'Containment Unit Calculations'!G4,'Containment Unit Calculations'!I4))) -> 5.4
A19: Number of Biofilter tanks | D19: =ROUNDUP(D17/D18,0) -> 3 | F19: FLOW THROUGH SETTLEMENT TANKS
A20: Settlement tanks volume (m3) | D20: =(('Production Cycle'!C164+'Production Cycle'!C165)*0.5) -> 20.93567828 | F20: Settlement tanks volume (m3) | I20: =(0.5)*(('Production Cycle'!C168+'Production Cycle'!C169)) -> 54.75870513
A21: Size of the Settlement Tank (m3) | D21: =IF(Interface!J7<=3,'Containment Unit Calculations'!E4,IF(Interface!$J$7<=5,'Containment Unit Calculations'!F4,IF(Interface!$J$7<=10,'Containment Unit Calculations'!G4,'Containment Unit Calculations'!I4))) -> 5.4 | F21: Size of the Settlement Tank (m3) | I21: =IF(Interface!J7<=3,'Containment Unit Calculations'!E4,IF(Interface!$J$7<=5,'Containment Unit Calculations'!F4,IF(Interface!$J$7<=10,'Containment Unit Calculations'!G4,'Containment Unit Calculations'!I4))) -> 5.4
A22: Number of Settlement Tanks (m3) | D22: =ROUNDUP(D20/D21,0) -> 4 | F22: Number of Settlement Tanks (m3) | I22: =ROUNDUP(I20/I21,0) -> 11
A24: Biofilter -Pond (TANKS for 1-100g)
A25: TAN removal per day (0.4-0.6g/m2/day)
A26: For removal of TAN from 1 kg of feed , 70-80m2 of biofilter needed (about 0.5m3 biofilter vlume) | J26: 10 - 100g fish | L26: 1 ton | M26: 3 ton | N26: 5 ton | O26: 8 ton | P26: 10 ton | Q26: 100 ton
D27: =D11 -> 50 | J27: Volume (m3) | L27: 1 | M27: 1 | N27: 1 | O27: 5.4 | P27: 5.4 | Q27: 5.4
A28: recirc vol | J28: Diameter (m) | L28: 1.3 | M28: 1.3 | N28: 1.3 | O28: 2.5 | P28: 2.5 | Q28: 2.5
A29: Biofileter surface area (m2) per 1 kg daily feed | D29: 75 | J29: Depth (m) | L29: 0.8 | M29: 0.8 | N29: 0.8 | O29: 1.1 | P29: 1.1 | Q29: 1.1
A30: Monthly Feed (10 - 100g fish) | D30: ='Production Cycle'!B157+'Production Cycle'!C157 -> 260.9121441 | J30: Footprint (RAS) | L30: =((L28+1)^2)*$D$19 -> 15.87 | M30: =((M28+1)^2)*$D$19 -> 15.87 | N30: 15.87 | O30: 36.75 | P30: 36.75 | Q30: 36.75
A31: Daily feed amount | D31: =D30/30 -> 8.697071469 | J31: Footprint (Pond) | L31: =((L28+1)^2)*$D$36 -> 5.29 | M31: =((M28+1)^2)*$D$36 -> 5.29 | N31: 5.29 | O31: 12.25 | P31: 12.25 | Q31: 12.25
A32: Biofilter surface area needed (m2) | D32: =D29*D31 -> 652.2803602 | J32: Footprint (Race) | L32: =((L28+1)^2)*$D$52 -> 15.87 | M32: =((M28+1)^2)*$D$52 -> 15.87 | N32: 15.87 | O32: 36.75 | P32: 36.75 | Q32: 36.75
A33: Biofilter media vol needed at (800 m2/m3) | D33: =D32/800 -> 0.8153504502 | J33: Price per tank | L33: 1100 | M33: 1100 | N33: 1100 | O33: 3400 | P33: 3400 | Q33: 3400
A34: Biofilter tank vol | D34: =D33*1.1 -> 0.8968854952
A35: Biofilter tank size (m3) | D35: =IF(Interface!J7<=3,'Containment Unit Calculations'!E4,IF(Interface!$J$7<=5,'Containment Unit Calculations'!F4,IF(Interface!$J$7<=10,'Containment Unit Calculations'!G4,'Containment Unit Calculations'!I4))) -> 5.4
A36: Number of Biofilter tanks | D36: =ROUNDUP(D34/D35,0) -> 1
A37: Settlement tanks volume (m3) | D37: ='Production Cycle'!C162*0.5 -> 2.373526633
A38: Size of settlement tanks (m3) | D38: =IF(Interface!J7<=3,'Containment Unit Calculations'!E4,IF(Interface!$J$7<=5,'Containment Unit Calculations'!F4,IF(Interface!$J$7<=10,'Containment Unit Calculations'!G4,'Containment Unit Calculations'!I4))) -> 5.4
A39: Number of settlement tanks | D39: =ROUNDUP(D37/D38,0) -> 1
A41: Biofilter -Raceways
A42: TAN removal per day (0.4-0.6g/m2/day)
A43: For removal of TAN from 1 kg of feed , 70-80m2 of biofilter needed (about 0.5m3 biofilter vlume)
D44: =Interface!J7 -> 50
A45: recirc vol | D45: ='CAPEX '!D99+'CAPEX '!E99+'CAPEX '!F99 -> 0
A46: Biofileter surface area (m2) per 1 kg dailyl feed | D46: 75
A47: Daily feed amount | D47: =IF(Interface!E17=Validation!D39,'Production Cycle'!B157,IF(Interface!E17=Validation!D40,'Production Cycle'!C157,IF(Interface!E17=Validation!D41,'Production Cycle'!D157,IF(Interface!E17=Validation!D42,'Production Cycle'!E157,IF(Interface!E17=Validation!D43,'Production Cycle'!F157,IF(Interface!E17=Validation!D44,'Production Cycle'!G157,IF(Interface!E17=Validation!D45,'Production Cycle'!H157,IF(Interface!E17=Validation!D46,'Production Cycle'!I157))))))))/30 -> 114.4878893
A48: Biofilter surface area needed m | D48: =D46*D47 -> 8586.591701
A49: Biofilter media vol needed at (800 m2/m3) | D49: =D48/800 -> 10.73323963
A50: Biofilter tank vol | D50: =D49*1.1 -> 11.80656359
A51: Biofilter tank size (m3) | D51: =IF(Interface!J7<=3,'Containment Unit Calculations'!E4,IF(Interface!$J$7<=5,'Containment Unit Calculations'!F4,IF(Interface!$J$7<=10,'Containment Unit Calculations'!G4,'Containment Unit Calculations'!I4))) -> 5.4
A52: Number of Biofilter tanks | D52: =ROUNDUP(D50/D51,0) -> 3
A53: Settlement tanks volume (m3) | D53: =(0.5)*('Production Cycle'!C166+'Production Cycle'!C167) -> 20.93567828
A54: Size of the Settlement Tank (m3) | D54: =IF(Interface!$J$7<=3,'Containment Unit Calculations'!D26,IF(Interface!$J$7<=5,'Containment Unit Calculations'!F26,IF(Interface!$J$7<=10,'Containment Unit Calculations'!H26,'Containment Unit Calculations'!I26))) -> 2.5
A55: Number of Settlement Tanks (m3) | D55: =ROUNDUP(D53/D54,0) -> 9

Sheet Production Cycle
A1: PRODUCTION CYCLE - CATFISH MODEL
A3: Catfish | F3: Price Per Ton | G3: =H3*Interface!I7 -> 2500000 | H3: =H7*(H8/1000) -> 50000
B4: =$G$3/B7 -> 0.5 | C4: =$G$3/C7 -> 1.35 | D4: 3.4 | E4: 8.1 | F4: 17.05 | G4: 29.6 | H4: =$G$3/H7 -> 46
B5: Growth rate up to harvest mass
B6: Month 1 | C6: Month 2 | D6: Month 3 | E6: Month 4 | F6: Month 5 | G6: Month 6 | H6: Month 7 | I6: Month 8
A7: Fish per ton | B7: =(Interface!$J$7*1000)/('Production Cycle'!B8/1000) -> 5000000 | C7: =(Interface!$J$7*1000)/('Production Cycle'!C8/1000) -> 1851851.852 | D7: =(Interface!$J$7*1000)/('Production Cycle'!D8/1000) -> 735294.1176 | E7: =(Interface!$J$7*1000)/('Production Cycle'!E8/1000) -> 308641.9753 | F7: =(Interface!$J$7*1000)/('Production Cycle'!F8/1000) -> 146627.566 | G7: =(Interface!$J$7*1000)/('Production Cycle'!G8/1000) -> 84459.45946 | H7: =(Interface!$J$7*1000)/('Production Cycle'!H8/1000) -> 54347.82609 | I7: =(Interface!$J$7*1000)/('Production Cycle'!I8/1000) -> 50000
A8: Cycle 1 | B8: 10 | C8: 27 | D8: 68 | E8: 162 | F8: 341 | G8: 592 | H8: 920 | I8: 1000
A9: Numer of fish | B9: =$B$178 -> 5103.082262 | C9: =IF(OR(Interface!$E$17=Validation!$D$52,Interface!$E$17=Validation!$D$51,Interface!$E$17=Validation!$D$50,Interface!$E$17=Validation!$D$49,Interface!$E$17=Validation!$D$48,Interface!$E$17=Validation!$D$47,Interface!$E$17=Validation!$D$46,Interface!$E$17=Validation!$D$45,Interface!$E$17=Validation!$D$44,Interface!$E$17=Validation!$D$43,Interface!$E$17=Validation!$D$42,Interface!$E$17=Validation!$D$41,Interface!$E$17=Validation!$D$40),'Production Cycle'!B$9-('Production Cycle'!B$9*'Production Assumptions'!$C$25),0) -> 5007.399469 | D9: =IF(OR(Interface!$E$17=Validation!$D$52,Interface!$E$17=Validation!$D$51,Interface!$E$17=Validation!$D$50,Interface!$E$17=Validation!$D$49,Interface!$E$17=Validation!$D$48,Interface!$E$17=Validation!$D$47,Interface!$E$17=Validation!$D$46,Interface!$E$17=Validation!$D$45,Interface!$E$17=Validation!$D$44,Interface!$E$17=Validation!$D$43,Interface!$E$17=Validation!$D$42,Interface!$E$17=Validation!$D$41),'Production Cycle'!C$9-('Production Cycle'!C$9*'Production Assumptions'!$C$25),0) -> 4913.510729 | E9: =IF(OR(Interface!$E$17=Validation!$D$52,Interface!$E$17=Validation!$D$51,Interface!$E$17=Validation!$D$50,Interface!$E$17=Validation!$D$49,Interface!$E$17=Validation!$D$48,Interface!$E$17=Validation!$D$47,Interface!$E$17=Validation!$D$46,Interface!$E$17=Validation!$D$45,Interface!$E$17=Validation!$D$44,Interface!$E$17=Validation!$D$43,Interface!$E$17=Validation!$D$42),'Production Cycle'!D$9-('Production Cycle'!D$9*'Production Assumptions'!$C$25),0) -> 4821.382403 | F9: =IF(OR(Interface!$E$17=Validation!$D$52,Interface!$E$17=Validation!$D$51,Interface!$E$17=Validation!$D$50,Interface!$E$17=Validation!$D$49,Interface!$E$17=Validation!$D$48,Interface!$E$17=Validation!$D$47,Interface!$E$17=Validation!$D$46,Interface!$E$17=Validation!$D$45,Interface!$E$17=Validation!$D$44,Interface!$E$17=Validation!$D$43),'Production Cycle'!E$9-('Production Cycle'!E$9*'Production Assumptions'!$C$25),0) -> 4730.981483 | G9: =IF(OR(Interface!$E$17=Validation!$D$52,Interface!$E$17=Validation!$D$51,Interface!$E$17=Validation!$D$50,Interface!$E$17=Validation!$D$49,Interface!$E$17=Validation!$D$48,Interface!$E$17=Validation!$D$47,Interface!$E$17=Validation!$D$46,Interface!$E$17=Validation!$D$45,Interface!$E$17=Validation!$D$44),'Production Cycle'!F$9-('Production Cycle'!F$9*'Production Assumptions'!$C$25),0) -> 4642.27558 | H9: =IF(OR(Interface!$E$17=Validation!$D$52,Interface!$E$17=Validation!$D$51,Interface!$E$17=Validation!$D$50,Interface!$E$17=Validation!$D$49,Interface!$E$17=Validation!$D$48,Interface!$E$17=Validation!$D$47,Interface!$E$17=Validation!$D$46,Interface!$E$17=Validation!$D$45),'Production Cycle'!G$9-('Production Cycle'!G$9*'Production Assumptions'!$C$25),0) -> 4555.232913 | I9: =IF(OR(Interface!$E$17=Validation!$D$52,Interface!$E$17=Validation!$D$51,Interface!$E$17=Validation!$D$50,Interface!$E$17=Validation!$D$49,Interface!$E$17=Validation!$D$48,Interface!$E$17=Validation!$D$47,Interface!$E$17=Validation!$D$46),'Production Cycle'!H$9-('Production Cycle'!H$9*'Production Assumptions'!$C$25),0) -> 0
A10: feed(g)/fish/day | B10: =(B8)*('Production Assumptions'!$G$37) -> 0.48 | C10: =IF(C9=0,0,(((B8+C8)/2)*'Production Assumptions'!$G$38)) -> 0.7585 | D10: =IF(D9=0,0,(((C8+D8)/2)*'Production Assumptions'!$G$39)) -> 1.7575 | E10: =IF(E9=0,0,(((D8+E8)/2)*'Production Assumptions'!$G$40)) -> 2.3 | F10: =IF(F9=0,0,(((E8+F8)/2)*'Production Assumptions'!$G$41)) -> 4.024 | G10: =IF(G9=0,0,(((F8+G8)/2)*'Production Assumptions'!$G$42)) -> 6.0645 | H10: =IF(H9=0,0,(((G8+H8)/2)*'Production Assumptions'!$G$43)) -> 9.072 | I10: =IF(I9=0,0,(((H8+I8)/2)*'Production Assumptions'!$G$43)) -> 0
A11: feed(kg)/batch/day | B11: =($B$10*$B$9)/1000 -> 2.449479486 | C11: =($C$10*$C$9)/1000 -> 3.798112497 | D11: =($D$10*$D$9)/1000 -> 8.635495107 | E11: =($E$10*$E$9)/1000 -> 11.08917953 | F11: =($F$10*$F$9)/1000 -> 19.03746949 | G11: =($G$10*$G$9)/1000 -> 28.15308026 | H11: =($H$10*$H$9)/1000 -> 41.32507299 | I11: =($I$10*$I$9)/1000 -> 0
A12: feed(Kg)/batch/mnth | B12: =($B$11*30) -> 73.48438457 | C12: =($C$11*30) -> 113.9433749 | D12: =($D$11*30) -> 259.0648532 | E12: =($E$11*30) -> 332.6753858 | F12: =($F$11*30) -> 571.1240846 | G12: =($G$11*30) -> 844.5924077 | H12: =($H$11*30) -> 1239.75219 | I12: =($I$11*30) -> 0
A13: Batch Biomass | B13: =(B9*B8)/1000 -> 51.03082262 | C13: =(C9*C8)/1000 -> 135.1997857 | D13: 334.1187296 | E13: 781.0639493 | F13: 1613.264686 | G13: 2748.227143 | H13: 4190.81428 | I13: 0
A14: Nursery RAS system 10-100g fish Volume needed / POND Grow out Water Volume needed >100g fish) full system (m3) | B14: =B9/'Production Assumptions'!G32 -> 2.373526633 | D14: =MAX(D13:I13)/'Production Assumptions'!G33 -> 93.12920622
A15: Volume of containment units (m3) | B15: =IF(Interface!J7<=3,'Containment Unit Calculations'!E4,IF(Interface!$J$7<=5,'Containment Unit Calculations'!F4,IF(Interface!$J$7<=20,'Containment Unit Calculations'!G4,'Containment Unit Calculations'!I4))) -> 5.4 | D15: =IF(Interface!J7<=3,'Containment Unit Calculations'!E12,IF(Interface!$J$7<=5,'Containment Unit Calculations'!F12,IF(Interface!$J$7<=8,'Containment Unit Calculations'!G12,'Containment Unit Calculations'!H12))) -> 1000
A16: Containment Number required | B16: =ROUNDUP(B14/B15,0)+1 -> 2 | D16: =ROUNDUP(D14/D15,0) -> 1
A17: Nursery RAS system 10-100g fish Volume needed / RAS Grow out Water Volume needed >100g fish) full system (m3) | B17: =B9/'Production Assumptions'!G32 -> 2.373526633 | D17: =D13/'Production Assumptions'!G33 -> 7.424860658
A18: =A15 -> Volume of containment units (m3) | B18: =IF(Interface!J7<=3,'Containment Unit Calculations'!E4,IF(Interface!$J$7<=5,'Containment Unit Calculations'!F4,IF(Interface!$J$7<=20,'Containment Unit Calculations'!G4,'Containment Unit Calculations'!I4))) -> 5.4 | D18: =IF(Interface!J7<=3,'Containment Unit Calculations'!O4,IF(Interface!$J$7<=5,'Containment Unit Calculations'!P4,IF(Interface!$J$7<=8,'Containment Unit Calculations'!Q4,'Containment Unit Calculations'!S4))) -> 5.4
A19: =A16 -> Containment Number required | B19: =ROUNDUP(B17/B18,0)+1 -> 2 | D19: =ROUNDUP(D17/D18,0) -> 2
A20: Nursery RAS system 10-100g fish Volume needed // RACEWAY Grow out Water Volume needed >100g fish) full system (m3) | B20: =B9/'Production Assumptions'!G32 -> 2.373526633 | D20: =D13/'Production Assumptions'!G33 -> 7.424860658
A21: =A18 -> Volume of containment units (m3) | B21: =IF(Interface!J7<=3,'Containment Unit Calculations'!E4,IF(Interface!$J$7<=5,'Containment Unit Calculations'!F4,IF(Interface!$J$7<=20,'Containment Unit Calculations'!G4,'Containment Unit Calculations'!I4))) -> 5.4 | D21: =IF(Interface!J7<=5,'Containment Unit Calculations'!P22,IF(Interface!$J$7<=8,'Containment Unit Calculations'!Q22,IF(Interface!$J$7<=50,'Containment Unit Calculations'!R22,'Containment Unit Calculations'!S22))) -> 5
A22: =A19 -> Containment Number required | B22: =ROUNDUP(B20/B21,0)+1 -> 2 | D22: =ROUNDUP(D20/D21,0) -> 2
A23: Nursery RAS system 10-100g fish Volume needed /FLOWTHROUGH Grow out Water Volume needed >100g fish) full system (m3) | B23: =B9/'Production Assumptions'!G32 -> 2.373526633 | D23: =(MAX(D13:I13))/'Production Assumptions'!G36 -> 20.9540714
A24: =A21 -> Volume of containment units (m3) | B24: =IF(Interface!J7<=3,'Containment Unit Calculations'!E4,IF(Interface!$J$7<=5,'Containment Unit Calculations'!F4,IF(Interface!$J$7<=20,'Containment Unit Calculations'!G4,'Containment Unit Calculations'!I4))) -> 5.4 | D24: =IF(Interface!J7<=1,'Containment Unit Calculations'!X4,IF(Interface!$J$7<=8,'Containment Unit Calculations'!Z4,IF(Interface!$J$7<=10,'Containment Unit Calculations'!AB4,'Containment Unit Calculations'!AC4))) -> 13.82
A25: =A22 -> Containment Number required | B25: =ROUNDUP(B23/B24,0)+1 -> 2 | D25: =ROUNDUP(D23/D24,0) -> 2
A26: Nursery RAS system 10-100g fish Volume needed / CAGE Grow out Water Volume needed >100g fish) full system (m3) | B26: =B9/'Production Assumptions'!G32 -> 2.373526633 | D26: =(MAX(D13:I13))/'Production Assumptions'!G35 -> 654.8147313
A27: =A24 -> Volume of containment units (m3) | B27: =IF(Interface!J7<=3,'Containment Unit Calculations'!E4,IF(Interface!$J$7<=5,'Containment Unit Calculations'!F4,IF(Interface!$J$7<=20,'Containment Unit Calculations'!G4,'Containment Unit Calculations'!I4))) -> 5.4
A28: =A25 -> Containment Number required | B28: =ROUNDUP(B26/B27,0)+1 -> 2
A29: 2 | C29: =B9 -> 5103.082262 | D29: 5007.399469 | E29: 4913.510729 | F29: 4821.382403 | G29: 4730.981483 | H29: 4642.27558 | I29: 4555.232913
A30: feed/fish/day | C30: =IF(C$9=0,0,B10) -> 0.48 | D30: =IF(D$9=0,0,C10) -> 0.7585 | E30: =IF(E$9=0,0,D10) -> 1.7575 | F30: 2.3 | G30: 4.024 | H30: 6.0645 | I30: 0
A31: feed/batch/day | C31: =IF(C$9=0,0,B11) -> 2.449479486 | D31: =IF(D$9=0,0,C11) -> 3.798112497 | E31: 8.635495107 | F31: 11.08917953 | G31: 19.03746949 | H31: 28.15308026 | I31: 0
A32: feed/batch/mnth | C32: 73.48438457 | D32: =IF(D$9=0,0,C12) -> 113.9433749 | E32: 259.0648532 | F32: 332.6753858 | G32: 571.1240846 | H32: 844.5924077 | I32: 0
A33: Batch Biomass | C33: 51.03082262 | D33: =IF(D$9=0,0,C13) -> 135.1997857 | E33: 334.1187296 | F33: 781.0639493 | G33: 1613.264686 | H33: 2748.227143 | I33: 0
A34: Nursery RAS system 10-100g fish Volume needed // POND Grow out Water Volume needed >100g fish) full system (m3) | C34: 2.373526633 | E34: =IF(E$9=0,0,D14) -> 93.12920622
A35: Volume of containment units (m3) | C35: 5.4 | E35: =IF(E$9=0,0,D15) -> 1000
A36: Containment Number required | C36: 2 | E36: =IF(E$9=0,0,D16) -> 1
A37: Nursery RAS system 10-100g fish Volume needed // RAS Grow out Water Volume needed >100g fish) full system (m3) | C37: 2.373526633 | E37: =IF(E$9=0,0,D17) -> 7.424860658
A38: =A35 -> Volume of containment units (m3) | C38: 5.4 | E38: =IF(E$9=0,0,D18) -> 5.4
A39: =A36 -> Containment Number required | C39: 2 | E39: =IF(E$9=0,0,D19) -> 2
A40: Nursery RAS system 10-100g fish Volume needed // RACEWAY Grow out Water Volume needed >100g fish) full system (m3) | C40: 2.373526633 | E40: =IF(E$9=0,0,D20) -> 7.424860658
A41: =A38 -> Volume of containment units (m3) | C41: 5.4 | E41: =IF(E$9=0,0,D21) -> 5
A42: =A39 -> Containment Number required | C42: 2 | E42: =IF(E$9=0,0,D22) -> 2
A43: Nursery RAS system 10-100g fish Volume needed // FLOWTHROUGH Grow out Water Volume needed >100g fish) full system (m3) | C43: 2.373526633 | E43: =IF(E$9=0,0,D23) -> 20.9540714
A44: =A41 -> Volume of containment units (m3) | C44: 5.4 | E44: =IF(E$9=0,0,D24) -> 13.82
A45: =A42 -> Containment Number required | C45: 2 | E45: =IF(E$9=0,0,D25) -> 2
A46: Nursery RAS system 10-100g fish Volume needed // CAGE Grow out Water Volume needed >100g fish) full system (m3) | C46: 2.373526633 | E46: =IF(E$9=0,0,D26) -> 654.8147313
A47: =A44 -> Volume of containment units (m3) | C47: 5.4
A48: =A45 -> Containment Number required | C48: 2
A49: 3 | D49: =C29 -> 5103.082262 | E49: 5007.399469 | F49: 4913.510729 | G49: 4821.382403 | H49: 4730.981483 | I49: 4642.27558
A50: feed/batch/mnth | D50: =IF(D$9=0,0,C32) -> 73.48438457 | E50: =IF(E$9=0,0,D32) -> 113.9433749 | F50: 259.0648532 | G50: 332.6753858 | H50: 571.1240846 | I50: 0
A51: Batch Biomass | D51: =IF(D$9=0,0,C33) -> 51.03082262 | E51: =IF(E$9=0,0,D33) -> 135.1997857 | F51: 334.1187296 | G51: 781.0639493 | H51: 1613.264686 | I51: 0
A52: Nursery RAS system 10-100g fish Volume needed // POND Grow out Water Volume needed >100g fish) full system (m3) | F52: =IF(F$9=0,0,E34) -> 93.12920622
A53: Volume of containment units (m3) | F53: =IF(F$9=0,0,E35) -> 1000
A54: Containment Number required | F54: 1
A55: Nursery RAS system 10-100g fish Volume needed // RAS Grow out Water Volume needed >100g fish) full system (m3) | F55: 7.424860658
A56: =A53 -> Volume of containment units (m3) | F56: 5.4
A57: =A54 -> Containment Number required | F57: 2
A58: Nursery RAS system 10-100g fish Volume needed // RACEWAY Grow out Water Volume needed >100g fish) full system (m3) | F58: 7.424860658
A59: =A56 -> Volume of containment units (m3) | F59: 5
A60: =A57 -> Containment Number required | F60: 2
A61: Nursery RAS system 10-100g fish Volume needed // FLOWTHROUGH Grow out Water Volume needed >100g fish) full system (m3) | F61: 20.9540714
A62: =A59 -> Volume of containment units (m3) | F62: 13.82
A63: =A60 -> Containment Number required | F63: 2
A64: Nursery RAS system 10-100g fish Volume needed // CAGE Grow out Water Volume needed >100g fish) full system (m3) | F64: 654.8147313
A65: =A62 -> Volume of containment units (m3)
A66: =A63 -> Containment Number required
A67: 4 | E67: =D49 -> 5103.082262 | F67: 5007.399469 | G67: 4913.510729 | H67: 4821.382403 | I67: 4730.981483
A68: feed/batch/mnth | E68: =IF(E$9=0,0,D50) -> 73.48438457 | F68: =IF(F$9=0,0,E50) -> 113.9433749 | G68: 259.0648532 | H68: 332.6753858 | I68: 0
A69: Batch Biomass | E69: =IF(E$9=0,0,D51) -> 51.03082262 | F69: =IF(F$9=0,0,E51) -> 135.1997857 | G69: 334.1187296 | H69: 781.0639493 | I69: 0
A70: Nursery RAS system 10-100g fish Volume needed // POND Grow out Water Volume needed >100g fish) full system (m3) | G70: =IF(G$9=0,0,F52) -> 93.12920622
A71: Volume of containment units (m3) | G71: =IF(G$9=0,0,F53) -> 1000
A72: Containment Number required | G72: 1
A73: Nursery RAS system 10-100g fish Volume needed // RAS Grow out Water Volume needed >100g fish) full system (m3) | G73: 7.424860658
A74: =A71 -> Volume of containment units (m3) | G74: 5.4
A75: =A72 -> Containment Number required | G75: 2
A76: Nursery RAS system 10-100g fish Volume needed // RACEWAY Grow out Water Volume needed >100g fish) full system (m3) | G76: 7.424860658
A77: =A74 -> Volume of containment units (m3) | G77: 5
A78: =A75 -> Containment Number required | G78: 2
A79: Nursery RAS system 10-100g fish Volume needed // FLOWTHROUGH Grow out Water Volume needed >100g fish) full system (m3) | G79: 20.9540714
A80: =A77 -> Volume of containment units (m3) | G80: 13.82
A81: =A78 -> Containment Number required | G81: 2
A82: Nursery RAS system 10-100g fish Volume needed // CAGE Grow out Water Volume needed >100g fish) full system (m3) | G82: 654.8147313
A83: =A80 -> Volume of containment units (m3)
A84: =A81 -> Containment Number required
A85: 5 | F85: =E67 -> 5103.082262 | G85: 5007.399469 | H85: 4913.510729 | I85: 4821.382403
A86: feed/batch/mnth | F86: =IF(F$9=0,0,E68) -> 73.48438457 | G86: =IF(G$9=0,0,F68) -> 113.9433749 | H86: 259.0648532 | I86: 0
A87: Batch Biomass | D87: =C69 -> 0 | E87: =D69 -> 0 | F87: =IF(F$9=0,0,E69) -> 51.03082262 | G87: =IF(G$9=0,0,F69) -> 135.1997857 | H87: 334.1187296 | I87: 0
A88: Nursery RAS system 10-100g fish Volume needed // POND Grow out Water Volume needed >100g fish) full system (m3) | H88: =IF(H$9=0,0,G70) -> 93.12920622
A89: Volume of containment units (m3) | H89: =IF(H$9=0,0,G71) -> 1000
A90: Containment Number required | H90: 1
A91: Nursery RAS system 10-100g fish Volume needed // RAS Grow out Water Volume needed >100g fish) full system (m3) | H91: 7.424860658
A92: =A89 -> Volume of containment units (m3) | H92: 5.4
A93: =A90 -> Containment Number required | H93: 2
A94: Nursery RAS system 10-100g fish Volume needed // RACEWAY Grow out Water Volume needed >100g fish) full system (m3) | H94: 7.424860658
A95: =A92 -> Volume of containment units (m3) | H95: 5
A96: =A93 -> Containment Number required | H96: 2
A97: Nursery RAS system 10-100g fish Volume needed // FLOWTHROUGH Grow out Water Volume needed >100g fish) full system (m3) | H97: 20.9540714
A98: =A95 -> Volume of containment units (m3) | H98: 13.82
A99: =A96 -> Containment Number required | H99: 2
A100: Nursery RAS system 10-100g fish Volume needed // CAGE Grow out Water Volume needed >100g fish) full system (m3) | H100: 654.8147313
A101: =A98 -> Volume of containment units (m3)
A102: =A99 -> Containment Number required
A103: 6 | G103: =F85 -> 5103.082262 | H103: 5007.399469 | I103: 4913.510729
A104: feed/batch/mnth | G104: =IF(G$9=0,0,F86) -> 73.48438457 | H104: =IF(H$9=0,0,G86) -> 113.9433749 | I104: 0
A105: Batch Biomass | D105: =C87 -> 0 | E105: =D87 -> 0 | F105: 0 | G105: =IF(G$9=0,0,F87) -> 51.03082262 | H105: =IF(H$9=0,0,G87) -> 135.1997857 | I105: 0
A106: Nursery RAS system 10-100g fish Volume needed // POND Grow out Water Volume needed >100g fish) full system (m3) | I106: =IF(I$9=0,0,H88) -> 0
A107: Volume of containment units (m3) | I107: =IF(I$9=0,0,H89) -> 0
A108: Containment Number required | I108: 0
A109: Nursery RAS system 10-100g fish Volume needed // RAS Grow out Water Volume needed >100g fish) full system (m3) | I109: 0
A110: =A107 -> Volume of containment units (m3) | I110: 0
A111: =A108 -> Containment Number required | I111: 0
A112: Nursery RAS system 10-100g fish Volume needed // RACEWAY Grow out Water Volume needed >100g fish) full system (m3) | I112: 0
A113: =A110 -> Volume of containment units (m3) | I113: 0
A114: =A111 -> Containment Number required | I114: 0
A115: Nursery RAS system 10-100g fish Volume needed // FLOWTHROUGH Grow out Water Volume needed >100g fish) full system (m3) | I115: 0
A116: =A113 -> Volume of containment units (m3) | I116: 0
A117: =A114 -> Containment Number required | I117: 0
A118: Nursery RAS system 10-100g fish Volume needed // CAGE Grow out Water Volume needed >100g fish) full system (m3) | I118: 0
A119: =A116 -> Volume of containment units (m3)
A120: =A117 -> Containment Number required
A121: 7 | H121: =G103 -> 5103.082262 | I121: 5007.399469
A122: feed/batch/mnth | H122: =IF(H$9=0,0,G104) -> 73.48438457 | I122: =IF(I$9=0,0,H104) -> 0
A123: Batch Biomass | D123: =C105 -> 0 | E123: =D105 -> 0 | F123: 0 | G123: 0 | H123: =IF(H$9=0,0,G105) -> 51.03082262 | I123: =IF(I$9=0,0,H105) -> 0
A124: Nursery RAS system 10-100g fish Volume needed // POND Grow out Water Volume needed >100g fish) full system (m3)
A125: Volume of containment units (m3)
A126: Containment Number required
A127: Nursery RAS system 10-100g fish Volume needed // RAS Grow out Water Volume needed >100g fish) full system (m3)
A128: =A125 -> Volume of containment units (m3)
A129: =A126 -> Containment Number required
A130: Nursery RAS system 10-100g fish Volume needed // RACEWAY Grow out Water Volume needed >100g fish) full system (m3)
A131: =A128 -> Volume of containment units (m3)
A132: =A129 -> Containment Number required
A133: Nursery RAS system 10-100g fish Volume needed // FLOWTHROUGH Grow out Water Volume needed >100g fish) full system (m3)
A134: =A131 -> Volume of containment units (m3)
A135: =A132 -> Containment Number required
A136: Nursery RAS system 10-100g fish Volume needed // CAGE Grow out Water Volume needed >100g fish) full system (m3)
A137: =A134 -> Volume of containment units (m3)
A138: =A135 -> Containment Number required
A139: 8 | I139: =H121 -> 5103.082262
A140: feed/batch/mnth | I140: =IF(I$9=0,0,H122) -> 0
A141: Batch Biomass | D141: =C123 -> 0 | E141: =D123 -> 0 | F141: 0 | G141: 0 | H141: 0 | I141: =IF(I$9=0,0,H123) -> 0
A142: Nursery RAS system 10-100g fish Volume needed // POND Grow out Water Volume needed >100g fish) full system (m3)
A143: Volume of containment units (m3)
A144: Containment Number required
A145: Nursery RAS system 10-100g fish Volume needed // RAS Grow out Water Volume needed >100g fish) full system (m3)
A146: =A143 -> Volume of containment units (m3)
A147: =A144 -> Containment Number required
A148: Nursery RAS system 10-100g fish Volume needed // RACEWAY Grow out Water Volume needed >100g fish) full system (m3)
A149: =A146 -> Volume of containment units (m3)
A150: =A147 -> Containment Number required
A151: Nursery RAS system 10-100g fish Volume needed // FLOWTHROUGH Grow out Water Volume needed >100g fish) full system (m3)
A152: =A149 -> Volume of containment units (m3)
A153: =A150 -> Containment Number required
A154: Nursery RAS system 10-100g fish Volume needed // CAGE Grow out Water Volume needed >100g fish) full system (m3)
A155: =A152 -> Volume of containment units (m3)
A156: =A153 -> Containment Number required
A157: Total Feed Required (kg/month) | B157: =B140+B122+B104+B86+B68+B50+B32+B12 -> 73.48438457 | C157: 187.4277595 | D157: 446.4926127 | E157: 779.1679985 | F157: 1350.292083 | G157: 2194.884491 | H157: 3434.63668 | I157: 0
A158: Total System Biomass (kg) | B158: =(B141+B123+B105+B87+B69+B51+B33+B13) -> 51.03082262 | C158: 186.2306083 | D158: 520.3493379 | E158: 1301.413287 | F158: 2914.677973 | G158: 5662.905116 | H158: 9853.719396 | I158: =(I141+I123+I105+I87+I69+I51+I33+I13) -> 0
B159: Jan | C159: Feb | D159: Mar | E159: Apr | F159: May | G159: June | H159: July | I159: Aug
B161: No tanks | C161: System Volume
A162: Number of tanks required (10-100g fish) | B162: =B16+C36 -> 4 | C162: =B14+C34 -> 4.747053267
A163: Number of ponds/tanks required 100g+ fish | B163: =(D16+E36+F54+G72+H90+I108) -> 5 | C163: =D14+E34+F52+G70+H88+I106 -> 465.6460311
A164: RAS Tanks (10-100g) | B164: =B19+C39 -> 4 | C164: =B17+C37 -> 4.747053267
A165: RAS Tanks (100g +) | B165: =D19+E39+F57+G75+H93+I111 -> 10 | C165: =D17+E37+F55+G73+H91+I109 -> 37.12430329
A166: Raceway Tanks (10-100g) | B166: =B22+C42 -> 4 | C166: =B20+C40 -> 4.747053267
A167: Raceway Tanks (100g +) | B167: =D22+E42+F60+G78+H96+I114 -> 10 | C167: =D20+E40+F58+G76+H94+I112 -> 37.12430329
A168: Flow Through Tanks (10-100g) | B168: =B25+C45 -> 4 | C168: =B23+C43 -> 4.747053267
A169: Flow Through Tanks (100g +) | B169: =D25+E45+F63+G81+H99+I117 -> 10 | C169: =D23+E43+F61+G79+H97+I115 -> 104.770357
A170: Cage Tanks (10-100g) | B170: =B28+C48 -> 4 | C170: =B26+C46 -> 4.747053267
A171: Floating Cages (100g +) m3 volume needed | B171: =D28+E48+F66+G84+H102+I120 -> 0 | C171: =D26+E46+F64+G82+H100+I118 -> 3274.073656
A174: Production cycle: | B174: =(IF(Interface!$E$17=Validation!$D$39,1,IF(Interface!$E$17=Validation!$D$40,2,IF(Interface!$E$17=Validation!$D$41,3,IF(Interface!$E$17=Validation!$D$42,4,IF(Interface!$E$17=Validation!$D$43,5,IF(Interface!$E$17=Validation!$D$44,6,IF(Interface!$E$17=Validation!$D$45,7,IF(Interface!$E$17=Validation!$D$46,8,IF(Interface!$E$17=Validation!$D$47,9,IF(Interface!$E$17=Validation!$D$48,10,IF(Interface!$E$17=Validation!$D$49,11,IF(Interface!$E$17=Validation!$D$50,12,IF(Interface!$E$17=Validation!$D$51,13,IF(Interface!$E$17=Validation!$D$52,14,"Please select a production cycle ")))))))))))))))-1 -> 6
A175: How many kgs per month (after mortality) | B175: =(Interface!$J$7*B180)/12 -> 4166.666667
A176: How many fish per month (after mortality) | B176: =B175/(B179/B180) -> 4528.985507
A177: Number of fish lost (per cycle) | B177: =B178-B176 -> 574.0967544
A178: Total number of fingerlings required in month 1 (before mortality) | B178: =B176/(1-('Production Assumptions'!C25*'Production Cycle'!B174)) -> 5103.082262
A179: Weight of Fish for sale (grams): | B179: =IF(Interface!$E$17=Validation!$D$39,(B8),IF(Interface!$E$17=Validation!$D$40,C8,IF(Interface!$E$17=Validation!$D$41,D8,IF(Interface!$E$17=Validation!$D$42,E8,IF(Interface!$E$17=Validation!$D$43,F8,IF(Interface!$E$17=Validation!$D$44,G8,IF(Interface!$E$17=Validation!$D$45,H8,IF(Interface!$E$17=Validation!$D$46,I8,"Please select a production cycle ")))))))) -> 920
A180: conversions | B180: 1000
A183: Aquaponics Calculations
F184: % water reuse
A185: Leafy greens- 40–50 grams of feed per square metre per day | D185: ='Production Assumptions'!I5 -> 40 | F185: ='Production Assumptions'!I22 -> 0.2
A186: Leafy greens 20-25 per square metre | D186: ='Production Assumptions'!I7 -> 20
A188: Full farm | B188: =B6 -> Month 1 | C188: Month 2 | D188: Month 3 | E188: Month 4 | F188: Month 5 | G188: Month 6 | H188: Month 7 | I188: Month 8
A189: Ave grams feed input/day (full capacity) | B189: =B157/30*1000 -> 2449.479486 | C189: =IF(C157=0,0,(C157/30*1000)) -> 6247.591983 | D189: =IF(D157=0,0,(D157/30*1000)) -> 14883.08709 | E189: 25972.26662 | F189: 45009.7361 | G189: 73162.81636 | H189: 114487.8893 | I189: 0
A190: Ave grams feed input/day (operational capacity) | B190: =B189*$F$185 -> 489.8958971 | C190: =C189*$F$185 -> 1249.518397 | D190: 2976.617418 | E190: 5194.453323 | F190: 9001.947221 | G190: 14632.56327 | H190: 22897.57787 | I190: 0
A191: m2 | B191: =B$190/$D$185 -> 12.24739743 | C191: =C$190/$D$185 -> 31.23795992 | D191: 74.41543545 | E191: 129.8613331 | F191: 225.0486805 | G191: 365.8140818 | H191: 572.4394467 | I191: 0
A193: Veggie | B193: =B188 -> Month 1 | C193: =C188 -> Month 2 | D193: Month 3 | E193: Month 4 | F193: Month 5 | G193: Month 6 | H193: Month 7 | I193: Month 8 | K193: Veggie | L193: Per Annum Kg/m2
A194: Spinach | B194: =(B$191*$L$194)/12/4 -> 4.847928149 | C194: =(C$191*$L$194)/12/4 -> 12.3650258 | D194: 29.45610986 | E194: 51.40344435 | F194: 89.08176937 | G194: 144.8014074 | H194: 226.5906143 | I194: 0 | K194: Spinach | L194: 19
A195: Basil | B195: =($B$191*$L$195)/12/4 -> 5.358236375 | C195: =(C$191*$L$195)/12/4 -> 13.66660746 | D195: =(D$191*$L$195)/12/4 -> 32.55675301 | E195: 56.81433322 | F195: 98.45879773 | G195: 160.0436608 | H195: 250.4422579 | I195: 0 | K195: Basil | L195: 21
A196: Lettuce | B196: =(B$191*$L$196)/12/4 -> 7.399469279 | C196: =(C$191*$L$196)/12/4 -> 18.87293412 | D196: 44.95932558 | E196: 78.45788874 | F196: 135.9669111 | G196: 221.0126744 | H196: 345.8488324 | I196: 0 | K196: Lettuce | L196: 29
A197: Choi | B197: =(B$191*$L$197)/12/4 -> 4.847928149 | C197: =(C$191*$L$197)/12/4 -> 12.3650258 | D197: 29.45610986 | E197: 51.40344435 | F197: 89.08176937 | G197: 144.8014074 | H197: 226.5906143 | I197: 0 | K197: Choi | L197: 19
A198: Total (kg) | B198: =SUM(B194:B197) -> 22.45356195 | C198: =SUM(C194:C197) -> 57.26959318 | D198: 136.4282983 | E198: 238.0791107 | F198: 412.5892476 | G198: 670.65915 | H198: 1049.472319 | I198: 0

Sheet HR (hidden)
A1: HUMAN RESOURCES - CATFISH MODEL
B3: RAS
B4: LABOUR:
E5: YEAR 1 | R5: YEAR 2
E6: Month 1 | F6: Month 2 | G6: Month 3 | H6: Month 4 | I6: Month 5 | J6: Month 6 | K6: Month 7 | L6: Month 8 | M6: Month 9 | N6: Month 10 | O6: Month 11 | P6: Month 12 | Q6: 1 | R6: Month 1 | S6: Month 2 | T6: Month 3 | U6: Month 4 | V6: Month 5 | W6: Month 6 | X6: Month 7 | Y6: Month 8 | Z6: Month 9 | AA6: Month 10 | AB6: Month 11 | AC6: Month 12 | AE6: 2 | AG6: 3 | AI6: 4 | AK6: 5 | AM6: 6 | AO6: 7 | AQ6: 8 | AS6: 9
B7: Employees: | C7: Year 1 | D7: Annual Cost: Year 1 | Q7: Year 2: | AD7: Annual Cost: Year 2 | AE7: Year 3: | AF7: Annual Cost: Year 3 | AG7: Year 4: | AH7: Annual Cost: Year 4 | AI7: Year 5 | AJ7: Annual Cost: Year 5 | AK7: Year 6 | AL7: Annual Cost: Year 6 | AM7: Year 7 | AN7: Annual Cost: Year 7 | AO7: Year 8 | AP7: Annual Cost: Year 8 | AQ7: Year 9 | AR7: Annual Cost: Year 9 | AS7: Year 10 | AT7: Annual Cost: Year 10
B8: Skilled Workers | C8: =P15 -> 1 | D8: =SUM(E8:P8) -> 270000 | E8: ='Production Assumptions'!$C$48*D15 -> 22500 | F8: ='Production Assumptions'!$C$48*E15 -> 22500 | G8: ='Production Assumptions'!$C$48*F15 -> 22500 | H8: ='Production Assumptions'!$C$48*G15 -> 22500 | I8: ='Production Assumptions'!$C$48*H15 -> 22500 | J8: ='Production Assumptions'!$C$48*I15 -> 22500 | K8: ='Production Assumptions'!$C$48*J15 -> 22500 | L8: ='Production Assumptions'!$C$48*K15 -> 22500 | M8: ='Production Assumptions'!$C$48*L15 -> 22500 | N8: ='Production Assumptions'!$C$48*M15 -> 22500 | O8: ='Production Assumptions'!$C$48*N15 -> 22500 | P8: ='Production Assumptions'!$C$48*O15 -> 22500 | Q8: =Q15 -> 1 | R8: ='Production Assumptions'!$C$48*(1+'Production Assumptions'!$C$5)*R15 -> 23647.5 | S8: ='Production Assumptions'!$C$48*(1+'Production Assumptions'!$C$5)*S15 -> 23647.5 | T8: ='Production Assumptions'!$C$48*(1+'Production Assumptions'!$C$5)*T15 -> 23647.5 | U8: ='Production Assumptions'!$C$48*(1+'Production Assumptions'!$C$5)*U15 -> 23647.5 | V8: ='Production Assumptions'!$C$48*(1+'Production Assumptions'!$C$5)*V15 -> 23647.5 | W8: ='Production Assumptions'!$C$48*(1+'Production Assumptions'!$C$5)*W15 -> 23647.5 | X8: ='Production Assumptions'!$C$48*(1+'Production Assumptions'!$C$5)*X15 -> 23647.5 | Y8: ='Production Assumptions'!$C$48*(1+'Production Assumptions'!$C$5)*Y15 -> 23647.5 | Z8: ='Production Assumptions'!$C$48*(1+'Production Assumptions'!$C$5)*Z15 -> 23647.5 | AA8: ='Production Assumptions'!$C$48*(1+'Production Assumptions'!$C$5)*AA15 -> 23647.5 | AB8: ='Production Assumptions'!$C$48*(1+'Production Assumptions'!$C$5)*AB15 -> 23647.5 | AC8: ='Production Assumptions'!$C$48*(1+'Production Assumptions'!$C$5)*AC15 -> 23647.5 | AD8: =SUM(R8:AC8) -> 283770 | AE8: =AD15 -> 1 | AF8: =$AD8*(1+'Production Assumptions'!$C$5) -> 298242.27 | AG8: =AE15 -> 1 | AH8: =$AD8*(1+'Production Assumptions'!$C$5)^2 -> 313452.6258 | AI8: =AF15 -> 1 | AJ8: =$AD8*(1+'Production Assumptions'!$C$5)^3 -> 329438.7097 | AK8: =AG15 -> 1 | AL8: =$AD8*(1+'Production Assumptions'!$C$5)^4 -> 346240.0839 | AM8: =AH15 -> 1 | AN8: =$AD8*(1+'Production Assumptions'!$C$5)^5 -> 363898.3282 | AO8: =AI15 -> 1 | AP8: =$AD8*(1+'Production Assumptions'!$C$5)^6 -> 382457.1429 | AQ8: =AJ15 -> 1 | AR8: =$AD8*(1+'Production Assumptions'!$C$5)^7 -> 401962.4572 | AS8: =AK15 -> 1 | AT8: =$AD8*(1+'Production Assumptions'!$C$5)^8 -> 422462.5425
B9: Medium Skilled | C9: =P16 -> 0 | D9: =SUM(E9:P9) -> 0 | E9: ='Production Assumptions'!$C$49*D16 -> 0 | F9: ='Production Assumptions'!$C$49*E16 -> 0 | G9: ='Production Assumptions'!$C$49*F16 -> 0 | H9: ='Production Assumptions'!$C$49*G16 -> 0 | I9: ='Production Assumptions'!$C$49*H16 -> 0 | J9: ='Production Assumptions'!$C$49*I16 -> 0 | K9: ='Production Assumptions'!$C$49*J16 -> 0 | L9: ='Production Assumptions'!$C$49*K16 -> 0 | M9: ='Production Assumptions'!$C$49*L16 -> 0 | N9: ='Production Assumptions'!$C$49*M16 -> 0 | O9: ='Production Assumptions'!$C$49*N16 -> 0 | P9: ='Production Assumptions'!$C$49*O16 -> 0 | Q9: =Q16 -> 0 | R9: ='Production Assumptions'!$C$49*(1+'Production Assumptions'!$C$5)*R16 -> 0 | S9: ='Production Assumptions'!$C$49*(1+'Production Assumptions'!$C$5)*S16 -> 0 | T9: ='Production Assumptions'!$C$49*(1+'Production Assumptions'!$C$5)*T16 -> 0 | U9: ='Production Assumptions'!$C$49*(1+'Production Assumptions'!$C$5)*U16 -> 0 | V9: ='Production Assumptions'!$C$49*(1+'Production Assumptions'!$C$5)*V16 -> 0 | W9: ='Production Assumptions'!$C$49*(1+'Production Assumptions'!$C$5)*W16 -> 0 | X9: ='Production Assumptions'!$C$49*(1+'Production Assumptions'!$C$5)*X16 -> 0 | Y9: ='Production Assumptions'!$C$49*(1+'Production Assumptions'!$C$5)*Y16 -> 0 | Z9: ='Production Assumptions'!$C$49*(1+'Production Assumptions'!$C$5)*Z16 -> 0 | AA9: ='Production Assumptions'!$C$49*(1+'Production Assumptions'!$C$5)*AA16 -> 0 | AB9: ='Production Assumptions'!$C$49*(1+'Production Assumptions'!$C$5)*AB16 -> 0 | AC9: ='Production Assumptions'!$C$49*(1+'Production Assumptions'!$C$5)*AC16 -> 0 | AD9: =SUM(R9:AC9) -> 0 | AE9: =AD16 -> 0 | AF9: =$AD9*(1+'Production Assumptions'!$C$5) -> 0 | AG9: =AE16 -> 0 | AH9: =$AD9*(1+'Production Assumptions'!$C$5)^2 -> 0 | AI9: =AF16 -> 0 | AJ9: =$AD9*(1+'Production Assumptions'!$C$5)^3 -> 0 | AK9: =AG16 -> 0 | AL9: =$AD9*(1+'Production Assumptions'!$C$5)^4 -> 0 | AM9: =AH16 -> 0 | AN9: =$AD9*(1+'Production Assumptions'!$C$5)^5 -> 0 | AO9: =AI16 -> 0 | AP9: =$AD9*(1+'Production Assumptions'!$C$5)^6 -> 0 | AQ9: =AJ16 -> 0 | AR9: =$AD9*(1+'Production Assumptions'!$C$5)^7 -> 0 | AS9: =AK16 -> 0 | AT9: =$AD9*(1+'Production Assumptions'!$C$5)^8 -> 0
B10: Low Skilled | C10: 5 | D10: =SUM(E10:P10) -> 240000 | E10: ='Production Assumptions'!$C$50*D17 -> 20000 | F10: ='Production Assumptions'!$C$50*E17 -> 20000 | G10: ='Production Assumptions'!$C$50*F17 -> 20000 | H10: ='Production Assumptions'!$C$50*G17 -> 20000 | I10: ='Production Assumptions'!$C$50*H17 -> 20000 | J10: ='Production Assumptions'!$C$50*I17 -> 20000 | K10: ='Production Assumptions'!$C$50*J17 -> 20000 | L10: ='Production Assumptions'!$C$50*K17 -> 20000 | M10: ='Production Assumptions'!$C$50*L17 -> 20000 | N10: ='Production Assumptions'!$C$50*M17 -> 20000 | O10: ='Production Assumptions'!$C$50*N17 -> 20000 | P10: ='Production Assumptions'!$C$50*O17 -> 20000 | Q10: =Q17 -> 5 | R10: ='Production Assumptions'!$C$50*(1+'Production Assumptions'!$C$5)*R17 -> 21020 | S10: ='Production Assumptions'!$C$50*(1+'Production Assumptions'!$C$5)*S17 -> 21020 | T10: ='Production Assumptions'!$C$50*(1+'Production Assumptions'!$C$5)*T17 -> 21020 | U10: ='Production Assumptions'!$C$50*(1+'Production Assumptions'!$C$5)*U17 -> 21020 | V10: ='Production Assumptions'!$C$50*(1+'Production Assumptions'!$C$5)*V17 -> 21020 | W10: ='Production Assumptions'!$C$50*(1+'Production Assumptions'!$C$5)*W17 -> 21020 | X10: ='Production Assumptions'!$C$50*(1+'Production Assumptions'!$C$5)*X17 -> 21020 | Y10: ='Production Assumptions'!$C$50*(1+'Production Assumptions'!$C$5)*Y17 -> 21020 | Z10: ='Production Assumptions'!$C$50*(1+'Production Assumptions'!$C$5)*Z17 -> 21020 | AA10: ='Production Assumptions'!$C$50*(1+'Production Assumptions'!$C$5)*AA17 -> 21020 | AB10: ='Production Assumptions'!$C$50*(1+'Production Assumptions'!$C$5)*AB17 -> 21020 | AC10: ='Production Assumptions'!$C$50*(1+'Production Assumptions'!$C$5)*AC17 -> 21020 | AD10: 252240 | AE10: =AD17 -> 5 | AF10: =$AD10*(1+'Production Assumptions'!$C$5) -> 265104.24 | AG10: =AE17 -> 5 | AH10: =$AD10*(1+'Production Assumptions'!$C$5)^2 -> 278624.5562 | AI10: =AF17 -> 5 | AJ10: =$AD10*(1+'Production Assumptions'!$C$5)^3 -> 292834.4086 | AK10: 5 | AL10: =$AD10*(1+'Production Assumptions'!$C$5)^4 -> 307768.9634 | AM10: =AH17 -> 5 | AN10: =$AD10*(1+'Production Assumptions'!$C$5)^5 -> 323465.1806 | AO10: 5 | AP10: =$AD10*(1+'Production Assumptions'!$C$5)^6 -> 339961.9048 | AQ10: =AJ17 -> 5 | AR10: =$AD10*(1+'Production Assumptions'!$C$5)^7 -> 357299.9619 | AS10: =AK17 -> 5 | AT10: =$AD10*(1+'Production Assumptions'!$C$5)^8 -> 375522.26
C11: 6 | D11: =SUM(D8:D10) -> 510000 | E11: 42500 | F11: 42500 | G11: 42500 | H11: 42500 | I11: 42500 | J11: 42500 | K11: 42500 | L11: 42500 | M11: 42500 | N11: 42500 | O11: 42500 | P11: 42500 | Q11: 6 | R11: 44667.5 | S11: 44667.5 | T11: 44667.5 | U11: 44667.5 | V11: 44667.5 | W11: 44667.5 | X11: 44667.5 | Y11: 44667.5 | Z11: 44667.5 | AA11: 44667.5 | AB11: 44667.5 | AC11: 44667.5 | AD11: 536010 | AE11: =SUM(AE8:AE10) -> 6 | AF11: 563346.51 | AG11: 6 | AH11: 592077.182 | AI11: 6 | AJ11: 622273.1183 | AK11: =AI11 -> 6 | AL11: =SUM(AL8:AL10) -> 654009.0473 | AM11: 6 | AN11: 687363.5087 | AO11: 6 | AP11: 722419.0477 | AQ11: 6 | AR11: 759262.4191 | AS11: 6 | AT11: 797984.8025
B13: HR | D13: =E5 -> YEAR 1 | R13: =R5 -> YEAR 2
B14: No. of Employees: | D14: =E6 -> Month 1 | E14: =F6 -> Month 2 | F14: Month 3 | G14: Month 4 | H14: Month 5 | I14: Month 6 | J14: Month 7 | K14: Month 8 | L14: Month 9 | M14: Month 10 | N14: Month 11 | O14: Month 12 | P14: Year 1 | Q14: Year 2: | R14: =R6 -> Month 1 | S14: =S6 -> Month 2 | T14: Month 3 | U14: Month 4 | V14: Month 5 | W14: Month 6 | X14: Month 7 | Y14: Month 8 | Z14: Month 9 | AA14: Month 10 | AB14: Month 11 | AC14: Month 12 | AD14: Year 3: | AE14: Year 4: | AF14: Year 5 | AG14: Year 6 | AH14: Year 7 | AI14: Year 8 | AJ14: Year 9 | AK14: Year 10
B15: Managers: | C15: =B8 -> Skilled Workers | D15: ='Production Assumptions'!$F$48 -> 1 | E15: ='Production Assumptions'!$F$48 -> 1 | F15: ='Production Assumptions'!$F$48 -> 1 | G15: ='Production Assumptions'!$F$48 -> 1 | H15: ='Production Assumptions'!$F$48 -> 1 | I15: ='Production Assumptions'!$F$48 -> 1 | J15: ='Production Assumptions'!$F$48 -> 1 | K15: ='Production Assumptions'!$F$48 -> 1 | L15: ='Production Assumptions'!$F$48 -> 1 | M15: ='Production Assumptions'!$F$48 -> 1 | N15: ='Production Assumptions'!$F$48 -> 1 | O15: ='Production Assumptions'!$F$48 -> 1 | P15: =O15 -> 1 | Q15: =AC15 -> 1 | R15: ='Production Assumptions'!$F$48 -> 1 | S15: ='Production Assumptions'!$F$48 -> 1 | T15: ='Production Assumptions'!$F$48 -> 1 | U15: ='Production Assumptions'!$F$48 -> 1 | V15: ='Production Assumptions'!$F$48 -> 1 | W15: ='Production Assumptions'!$F$48 -> 1 | X15: ='Production Assumptions'!$F$48 -> 1 | Y15: ='Production Assumptions'!$F$48 -> 1 | Z15: ='Production Assumptions'!$F$48 -> 1 | AA15: ='Production Assumptions'!$F$48 -> 1 | AB15: ='Production Assumptions'!$F$48 -> 1 | AC15: ='Production Assumptions'!$F$48 -> 1 | AD15: =(AC$15) -> 1 | AE15: =(AD$15) -> 1 | AF15: 1 | AG15: 1 | AH15: 1 | AI15: 1 | AJ15: 1 | AK15: 1
B16: Staff: | C16: =B9 -> Medium Skilled | D16: ='Production Assumptions'!$F$49 -> 0 | E16: ='Production Assumptions'!$F$49 -> 0 | F16: ='Production Assumptions'!$F$49 -> 0 | G16: ='Production Assumptions'!$F$49 -> 0 | H16: ='Production Assumptions'!$F$49 -> 0 | I16: ='Production Assumptions'!$F$49 -> 0 | J16: ='Production Assumptions'!$F$49 -> 0 | K16: ='Production Assumptions'!$F$49 -> 0 | L16: ='Production Assumptions'!$F$49 -> 0 | M16: ='Production Assumptions'!$F$49 -> 0 | N16: ='Production Assumptions'!$F$49 -> 0 | O16: ='Production Assumptions'!$F$49 -> 0 | P16: =O16 -> 0 | Q16: =AC16 -> 0 | R16: ='Production Assumptions'!$F$49 -> 0 | S16: ='Production Assumptions'!$F$49 -> 0 | T16: ='Production Assumptions'!$F$49 -> 0 | U16: ='Production Assumptions'!$F$49 -> 0 | V16: ='Production Assumptions'!$F$49 -> 0 | W16: ='Production Assumptions'!$F$49 -> 0 | X16: ='Production Assumptions'!$F$49 -> 0 | Y16: ='Production Assumptions'!$F$49 -> 0 | Z16: ='Production Assumptions'!$F$49 -> 0 | AA16: ='Production Assumptions'!$F$49 -> 0 | AB16: ='Production Assumptions'!$F$49 -> 0 | AC16: ='Production Assumptions'!$F$49 -> 0 | AD16: =AC16 -> 0 | AE16: =AD16 -> 0 | AF16: 0 | AG16: 0 | AH16: 0 | AI16: 0 | AJ16: 0 | AK16: 0
B17: Staff: | C17: =B10 -> Low Skilled | D17: ='Production Assumptions'!$F$50 -> 5 | E17: ='Production Assumptions'!$F$50 -> 5 | F17: ='Production Assumptions'!$F$50 -> 5 | G17: ='Production Assumptions'!$F$50 -> 5 | H17: ='Production Assumptions'!$F$50 -> 5 | I17: ='Production Assumptions'!$F$50 -> 5 | J17: ='Production Assumptions'!$F$50 -> 5 | K17: ='Production Assumptions'!$F$50 -> 5 | L17: ='Production Assumptions'!$F$50 -> 5 | M17: ='Production Assumptions'!$F$50 -> 5 | N17: ='Production Assumptions'!$F$50 -> 5 | O17: ='Production Assumptions'!$F$50 -> 5 | P17: =O17 -> 5 | Q17: =AC17 -> 5 | R17: ='Production Assumptions'!$F$50 -> 5 | S17: ='Production Assumptions'!$F$50 -> 5 | T17: ='Production Assumptions'!$F$50 -> 5 | U17: ='Production Assumptions'!$F$50 -> 5 | V17: ='Production Assumptions'!$F$50 -> 5 | W17: ='Production Assumptions'!$F$50 -> 5 | X17: ='Production Assumptions'!$F$50 -> 5 | Y17: ='Production Assumptions'!$F$50 -> 5 | Z17: ='Production Assumptions'!$F$50 -> 5 | AA17: ='Production Assumptions'!$F$50 -> 5 | AB17: ='Production Assumptions'!$F$50 -> 5 | AC17: ='Production Assumptions'!$F$50 -> 5 | AD17: =AC17 -> 5 | AE17: =AD17 -> 5 | AF17: 5 | AG17: 5 | AH17: 5 | AI17: 5 | AJ17: 5 | AK17: 5
B18: Total: | D18: =SUM(D15:D17) -> 6 | E18: 6 | F18: 6 | G18: 6 | H18: 6 | I18: 6 | J18: 6 | K18: 6 | L18: 6 | M18: 6 | N18: 6 | O18: 6 | P18: =SUM(P15:P17) -> 6 | Q18: 6 | R18: 6 | S18: 6 | T18: 6 | U18: 6 | V18: 6 | W18: 6 | X18: 6 | Y18: 6 | Z18: 6 | AA18: 6 | AB18: 6 | AC18: =SUM(AC15:AC17) -> 6 | AD18: =SUM(AD15:AD17) -> 6 | AE18: =SUM(AE15:AE17) -> 6 | AF18: 6 | AG18: 6 | AH18: 6 | AI18: 6 | AJ18: 6 | AK18: 6
B20: Pond
B21: LABOUR:
E22: YEAR 1 | R22: YEAR 2
E23: Month 1 | F23: Month 2 | G23: Month 3 | H23: Month 4 | I23: Month 5 | J23: Month 6 | K23: Month 7 | L23: Month 8 | M23: Month 9 | N23: Month 10 | O23: Month 11 | P23: Month 12 | Q23: 1 | R23: Month 1 | S23: Month 2 | T23: Month 3 | U23: Month 4 | V23: Month 5 | W23: Month 6 | X23: Month 7 | Y23: Month 8 | Z23: Month 9 | AA23: Month 10 | AB23: Month 11 | AC23: Month 12 | AE23: 2 | AG23: 3 | AI23: 4 | AK23: 5 | AM23: 6 | AO23: 7 | AQ23: 8 | AS23: 9
B24: Employees: | C24: Year 1 | D24: Annual Cost: Year 1 | Q24: Year 2: | AD24: Annual Cost: Year 2 | AE24: Year 3: | AF24: Annual Cost: Year 3 | AG24: Year 4: | AH24: Annual Cost: Year 4 | AI24: Year 5 | AJ24: Annual Cost: Year 5 | AK24: Year 6 | AL24: Annual Cost: Year 6 | AM24: Year 7 | AN24: Annual Cost: Year 7 | AO24: Year 8 | AP24: Annual Cost: Year 8 | AQ24: Year 9 | AR24: Annual Cost: Year 9 | AS24: Year 10 | AT24: Annual Cost: Year 10
B25: Skilled Workers | C25: =P32 -> 1 | D25: =SUM(E25:P25) -> 270000 | E25: ='Production Assumptions'!$C$48*D32 -> 22500 | F25: ='Production Assumptions'!$C$48*E32 -> 22500 | G25: ='Production Assumptions'!$C$48*F32 -> 22500 | H25: ='Production Assumptions'!$C$48*G32 -> 22500 | I25: ='Production Assumptions'!$C$48*H32 -> 22500 | J25: ='Production Assumptions'!$C$48*I32 -> 22500 | K25: ='Production Assumptions'!$C$48*J32 -> 22500 | L25: ='Production Assumptions'!$C$48*K32 -> 22500 | M25: ='Production Assumptions'!$C$48*L32 -> 22500 | N25: ='Production Assumptions'!$C$48*M32 -> 22500 | O25: ='Production Assumptions'!$C$48*N32 -> 22500 | P25: ='Production Assumptions'!$C$48*O32 -> 22500 | Q25: =Q32 -> 1 | R25: ='Production Assumptions'!$C$48*(1+'Production Assumptions'!$C$5)*R32 -> 23647.5 | S25: ='Production Assumptions'!$C$48*(1+'Production Assumptions'!$C$5)*S32 -> 23647.5 | T25: ='Production Assumptions'!$C$48*(1+'Production Assumptions'!$C$5)*T32 -> 23647.5 | U25: ='Production Assumptions'!$C$48*(1+'Production Assumptions'!$C$5)*U32 -> 23647.5 | V25: ='Production Assumptions'!$C$48*(1+'Production Assumptions'!$C$5)*V32 -> 23647.5 | W25: ='Production Assumptions'!$C$48*(1+'Production Assumptions'!$C$5)*W32 -> 23647.5 | X25: ='Production Assumptions'!$C$48*(1+'Production Assumptions'!$C$5)*X32 -> 23647.5 | Y25: ='Production Assumptions'!$C$48*(1+'Production Assumptions'!$C$5)*Y32 -> 23647.5 | Z25: ='Production Assumptions'!$C$48*(1+'Production Assumptions'!$C$5)*Z32 -> 23647.5 | AA25: ='Production Assumptions'!$C$48*(1+'Production Assumptions'!$C$5)*AA32 -> 23647.5 | AB25: ='Production Assumptions'!$C$48*(1+'Production Assumptions'!$C$5)*AB32 -> 23647.5 | AC25: ='Production Assumptions'!$C$48*(1+'Production Assumptions'!$C$5)*AC32 -> 23647.5 | AD25: =SUM(R25:AC25) -> 283770 | AE25: =AD32 -> 1 | AF25: =$AD25*(1+'Production Assumptions'!$C$5) -> 298242.27 | AG25: =AE32 -> 1 | AH25: =$AD25*(1+'Production Assumptions'!$C$5)^2 -> 313452.6258 | AI25: =AF32 -> 1 | AJ25: =$AD25*(1+'Production Assumptions'!$C$5)^3 -> 329438.7097 | AK25: =AG32 -> 1 | AL25: =$AD25*(1+'Production Assumptions'!$C$5)^4 -> 346240.0839 | AM25: =AH32 -> 1 | AN25: =$AD25*(1+'Production Assumptions'!$C$5)^5 -> 363898.3282 | AO25: =AI32 -> 1 | AP25: =$AD25*(1+'Production Assumptions'!$C$5)^6 -> 382457.1429 | AQ25: =AJ32 -> 1 | AR25: =$AD25*(1+'Production Assumptions'!$C$5)^7 -> 401962.4572 | AS25: =AK32 -> 1 | AT25: =$AD25*(1+'Production Assumptions'!$C$5)^8 -> 422462.5425
B26: Medium Skilled | C26: =P33 -> 0 | D26: =SUM(E26:P26) -> 0 | E26: ='Production Assumptions'!$C$49*D33 -> 0 | F26: ='Production Assumptions'!$C$49*E33 -> 0 | G26: ='Production Assumptions'!$C$49*F33 -> 0 | H26: ='Production Assumptions'!$C$49*G33 -> 0 | I26: ='Production Assumptions'!$C$49*H33 -> 0 | J26: ='Production Assumptions'!$C$49*I33 -> 0 | K26: ='Production Assumptions'!$C$49*J33 -> 0 | L26: ='Production Assumptions'!$C$49*K33 -> 0 | M26: ='Production Assumptions'!$C$49*L33 -> 0 | N26: ='Production Assumptions'!$C$49*M33 -> 0 | O26: ='Production Assumptions'!$C$49*N33 -> 0 | P26: ='Production Assumptions'!$C$49*O33 -> 0 | Q26: =Q33 -> 0 | R26: ='Production Assumptions'!$C$49*(1+'Production Assumptions'!$C$5)*R33 -> 0 | S26: ='Production Assumptions'!$C$49*(1+'Production Assumptions'!$C$5)*S33 -> 0 | T26: ='Production Assumptions'!$C$49*(1+'Production Assumptions'!$C$5)*T33 -> 0 | U26: ='Production Assumptions'!$C$49*(1+'Production Assumptions'!$C$5)*U33 -> 0 | V26: ='Production Assumptions'!$C$49*(1+'Production Assumptions'!$C$5)*V33 -> 0 | W26: ='Production Assumptions'!$C$49*(1+'Production Assumptions'!$C$5)*W33 -> 0 | X26: ='Production Assumptions'!$C$49*(1+'Production Assumptions'!$C$5)*X33 -> 0 | Y26: ='Production Assumptions'!$C$49*(1+'Production Assumptions'!$C$5)*Y33 -> 0 | Z26: ='Production Assumptions'!$C$49*(1+'Production Assumptions'!$C$5)*Z33 -> 0 | AA26: ='Production Assumptions'!$C$49*(1+'Production Assumptions'!$C$5)*AA33 -> 0 | AB26: ='Production Assumptions'!$C$49*(1+'Production Assumptions'!$C$5)*AB33 -> 0 | AC26: ='Production Assumptions'!$C$49*(1+'Production Assumptions'!$C$5)*AC33 -> 0 | AD26: =SUM(R26:AC26) -> 0 | AE26: =AD33 -> 0 | AF26: =$AD26*(1+'Production Assumptions'!$C$5) -> 0 | AG26: =AE33 -> 0 | AH26: =$AD26*(1+'Production Assumptions'!$C$5)^2 -> 0 | AI26: =AF33 -> 0 | AJ26: =$AD26*(1+'Production Assumptions'!$C$5)^3 -> 0 | AK26: =AG33 -> 0 | AL26: =$AD26*(1+'Production Assumptions'!$C$5)^4 -> 0 | AM26: =AH33 -> 0 | AN26: =$AD26*(1+'Production Assumptions'!$C$5)^5 -> 0 | AO26: =AI33 -> 0 | AP26: =$AD26*(1+'Production Assumptions'!$C$5)^6 -> 0 | AQ26: =AJ33 -> 0 | AR26: =$AD26*(1+'Production Assumptions'!$C$5)^7 -> 0 | AS26: =AK33 -> 0 | AT26: =$AD26*(1+'Production Assumptions'!$C$5)^8 -> 0
B27: Low Skilled | C27: 5 | D27: =SUM(E27:P27) -> 240000 | E27: ='Production Assumptions'!$C$50*D34 -> 20000 | F27: ='Production Assumptions'!$C$50*E34 -> 20000 | G27: ='Production Assumptions'!$C$50*F34 -> 20000 | H27: ='Production Assumptions'!$C$50*G34 -> 20000 | I27: ='Production Assumptions'!$C$50*H34 -> 20000 | J27: ='Production Assumptions'!$C$50*I34 -> 20000 | K27: ='Production Assumptions'!$C$50*J34 -> 20000 | L27: ='Production Assumptions'!$C$50*K34 -> 20000 | M27: ='Production Assumptions'!$C$50*L34 -> 20000 | N27: ='Production Assumptions'!$C$50*M34 -> 20000 | O27: ='Production Assumptions'!$C$50*N34 -> 20000 | P27: ='Production Assumptions'!$C$50*O34 -> 20000 | Q27: =Q34 -> 5 | R27: ='Production Assumptions'!$C$50*(1+'Production Assumptions'!$C$5)*R34 -> 21020 | S27: ='Production Assumptions'!$C$50*(1+'Production Assumptions'!$C$5)*S34 -> 21020 | T27: ='Production Assumptions'!$C$50*(1+'Production Assumptions'!$C$5)*T34 -> 21020 | U27: ='Production Assumptions'!$C$50*(1+'Production Assumptions'!$C$5)*U34 -> 21020 | V27: ='Production Assumptions'!$C$50*(1+'Production Assumptions'!$C$5)*V34 -> 21020 | W27: ='Production Assumptions'!$C$50*(1+'Production Assumptions'!$C$5)*W34 -> 21020 | X27: ='Production Assumptions'!$C$50*(1+'Production Assumptions'!$C$5)*X34 -> 21020 | Y27: ='Production Assumptions'!$C$50*(1+'Production Assumptions'!$C$5)*Y34 -> 21020 | Z27: ='Production Assumptions'!$C$50*(1+'Production Assumptions'!$C$5)*Z34 -> 21020 | AA27: ='Production Assumptions'!$C$50*(1+'Production Assumptions'!$C$5)*AA34 -> 21020 | AB27: ='Production Assumptions'!$C$50*(1+'Production Assumptions'!$C$5)*AB34 -> 21020 | AC27: ='Production Assumptions'!$C$50*(1+'Production Assumptions'!$C$5)*AC34 -> 21020 | AD27: 252240 | AE27: =AD34 -> 5 | AF27: =$AD27*(1+'Production Assumptions'!$C$5) -> 265104.24 | AG27: =AE34 -> 5 | AH27: =$AD27*(1+'Production Assumptions'!$C$5)^2 -> 278624.5562 | AI27: =AF34 -> 5 | AJ27: =$AD27*(1+'Production Assumptions'!$C$5)^3 -> 292834.4086 | AK27: 5 | AL27: =$AD27*(1+'Production Assumptions'!$C$5)^4 -> 307768.9634 | AM27: =AH34 -> 5 | AN27: =$AD27*(1+'Production Assumptions'!$C$5)^5 -> 323465.1806 | AO27: 5 | AP27: =$AD27*(1+'Production Assumptions'!$C$5)^6 -> 339961.9048 | AQ27: =AJ34 -> 5 | AR27: =$AD27*(1+'Production Assumptions'!$C$5)^7 -> 357299.9619 | AS27: =AK34 -> 5 | AT27: =$AD27*(1+'Production Assumptions'!$C$5)^8 -> 375522.26
C28: =P35 -> 6 | D28: =SUM(D25:D27) -> 510000 | E28: 42500 | F28: 42500 | G28: 42500 | H28: 42500 | I28: 42500 | J28: 42500 | K28: 42500 | L28: 42500 | M28: 42500 | N28: 42500 | O28: 42500 | P28: 42500 | Q28: =SUM(Q25:Q27) -> 6 | R28: 44667.5 | S28: 44667.5 | T28: 44667.5 | U28: 44667.5 | V28: 44667.5 | W28: 44667.5 | X28: 44667.5 | Y28: 44667.5 | Z28: 44667.5 | AA28: 44667.5 | AB28: 44667.5 | AC28: 44667.5 | AD28: 536010 | AE28: =SUM(AE25:AE27) -> 6 | AF28: 563346.51 | AG28: =SUM(AG25:AG27) -> 6 | AH28: 592077.182 | AI28: =SUM(AI25:AI27) -> 6 | AJ28: 622273.1183 | AK28: =AI28 -> 6 | AL28: =SUM(AL25:AL27) -> 654009.0473 | AM28: 6 | AN28: 687363.5087 | AO28: 6 | AP28: 722419.0477 | AQ28: 6 | AR28: 759262.4191 | AS28: 6 | AT28: 797984.8025
B30: HR | D30: =E22 -> YEAR 1 | R30: =R22 -> YEAR 2
B31: No. of Employees: | D31: =E23 -> Month 1 | E31: =F23 -> Month 2 | F31: Month 3 | G31: Month 4 | H31: Month 5 | I31: Month 6 | J31: Month 7 | K31: Month 8 | L31: Month 9 | M31: Month 10 | N31: Month 11 | O31: Month 12 | P31: Year 1 | Q31: Year 2: | R31: =R23 -> Month 1 | S31: =S23 -> Month 2 | T31: Month 3 | U31: Month 4 | V31: Month 5 | W31: Month 6 | X31: Month 7 | Y31: Month 8 | Z31: Month 9 | AA31: Month 10 | AB31: Month 11 | AC31: Month 12 | AD31: Year 3: | AE31: Year 4: | AF31: Year 5 | AG31: Year 6 | AH31: Year 7 | AI31: Year 8 | AJ31: Year 9 | AK31: Year 10
B32: Managers: | C32: =B25 -> Skilled Workers | D32: ='Production Assumptions'!$I$48 -> 1 | E32: ='Production Assumptions'!$I$48 -> 1 | F32: ='Production Assumptions'!$I$48 -> 1 | G32: ='Production Assumptions'!$I$48 -> 1 | H32: ='Production Assumptions'!$I$48 -> 1 | I32: ='Production Assumptions'!$I$48 -> 1 | J32: ='Production Assumptions'!$I$48 -> 1 | K32: ='Production Assumptions'!$I$48 -> 1 | L32: ='Production Assumptions'!$I$48 -> 1 | M32: ='Production Assumptions'!$I$48 -> 1 | N32: ='Production Assumptions'!$I$48 -> 1 | O32: ='Production Assumptions'!$I$48 -> 1 | P32: =O32 -> 1 | Q32: =AC32 -> 1 | R32: ='Production Assumptions'!$I$48 -> 1 | S32: ='Production Assumptions'!$I$48 -> 1 | T32: ='Production Assumptions'!$I$48 -> 1 | U32: ='Production Assumptions'!$I$48 -> 1 | V32: ='Production Assumptions'!$I$48 -> 1 | W32: ='Production Assumptions'!$I$48 -> 1 | X32: ='Production Assumptions'!$I$48 -> 1 | Y32: ='Production Assumptions'!$I$48 -> 1 | Z32: ='Production Assumptions'!$I$48 -> 1 | AA32: ='Production Assumptions'!$I$48 -> 1 | AB32: ='Production Assumptions'!$I$48 -> 1 | AC32: ='Production Assumptions'!$I$48 -> 1 | AD32: =AC32 -> 1 | AE32: =AD32 -> 1 | AF32: 1 | AG32: 1 | AH32: 1 | AI32: 1 | AJ32: 1 | AK32: 1
B33: Staff: | C33: =B26 -> Medium Skilled | D33: ='Production Assumptions'!$I$49 -> 0 | E33: ='Production Assumptions'!$I$49 -> 0 | F33: ='Production Assumptions'!$I$49 -> 0 | G33: ='Production Assumptions'!$I$49 -> 0 | H33: ='Production Assumptions'!$I$49 -> 0 | I33: ='Production Assumptions'!$I$49 -> 0 | J33: ='Production Assumptions'!$I$49 -> 0 | K33: ='Production Assumptions'!$I$49 -> 0 | L33: ='Production Assumptions'!$I$49 -> 0 | M33: ='Production Assumptions'!$I$49 -> 0 | N33: ='Production Assumptions'!$I$49 -> 0 | O33: ='Production Assumptions'!$I$49 -> 0 | P33: =O33 -> 0 | Q33: =AC33 -> 0 | R33: ='Production Assumptions'!$I$49 -> 0 | S33: ='Production Assumptions'!$I$49 -> 0 | T33: ='Production Assumptions'!$I$49 -> 0 | U33: ='Production Assumptions'!$I$49 -> 0 | V33: ='Production Assumptions'!$I$49 -> 0 | W33: ='Production Assumptions'!$I$49 -> 0 | X33: ='Production Assumptions'!$I$49 -> 0 | Y33: ='Production Assumptions'!$I$49 -> 0 | Z33: ='Production Assumptions'!$I$49 -> 0 | AA33: ='Production Assumptions'!$I$49 -> 0 | AB33: ='Production Assumptions'!$I$49 -> 0 | AC33: ='Production Assumptions'!$I$49 -> 0 | AD33: =AC33 -> 0 | AE33: =AD33 -> 0 | AF33: 0 | AG33: 0 | AH33: 0 | AI33: 0 | AJ33: 0 | AK33: 0
B34: Staff: | C34: =B27 -> Low Skilled | D34: ='Production Assumptions'!$I$50 -> 5 | E34: ='Production Assumptions'!$I$50 -> 5 | F34: ='Production Assumptions'!$I$50 -> 5 | G34: ='Production Assumptions'!$I$50 -> 5 | H34: ='Production Assumptions'!$I$50 -> 5 | I34: ='Production Assumptions'!$I$50 -> 5 | J34: ='Production Assumptions'!$I$50 -> 5 | K34: ='Production Assumptions'!$I$50 -> 5 | L34: ='Production Assumptions'!$I$50 -> 5 | M34: ='Production Assumptions'!$I$50 -> 5 | N34: ='Production Assumptions'!$I$50 -> 5 | O34: ='Production Assumptions'!$I$50 -> 5 | P34: =O34 -> 5 | Q34: =AC34 -> 5 | R34: ='Production Assumptions'!$I$50 -> 5 | S34: ='Production Assumptions'!$I$50 -> 5 | T34: ='Production Assumptions'!$I$50 -> 5 | U34: ='Production Assumptions'!$I$50 -> 5 | V34: ='Production Assumptions'!$I$50 -> 5 | W34: ='Production Assumptions'!$I$50 -> 5 | X34: ='Production Assumptions'!$I$50 -> 5 | Y34: ='Production Assumptions'!$I$50 -> 5 | Z34: ='Production Assumptions'!$I$50 -> 5 | AA34: ='Production Assumptions'!$I$50 -> 5 | AB34: ='Production Assumptions'!$I$50 -> 5 | AC34: ='Production Assumptions'!$I$50 -> 5 | AD34: =AC34 -> 5 | AE34: =AD34 -> 5 | AF34: 5 | AG34: 5 | AH34: 5 | AI34: 5 | AJ34: 5 | AK34: 5
B35: Total: | D35: ='Production Assumptions'!I51 -> 6 | E35: =SUM(E32:E34) -> 6 | F35: 6 | G35: 6 | H35: 6 | I35: 6 | J35: 6 | K35: 6 | L35: 6 | M35: 6 | N35: 6 | O35: 6 | P35: =SUM(P32:P34) -> 6 | Q35: =SUM(Q32:Q34) -> 6 | R35: 6 | S35: 6 | T35: 6 | U35: 6 | V35: 6 | W35: 6 | X35: 6 | Y35: 6 | Z35: 6 | AA35: 6 | AB35: 6 | AC35: 6 | AD35: =SUM(AD32:AD34) -> 6 | AE35: 6 | AF35: 6 | AG35: 6 | AH35: 6 | AI35: 6 | AJ35: 6 | AK35: 6
B37: Aquaponics
B38: LABOUR:
E39: YEAR 1 | R39: YEAR 2
E40: Month 1 | F40: Month 2 | G40: Month 3 | H40: Month 4 | I40: Month 5 | J40: Month 6 | K40: Month 7 | L40: Month 8 | M40: Month 9 | N40: Month 10 | O40: Month 11 | P40: Month 12 | Q40: 1 | R40: Month 1 | S40: Month 2 | T40: Month 3 | U40: Month 4 | V40: Month 5 | W40: Month 6 | X40: Month 7 | Y40: Month 8 | Z40: Month 9 | AA40: Month 10 | AB40: Month 11 | AC40: Month 12 | AE40: 2 | AG40: 3 | AI40: 4 | AK40: 5 | AM40: 6 | AO40: 7 | AQ40: 8 | AS40: 9
B41: Employees: | C41: Year 1 | D41: Annual Cost: Year 1 | Q41: Year 2: | AD41: Annual Cost: Year 2 | AE41: Year 3: | AF41: Annual Cost: Year 3 | AG41: Year 4: | AH41: Annual Cost: Year 4 | AI41: Year 5 | AJ41: Annual Cost: Year 5 | AK41: Year 6 | AL41: Annual Cost: Year 6 | AM41: Year 7 | AN41: Annual Cost: Year 7 | AO41: Year 8 | AP41: Annual Cost: Year 8 | AQ41: Year 9 | AR41: Annual Cost: Year 9 | AS41: Year 10 | AT41: Annual Cost: Year 10
B42: Skilled Workers | C42: =P49 -> 1 | D42: =SUM(E42:P42) -> 270000 | E42: ='Production Assumptions'!$C$48*D49 -> 22500 | F42: ='Production Assumptions'!$C$48*E49 -> 22500 | G42: ='Production Assumptions'!$C$48*F49 -> 22500 | H42: ='Production Assumptions'!$C$48*G49 -> 22500 | I42: ='Production Assumptions'!$C$48*H49 -> 22500 | J42: ='Production Assumptions'!$C$48*I49 -> 22500 | K42: ='Production Assumptions'!$C$48*J49 -> 22500 | L42: ='Production Assumptions'!$C$48*K49 -> 22500 | M42: ='Production Assumptions'!$C$48*L49 -> 22500 | N42: ='Production Assumptions'!$C$48*M49 -> 22500 | O42: ='Production Assumptions'!$C$48*N49 -> 22500 | P42: ='Production Assumptions'!$C$48*O49 -> 22500 | Q42: =Q49 -> 1 | R42: ='Production Assumptions'!$C$48*(1+'Production Assumptions'!$C$5)*R49 -> 23647.5 | S42: ='Production Assumptions'!$C$48*(1+'Production Assumptions'!$C$5)*S49 -> 23647.5 | T42: ='Production Assumptions'!$C$48*(1+'Production Assumptions'!$C$5)*T49 -> 23647.5 | U42: ='Production Assumptions'!$C$48*(1+'Production Assumptions'!$C$5)*U49 -> 23647.5 | V42: ='Production Assumptions'!$C$48*(1+'Production Assumptions'!$C$5)*V49 -> 23647.5 | W42: ='Production Assumptions'!$C$48*(1+'Production Assumptions'!$C$5)*W49 -> 23647.5 | X42: ='Production Assumptions'!$C$48*(1+'Production Assumptions'!$C$5)*X49 -> 23647.5 | Y42: ='Production Assumptions'!$C$48*(1+'Production Assumptions'!$C$5)*Y49 -> 23647.5 | Z42: ='Production Assumptions'!$C$48*(1+'Production Assumptions'!$C$5)*Z49 -> 23647.5 | AA42: ='Production Assumptions'!$C$48*(1+'Production Assumptions'!$C$5)*AA49 -> 23647.5 | AB42: ='Production Assumptions'!$C$48*(1+'Production Assumptions'!$C$5)*AB49 -> 23647.5 | AC42: ='Production Assumptions'!$C$48*(1+'Production Assumptions'!$C$5)*AC49 -> 23647.5 | AD42: =SUM(R42:AC42) -> 283770 | AE42: =AD49 -> 1 | AF42: =$AD42*(1+'Production Assumptions'!$C$5) -> 298242.27 | AG42: =AE49 -> 1 | AH42: =$AD42*(1+'Production Assumptions'!$C$5)^2 -> 313452.6258 | AI42: =AF49 -> 1 | AJ42: =$AD42*(1+'Production Assumptions'!$C$5)^3 -> 329438.7097 | AK42: =AG49 -> 1 | AL42: =$AD42*(1+'Production Assumptions'!$C$5)^4 -> 346240.0839 | AM42: =AH49 -> 1 | AN42: =$AD42*(1+'Production Assumptions'!$C$5)^5 -> 363898.3282 | AO42: =AI49 -> 1 | AP42: =$AD42*(1+'Production Assumptions'!$C$5)^6 -> 382457.1429 | AQ42: =AJ49 -> 1 | AR42: =$AD42*(1+'Production Assumptions'!$C$5)^7 -> 401962.4572 | AS42: =AK49 -> 1 | AT42: =$AD42*(1+'Production Assumptions'!$C$5)^8 -> 422462.5425
B43: Medium Skilled | C43: =P50 -> 1.5 | D43: =SUM(E43:P43) -> 180000 | E43: ='Production Assumptions'!$C$49*D50 -> 15000 | F43: ='Production Assumptions'!$C$49*E50 -> 15000 | G43: ='Production Assumptions'!$C$49*F50 -> 15000 | H43: ='Production Assumptions'!$C$49*G50 -> 15000 | I43: ='Production Assumptions'!$C$49*H50 -> 15000 | J43: ='Production Assumptions'!$C$49*I50 -> 15000 | K43: ='Production Assumptions'!$C$49*J50 -> 15000 | L43: ='Production Assumptions'!$C$49*K50 -> 15000 | M43: ='Production Assumptions'!$C$49*L50 -> 15000 | N43: ='Production Assumptions'!$C$49*M50 -> 15000 | O43: ='Production Assumptions'!$C$49*N50 -> 15000 | P43: ='Production Assumptions'!$C$49*O50 -> 15000 | Q43: =Q50 -> 1.5 | R43: ='Production Assumptions'!$C$49*(1+'Production Assumptions'!$C$5)*R50 -> 15765 | S43: ='Production Assumptions'!$C$49*(1+'Production Assumptions'!$C$5)*S50 -> 15765 | T43: ='Production Assumptions'!$C$49*(1+'Production Assumptions'!$C$5)*T50 -> 15765 | U43: ='Production Assumptions'!$C$49*(1+'Production Assumptions'!$C$5)*U50 -> 15765 | V43: ='Production Assumptions'!$C$49*(1+'Production Assumptions'!$C$5)*V50 -> 15765 | W43: ='Production Assumptions'!$C$49*(1+'Production Assumptions'!$C$5)*W50 -> 15765 | X43: ='Production Assumptions'!$C$49*(1+'Production Assumptions'!$C$5)*X50 -> 15765 | Y43: ='Production Assumptions'!$C$49*(1+'Production Assumptions'!$C$5)*Y50 -> 15765 | Z43: ='Production Assumptions'!$C$49*(1+'Production Assumptions'!$C$5)*Z50 -> 15765 | AA43: ='Production Assumptions'!$C$49*(1+'Production Assumptions'!$C$5)*AA50 -> 15765 | AB43: ='Production Assumptions'!$C$49*(1+'Production Assumptions'!$C$5)*AB50 -> 15765 | AC43: ='Production Assumptions'!$C$49*(1+'Production Assumptions'!$C$5)*AC50 -> 15765 | AD43: =SUM(R43:AC43) -> 189180 | AE43: =AD50 -> 1.5 | AF43: =$AD43*(1+'Production Assumptions'!$C$5) -> 198828.18 | AG43: =AE50 -> 1.5 | AH43: =$AD43*(1+'Production Assumptions'!$C$5)^2 -> 208968.4172 | AI43: =AF50 -> 1.5 | AJ43: =$AD43*(1+'Production Assumptions'!$C$5)^3 -> 219625.8065 | AK43: =AG50 -> 1.5 | AL43: =$AD43*(1+'Production Assumptions'!$C$5)^4 -> 230826.7226 | AM43: =AH50 -> 1.5 | AN43: =$AD43*(1+'Production Assumptions'!$C$5)^5 -> 242598.8854 | AO43: =AI50 -> 1.5 | AP43: =$AD43*(1+'Production Assumptions'!$C$5)^6 -> 254971.4286 | AQ43: =AJ50 -> 1.5 | AR43: =$AD43*(1+'Production Assumptions'!$C$5)^7 -> 267974.9715 | AS43: =AK50 -> 1.5 | AT43: =$AD43*(1+'Production Assumptions'!$C$5)^8 -> 281641.695
B44: Low Skilled | C44: 5 | D44: =SUM(E44:P44) -> 240000 | E44: ='Production Assumptions'!$C$50*D51 -> 20000 | F44: ='Production Assumptions'!$C$50*E51 -> 20000 | G44: ='Production Assumptions'!$C$50*F51 -> 20000 | H44: ='Production Assumptions'!$C$50*G51 -> 20000 | I44: ='Production Assumptions'!$C$50*H51 -> 20000 | J44: ='Production Assumptions'!$C$50*I51 -> 20000 | K44: ='Production Assumptions'!$C$50*J51 -> 20000 | L44: ='Production Assumptions'!$C$50*K51 -> 20000 | M44: ='Production Assumptions'!$C$50*L51 -> 20000 | N44: ='Production Assumptions'!$C$50*M51 -> 20000 | O44: ='Production Assumptions'!$C$50*N51 -> 20000 | P44: ='Production Assumptions'!$C$50*O51 -> 20000 | Q44: =Q51 -> 5 | R44: ='Production Assumptions'!$C$50*(1+'Production Assumptions'!$C$5)*R51 -> 21020 | S44: ='Production Assumptions'!$C$50*(1+'Production Assumptions'!$C$5)*S51 -> 21020 | T44: ='Production Assumptions'!$C$50*(1+'Production Assumptions'!$C$5)*T51 -> 21020 | U44: ='Production Assumptions'!$C$50*(1+'Production Assumptions'!$C$5)*U51 -> 21020 | V44: ='Production Assumptions'!$C$50*(1+'Production Assumptions'!$C$5)*V51 -> 21020 | W44: ='Production Assumptions'!$C$50*(1+'Production Assumptions'!$C$5)*W51 -> 21020 | X44: ='Production Assumptions'!$C$50*(1+'Production Assumptions'!$C$5)*X51 -> 21020 | Y44: ='Production Assumptions'!$C$50*(1+'Production Assumptions'!$C$5)*Y51 -> 21020 | Z44: ='Production Assumptions'!$C$50*(1+'Production Assumptions'!$C$5)*Z51 -> 21020 | AA44: ='Production Assumptions'!$C$50*(1+'Production Assumptions'!$C$5)*AA51 -> 21020 | AB44: ='Production Assumptions'!$C$50*(1+'Production Assumptions'!$C$5)*AB51 -> 21020 | AC44: ='Production Assumptions'!$C$50*(1+'Production Assumptions'!$C$5)*AC51 -> 21020 | AD44: 252240 | AE44: =AD51 -> 5 | AF44: =$AD44*(1+'Production Assumptions'!$C$5) -> 265104.24 | AG44: =AE51 -> 5 | AH44: =$AD44*(1+'Production Assumptions'!$C$5)^2 -> 278624.5562 | AI44: =AF51 -> 5 | AJ44: =$AD44*(1+'Production Assumptions'!$C$5)^3 -> 292834.4086 | AK44: =AG51 -> 5 | AL44: =$AD44*(1+'Production Assumptions'!$C$5)^4 -> 307768.9634 | AM44: 5 | AN44: =$AD44*(1+'Production Assumptions'!$C$5)^5 -> 323465.1806 | AO44: 5 | AP44: =$AD44*(1+'Production Assumptions'!$C$5)^6 -> 339961.9048 | AQ44: 5 | AR44: =$AD44*(1+'Production Assumptions'!$C$5)^7 -> 357299.9619 | AS44: 5 | AT44: =$AD44*(1+'Production Assumptions'!$C$5)^8 -> 375522.26
C45: 7.5 | D45: =SUM(D42:D44) -> 690000 | E45: 57500 | F45: 57500 | G45: 57500 | H45: 57500 | I45: 57500 | J45: 57500 | K45: 57500 | L45: 57500 | M45: 57500 | N45: 57500 | O45: 57500 | P45: 57500 | Q45: 7.5 | R45: 60432.5 | S45: 60432.5 | T45: 60432.5 | U45: 60432.5 | V45: 60432.5 | W45: 60432.5 | X45: 60432.5 | Y45: 60432.5 | Z45: 60432.5 | AA45: 60432.5 | AB45: 60432.5 | AC45: 60432.5 | AD45: 725190 | AE45: 7.5 | AF45: 762174.69 | AG45: 7.5 | AH45: 801045.5992 | AI45: 7.5 | AJ45: 841898.9247 | AK45: =AI45 -> 7.5 | AL45: =SUM(AL42:AL44) -> 884835.7699 | AM45: 7.5 | AN45: 929962.3942 | AO45: 7.5 | AP45: 977390.4763 | AQ45: 7.5 | AR45: 1027237.391 | AS45: 7.5 | AT45: 1079626.497
B47: HR | D47: =E39 -> YEAR 1 | R47: =R39 -> YEAR 2
B48: No. of Employees: | D48: =E40 -> Month 1 | E48: =F40 -> Month 2 | F48: Month 3 | G48: Month 4 | H48: Month 5 | I48: Month 6 | J48: Month 7 | K48: Month 8 | L48: Month 9 | M48: Month 10 | N48: Month 11 | O48: Month 12 | P48: Year 1 | Q48: Year 2: | R48: =R40 -> Month 1 | S48: =S40 -> Month 2 | T48: Month 3 | U48: Month 4 | V48: Month 5 | W48: Month 6 | X48: Month 7 | Y48: Month 8 | Z48: Month 9 | AA48: Month 10 | AB48: Month 11 | AC48: Month 12 | AD48: Year 3: | AE48: Year 4: | AF48: Year 5 | AG48: Year 6 | AH48: Year 7 | AI48: Year 8 | AJ48: Year 9 | AK48: Year 10
B49: Managers: | C49: =B42 -> Skilled Workers | D49: ='Production Assumptions'!$L$48 -> 1 | E49: ='Production Assumptions'!$L$48 -> 1 | F49: ='Production Assumptions'!$L$48 -> 1 | G49: ='Production Assumptions'!$L$48 -> 1 | H49: ='Production Assumptions'!$L$48 -> 1 | I49: ='Production Assumptions'!$L$48 -> 1 | J49: ='Production Assumptions'!$L$48 -> 1 | K49: ='Production Assumptions'!$L$48 -> 1 | L49: ='Production Assumptions'!$L$48 -> 1 | M49: ='Production Assumptions'!$L$48 -> 1 | N49: ='Production Assumptions'!$L$48 -> 1 | O49: ='Production Assumptions'!$L$48 -> 1 | P49: =O49 -> 1 | Q49: =AC49 -> 1 | R49: ='Production Assumptions'!$L$48 -> 1 | S49: ='Production Assumptions'!$L$48 -> 1 | T49: ='Production Assumptions'!$L$48 -> 1 | U49: ='Production Assumptions'!$L$48 -> 1 | V49: ='Production Assumptions'!$L$48 -> 1 | W49: ='Production Assumptions'!$L$48 -> 1 | X49: ='Production Assumptions'!$L$48 -> 1 | Y49: ='Production Assumptions'!$L$48 -> 1 | Z49: ='Production Assumptions'!$L$48 -> 1 | AA49: ='Production Assumptions'!$L$48 -> 1 | AB49: ='Production Assumptions'!$L$48 -> 1 | AC49: ='Production Assumptions'!$L$48 -> 1 | AD49: =AC49 -> 1 | AE49: =AD49 -> 1 | AF49: 1 | AG49: 1 | AH49: 1 | AI49: 1 | AJ49: 1 | AK49: 1
B50: Staff: | C50: =B43 -> Medium Skilled | D50: ='Production Assumptions'!$L$49 -> 1.5 | E50: ='Production Assumptions'!$L$49 -> 1.5 | F50: ='Production Assumptions'!$L$49 -> 1.5 | G50: ='Production Assumptions'!$L$49 -> 1.5 | H50: ='Production Assumptions'!$L$49 -> 1.5 | I50: ='Production Assumptions'!$L$49 -> 1.5 | J50: ='Production Assumptions'!$L$49 -> 1.5 | K50: ='Production Assumptions'!$L$49 -> 1.5 | L50: ='Production Assumptions'!$L$49 -> 1.5 | M50: ='Production Assumptions'!$L$49 -> 1.5 | N50: ='Production Assumptions'!$L$49 -> 1.5 | O50: ='Production Assumptions'!$L$49 -> 1.5 | P50: =O50 -> 1.5 | Q50: =AC50 -> 1.5 | R50: ='Production Assumptions'!$L$49 -> 1.5 | S50: ='Production Assumptions'!$L$49 -> 1.5 | T50: ='Production Assumptions'!$L$49 -> 1.5 | U50: ='Production Assumptions'!$L$49 -> 1.5 | V50: ='Production Assumptions'!$L$49 -> 1.5 | W50: ='Production Assumptions'!$L$49 -> 1.5 | X50: ='Production Assumptions'!$L$49 -> 1.5 | Y50: ='Production Assumptions'!$L$49 -> 1.5 | Z50: ='Production Assumptions'!$L$49 -> 1.5 | AA50: ='Production Assumptions'!$L$49 -> 1.5 | AB50: ='Production Assumptions'!$L$49 -> 1.5 | AC50: ='Production Assumptions'!$L$49 -> 1.5 | AD50: =AC50 -> 1.5 | AE50: =AD50 -> 1.5 | AF50: 1.5 | AG50: 1.5 | AH50: 1.5 | AI50: 1.5 | AJ50: 1.5 | AK50: 1.5
B51: Staff: | C51: =B44 -> Low Skilled | D51: ='Production Assumptions'!$L$50 -> 5 | E51: ='Production Assumptions'!$L$50 -> 5 | F51: ='Production Assumptions'!$L$50 -> 5 | G51: ='Production Assumptions'!$L$50 -> 5 | H51: ='Production Assumptions'!$L$50 -> 5 | I51: ='Production Assumptions'!$L$50 -> 5 | J51: ='Production Assumptions'!$L$50 -> 5 | K51: ='Production Assumptions'!$L$50 -> 5 | L51: ='Production Assumptions'!$L$50 -> 5 | M51: ='Production Assumptions'!$L$50 -> 5 | N51: ='Production Assumptions'!$L$50 -> 5 | O51: ='Production Assumptions'!$L$50 -> 5 | P51: =O51 -> 5 | Q51: 5 | R51: ='Production Assumptions'!$L$50 -> 5 | S51: ='Production Assumptions'!$L$50 -> 5 | T51: ='Production Assumptions'!$L$50 -> 5 | U51: ='Production Assumptions'!$L$50 -> 5 | V51: ='Production Assumptions'!$L$50 -> 5 | W51: ='Production Assumptions'!$L$50 -> 5 | X51: ='Production Assumptions'!$L$50 -> 5 | Y51: ='Production Assumptions'!$L$50 -> 5 | Z51: ='Production Assumptions'!$L$50 -> 5 | AA51: ='Production Assumptions'!$L$50 -> 5 | AB51: ='Production Assumptions'!$L$50 -> 5 | AC51: ='Production Assumptions'!$L$50 -> 5 | AD51: =AC51 -> 5 | AE51: =AD51 -> 5 | AF51: 5 | AG51: 5 | AH51: 5 | AI51: 5 | AJ51: 5 | AK51: 5
B52: Total: | D52: =SUM(D49:D51) -> 7.5 | E52: 7.5 | F52: 7.5 | G52: 7.5 | H52: 7.5 | I52: 7.5 | J52: 7.5 | K52: 7.5 | L52: 7.5 | M52: 7.5 | N52: 7.5 | O52: =SUM(O49:O51) -> 7.5 | P52: 7.5 | Q52: 7.5 | R52: 7.5 | S52: 7.5 | T52: 7.5 | U52: 7.5 | V52: 7.5 | W52: 7.5 | X52: 7.5 | Y52: 7.5 | Z52: 7.5 | AA52: 7.5 | AB52: 7.5 | AC52: 7.5 | AD52: =SUM(AD49:AD51) -> 7.5 | AE52: 7.5 | AF52: 7.5 | AG52: 7.5 | AH52: 7.5 | AI52: 7.5 | AJ52: 7.5 | AK52: 7.5
B55: CAGE
B56: LABOUR:
E57: YEAR 1 | R57: YEAR 2
E58: Month 1 | F58: Month 2 | G58: Month 3 | H58: Month 4 | I58: Month 5 | J58: Month 6 | K58: Month 7 | L58: Month 8 | M58: Month 9 | N58: Month 10 | O58: Month 11 | P58: Month 12 | Q58: 1 | R58: Month 1 | S58: Month 2 | T58: Month 3 | U58: Month 4 | V58: Month 5 | W58: Month 6 | X58: Month 7 | Y58: Month 8 | Z58: Month 9 | AA58: Month 10 | AB58: Month 11 | AC58: Month 12 | AE58: 2 | AG58: 3 | AI58: 4 | AK58: 5 | AM58: 6 | AO58: 7 | AQ58: 8 | AS58: 9
B59: Employees: | C59: Year 1 | D59: Annual Cost: Year 1 | Q59: Year 2: | AD59: Annual Cost: Year 2 | AE59: Year 3: | AF59: Annual Cost: Year 3 | AG59: Year 4: | AH59: Annual Cost: Year 4 | AI59: Year 5 | AJ59: Annual Cost: Year 5 | AK59: Year 6 | AL59: Annual Cost: Year 6 | AM59: Year 7 | AN59: Annual Cost: Year 7 | AO59: Year 8 | AP59: Annual Cost: Year 8 | AQ59: Year 9 | AR59: Annual Cost: Year 9 | AS59: Year 10 | AT59: Annual Cost: Year 10
B60: Skilled Workers | C60: =P67 -> 1 | D60: =SUM(E60:P60) -> 270000 | E60: ='Production Assumptions'!$C$48*D67 -> 22500 | F60: ='Production Assumptions'!$C$48*E67 -> 22500 | G60: ='Production Assumptions'!$C$48*F67 -> 22500 | H60: ='Production Assumptions'!$C$48*G67 -> 22500 | I60: ='Production Assumptions'!$C$48*H67 -> 22500 | J60: ='Production Assumptions'!$C$48*I67 -> 22500 | K60: ='Production Assumptions'!$C$48*J67 -> 22500 | L60: ='Production Assumptions'!$C$48*K67 -> 22500 | M60: ='Production Assumptions'!$C$48*L67 -> 22500 | N60: ='Production Assumptions'!$C$48*M67 -> 22500 | O60: ='Production Assumptions'!$C$48*N67 -> 22500 | P60: ='Production Assumptions'!$C$48*O67 -> 22500 | Q60: =Q67 -> 1 | R60: ='Production Assumptions'!$C$48*(1+'Production Assumptions'!$C$5)*R67 -> 23647.5 | S60: ='Production Assumptions'!$C$48*(1+'Production Assumptions'!$C$5)*S67 -> 23647.5 | T60: ='Production Assumptions'!$C$48*(1+'Production Assumptions'!$C$5)*T67 -> 23647.5 | U60: ='Production Assumptions'!$C$48*(1+'Production Assumptions'!$C$5)*U67 -> 23647.5 | V60: ='Production Assumptions'!$C$48*(1+'Production Assumptions'!$C$5)*V67 -> 23647.5 | W60: ='Production Assumptions'!$C$48*(1+'Production Assumptions'!$C$5)*W67 -> 23647.5 | X60: ='Production Assumptions'!$C$48*(1+'Production Assumptions'!$C$5)*X67 -> 23647.5 | Y60: ='Production Assumptions'!$C$48*(1+'Production Assumptions'!$C$5)*Y67 -> 23647.5 | Z60: ='Production Assumptions'!$C$48*(1+'Production Assumptions'!$C$5)*Z67 -> 23647.5 | AA60: ='Production Assumptions'!$C$48*(1+'Production Assumptions'!$C$5)*AA67 -> 23647.5 | AB60: ='Production Assumptions'!$C$48*(1+'Production Assumptions'!$C$5)*AB67 -> 23647.5 | AC60: ='Production Assumptions'!$C$48*(1+'Production Assumptions'!$C$5)*AC67 -> 23647.5 | AD60: =SUM(R60:AC60) -> 283770 | AE60: =AD67 -> 1 | AF60: =$AD60*(1+'Production Assumptions'!$C$5) -> 298242.27 | AG60: =AE67 -> 1 | AH60: =$AD60*(1+'Production Assumptions'!$C$5)^2 -> 313452.6258 | AI60: =AF67 -> 1 | AJ60: =$AD60*(1+'Production Assumptions'!$C$5)^3 -> 329438.7097 | AK60: =AG67 -> 1 | AL60: =$AD60*(1+'Production Assumptions'!$C$5)^4 -> 346240.0839 | AM60: =AH67 -> 1 | AN60: =$AD60*(1+'Production Assumptions'!$C$5)^5 -> 363898.3282 | AO60: =AI67 -> 1 | AP60: =$AD60*(1+'Production Assumptions'!$C$5)^6 -> 382457.1429 | AQ60: =AJ67 -> 1 | AR60: =$AD60*(1+'Production Assumptions'!$C$5)^7 -> 401962.4572 | AS60: =AK67 -> 1 | AT60: =$AD60*(1+'Production Assumptions'!$C$5)^8 -> 422462.5425
B61: Medium Skilled | C61: =P68 -> 0 | D61: =SUM(E61:P61) -> 0 | E61: =IF(D68<0.5, 0,'Production Assumptions'!$C$49*D68) -> 0 | F61: =IF(E68<0.5, 0,'Production Assumptions'!$C$49*E68) -> 0 | G61: =IF(F68<0.5, 0,'Production Assumptions'!$C$49*F68) -> 0 | H61: =IF(G68<0.5, 0,'Production Assumptions'!$C$49*G68) -> 0 | I61: =IF(H68<0.5, 0,'Production Assumptions'!$C$49*H68) -> 0 | J61: =IF(I68<0.5, 0,'Production Assumptions'!$C$49*I68) -> 0 | K61: =IF(J68<0.5, 0,'Production Assumptions'!$C$49*J68) -> 0 | L61: =IF(K68<0.5, 0,'Production Assumptions'!$C$49*K68) -> 0 | M61: =IF(L68<0.5, 0,'Production Assumptions'!$C$49*L68) -> 0 | N61: =IF(M68<0.5, 0,'Production Assumptions'!$C$49*M68) -> 0 | O61: =IF(N68<0.5, 0,'Production Assumptions'!$C$49*N68) -> 0 | P61: =IF(O68<0.5, 0,'Production Assumptions'!$C$49*O68) -> 0 | Q61: =Q68 -> 0 | R61: =IF(R68<0.5, 0,'Production Assumptions'!$C$49*(1+'Production Assumptions'!$C$5)*R68) -> 0 | S61: =IF(S68<0.5, 0,'Production Assumptions'!$C$49*(1+'Production Assumptions'!$C$5)*S68) -> 0 | T61: =IF(T68<0.5, 0,'Production Assumptions'!$C$49*(1+'Production Assumptions'!$C$5)*T68) -> 0 | U61: =IF(U68<0.5, 0,'Production Assumptions'!$C$49*(1+'Production Assumptions'!$C$5)*U68) -> 0 | V61: =IF(V68<0.5, 0,'Production Assumptions'!$C$49*(1+'Production Assumptions'!$C$5)*V68) -> 0 | W61: =IF(W68<0.5, 0,'Production Assumptions'!$C$49*(1+'Production Assumptions'!$C$5)*W68) -> 0 | X61: =IF(X68<0.5, 0,'Production Assumptions'!$C$49*(1+'Production Assumptions'!$C$5)*X68) -> 0 | Y61: =IF(Y68<0.5, 0,'Production Assumptions'!$C$49*(1+'Production Assumptions'!$C$5)*Y68) -> 0 | Z61: =IF(Z68<0.5, 0,'Production Assumptions'!$C$49*(1+'Production Assumptions'!$C$5)*Z68) -> 0 | AA61: =IF(AA68<0.5, 0,'Production Assumptions'!$C$49*(1+'Production Assumptions'!$C$5)*AA68) -> 0 | AB61: =IF(AB68<0.5, 0,'Production Assumptions'!$C$49*(1+'Production Assumptions'!$C$5)*AB68) -> 0 | AC61: =IF(AC68<0.5, 0,'Production Assumptions'!$C$49*(1+'Production Assumptions'!$C$5)*AC68) -> 0 | AD61: =SUM(R61:AC61) -> 0 | AE61: =AD68 -> 0 | AF61: =$AD61*(1+'Production Assumptions'!$C$5) -> 0 | AG61: =AE68 -> 0 | AH61: =$AD61*(1+'Production Assumptions'!$C$5)^2 -> 0 | AI61: =AF68 -> 0 | AJ61: =$AD61*(1+'Production Assumptions'!$C$5)^3 -> 0 | AK61: =AG68 -> 0 | AL61: =$AD61*(1+'Production Assumptions'!$C$5)^4 -> 0 | AM61: =AH68 -> 0 | AN61: =$AD61*(1+'Production Assumptions'!$C$5)^5 -> 0 | AO61: =AI68 -> 0 | AP61: =$AD61*(1+'Production Assumptions'!$C$5)^6 -> 0 | AQ61: =AJ68 -> 0 | AR61: =$AD61*(1+'Production Assumptions'!$C$5)^7 -> 0 | AS61: =AK68 -> 0 | AT61: =$AD61*(1+'Production Assumptions'!$C$5)^8 -> 0
B62: Low Skilled | C62: 5 | D62: =SUM(E62:P62) -> 240000 | E62: ='Production Assumptions'!$C$50*D69 -> 20000 | F62: ='Production Assumptions'!$C$50*E69 -> 20000 | G62: ='Production Assumptions'!$C$50*F69 -> 20000 | H62: ='Production Assumptions'!$C$50*G69 -> 20000 | I62: ='Production Assumptions'!$C$50*H69 -> 20000 | J62: ='Production Assumptions'!$C$50*I69 -> 20000 | K62: ='Production Assumptions'!$C$50*J69 -> 20000 | L62: ='Production Assumptions'!$C$50*K69 -> 20000 | M62: ='Production Assumptions'!$C$50*L69 -> 20000 | N62: ='Production Assumptions'!$C$50*M69 -> 20000 | O62: ='Production Assumptions'!$C$50*N69 -> 20000 | P62: ='Production Assumptions'!$C$50*O69 -> 20000 | Q62: =Q69 -> 5 | R62: ='Production Assumptions'!$C$50*(1+'Production Assumptions'!$C$5)*R69 -> 21020 | S62: ='Production Assumptions'!$C$50*(1+'Production Assumptions'!$C$5)*S69 -> 21020 | T62: ='Production Assumptions'!$C$50*(1+'Production Assumptions'!$C$5)*T69 -> 21020 | U62: ='Production Assumptions'!$C$50*(1+'Production Assumptions'!$C$5)*U69 -> 21020 | V62: ='Production Assumptions'!$C$50*(1+'Production Assumptions'!$C$5)*V69 -> 21020 | W62: ='Production Assumptions'!$C$50*(1+'Production Assumptions'!$C$5)*W69 -> 21020 | X62: ='Production Assumptions'!$C$50*(1+'Production Assumptions'!$C$5)*X69 -> 21020 | Y62: ='Production Assumptions'!$C$50*(1+'Production Assumptions'!$C$5)*Y69 -> 21020 | Z62: ='Production Assumptions'!$C$50*(1+'Production Assumptions'!$C$5)*Z69 -> 21020 | AA62: ='Production Assumptions'!$C$50*(1+'Production Assumptions'!$C$5)*AA69 -> 21020 | AB62: ='Production Assumptions'!$C$50*(1+'Production Assumptions'!$C$5)*AB69 -> 21020 | AC62: ='Production Assumptions'!$C$50*(1+'Production Assumptions'!$C$5)*AC69 -> 21020 | AD62: 252240 | AE62: =AD69 -> 5 | AF62: =$AD62*(1+'Production Assumptions'!$C$5) -> 265104.24 | AG62: =AE69 -> 5 | AH62: =$AD62*(1+'Production Assumptions'!$C$5)^2 -> 278624.5562 | AI62: =AF69 -> 5 | AJ62: =$AD62*(1+'Production Assumptions'!$C$5)^3 -> 292834.4086 | AK62: 5 | AL62: =$AD62*(1+'Production Assumptions'!$C$5)^4 -> 307768.9634 | AM62: =AH69 -> 5 | AN62: =$AD62*(1+'Production Assumptions'!$C$5)^5 -> 323465.1806 | AO62: 5 | AP62: =$AD62*(1+'Production Assumptions'!$C$5)^6 -> 339961.9048 | AQ62: =AJ69 -> 5 | AR62: =$AD62*(1+'Production Assumptions'!$C$5)^7 -> 357299.9619 | AS62: =AK69 -> 5 | AT62: =$AD62*(1+'Production Assumptions'!$C$5)^8 -> 375522.26
C63: 6 | D63: =SUM(D60:D62) -> 510000 | E63: 42500 | F63: 42500 | G63: 42500 | H63: 42500 | I63: 42500 | J63: 42500 | K63: 42500 | L63: 42500 | M63: 42500 | N63: 42500 | O63: 42500 | P63: 42500 | Q63: =SUM(Q60:Q62) -> 6 | R63: =SUM(R60:R62) -> 44667.5 | S63: 44667.5 | T63: 44667.5 | U63: 44667.5 | V63: 44667.5 | W63: 44667.5 | X63: 44667.5 | Y63: 44667.5 | Z63: 44667.5 | AA63: 44667.5 | AB63: 44667.5 | AC63: 44667.5 | AD63: 536010 | AE63: =SUM(AE60:AE62) -> 6 | AF63: =SUM(AF60:AF62) -> 563346.51 | AG63: =SUM(AG60:AG62) -> 6 | AH63: =SUM(AH60:AH62) -> 592077.182 | AI63: =SUM(AI60:AI62) -> 6 | AJ63: =SUM(AJ60:AJ62) -> 622273.1183 | AK63: =AI63 -> 6 | AL63: =SUM(AL60:AL62) -> 654009.0473 | AM63: 6 | AN63: 687363.5087 | AO63: 6 | AP63: 722419.0477 | AQ63: 6 | AR63: 759262.4191 | AS63: 6 | AT63: 797984.8025
B65: HR | D65: =E57 -> YEAR 1 | R65: =R57 -> YEAR 2
B66: No. of Employees: | D66: =E58 -> Month 1 | E66: =F58 -> Month 2 | F66: =G58 -> Month 3 | G66: =H58 -> Month 4 | H66: =I58 -> Month 5 | I66: =J58 -> Month 6 | J66: =K58 -> Month 7 | K66: =L58 -> Month 8 | L66: =M58 -> Month 9 | M66: =N58 -> Month 10 | N66: =O58 -> Month 11 | O66: =P58 -> Month 12 | P66: Year 1 | Q66: Year 2: | R66: =R58 -> Month 1 | S66: =S58 -> Month 2 | T66: Month 3 | U66: Month 4 | V66: Month 5 | W66: Month 6 | X66: Month 7 | Y66: Month 8 | Z66: Month 9 | AA66: Month 10 | AB66: Month 11 | AC66: Month 12 | AD66: Year 3: | AE66: Year 4: | AF66: Year 5 | AG66: Year 6 | AH66: Year 7 | AI66: Year 8 | AJ66: Year 9 | AK66: Year 10
B67: Managers: | C67: =B60 -> Skilled Workers | D67: ='Production Assumptions'!$O$48 -> 1 | E67: ='Production Assumptions'!$O$48 -> 1 | F67: ='Production Assumptions'!$O$48 -> 1 | G67: ='Production Assumptions'!$O$48 -> 1 | H67: ='Production Assumptions'!$O$48 -> 1 | I67: ='Production Assumptions'!$O$48 -> 1 | J67: ='Production Assumptions'!$O$48 -> 1 | K67: ='Production Assumptions'!$O$48 -> 1 | L67: ='Production Assumptions'!$O$48 -> 1 | M67: ='Production Assumptions'!$O$48 -> 1 | N67: ='Production Assumptions'!$O$48 -> 1 | O67: ='Production Assumptions'!$O$48 -> 1 | P67: =O67 -> 1 | Q67: =AC67 -> 1 | R67: ='Production Assumptions'!$O$48 -> 1 | S67: ='Production Assumptions'!$O$48 -> 1 | T67: ='Production Assumptions'!$O$48 -> 1 | U67: ='Production Assumptions'!$O$48 -> 1 | V67: ='Production Assumptions'!$O$48 -> 1 | W67: ='Production Assumptions'!$O$48 -> 1 | X67: ='Production Assumptions'!$O$48 -> 1 | Y67: ='Production Assumptions'!$O$48 -> 1 | Z67: ='Production Assumptions'!$O$48 -> 1 | AA67: ='Production Assumptions'!$O$48 -> 1 | AB67: ='Production Assumptions'!$O$48 -> 1 | AC67: ='Production Assumptions'!$O$48 -> 1 | AD67: =AC67 -> 1 | AE67: =AD67 -> 1 | AF67: 1 | AG67: 1 | AH67: 1 | AI67: 1 | AJ67: 1 | AK67: 1
B68: Staff: | C68: =B61 -> Medium Skilled | D68: ='Production Assumptions'!$O$49 -> 0 | E68: ='Production Assumptions'!$O$49 -> 0 | F68: ='Production Assumptions'!$O$49 -> 0 | G68: ='Production Assumptions'!$O$49 -> 0 | H68: ='Production Assumptions'!$O$49 -> 0 | I68: ='Production Assumptions'!$O$49 -> 0 | J68: ='Production Assumptions'!$O$49 -> 0 | K68: ='Production Assumptions'!$O$49 -> 0 | L68: ='Production Assumptions'!$O$49 -> 0 | M68: ='Production Assumptions'!$O$49 -> 0 | N68: ='Production Assumptions'!$O$49 -> 0 | O68: ='Production Assumptions'!$O$49 -> 0 | P68: =O68 -> 0 | Q68: =AC68 -> 0 | R68: ='Production Assumptions'!$O$49 -> 0 | S68: ='Production Assumptions'!$O$49 -> 0 | T68: ='Production Assumptions'!$O$49 -> 0 | U68: ='Production Assumptions'!$O$49 -> 0 | V68: ='Production Assumptions'!$O$49 -> 0 | W68: ='Production Assumptions'!$O$49 -> 0 | X68: ='Production Assumptions'!$O$49 -> 0 | Y68: ='Production Assumptions'!$O$49 -> 0 | Z68: ='Production Assumptions'!$O$49 -> 0 | AA68: ='Production Assumptions'!$O$49 -> 0 | AB68: ='Production Assumptions'!$O$49 -> 0 | AC68: ='Production Assumptions'!$O$49 -> 0 | AD68: =AC68 -> 0 | AE68: =AD68 -> 0 | AF68: 0 | AG68: 0 | AH68: 0 | AI68: 0 | AJ68: 0 | AK68: 0
B69: Staff: | C69: =B62 -> Low Skilled | D69: ='Production Assumptions'!$O$50 -> 5 | E69: ='Production Assumptions'!$O$50 -> 5 | F69: ='Production Assumptions'!$O$50 -> 5 | G69: ='Production Assumptions'!$O$50 -> 5 | H69: ='Production Assumptions'!$O$50 -> 5 | I69: ='Production Assumptions'!$O$50 -> 5 | J69: ='Production Assumptions'!$O$50 -> 5 | K69: ='Production Assumptions'!$O$50 -> 5 | L69: ='Production Assumptions'!$O$50 -> 5 | M69: ='Production Assumptions'!$O$50 -> 5 | N69: ='Production Assumptions'!$O$50 -> 5 | O69: ='Production Assumptions'!$O$50 -> 5 | P69: =O69 -> 5 | Q69: =AC69 -> 5 | R69: ='Production Assumptions'!$O$50 -> 5 | S69: ='Production Assumptions'!$O$50 -> 5 | T69: ='Production Assumptions'!$O$50 -> 5 | U69: ='Production Assumptions'!$O$50 -> 5 | V69: ='Production Assumptions'!$O$50 -> 5 | W69: ='Production Assumptions'!$O$50 -> 5 | X69: ='Production Assumptions'!$O$50 -> 5 | Y69: ='Production Assumptions'!$O$50 -> 5 | Z69: ='Production Assumptions'!$O$50 -> 5 | AA69: ='Production Assumptions'!$O$50 -> 5 | AB69: ='Production Assumptions'!$O$50 -> 5 | AC69: ='Production Assumptions'!$O$50 -> 5 | AD69: =AC69 -> 5 | AE69: =AD69 -> 5 | AF69: 5 | AG69: 5 | AH69: 5 | AI69: 5 | AJ69: 5 | AK69: 5
B70: Total: | D70: =SUM(D67:D69) -> 6 | E70: =SUM(E67:E69) -> 6 | F70: 6 | G70: 6 | H70: 6 | I70: 6 | J70: 6 | K70: 6 | L70: 6 | M70: 6 | N70: 6 | O70: 6 | P70: =SUM(P67:P69) -> 6 | Q70: =SUM(Q67:Q69) -> 6 | R70: =SUM(R67:R69) -> 6 | S70: 6 | T70: 6 | U70: 6 | V70: 6 | W70: 6 | X70: 6 | Y70: 6 | Z70: 6 | AA70: 6 | AB70: 6 | AC70: 6 | AD70: =SUM(AD67:AD69) -> 6 | AE70: 6 | AF70: 6 | AG70: 6 | AH70: 6 | AI70: 6 | AJ70: 6 | AK70: 6
B72: FLOWTHROUGH
B73: LABOUR:
E74: YEAR 1 | R74: YEAR 2
E75: Month 1 | F75: Month 2 | G75: Month 3 | H75: Month 4 | I75: Month 5 | J75: Month 6 | K75: Month 7 | L75: Month 8 | M75: Month 9 | N75: Month 10 | O75: Month 11 | P75: Month 12 | Q75: 1 | R75: Month 1 | S75: Month 2 | T75: Month 3 | U75: Month 4 | V75: Month 5 | W75: Month 6 | X75: Month 7 | Y75: Month 8 | Z75: Month 9 | AA75: Month 10 | AB75: Month 11 | AC75: Month 12 | AE75: 2 | AG75: 3 | AI75: 4 | AK75: 5 | AM75: 6 | AO75: 7 | AQ75: 8 | AS75: 9
B76: Employees: | C76: Year 1 | D76: Annual Cost: Year 1 | Q76: Year 2: | AD76: Annual Cost: Year 2 | AE76: Year 3: | AF76: Annual Cost: Year 3 | AG76: Year 4: | AH76: Annual Cost: Year 4 | AI76: Year 5 | AJ76: Annual Cost: Year 5 | AK76: Year 6 | AL76: Annual Cost: Year 6 | AM76: Year 7 | AN76: Annual Cost: Year 7 | AO76: Year 8 | AP76: Annual Cost: Year 8 | AQ76: Year 9 | AR76: Annual Cost: Year 9 | AS76: Year 10 | AT76: Annual Cost: Year 10
B77: Skilled Workers | C77: =P84 -> 1 | D77: =SUM(E77:P77) -> 270000 | E77: ='Production Assumptions'!$C$48*D84 -> 22500 | F77: ='Production Assumptions'!$C$48*E84 -> 22500 | G77: ='Production Assumptions'!$C$48*F84 -> 22500 | H77: ='Production Assumptions'!$C$48*G84 -> 22500 | I77: ='Production Assumptions'!$C$48*H84 -> 22500 | J77: ='Production Assumptions'!$C$48*I84 -> 22500 | K77: ='Production Assumptions'!$C$48*J84 -> 22500 | L77: ='Production Assumptions'!$C$48*K84 -> 22500 | M77: ='Production Assumptions'!$C$48*L84 -> 22500 | N77: ='Production Assumptions'!$C$48*M84 -> 22500 | O77: ='Production Assumptions'!$C$48*N84 -> 22500 | P77: ='Production Assumptions'!$C$48*O84 -> 22500 | Q77: =Q84 -> 1 | R77: ='Production Assumptions'!$C$48*(1+'Production Assumptions'!$C$5)*R84 -> 23647.5 | S77: ='Production Assumptions'!$C$48*(1+'Production Assumptions'!$C$5)*S84 -> 23647.5 | T77: ='Production Assumptions'!$C$48*(1+'Production Assumptions'!$C$5)*T84 -> 23647.5 | U77: ='Production Assumptions'!$C$48*(1+'Production Assumptions'!$C$5)*U84 -> 23647.5 | V77: ='Production Assumptions'!$C$48*(1+'Production Assumptions'!$C$5)*V84 -> 23647.5 | W77: ='Production Assumptions'!$C$48*(1+'Production Assumptions'!$C$5)*W84 -> 23647.5 | X77: ='Production Assumptions'!$C$48*(1+'Production Assumptions'!$C$5)*X84 -> 23647.5 | Y77: ='Production Assumptions'!$C$48*(1+'Production Assumptions'!$C$5)*Y84 -> 23647.5 | Z77: ='Production Assumptions'!$C$48*(1+'Production Assumptions'!$C$5)*Z84 -> 23647.5 | AA77: ='Production Assumptions'!$C$48*(1+'Production Assumptions'!$C$5)*AA84 -> 23647.5 | AB77: ='Production Assumptions'!$C$48*(1+'Production Assumptions'!$C$5)*AB84 -> 23647.5 | AC77: ='Production Assumptions'!$C$48*(1+'Production Assumptions'!$C$5)*AC84 -> 23647.5 | AD77: =SUM(R77:AC77) -> 283770 | AE77: =AD84 -> 1 | AF77: =$AD77*(1+'Production Assumptions'!$C$5) -> 298242.27 | AG77: =AE84 -> 1 | AH77: =$AD77*(1+'Production Assumptions'!$C$5)^2 -> 313452.6258 | AI77: =AF84 -> 1 | AJ77: =$AD77*(1+'Production Assumptions'!$C$5)^3 -> 329438.7097 | AK77: =AG84 -> 1 | AL77: =$AD77*(1+'Production Assumptions'!$C$5)^4 -> 346240.0839 | AM77: =AH84 -> 1 | AN77: =$AD77*(1+'Production Assumptions'!$C$5)^5 -> 363898.3282 | AO77: =AI84 -> 1 | AP77: =$AD77*(1+'Production Assumptions'!$C$5)^6 -> 382457.1429 | AQ77: =AJ84 -> 1 | AR77: =$AD77*(1+'Production Assumptions'!$C$5)^7 -> 401962.4572 | AS77: =AK84 -> 1 | AT77: =$AD77*(1+'Production Assumptions'!$C$5)^8 -> 422462.5425
B78: Medium Skilled | C78: =P85 -> 0 | D78: =SUM(E78:P78) -> 0 | E78: =IF(D85<0.5, 0,'Production Assumptions'!$C$49*D85) -> 0 | F78: =IF(E85<0.5, 0,'Production Assumptions'!$C$49*E85) -> 0 | G78: =IF(F85<0.5, 0,'Production Assumptions'!$C$49*F85) -> 0 | H78: =IF(G85<0.5, 0,'Production Assumptions'!$C$49*G85) -> 0 | I78: =IF(H85<0.5, 0,'Production Assumptions'!$C$49*H85) -> 0 | J78: =IF(I85<0.5, 0,'Production Assumptions'!$C$49*I85) -> 0 | K78: =IF(J85<0.5, 0,'Production Assumptions'!$C$49*J85) -> 0 | L78: =IF(K85<0.5, 0,'Production Assumptions'!$C$49*K85) -> 0 | M78: =IF(L85<0.5, 0,'Production Assumptions'!$C$49*L85) -> 0 | N78: =IF(M85<0.5, 0,'Production Assumptions'!$C$49*M85) -> 0 | O78: =IF(N85<0.5, 0,'Production Assumptions'!$C$49*N85) -> 0 | P78: =IF(O85<0.5, 0,'Production Assumptions'!$C$49*O85) -> 0 | Q78: =Q85 -> 0 | R78: =IF(R85<0.5, 0,'Production Assumptions'!$C$49*(1+'Production Assumptions'!$C$5)*R85) -> 0 | S78: =IF(S85<0.5, 0,'Production Assumptions'!$C$49*(1+'Production Assumptions'!$C$5)*S85) -> 0 | T78: =IF(T85<0.5, 0,'Production Assumptions'!$C$49*(1+'Production Assumptions'!$C$5)*T85) -> 0 | U78: =IF(U85<0.5, 0,'Production Assumptions'!$C$49*(1+'Production Assumptions'!$C$5)*U85) -> 0 | V78: =IF(V85<0.5, 0,'Production Assumptions'!$C$49*(1+'Production Assumptions'!$C$5)*V85) -> 0 | W78: =IF(W85<0.5, 0,'Production Assumptions'!$C$49*(1+'Production Assumptions'!$C$5)*W85) -> 0 | X78: =IF(X85<0.5, 0,'Production Assumptions'!$C$49*(1+'Production Assumptions'!$C$5)*X85) -> 0 | Y78: =IF(Y85<0.5, 0,'Production Assumptions'!$C$49*(1+'Production Assumptions'!$C$5)*Y85) -> 0 | Z78: =IF(Z85<0.5, 0,'Production Assumptions'!$C$49*(1+'Production Assumptions'!$C$5)*Z85) -> 0 | AA78: =IF(AA85<0.5, 0,'Production Assumptions'!$C$49*(1+'Production Assumptions'!$C$5)*AA85) -> 0 | AB78: =IF(AB85<0.5, 0,'Production Assumptions'!$C$49*(1+'Production Assumptions'!$C$5)*AB85) -> 0 | AC78: =IF(AC85<0.5, 0,'Production Assumptions'!$C$49*(1+'Production Assumptions'!$C$5)*AC85) -> 0 | AD78: =SUM(R78:AC78) -> 0 | AE78: =AD85 -> 0 | AF78: =$AD78*(1+'Production Assumptions'!$C$5) -> 0 | AG78: =AE85 -> 0 | AH78: =$AD78*(1+'Production Assumptions'!$C$5)^2 -> 0 | AI78: =AF85 -> 0 | AJ78: =$AD78*(1+'Production Assumptions'!$C$5)^3 -> 0 | AK78: =AG85 -> 0 | AL78: =$AD78*(1+'Production Assumptions'!$C$5)^4 -> 0 | AM78: =AH85 -> 0 | AN78: =$AD78*(1+'Production Assumptions'!$C$5)^5 -> 0 | AO78: =AI85 -> 0 | AP78: =$AD78*(1+'Production Assumptions'!$C$5)^6 -> 0 | AQ78: =AJ85 -> 0 | AR78: =$AD78*(1+'Production Assumptions'!$C$5)^7 -> 0 | AS78: =AK85 -> 0 | AT78: =$AD78*(1+'Production Assumptions'!$C$5)^8 -> 0
B79: Low Skilled | C79: 5 | D79: =SUM(E79:P79) -> 240000 | E79: ='Production Assumptions'!$C$50*D86 -> 20000 | F79: ='Production Assumptions'!$C$50*E86 -> 20000 | G79: ='Production Assumptions'!$C$50*F86 -> 20000 | H79: ='Production Assumptions'!$C$50*G86 -> 20000 | I79: ='Production Assumptions'!$C$50*H86 -> 20000 | J79: ='Production Assumptions'!$C$50*I86 -> 20000 | K79: ='Production Assumptions'!$C$50*J86 -> 20000 | L79: ='Production Assumptions'!$C$50*K86 -> 20000 | M79: ='Production Assumptions'!$C$50*L86 -> 20000 | N79: ='Production Assumptions'!$C$50*M86 -> 20000 | O79: ='Production Assumptions'!$C$50*N86 -> 20000 | P79: ='Production Assumptions'!$C$50*O86 -> 20000 | Q79: =Q86 -> 5 | R79: ='Production Assumptions'!$C$50*(1+'Production Assumptions'!$C$5)*R86 -> 21020 | S79: ='Production Assumptions'!$C$50*(1+'Production Assumptions'!$C$5)*S86 -> 21020 | T79: ='Production Assumptions'!$C$50*(1+'Production Assumptions'!$C$5)*T86 -> 21020 | U79: ='Production Assumptions'!$C$50*(1+'Production Assumptions'!$C$5)*U86 -> 21020 | V79: ='Production Assumptions'!$C$50*(1+'Production Assumptions'!$C$5)*V86 -> 21020 | W79: ='Production Assumptions'!$C$50*(1+'Production Assumptions'!$C$5)*W86 -> 21020 | X79: ='Production Assumptions'!$C$50*(1+'Production Assumptions'!$C$5)*X86 -> 21020 | Y79: ='Production Assumptions'!$C$50*(1+'Production Assumptions'!$C$5)*Y86 -> 21020 | Z79: ='Production Assumptions'!$C$50*(1+'Production Assumptions'!$C$5)*Z86 -> 21020 | AA79: ='Production Assumptions'!$C$50*(1+'Production Assumptions'!$C$5)*AA86 -> 21020 | AB79: ='Production Assumptions'!$C$50*(1+'Production Assumptions'!$C$5)*AB86 -> 21020 | AC79: ='Production Assumptions'!$C$50*(1+'Production Assumptions'!$C$5)*AC86 -> 21020 | AD79: 252240 | AE79: =AD86 -> 5 | AF79: =$AD79*(1+'Production Assumptions'!$C$5) -> 265104.24 | AG79: =AE86 -> 5 | AH79: =$AD79*(1+'Production Assumptions'!$C$5)^2 -> 278624.5562 | AI79: =AF86 -> 5 | AJ79: =$AD79*(1+'Production Assumptions'!$C$5)^3 -> 292834.4086 | AK79: 5 | AL79: =$AD79*(1+'Production Assumptions'!$C$5)^4 -> 307768.9634 | AM79: =AH86 -> 5 | AN79: =$AD79*(1+'Production Assumptions'!$C$5)^5 -> 323465.1806 | AO79: 5 | AP79: =$AD79*(1+'Production Assumptions'!$C$5)^6 -> 339961.9048 | AQ79: =AJ86 -> 5 | AR79: =$AD79*(1+'Production Assumptions'!$C$5)^7 -> 357299.9619 | AS79: =AK86 -> 5 | AT79: =$AD79*(1+'Production Assumptions'!$C$5)^8 -> 375522.26
C80: 6 | D80: =SUM(D77:D79) -> 510000 | E80: 42500 | F80: 42500 | G80: 42500 | H80: 42500 | I80: 42500 | J80: 42500 | K80: 42500 | L80: 42500 | M80: 42500 | N80: 42500 | O80: 42500 | P80: 42500 | Q80: =SUM(Q77:Q79) -> 6 | R80: =SUM(R77:R79) -> 44667.5 | S80: 44667.5 | T80: 44667.5 | U80: 44667.5 | V80: 44667.5 | W80: 44667.5 | X80: 44667.5 | Y80: 44667.5 | Z80: 44667.5 | AA80: 44667.5 | AB80: 44667.5 | AC80: 44667.5 | AD80: 536010 | AE80: =SUM(AE77:AE79) -> 6 | AF80: =SUM(AF77:AF79) -> 563346.51 | AG80: =SUM(AG77:AG79) -> 6 | AH80: =SUM(AH77:AH79) -> 592077.182 | AI80: =SUM(AI77:AI79) -> 6 | AJ80: =SUM(AJ77:AJ79) -> 622273.1183 | AK80: =AI80 -> 6 | AL80: =SUM(AL77:AL79) -> 654009.0473 | AM80: 6 | AN80: 687363.5087 | AO80: 6 | AP80: 722419.0477 | AQ80: 6 | AR80: 759262.4191 | AS80: 6 | AT80: 797984.8025
B82: HR | D82: =E74 -> YEAR 1 | R82: =R74 -> YEAR 2
B83: No. of Employees: | D83: =E75 -> Month 1 | E83: =F75 -> Month 2 | F83: =G75 -> Month 3 | G83: =H75 -> Month 4 | H83: =I75 -> Month 5 | I83: =J75 -> Month 6 | J83: =K75 -> Month 7 | K83: =L75 -> Month 8 | L83: =M75 -> Month 9 | M83: =N75 -> Month 10 | N83: =O75 -> Month 11 | O83: =P75 -> Month 12 | P83: Year 1 | Q83: Year 2: | R83: =R75 -> Month 1 | S83: =S75 -> Month 2 | T83: Month 3 | U83: Month 4 | V83: Month 5 | W83: Month 6 | X83: Month 7 | Y83: Month 8 | Z83: Month 9 | AA83: Month 10 | AB83: Month 11 | AC83: Month 12 | AD83: Year 3: | AE83: Year 4: | AF83: Year 5 | AG83: Year 6 | AH83: Year 7 | AI83: Year 8 | AJ83: Year 9 | AK83: Year 10
B84: Managers: | C84: =B77 -> Skilled Workers | D84: ='Production Assumptions'!$R$48 -> 1 | E84: ='Production Assumptions'!$R$48 -> 1 | F84: ='Production Assumptions'!$R$48 -> 1 | G84: ='Production Assumptions'!$R$48 -> 1 | H84: ='Production Assumptions'!$R$48 -> 1 | I84: ='Production Assumptions'!$R$48 -> 1 | J84: ='Production Assumptions'!$R$48 -> 1 | K84: ='Production Assumptions'!$R$48 -> 1 | L84: ='Production Assumptions'!$R$48 -> 1 | M84: ='Production Assumptions'!$R$48 -> 1 | N84: ='Production Assumptions'!$R$48 -> 1 | O84: ='Production Assumptions'!$R$48 -> 1 | P84: =O84 -> 1 | Q84: =AC84 -> 1 | R84: ='Production Assumptions'!$R$48 -> 1 | S84: ='Production Assumptions'!$R$48 -> 1 | T84: ='Production Assumptions'!$R$48 -> 1 | U84: ='Production Assumptions'!$R$48 -> 1 | V84: ='Production Assumptions'!$R$48 -> 1 | W84: ='Production Assumptions'!$R$48 -> 1 | X84: ='Production Assumptions'!$R$48 -> 1 | Y84: ='Production Assumptions'!$R$48 -> 1 | Z84: ='Production Assumptions'!$R$48 -> 1 | AA84: ='Production Assumptions'!$R$48 -> 1 | AB84: ='Production Assumptions'!$R$48 -> 1 | AC84: ='Production Assumptions'!$R$48 -> 1 | AD84: =AC84 -> 1 | AE84: =AD84 -> 1 | AF84: =AE84 -> 1 | AG84: =AF84 -> 1 | AH84: =AG84 -> 1 | AI84: =AH84 -> 1 | AJ84: =AI84 -> 1 | AK84: =AJ84 -> 1
B85: Staff: | C85: =B78 -> Medium Skilled | D85: ='Production Assumptions'!$R$49 -> 0 | E85: ='Production Assumptions'!$R$49 -> 0 | F85: ='Production Assumptions'!$R$49 -> 0 | G85: ='Production Assumptions'!$R$49 -> 0 | H85: ='Production Assumptions'!$R$49 -> 0 | I85: ='Production Assumptions'!$R$49 -> 0 | J85: ='Production Assumptions'!$R$49 -> 0 | K85: ='Production Assumptions'!$R$49 -> 0 | L85: ='Production Assumptions'!$R$49 -> 0 | M85: ='Production Assumptions'!$R$49 -> 0 | N85: ='Production Assumptions'!$R$49 -> 0 | O85: ='Production Assumptions'!$R$49 -> 0 | P85: =O85 -> 0 | Q85: =AC85 -> 0 | R85: ='Production Assumptions'!$R$49 -> 0 | S85: ='Production Assumptions'!$R$49 -> 0 | T85: ='Production Assumptions'!$R$49 -> 0 | U85: ='Production Assumptions'!$R$49 -> 0 | V85: ='Production Assumptions'!$R$49 -> 0 | W85: ='Production Assumptions'!$R$49 -> 0 | X85: ='Production Assumptions'!$R$49 -> 0 | Y85: ='Production Assumptions'!$R$49 -> 0 | Z85: ='Production Assumptions'!$R$49 -> 0 | AA85: ='Production Assumptions'!$R$49 -> 0 | AB85: ='Production Assumptions'!$R$49 -> 0 | AC85: ='Production Assumptions'!$R$49 -> 0 | AD85: =AC85 -> 0 | AE85: 0 | AF85: 0 | AG85: 0 | AH85: 0 | AI85: 0 | AJ85: 0 | AK85: 0
B86: Staff: | C86: =B79 -> Low Skilled | D86: ='Production Assumptions'!$R$50 -> 5 | E86: ='Production Assumptions'!$R$50 -> 5 | F86: ='Production Assumptions'!$R$50 -> 5 | G86: ='Production Assumptions'!$R$50 -> 5 | H86: ='Production Assumptions'!$R$50 -> 5 | I86: ='Production Assumptions'!$R$50 -> 5 | J86: ='Production Assumptions'!$R$50 -> 5 | K86: ='Production Assumptions'!$R$50 -> 5 | L86: ='Production Assumptions'!$R$50 -> 5 | M86: ='Production Assumptions'!$R$50 -> 5 | N86: ='Production Assumptions'!$R$50 -> 5 | O86: ='Production Assumptions'!$R$50 -> 5 | P86: =O86 -> 5 | Q86: =AC86 -> 5 | R86: ='Production Assumptions'!$R$50 -> 5 | S86: ='Production Assumptions'!$R$50 -> 5 | T86: ='Production Assumptions'!$R$50 -> 5 | U86: ='Production Assumptions'!$R$50 -> 5 | V86: ='Production Assumptions'!$R$50 -> 5 | W86: ='Production Assumptions'!$R$50 -> 5 | X86: ='Production Assumptions'!$R$50 -> 5 | Y86: ='Production Assumptions'!$R$50 -> 5 | Z86: ='Production Assumptions'!$R$50 -> 5 | AA86: ='Production Assumptions'!$R$50 -> 5 | AB86: ='Production Assumptions'!$R$50 -> 5 | AC86: ='Production Assumptions'!$R$50 -> 5 | AD86: =AC86 -> 5 | AE86: 5 | AF86: 5 | AG86: 5 | AH86: 5 | AI86: 5 | AJ86: 5 | AK86: 5
B87: Total: | D87: =SUM(D84:D86) -> 6 | E87: =SUM(E84:E86) -> 6 | F87: 6 | G87: 6 | H87: 6 | I87: 6 | J87: 6 | K87: 6 | L87: 6 | M87: 6 | N87: 6 | O87: 6 | P87: =SUM(P84:P86) -> 6 | Q87: =SUM(Q84:Q86) -> 6 | R87: =SUM(R84:R86) -> 6 | S87: 6 | T87: 6 | U87: 6 | V87: 6 | W87: 6 | X87: 6 | Y87: 6 | Z87: 6 | AA87: 6 | AB87: 6 | AC87: 6 | AD87: 6 | AE87: 6 | AF87: 6 | AG87: 6 | AH87: 6 | AI87: 6 | AJ87: 6 | AK87: 6
B89: RACEWAY
B90: LABOUR:
E91: YEAR 1 | R91: YEAR 2
E92: Month 1 | F92: Month 2 | G92: Month 3 | H92: Month 4 | I92: Month 5 | J92: Month 6 | K92: Month 7 | L92: Month 8 | M92: Month 9 | N92: Month 10 | O92: Month 11 | P92: Month 12 | Q92: 1 | R92: Month 1 | S92: Month 2 | T92: Month 3 | U92: Month 4 | V92: Month 5 | W92: Month 6 | X92: Month 7 | Y92: Month 8 | Z92: Month 9 | AA92: Month 10 | AB92: Month 11 | AC92: Month 12 | AE92: 2 | AG92: 3 | AI92: 4 | AK92: 5 | AM92: 6 | AO92: 7 | AQ92: 8 | AS92: 9
B93: Employees: | C93: Year 1 | D93: Annual Cost: Year 1 | Q93: Year 2: | AD93: Annual Cost: Year 2 | AE93: Year 3: | AF93: Annual Cost: Year 3 | AG93: Year 4: | AH93: Annual Cost: Year 4 | AI93: Year 5 | AJ93: Annual Cost: Year 5 | AK93: Year 6 | AL93: Annual Cost: Year 6 | AM93: Year 7 | AN93: Annual Cost: Year 7 | AO93: Year 8 | AP93: Annual Cost: Year 8 | AQ93: Year 9 | AR93: Annual Cost: Year 9 | AS93: Year 10 | AT93: Annual Cost: Year 10
B94: Skilled Workers | C94: =P101 -> 1 | D94: =SUM(E94:P94) -> 270000 | E94: ='Production Assumptions'!$C$48*D101 -> 22500 | F94: ='Production Assumptions'!$C$48*E101 -> 22500 | G94: ='Production Assumptions'!$C$48*F101 -> 22500 | H94: ='Production Assumptions'!$C$48*G101 -> 22500 | I94: ='Production Assumptions'!$C$48*H101 -> 22500 | J94: ='Production Assumptions'!$C$48*I101 -> 22500 | K94: ='Production Assumptions'!$C$48*J101 -> 22500 | L94: ='Production Assumptions'!$C$48*K101 -> 22500 | M94: ='Production Assumptions'!$C$48*L101 -> 22500 | N94: ='Production Assumptions'!$C$48*M101 -> 22500 | O94: ='Production Assumptions'!$C$48*N101 -> 22500 | P94: ='Production Assumptions'!$C$48*O101 -> 22500 | Q94: =Q101 -> 1 | R94: ='Production Assumptions'!$C$48*(1+'Production Assumptions'!$C$5)*R101 -> 23647.5 | S94: ='Production Assumptions'!$C$48*(1+'Production Assumptions'!$C$5)*S101 -> 23647.5 | T94: ='Production Assumptions'!$C$48*(1+'Production Assumptions'!$C$5)*T101 -> 23647.5 | U94: ='Production Assumptions'!$C$48*(1+'Production Assumptions'!$C$5)*U101 -> 23647.5 | V94: ='Production Assumptions'!$C$48*(1+'Production Assumptions'!$C$5)*V101 -> 23647.5 | W94: ='Production Assumptions'!$C$48*(1+'Production Assumptions'!$C$5)*W101 -> 23647.5 | X94: ='Production Assumptions'!$C$48*(1+'Production Assumptions'!$C$5)*X101 -> 23647.5 | Y94: ='Production Assumptions'!$C$48*(1+'Production Assumptions'!$C$5)*Y101 -> 23647.5 | Z94: ='Production Assumptions'!$C$48*(1+'Production Assumptions'!$C$5)*Z101 -> 23647.5 | AA94: ='Production Assumptions'!$C$48*(1+'Production Assumptions'!$C$5)*AA101 -> 23647.5 | AB94: ='Production Assumptions'!$C$48*(1+'Production Assumptions'!$C$5)*AB101 -> 23647.5 | AC94: ='Production Assumptions'!$C$48*(1+'Production Assumptions'!$C$5)*AC101 -> 23647.5 | AD94: =SUM(R94:AC94) -> 283770 | AE94: =AD101 -> 1 | AF94: =$AD94*(1+'Production Assumptions'!$C$5) -> 298242.27 | AG94: =AE101 -> 1 | AH94: =$AD94*(1+'Production Assumptions'!$C$5)^2 -> 313452.6258 | AI94: =AF101 -> 1 | AJ94: =$AD94*(1+'Production Assumptions'!$C$5)^3 -> 329438.7097 | AK94: =AG101 -> 1 | AL94: =$AD94*(1+'Production Assumptions'!$C$5)^4 -> 346240.0839 | AM94: =AH101 -> 1 | AN94: =$AD94*(1+'Production Assumptions'!$C$5)^5 -> 363898.3282 | AO94: =AI101 -> 1 | AP94: =$AD94*(1+'Production Assumptions'!$C$5)^6 -> 382457.1429 | AQ94: =AJ101 -> 1 | AR94: =$AD94*(1+'Production Assumptions'!$C$5)^7 -> 401962.4572 | AS94: =AK101 -> 1 | AT94: =$AD94*(1+'Production Assumptions'!$C$5)^8 -> 422462.5425
B95: Medium Skilled | C95: =P102 -> 0 | D95: =SUM(E95:P95) -> 0 | E95: =IF(D102<0.5, 0,'Production Assumptions'!$C$49*D102) -> 0 | F95: =IF(E102<0.5, 0,'Production Assumptions'!$C$49*E102) -> 0 | G95: =IF(F102<0.5, 0,'Production Assumptions'!$C$49*F102) -> 0 | H95: =IF(G102<0.5, 0,'Production Assumptions'!$C$49*G102) -> 0 | I95: =IF(H102<0.5, 0,'Production Assumptions'!$C$49*H102) -> 0 | J95: =IF(I102<0.5, 0,'Production Assumptions'!$C$49*I102) -> 0 | K95: =IF(J102<0.5, 0,'Production Assumptions'!$C$49*J102) -> 0 | L95: =IF(K102<0.5, 0,'Production Assumptions'!$C$49*K102) -> 0 | M95: =IF(L102<0.5, 0,'Production Assumptions'!$C$49*L102) -> 0 | N95: =IF(M102<0.5, 0,'Production Assumptions'!$C$49*M102) -> 0 | O95: =IF(N102<0.5, 0,'Production Assumptions'!$C$49*N102) -> 0 | P95: =IF(O102<0.5, 0,'Production Assumptions'!$C$49*O102) -> 0 | Q95: =Q102 -> 0 | R95: =IF(R102<0.5, 0,'Production Assumptions'!$C$49*(1+'Production Assumptions'!$C$5)*R102) -> 0 | S95: =IF(S102<0.5, 0,'Production Assumptions'!$C$49*(1+'Production Assumptions'!$C$5)*S102) -> 0 | T95: =IF(T102<0.5, 0,'Production Assumptions'!$C$49*(1+'Production Assumptions'!$C$5)*T102) -> 0 | U95: =IF(U102<0.5, 0,'Production Assumptions'!$C$49*(1+'Production Assumptions'!$C$5)*U102) -> 0 | V95: =IF(V102<0.5, 0,'Production Assumptions'!$C$49*(1+'Production Assumptions'!$C$5)*V102) -> 0 | W95: =IF(W102<0.5, 0,'Production Assumptions'!$C$49*(1+'Production Assumptions'!$C$5)*W102) -> 0 | X95: =IF(X102<0.5, 0,'Production Assumptions'!$C$49*(1+'Production Assumptions'!$C$5)*X102) -> 0 | Y95: =IF(Y102<0.5, 0,'Production Assumptions'!$C$49*(1+'Production Assumptions'!$C$5)*Y102) -> 0 | Z95: =IF(Z102<0.5, 0,'Production Assumptions'!$C$49*(1+'Production Assumptions'!$C$5)*Z102) -> 0 | AA95: =IF(AA102<0.5, 0,'Production Assumptions'!$C$49*(1+'Production Assumptions'!$C$5)*AA102) -> 0 | AB95: =IF(AB102<0.5, 0,'Production Assumptions'!$C$49*(1+'Production Assumptions'!$C$5)*AB102) -> 0 | AC95: =IF(AC102<0.5, 0,'Production Assumptions'!$C$49*(1+'Production Assumptions'!$C$5)*AC102) -> 0 | AD95: =SUM(R95:AC95) -> 0 | AE95: =AD102 -> 0 | AF95: =$AD95*(1+'Production Assumptions'!$C$5) -> 0 | AG95: =AE102 -> 0 | AH95: =$AD95*(1+'Production Assumptions'!$C$5)^2 -> 0 | AI95: =AF102 -> 0 | AJ95: =$AD95*(1+'Production Assumptions'!$C$5)^3 -> 0 | AK95: =AG102 -> 0 | AL95: =$AD95*(1+'Production Assumptions'!$C$5)^4 -> 0 | AM95: =AH102 -> 0 | AN95: =$AD95*(1+'Production Assumptions'!$C$5)^5 -> 0 | AO95: =AI102 -> 0 | AP95: =$AD95*(1+'Production Assumptions'!$C$5)^6 -> 0 | AQ95: =AJ102 -> 0 | AR95: =$AD95*(1+'Production Assumptions'!$C$5)^7 -> 0 | AS95: =AK102 -> 0 | AT95: =$AD95*(1+'Production Assumptions'!$C$5)^8 -> 0
B96: Low Skilled | C96: 5 | D96: =SUM(E96:P96) -> 240000 | E96: ='Production Assumptions'!$C$50*D103 -> 20000 | F96: ='Production Assumptions'!$C$50*E103 -> 20000 | G96: ='Production Assumptions'!$C$50*F103 -> 20000 | H96: ='Production Assumptions'!$C$50*G103 -> 20000 | I96: ='Production Assumptions'!$C$50*H103 -> 20000 | J96: ='Production Assumptions'!$C$50*I103 -> 20000 | K96: ='Production Assumptions'!$C$50*J103 -> 20000 | L96: ='Production Assumptions'!$C$50*K103 -> 20000 | M96: ='Production Assumptions'!$C$50*L103 -> 20000 | N96: ='Production Assumptions'!$C$50*M103 -> 20000 | O96: ='Production Assumptions'!$C$50*N103 -> 20000 | P96: ='Production Assumptions'!$C$50*O103 -> 20000 | Q96: =Q103 -> 5 | R96: ='Production Assumptions'!$C$50*(1+'Production Assumptions'!$C$5)*R103 -> 21020 | S96: ='Production Assumptions'!$C$50*(1+'Production Assumptions'!$C$5)*S103 -> 21020 | T96: ='Production Assumptions'!$C$50*(1+'Production Assumptions'!$C$5)*T103 -> 21020 | U96: ='Production Assumptions'!$C$50*(1+'Production Assumptions'!$C$5)*U103 -> 21020 | V96: ='Production Assumptions'!$C$50*(1+'Production Assumptions'!$C$5)*V103 -> 21020 | W96: ='Production Assumptions'!$C$50*(1+'Production Assumptions'!$C$5)*W103 -> 21020 | X96: ='Production Assumptions'!$C$50*(1+'Production Assumptions'!$C$5)*X103 -> 21020 | Y96: ='Production Assumptions'!$C$50*(1+'Production Assumptions'!$C$5)*Y103 -> 21020 | Z96: ='Production Assumptions'!$C$50*(1+'Production Assumptions'!$C$5)*Z103 -> 21020 | AA96: ='Production Assumptions'!$C$50*(1+'Production Assumptions'!$C$5)*AA103 -> 21020 | AB96: ='Production Assumptions'!$C$50*(1+'Production Assumptions'!$C$5)*AB103 -> 21020 | AC96: ='Production Assumptions'!$C$50*(1+'Production Assumptions'!$C$5)*AC103 -> 21020 | AD96: 252240 | AE96: =AD103 -> 5 | AF96: =$AD96*(1+'Production Assumptions'!$C$5) -> 265104.24 | AG96: =AE103 -> 5 | AH96: =$AD96*(1+'Production Assumptions'!$C$5)^2 -> 278624.5562 | AI96: =AF103 -> 5 | AJ96: =$AD96*(1+'Production Assumptions'!$C$5)^3 -> 292834.4086 | AK96: 5 | AL96: =$AD96*(1+'Production Assumptions'!$C$5)^4 -> 307768.9634 | AM96: =AH103 -> 5 | AN96: =$AD96*(1+'Production Assumptions'!$C$5)^5 -> 323465.1806 | AO96: 5 | AP96: =$AD96*(1+'Production Assumptions'!$C$5)^6 -> 339961.9048 | AQ96: =AJ103 -> 5 | AR96: =$AD96*(1+'Production Assumptions'!$C$5)^7 -> 357299.9619 | AS96: =AK103 -> 5 | AT96: =$AD96*(1+'Production Assumptions'!$C$5)^8 -> 375522.26
C97: 6 | D97: =SUM(D94:D96) -> 510000 | E97: 42500 | F97: 42500 | G97: 42500 | H97: 42500 | I97: 42500 | J97: 42500 | K97: 42500 | L97: 42500 | M97: 42500 | N97: 42500 | O97: 42500 | P97: 42500 | Q97: =SUM(Q94:Q96) -> 6 | R97: =SUM(R94:R96) -> 44667.5 | S97: 44667.5 | T97: 44667.5 | U97: 44667.5 | V97: 44667.5 | W97: 44667.5 | X97: 44667.5 | Y97: 44667.5 | Z97: 44667.5 | AA97: 44667.5 | AB97: 44667.5 | AC97: 44667.5 | AD97: 536010 | AE97: =SUM(AE94:AE96) -> 6 | AF97: =SUM(AF94:AF96) -> 563346.51 | AG97: =SUM(AG94:AG96) -> 6 | AH97: =SUM(AH94:AH96) -> 592077.182 | AI97: =SUM(AI94:AI96) -> 6 | AJ97: =SUM(AJ94:AJ96) -> 622273.1183 | AK97: =AI97 -> 6 | AL97: =SUM(AL94:AL96) -> 654009.0473 | AM97: 6 | AN97: 687363.5087 | AO97: 6 | AP97: 722419.0477 | AQ97: 6 | AR97: 759262.4191 | AS97: 6 | AT97: 797984.8025
B99: HR | D99: =E91 -> YEAR 1 | R99: =R91 -> YEAR 2
B100: No. of Employees: | D100: =E92 -> Month 1 | E100: =F92 -> Month 2 | F100: =G92 -> Month 3 | G100: =H92 -> Month 4 | H100: =I92 -> Month 5 | I100: =J92 -> Month 6 | J100: =K92 -> Month 7 | K100: =L92 -> Month 8 | L100: =M92 -> Month 9 | M100: =N92 -> Month 10 | N100: =O92 -> Month 11 | O100: =P92 -> Month 12 | P100: Year 1 | Q100: Year 2: | R100: =R92 -> Month 1 | S100: =S92 -> Month 2 | T100: Month 3 | U100: Month 4 | V100: Month 5 | W100: Month 6 | X100: Month 7 | Y100: Month 8 | Z100: Month 9 | AA100: Month 10 | AB100: Month 11 | AC100: Month 12 | AD100: Year 3: | AE100: Year 4: | AF100: Year 5 | AG100: Year 6 | AH100: Year 7 | AI100: Year 8 | AJ100: Year 9 | AK100: Year 10
B101: Managers: | C101: =B94 -> Skilled Workers | D101: ='Production Assumptions'!$U$48 -> 1 | E101: ='Production Assumptions'!$U$48 -> 1 | F101: ='Production Assumptions'!$U$48 -> 1 | G101: ='Production Assumptions'!$U$48 -> 1 | H101: ='Production Assumptions'!$U$48 -> 1 | I101: ='Production Assumptions'!$U$48 -> 1 | J101: ='Production Assumptions'!$U$48 -> 1 | K101: ='Production Assumptions'!$U$48 -> 1 | L101: ='Production Assumptions'!$U$48 -> 1 | M101: ='Production Assumptions'!$U$48 -> 1 | N101: ='Production Assumptions'!$U$48 -> 1 | O101: ='Production Assumptions'!$U$48 -> 1 | P101: =O101 -> 1 | Q101: =AC101 -> 1 | R101: ='Production Assumptions'!$U$48 -> 1 | S101: ='Production Assumptions'!$U$48 -> 1 | T101: ='Production Assumptions'!$U$48 -> 1 | U101: ='Production Assumptions'!$U$48 -> 1 | V101: ='Production Assumptions'!$U$48 -> 1 | W101: ='Production Assumptions'!$U$48 -> 1 | X101: ='Production Assumptions'!$U$48 -> 1 | Y101: ='Production Assumptions'!$U$48 -> 1 | Z101: ='Production Assumptions'!$U$48 -> 1 | AA101: ='Production Assumptions'!$U$48 -> 1 | AB101: ='Production Assumptions'!$U$48 -> 1 | AC101: ='Production Assumptions'!$U$48 -> 1 | AD101: =AC101 -> 1 | AE101: =AD101 -> 1 | AF101: =AE101 -> 1 | AG101: =AF101 -> 1 | AH101: =AG101 -> 1 | AI101: =AH101 -> 1 | AJ101: =AI101 -> 1 | AK101: =AJ101 -> 1
B102: Staff: | C102: =B95 -> Medium Skilled | D102: ='Production Assumptions'!$U$49 -> 0 | E102: ='Production Assumptions'!$U$49 -> 0 | F102: ='Production Assumptions'!$U$49 -> 0 | G102: ='Production Assumptions'!$U$49 -> 0 | H102: ='Production Assumptions'!$U$49 -> 0 | I102: ='Production Assumptions'!$U$49 -> 0 | J102: ='Production Assumptions'!$U$49 -> 0 | K102: ='Production Assumptions'!$U$49 -> 0 | L102: ='Production Assumptions'!$U$49 -> 0 | M102: ='Production Assumptions'!$U$49 -> 0 | N102: ='Production Assumptions'!$U$49 -> 0 | O102: ='Production Assumptions'!$U$49 -> 0 | P102: =O102 -> 0 | Q102: =AC102 -> 0 | R102: ='Production Assumptions'!$U$49 -> 0 | S102: ='Production Assumptions'!$U$49 -> 0 | T102: ='Production Assumptions'!$U$49 -> 0 | U102: ='Production Assumptions'!$U$49 -> 0 | V102: ='Production Assumptions'!$U$49 -> 0 | W102: ='Production Assumptions'!$U$49 -> 0 | X102: ='Production Assumptions'!$U$49 -> 0 | Y102: ='Production Assumptions'!$U$49 -> 0 | Z102: ='Production Assumptions'!$U$49 -> 0 | AA102: ='Production Assumptions'!$U$49 -> 0 | AB102: ='Production Assumptions'!$U$49 -> 0 | AC102: ='Production Assumptions'!$U$49 -> 0 | AD102: =AC102 -> 0 | AE102: 0 | AF102: 0 | AG102: 0 | AH102: 0 | AI102: 0 | AJ102: 0 | AK102: 0
B103: Staff: | C103: =B96 -> Low Skilled | D103: ='Production Assumptions'!$U$50 -> 5 | E103: ='Production Assumptions'!$U$50 -> 5 | F103: ='Production Assumptions'!$U$50 -> 5 | G103: ='Production Assumptions'!$U$50 -> 5 | H103: ='Production Assumptions'!$U$50 -> 5 | I103: ='Production Assumptions'!$U$50 -> 5 | J103: ='Production Assumptions'!$U$50 -> 5 | K103: ='Production Assumptions'!$U$50 -> 5 | L103: ='Production Assumptions'!$U$50 -> 5 | M103: ='Production Assumptions'!$U$50 -> 5 | N103: ='Production Assumptions'!$U$50 -> 5 | O103: ='Production Assumptions'!$U$50 -> 5 | P103: =O103 -> 5 | Q103: =AC103 -> 5 | R103: ='Production Assumptions'!$U$50 -> 5 | S103: ='Production Assumptions'!$U$50 -> 5 | T103: ='Production Assumptions'!$U$50 -> 5 | U103: ='Production Assumptions'!$U$50 -> 5 | V103: ='Production Assumptions'!$U$50 -> 5 | W103: ='Production Assumptions'!$U$50 -> 5 | X103: ='Production Assumptions'!$U$50 -> 5 | Y103: ='Production Assumptions'!$U$50 -> 5 | Z103: ='Production Assumptions'!$U$50 -> 5 | AA103: ='Production Assumptions'!$U$50 -> 5 | AB103: ='Production Assumptions'!$U$50 -> 5 | AC103: ='Production Assumptions'!$U$50 -> 5 | AD103: =AC103 -> 5 | AE103: 5 | AF103: 5 | AG103: 5 | AH103: 5 | AI103: 5 | AJ103: 5 | AK103: 5
B104: Total: | D104: =SUM(D101:D103) -> 6 | E104: =SUM(E101:E103) -> 6 | F104: 6 | G104: 6 | H104: 6 | I104: 6 | J104: 6 | K104: 6 | L104: 6 | M104: 6 | N104: 6 | O104: 6 | P104: =SUM(P101:P103) -> 6 | Q104: =SUM(Q101:Q103) -> 6 | R104: =SUM(R101:R103) -> 6 | S104: 6 | T104: 6 | U104: 6 | V104: 6 | W104: 6 | X104: 6 | Y104: 6 | Z104: 6 | AA104: 6 | AB104: 6 | AC104: 6 | AD104: 6 | AE104: 6 | AF104: 6 | AG104: 6 | AH104: 6 | AI104: 6 | AJ104: 6 | AK104: 6
B107: Summary
D109: Year 1
C110: RAS | D110: =C11 -> 6
C111: Aquaponics | D111: =C45 -> 7.5
C112: Pond culture | D112: =C28 -> 6
C113: Cage Culture | D113: =C63 -> 6
C114: Flowthrough | D114: =C80 -> 6
C115: Raceway | D115: =C97 -> 6

Sheet CAPEX
A1: CAPITAL EXPENDITURE - CATFISH MODEL
B3: RAS | L3: Pond | U3: Aquaponics
B4: Item | C4: Units | D4: Capacity (tanks per month) | E4: Number of units | F4: RATIO | G4: Price per Unit (R) | H4: TONS | I4: TOTAL | J4: TOTAL: WITH Increases in tonnage | L4: Item | M4: Units | N4: Number of units | O4: RATIOS or capacity per month | P4: Price per Unit (R) | Q4: TONS | R4: TOTAL | S4: TOTAL: WITH Increases in tonnage | U4: Item | V4: Size of units | W4: Number of Units | X4: Ratio/Units | Y4: Price per Unit (R) | Z4: TOTAL | AB4: Daily feed (g) | AC4: =MAX('Production Cycle'!B157:I157)/30*1000 -> 114487.8893
B5: 1. Basic Infrastructure | J5: =SUM(J6:J11) -> 1375475 | L5: 1. Infrastructure | S5: =SUM(S6:S11) -> 1473910 | U5: 1. Basic Infrastructure | Z5: =SUM(Z6:Z11) -> 1715480.822 | AB5: Proportion of Daily feed (g) to be utelised in aquaponics | AC5: 0.2
B6: StoreRooms/Handling Facility (m²) | C6: =IF(Interface!$J$7<=5,0,IF(Interface!$J$7<=10,(3*5),(4*5))) -> 20 | E6: =N6 -> 1 | F6: =IF(Interface!$J$7<10,0.5,1) -> 1 | G6: ='Built-In Assumptions'!E21 -> 5850 | H6: =Interface!$J$7 -> 50 | I6: =G6*C6*F6 -> 117000 | J6: =IF(Interface!E14="EXISTING",0,I6) -> 117000 | L6: StoreRooms/Handling Facility (m²) | M6: =IF(Interface!$J$7<=5,0,IF(Interface!$J$7<=10,(3*5),(4*5))) -> 20 | N6: 1 | O6: =IF(Interface!$J$7<11,1,1.03) -> 1.03 | P6: ='Built-In Assumptions'!E21 -> 5850 | Q6: =Interface!$J$7 -> 50 | R6: =P6*M6*O6 -> 120510 | S6: =IF(Interface!$E$14="EXISTING",0,R6) -> 120510 | U6: StoreRooms/Feed Store (m²) | V6: =IF(Interface!$J$7<=5,0,IF(Interface!$J$7<=10,(3*5),(5*6))) -> 30 | W6: 1 | X6: 1 | Y6: ='Built-In Assumptions'!E21 -> 5850 | Z6: =IF(Interface!F14="YES",0,V6*X6*Y6) -> 175500 | AB6: Daily feed (g) to be utelised in aquaponics | AC6: =AC4*AC5 -> 22897.57787
B7: Offices (m²) | C7: =(20*HR!C8)+20 -> 40 | E7: 1 | F7: 1 | G7: ='Built-In Assumptions'!E20 -> 8350 | H7: =Interface!$J$7 -> 50 | I7: =G7*C7*F7 -> 334000 | J7: =IF(Interface!E14="EXISTING",0,I7) -> 334000 | L7: Offices (m²) | M7: =(20*HR!C25)+20 -> 40 | N7: 1 | O7: 1 | P7: ='Built-In Assumptions'!E20 -> 8350 | Q7: =Interface!$J$7 -> 50 | R7: =P7*M7*O7 -> 334000 | S7: =IF(Interface!$E$14="EXISTING",0,R7) -> 334000 | U7: Offices (m²) | V7: =(20*HR!C42) -> 20 | W7: 1 | X7: 1 | Y7: ='Built-In Assumptions'!E20 -> 8350 | Z7: =IF(Interface!F14="YES",0,V7*X7*Y7) -> 167000
B8: Tunnels (m²) | C8: =IF($C$17<='Containment Unit Calculations'!R4,('Containment Unit Calculations'!R5)^2*($D$17+D16),('Containment Unit Calculations'!S5)^2)*(D16+D17) -> 87.5 | E8: 1 | F8: 1 | G8: ='Built-In Assumptions'!E23 -> 638 | H8: =Interface!$J$7 -> 50 | I8: =C8*G8 -> 55825 | J8: =IF(Interface!E14="EXISTING",0,(IF(Interface!F17="YES",$I$8,0))) -> 55825 | L8: Cold storage (m²) | M8: =IF(Interface!$J$7<5,0,IF(Interface!$J$7<50,(7*5),IF(Interface!$J$7<101,(9*5),IF(Interface!$J$7<201,(10*5),IF(Interface!$J$7<401,(15*5),IF(Interface!$J$7<601,(20*5),IF(Interface!$J$7<801,(25*5),(30*5)))))))) -> 45 | N8: 1 | O8: =IF(Interface!$J$7<10,0,IF(Interface!$J$7<15,1,(1))) -> 1 | P8: ='Built-In Assumptions'!E22 -> 14550 | Q8: =Interface!$J$7 -> 50 | R8: =P8*M8*O8 -> 654750 | S8: =IF(Interface!$E$14="EXISTING",0,R8) -> 654750 | U8: Cold storage (m²) | V8: =IF(Interface!$J$7<5,0,IF(Interface!$J$7<50,(7*5),IF(Interface!$J$7<101,(9*5),IF(Interface!$J$7<201,(10*5),IF(Interface!$J$7<401,(15*5),IF(Interface!$J$7<601,(20*5),IF(Interface!$J$7<801,(25*5),(30*5)))))))) -> 45 | W8: 1 | X8: =IF(Interface!$J$7<10,0,IF(Interface!$J$7<15,1,(1))) -> 1 | Y8: ='Built-In Assumptions'!E22 -> 14550 | Z8: =IF(Interface!F14="YES",0,V8*X8*Y8) -> 654750 | AA8: Leafy greens need 40–50 grams of feed/m2/day | AB8: 40 | AC8: =AC6/AB8 -> 572.4394467 | AD8: m2
B9: Feed store (m²) | C9: =IF(Interface!$J$7<5,0,IF(Interface!$J$7<50,(7*5),IF(Interface!$J$7<101,(9*5),IF(Interface!$J$7<201,(10*5),IF(Interface!$J$7<401,(15*5),IF(Interface!$J$7<601,(20*5),IF(Interface!$J$7<801,(25*5),(30*5)))))))) -> 45 | E9: =N9 -> 1 | F9: =IF(Interface!$J$7<10,0,IF(Interface!$J$7<50,1,(1))) -> 1 | G9: ='Built-In Assumptions'!E21 -> 5850 | H9: =Interface!$J$7 -> 50 | I9: =C9*F9*G9 -> 263250 | J9: =IF(Interface!$E$14="EXISTING",0,I9) -> 263250 | L9: Feed store (m²) | M9: =IF(Interface!$J$7<5,0,IF(Interface!$J$7<50,(7*5),IF(Interface!$J$7<101,(9*5),IF(Interface!$J$7<201,(10*5),IF(Interface!$J$7<401,(15*5),IF(Interface!$J$7<601,(20*5),IF(Interface!$J$7<801,(25*5),(30*5)))))))) -> 45 | N9: 1 | O9: =IF(Interface!$J$7<10,0,IF(Interface!$J$7<15,1,(1))) -> 1 | P9: ='Built-In Assumptions'!E21 -> 5850 | Q9: =Interface!$J$7 -> 50 | R9: =P9*M9*O9 -> 263250 | S9: =IF(Interface!$E$14="EXISTING",0,R9) -> 263250 | U9: Tunnels | V9: =(IF(V16='Containment Unit Calculations'!X4,('Containment Unit Calculations'!X5 ^2)*'CAPEX '!W16,IF('CAPEX '!V16='Containment Unit Calculations'!Y4,('Containment Unit Calculations'!Y5^2)*'CAPEX '!W16,('Containment Unit Calculations'!AC5^2)*'CAPEX '!W16)))+(AC8*1.15) -> 722.3053637 | W9: 1 | X9: 1 | Y9: ='Built-In Assumptions'!E23 -> 638 | Z9: =IF(Interface!F17="no",0,V9*X9*Y9) -> 460830.8221 | AA9: Leafy greens plant per square metre | AB9: 20 | AC9: =AC8*AB9 -> 11448.78893 | AD9: plants
B10: Pump house | C10: =D54 -> 4 | E10: 1 | F10: 1 | G10: ='Built-In Assumptions'!E21 -> 5850 | H10: =Interface!$J$7 -> 50 | I10: =G10*C10 -> 23400 | J10: =IF(Interface!$E$14="EXISTING",0,I10) -> 23400 | L10: Pump House | M10: =F54 -> 4 | N10: 1 | O10: 1 | P10: ='Built-In Assumptions'!E21 -> 5850 | Q10: =Interface!$J$7 -> 50 | R10: =P10*M10 -> 23400 | S10: =IF(Interface!$E$14="EXISTING",0,R10) -> 23400 | U10: Pump House | V10: =I54+J54 -> 8 | W10: 1 | X10: 1 | Y10: ='Built-In Assumptions'!E21 -> 5850 | Z10: =IF(Interface!F18="no",0,Y10*V10) -> 46800
B11: Cold Storage (m²) | C11: =IF(Interface!$J$7<10,0,IF(Interface!$J$7<50,(6*5),IF(Interface!$J$7<101,(8*5),IF(Interface!$J$7<201,(10*5),IF(Interface!$J$7<401,(12*5),IF(Interface!$J$7<601,(16*5),IF(Interface!$J$7<801,(18*5),(20*5)))))))) -> 40 | E11: =N8 -> 1 | F11: =IF(Interface!$J$7<10,0,IF(Interface!$J$7<50,1,(1))) -> 1 | G11: ='Built-In Assumptions'!E22 -> 14550 | H11: =Interface!$J$7 -> 50 | I11: =C11*F11*G11 -> 582000 | J11: =IF(Interface!$E$14="EXISTING",0,I11) -> 582000 | L11: Storage Dam/Pond (m3) | M11: =IF(Interface!J7<=3,'Containment Unit Calculations'!E37,IF(Interface!$J$7<=5,'Containment Unit Calculations'!F37,IF(Interface!$J$7<=8,'Containment Unit Calculations'!G37,'Containment Unit Calculations'!H37))) -> 1000 | N11: =ROUNDUP('Production Cycle'!C163/M11*0.1,0) -> 1 | P11: =IF(Interface!J7<=3,'Containment Unit Calculations'!E40,IF(Interface!$J$7<=5,'Containment Unit Calculations'!F40,IF(Interface!$J$7<=8,'Containment Unit Calculations'!G40,'Containment Unit Calculations'!I40))) -> 78000 | R11: =P11*N11 -> 78000 | S11: =IF(Interface!$E$14="EXISTING",0,R11) -> 78000 | U11: Handling/Processing Warehouse | V11: =IF(Interface!$J$7<=5,(3*3),IF(Interface!$J$7<=10,(6*3),(6*6))) -> 36 | W11: 1 | X11: =IF(Interface!$J$7<10,0,IF(Interface!$J$7<15,1,(1))) -> 1 | Y11: ='Built-In Assumptions'!E21 -> 5850 | Z11: =IF(Interface!F14="YES",0,V11*X11*Y11) -> 210600
B12: 2. Land | J12: =J13+J14 -> 294791.7762 | L12: 2. Land | S12: =S13+S14 -> 580248.7801 | U12: 2. Land | Z12: =Z13+Z14 -> 477973.0119
B13: Purchase Land (ha) | C13: 1 | E13: =IF(Interface!$J$7<=2,1,1+'System Footprint Sizes'!E16) -> 1.102278 | F13: 1 | G13: ='Built-In Assumptions'!E24 -> 246346 | I13: =G13*E13*C13 -> 271541.7762 | J13: =IF(AND(Interface!F14="YES",Interface!E14="EXISTING"),0,IF(AND(Interface!F14="YES",Interface!E14=Validation!$H$9),0,'CAPEX '!I13)) -> 271541.7762 | L13: Purchase Land (ha) | M13: 1 | N13: =IF(Interface!$J$7<=2,1,1+'System Footprint Sizes'!J17) -> 2.294532 | P13: ='Built-In Assumptions'!E24 -> 246346 | Q13: =Interface!$J$7 -> 50 | R13: =P13*N13*M13 -> 565248.7801 | S13: =IF(Interface!F14="YES",0,R13) -> 565248.7801 | U13: Purchase Land (ha) | W13: =(IF(Interface!$J$7<=2,1,1+'System Footprint Sizes'!J47))+((AC8/1000)*1.15) -> 1.845871302 | Y13: ='Built-In Assumptions'!E24 -> 246346 | Z13: =IF(Interface!F14="YES",0,W13*Y13) -> 454723.0119
B14: Basic Earthmoving/Site clearing (m2) | C14: =C6+C7+C8+C9+C11 -> 232.5 | E14: 1 | F14: 1 | G14: 100 | I14: =G14*E14*C14 -> 23250 | J14: =IF(AND(Interface!F15="YES",Interface!E15="EXISTING"),0,IF(AND(Interface!F15="YES",Interface!E15=Validation!$H$9),0,'CAPEX '!I14)) -> 23250 | L14: Basic Earthmoving/Site Clearing | M14: =M6+M7+M8+M9 -> 150 | P14: 100 | R14: =P14*M14 -> 15000 | S14: =IF(Interface!$E$14="EXISTING",0,R14) -> 15000 | U14: =L14 -> Basic Earthmoving/Site Clearing | V14: =C14 -> 232.5 | X14: 0 | Y14: 100 | Z14: =IF(Interface!F14="YES",0,V14*Y14) -> 23250
B15: 3. RAS Equipment | J15: =SUM(J16:J26) -> 393787.6774 | L15: 3. Equipment | S15: =SUM(S16:S25) -> 856047.4532 | U15: 3. Aquaponics Equipment | Z15: =SUM(Z16:Z28) -> 1038736.321
B16: Grow-out containments (10-100g) | C16: =IF(Interface!J7<=3,'Containment Unit Calculations'!O4,IF(Interface!$J$7<=5,'Containment Unit Calculations'!P4,IF(Interface!$J$7<=10,'Containment Unit Calculations'!R4,'Containment Unit Calculations'!S4))) -> 5.4 | D16: ='Production Cycle'!B164 -> 4 | E16: 1 | F16: 1 | G16: =IF(Interface!J7<=3,'Containment Unit Calculations'!O8,IF(Interface!$J$7<=5,'Containment Unit Calculations'!P8,IF(Interface!$J$7<=10,'Containment Unit Calculations'!R8,'Containment Unit Calculations'!S8))) -> 3400 | H16: =Interface!$J$7 -> 50 | I16: =G16*D16 -> 13600 | J16: =IF(Interface!$E$14="EXISTING",0,I16) -> 13600 | L16: 10-100g Grow out Tanks (m³)' | M16: =IF(Interface!J7<=3,'Containment Unit Calculations'!E4,IF(Interface!$J$7<=5,'Containment Unit Calculations'!F4,IF(Interface!$J$7<=10,'Containment Unit Calculations'!G4,'Containment Unit Calculations'!I4))) -> 5.4 | N16: ='Production Cycle'!B162 -> 4 | O16: 1 | P16: =IF(Interface!J7<=3,'Containment Unit Calculations'!E8,IF(Interface!$J$7<=5,'Containment Unit Calculations'!F8,IF(Interface!$J$7<=10,'Containment Unit Calculations'!G8,'Containment Unit Calculations'!I8))) -> 3400 | Q16: =Interface!$J$7 -> 50 | R16: =N16*P16 -> 13600 | S16: =IF(Interface!$E$14="EXISTING",0,R16) -> 13600 | U16: Grow out containments (fish 10-100g) | V16: ='Production Cycle'!B15 -> 5.4 | W16: ='Production Cycle'!B164 -> 4 | Y16: =IF(Interface!J7<=3,'Containment Unit Calculations'!O8,IF(Interface!$J$7<=5,'Containment Unit Calculations'!P8,IF(Interface!$J$7<=10,'Containment Unit Calculations'!R8,'Containment Unit Calculations'!S8))) -> 3400 | Z16: =IF(Interface!F15="YES",0,W16*Y16) -> 13600
B17: Grow-out containments (100g +) | C17: =IF(Interface!J7<=3,'Containment Unit Calculations'!E4,IF(Interface!$J$7<=5,'Containment Unit Calculations'!F4,IF(Interface!$J$7<=10,'Containment Unit Calculations'!G4,'Containment Unit Calculations'!I4))) -> 5.4 | D17: ='Production Cycle'!B165 -> 10 | E17: 1 | F17: 1 | G17: =IF(Interface!J7<=3,'Containment Unit Calculations'!O8,IF(Interface!$J$7<=5,'Containment Unit Calculations'!P8,IF(Interface!$J$7<=10,'Containment Unit Calculations'!R8,'Containment Unit Calculations'!S8))) -> 3400 | H17: =Interface!$J$7 -> 50 | I17: =G17*D17 -> 34000 | J17: =IF(Interface!$E$14="EXISTING",0,I17) -> 34000 | L17: 100g + Grow-out containment number (m³) | M17: =IF(Interface!J7<=3,'Containment Unit Calculations'!E12,IF(Interface!$J$7<=5,'Containment Unit Calculations'!F12,IF(Interface!$J$7<=8,'Containment Unit Calculations'!G12,'Containment Unit Calculations'!H12))) -> 1000 | N17: ='Production Cycle'!B163 -> 5 | O17: 1 | P17: =IF(Interface!J7<=3,'Containment Unit Calculations'!E19,IF(Interface!$J$7<=5,'Containment Unit Calculations'!F19,IF(Interface!$J$7<=8,'Containment Unit Calculations'!G19,'Containment Unit Calculations'!H19))) -> 110000 | Q17: =Interface!$J$7 -> 50 | R17: =N17*P17 -> 550000 | S17: =IF(Interface!$E$14="EXISTING",0,R17) -> 550000 | U17: Grow out containments (fish >100g) | V17: ='Production Cycle'!D18 -> 5.4 | W17: ='Production Cycle'!B165 -> 10 | Y17: =IF(Interface!J7<=3,'Containment Unit Calculations'!O8,IF(Interface!$J$7<=5,'Containment Unit Calculations'!P8,IF(Interface!$J$7<=10,'Containment Unit Calculations'!R8,'Containment Unit Calculations'!S8))) -> 3400 | Z17: =IF(Interface!F15="YES",0,W17*Y17) -> 34000
B18: Water quality testing equipment | C18: =M18 -> 1 | E18: 1 | F18: 1 | G18: =IF(Interface!$J$7<20,'Production Assumptions'!F124,'Production Assumptions'!F129) -> 50000 | H18: =Q18 -> 1 | I18: =G18*C18 -> 50000 | J18: =IF(Interface!$E$14="EXISTING",0,I18) -> 50000 | L18: Water quality testing equipment | M18: 1 | N18: 1 | O18: 1 | P18: =IF(Interface!$J$7<20,'Production Assumptions'!F124,'Production Assumptions'!F129) -> 50000 | Q18: 1 | R18: =P18*N18*O18 -> 50000 | S18: =IF(Interface!$E$14="EXISTING",0,R18) -> 50000 | U18: Filtration system | X18: 1 | Y18: =J22+J23+J24 -> 109332.6774 | Z18: =IF(Interface!F15="YES",0,X18*Y18) -> 109332.6774
B19: Electrial inst. type (D 5KVA, F 50KVA) | D19: =C6+C7+C9+C11 -> 145 | E19: 1 | F19: 1 | G19: 500 | H19: =Interface!$J$7 -> 50 | I19: =G19*D19 -> 72500 | J19: =IF(Interface!$E$14="EXISTING",0,I19) -> 72500 | L19: Electrial inst. type (D 5KVA, F 50KVA) | M19: =M6+M7+M8+M9 -> 150 | N19: 1 | O19: 1 | P19: 500 | Q19: =Interface!$J$7 -> 50 | R19: =P19*M19 -> 75000 | S19: =IF(Interface!$E$14="EXISTING",0,R19) -> 75000 | U19: Plant Grow tanks/grow beds/ reservoirs (m2) | W19: ='Containment Unit Calculations'!X29 -> 572.4394467 | Y19: ='Containment Unit Calculations'!W31 -> 150 | Z19: =IF(Interface!F14="YES",0,W19*Y19) -> 85865.91701
B20: Water Pumps | D20: =D51 -> 3 | G20: =D53 -> 2250 | H20: =Interface!$J$7 -> 50 | I20: =D20*G20 -> 6750 | J20: =IF(Interface!$E$14="EXISTING",0,I20) -> 6750 | L20: Water Pumps | M20: =F51 -> 2 | P20: =F53 -> 2250 | Q20: =Interface!$J$7 -> 50 | R20: =(P20*M20)+(N20*O20) -> 4500 | S20: =IF(Interface!$E$14="EXISTING",0,R20) -> 4500 | U20: Piping RAS (based on number of tanks) | W20: =D21 -> 83.8 | Y20: =G21 -> 200 | Z20: =IF(Interface!G17="NO",'CAPEX '!W20*'CAPEX '!Y20,0) -> 0
B21: Piping (Based on Tank Numbers) | D21: =IF(Interface!J7<=5,'Piping Calculations'!E6,IF(Interface!$J$7<=8,'Piping Calculations'!F6,IF(Interface!$J$7<=10,'Piping Calculations'!G6,'Piping Calculations'!H6))) -> 83.8 | G21: 200 | H21: =Interface!$J$7 -> 50 | I21: =(G21*D21)+(E21*F21) -> 16760 | J21: =IF(Interface!$E$14="EXISTING",0,I21) -> 16760 | L21: Piping (Based on tank numbers) | M21: =IF(Interface!J7<=3,'Piping Calculations'!D16,IF(Interface!$J$7<=5,'Piping Calculations'!E16,IF(Interface!$J$7<=10,'Piping Calculations'!G16,'Piping Calculations'!H16))) -> 649.2 | P21: 200 | Q21: =Interface!$J$7 -> 50 | R21: =(P21*M21)+(N21*O21) -> 129840 | S21: =IF(Interface!$E$14="EXISTING",0,R21) -> 129840 | U21: Piping aquaponics (based on number of tanks) | W21: ='Piping Calculations'!L19 -> 1144.878893 | Y21: ='Piping Calculations'!K20 -> 20 | Z21: =IF(Interface!F15="YES",0,W21*Y21) -> 22897.57787
B22: Biofilter Tanks | C22: ='Bio-Model'!D18 -> 5.4 | D22: ='Bio-Model'!D19 -> 3 | E22: 1 | F22: 1 | G22: =IF(Interface!J7<=3,'Containment Unit Calculations'!E8,IF(Interface!$J$7<=5,'Containment Unit Calculations'!F8,IF(Interface!$J$7<=10,'Containment Unit Calculations'!G8,'Containment Unit Calculations'!I8))) -> 3400 | H22: =Interface!$J$7 -> 50 | I22: =D22*G22 -> 10200 | J22: =IF(Interface!$E$14="EXISTING",0,I22) -> 10200 | L22: Biofilter Tanks | M22: ='Bio-Model'!D35 -> 5.4 | N22: ='Bio-Model'!D36 -> 1 | P22: =IF(Interface!J7<=3,'Containment Unit Calculations'!E8,IF(Interface!$J$7<=5,'Containment Unit Calculations'!F8,IF(Interface!$J$7<=10,'Containment Unit Calculations'!G8,'Containment Unit Calculations'!I8))) -> 3400 | Q22: =Interface!$J$7 -> 50 | R22: =N22*P22 -> 3400 | S22: =IF(Interface!$E$14="EXISTING",0,R22) -> 3400 | U22: Water Pumps (RAS) | V22: 1 | W22: =I51 -> 3 | X22: 1 | Y22: =D53 -> 2250 | Z22: =IF(Interface!G17="NO",'CAPEX '!W22*'CAPEX '!Y22,0) -> 0
B23: Biofilter Media | D23: ='Bio-Model'!D16 -> 10.73323963 | E23: 1 | F23: 1 | G23: 7000 | H23: =Interface!$J$7 -> 50 | I23: =D23*G23 -> 75132.67738 | J23: =IF(Interface!$E$14="EXISTING",0,I23) -> 75132.67738 | L23: Biofilter Media | M23: ='Bio-Model'!D33 -> 0.8153504502 | P23: 7000 | Q23: =Interface!$J$7 -> 50 | R23: =M23*P23 -> 5707.453151 | S23: =IF(Interface!$E$14="EXISTING",0,R23) -> 5707.453151 | U23: Water Pumps | V23: 1 | W23: =J51 -> 3 | X23: 1 | Y23: =J53 -> 2250 | Z23: =IF(Interface!F14="YES",0,W23*Y23) -> 6750
B24: Lamella/Swil Tanks | C24: ='Bio-Model'!D21 -> 5.4 | D24: ='Bio-Model'!D22 -> 4 | G24: =IF(Interface!J7<=3,'Containment Unit Calculations'!E30,IF(Interface!$J$7<=5,'Containment Unit Calculations'!F30,IF(Interface!$J$7<=10,'Containment Unit Calculations'!H30,'Containment Unit Calculations'!I30))) -> 6000 | H24: =Interface!$J$7 -> 50 | I24: =D24*G24 -> 24000 | J24: =IF(Interface!$E$14="EXISTING",0,I24) -> 24000 | L24: Lamella/Swil Tanks | M24: ='Bio-Model'!D38 -> 5.4 | N24: 1 | O24: 1 | P24: =IF(Interface!J7<=3,'Containment Unit Calculations'!E30,IF(Interface!$J$7<=5,'Containment Unit Calculations'!F30,IF(Interface!$J$7<=10,'Containment Unit Calculations'!H30,'Containment Unit Calculations'!I30))) -> 6000 | Q24: =Interface!$J$7 -> 50 | R24: =N24*P24 -> 6000 | S24: =IF(Interface!$E$14="EXISTING",0,R24) -> 6000 | U24: Sump/Header Tank (m3) | V24: ='Containment Unit Calculations'!AB23 -> 5.4 | W24: ='Containment Unit Calculations'!AB24 -> 4 | Y24: ='Containment Unit Calculations'!AB26 -> 3400 | Z24: =IF(Interface!F14="YES",0,W24*Y24) -> 13600
B25: Heating equipment | D25: =Interface!J7/100*3 -> 1.5 | E25: 1 | G25: 18000 | H25: =Interface!$J$7 -> 50 | I25: =D25*G25 -> 27000 | J25: =IF(Interface!$E$14="EXISTING",0,I25) -> 27000 | L25: Heating equipment | M25: 1 | N25: 1 | P25: 18000 | Q25: =Interface!$J$7 -> 50 | R25: =P25*M25 -> 18000 | S25: =IF(Interface!$E$14="EXISTING",0,R25) -> 18000 | U25: Solar Heating Pump | W25: =Interface!J7/100*3 -> 1.5 | Y25: 18000 | Z25: =IF(Interface!F14="YES",0,W25*Y25) -> 27000
B26: Ryobi - Generator 4-Stroke (7.5Kva) | D26: =ROUNDUP((Interface!$J$7/10),0) -> 5 | E26: 1 | F26: 1 | G26: 12769 | H26: =Interface!$J$7 -> 50 | I26: =G26*D26 -> 63845 | J26: =IF(Interface!$E$14="EXISTING",0,I26) -> 63845 | L26: 4. Other Equipment | S26: =SUM(S27:S33) -> 279494.8 | U26: Electrial inst. type (D 5KVA, F 50KVA) | V26: 1 | W26: =V6+V7+V8+V9+V11 -> 853.3053637 | Y26: 500 | Z26: =IF(Interface!F14="YES",0,W26*Y26) -> 426652.6819
B27: 4. More Equipment | J27: =SUM(J28:J34) -> 279494.8 | L27: Buckets/drums | M27: =ROUNDUP((Interface!$J$7/5),0)+4 -> 14 | P27: 273.2 | Q27: =Interface!$J$7 -> 50 | R27: =P27*M27 -> 3824.8 | S27: =IF(Interface!$E$14="EXISTING",0,R27) -> 3824.8 | U27: Polystyrene foam | W27: =AC8 -> 572.4394467 | X27: =(20/100) -> 0.2 | Y27: 44 | Z27: =IF(Interface!F14="YES",0,(X27*W27)*Y27) -> 5037.467131
B28: Buckets/drums | C28: 1 | E28: =ROUNDUP((Interface!$J$7/5),0)+4 -> 14 | F28: 1 | G28: 273.2 | H28: =Interface!$J$7 -> 50 | I28: =G28*E28 -> 3824.8 | J28: =IF(Interface!$E$14="EXISTING",0,I28) -> 3824.8 | L28: Water storage tank (Litres) | M28: ='Containment Unit Calculations'!D44 -> 5.4 | N28: =ROUNDUP(('Production Cycle'!B162*'Containment Unit Calculations'!D49/'CAPEX '!M28),0) -> 1 | P28: ='Containment Unit Calculations'!D48 -> 6000 | Q28: =Interface!$J$7 -> 50 | R28: =P28*N28 -> 6000 | S28: =IF(Interface!$E$14="EXISTING",0,R28) -> 6000 | U28: Water Storage Tanks | V28: ='Containment Unit Calculations'!D44 -> 5.4 | W28: ='Containment Unit Calculations'!D47 -> 49 | X28: 1 | Y28: ='Containment Unit Calculations'!D48 -> 6000 | Z28: =IF(Interface!F15="YES",0,W28*Y28) -> 294000
B29: Water storage tank (Litres) | C29: ='Containment Unit Calculations'!D44 -> 5.4 | E29: =ROUNDUP((('Production Cycle'!B164+'Production Cycle'!B165)*'Containment Unit Calculations'!D49/'CAPEX '!C29),0) -> 1 | G29: ='Containment Unit Calculations'!D48 -> 6000 | H29: =Interface!$J$7 -> 50 | I29: =G29*E29 -> 6000 | J29: =IF(Interface!$E$14="EXISTING",0,I29) -> 6000 | L29: Freezer | M29: =C30 -> 0 | P29: =G30 -> 4600 | Q29: =Interface!$J$7 -> 50 | R29: 0 | S29: =IF(Interface!$E$14="EXISTING",0,R29) -> 0 | U29: 4. Movable assests | Z29: =SUM(Z30:Z37) -> 284043.6194
B30: Freezer | C30: =IF(Interface!$J$7<10,1,0) -> 0 | E30: 0 | F30: 1 | G30: 4600 | H30: =Interface!$J$7 -> 50 | I30: =G30*C30 -> 0 | J30: =IF(Interface!$E$14="EXISTING",0,I30) -> 0 | L30: Office Equipment | M30: =C31 -> 2 | P30: =G31 -> 6000 | Q30: =Interface!$J$7 -> 50 | R30: 12000 | S30: =IF(Interface!$E$14="EXISTING",0,R30) -> 12000 | U30: Water Quality Testing Equipment | V30: 1 | X30: 1 | Y30: =IF(Interface!$J$7<20,'Production Assumptions'!F124,'Production Assumptions'!F129) -> 50000 | Z30: =IF(Interface!F14="YES",0,Y30*X30*V30) -> 50000
B31: Office equipment | C31: =HR!C8+1 -> 2 | E31: 3 | F31: 1 | G31: 6000 | H31: =Interface!$J$7 -> 50 | I31: =G31*C31 -> 12000 | J31: =IF(Interface!$E$14="EXISTING",0,I31) -> 12000 | L31: =B32 -> Short/long handle Hand net | M31: =ROUNDUP(Interface!$J$7/2,0)+1 -> 26 | P31: =G32 -> 295 | R31: 7670 | S31: =IF(Interface!$E$14="EXISTING",0,R31) -> 7670 | U31: Aerators (kW) | V31: =I42 -> 0.7 | W31: =I43 -> 10 | X31: 1 | Y31: 5000 | Z31: =IF(Interface!F14="YES",0,Y31*X31*V31) -> 3500
B32: Short/long handle Hand net | C32: 1 | E32: =ROUNDUP(Interface!$J$7/2,0)+1 -> 26 | F32: 1 | G32: 295 | H32: =Interface!$J$7 -> 50 | I32: =G32*E32 -> 7670 | J32: =IF(Interface!$E$14="EXISTING",0,I32) -> 7670 | L32: Aeration | M32: =F42 -> 0.7 | N32: =F43 -> 10 | O32: 1 | P32: =F44 -> 5000 | Q32: =Interface!$J$7 -> 50 | R32: =N32*P32 -> 50000 | S32: =IF(Interface!$E$14="EXISTING",0,R32) -> 50000 | U32: Hydroponics net pots | V32: =AC9 -> 11448.78893 | X32: 1 | Y32: 1.14 | Z32: =IF(Interface!F14="YES",0,Y32*X32*V32) -> 13051.61939
B33: Aeration | C33: =D42 -> 0.7 | E33: =D43 -> 10 | F33: 1 | G33: =D44 -> 5000 | H33: =Interface!$J$7 -> 50 | I33: =G33*E33 -> 50000 | J33: =IF(Interface!$E$14="EXISTING",0,I33) -> 50000 | L33: Vehicle | M33: =IF(Interface!$J$7<11,0,IF(Interface!$J$7<101,1,IF(Interface!$J$7<201,2,IF(Interface!$J$7<301,3,4)))) -> 1 | N33: 0 | P33: 200000 | Q33: =Interface!$J$7 -> 50 | R33: =P33*M33 -> 200000 | S33: =IF(Interface!$E$14="EXISTING",0,R33) -> 200000 | U33: Office Equipment | V33: =HR!C42 -> 1 | Y33: 6000 | Z33: =IF(Interface!F14="YES",0,Y33*V33) -> 6000
B34: Vehicle | C34: =IF(Interface!$J$7<11,0,IF(Interface!$J$7<101,1,IF(Interface!$J$7<201,2,IF(Interface!$J$7<301,3,4)))) -> 1 | E34: 0 | G34: 200000 | H34: =Interface!$J$7 -> 50 | I34: =G34*C34 -> 200000 | J34: =IF(Interface!$E$14="EXISTING",0,I34) -> 200000 | L34: TOTAL EXCLUDING Working Capital | R34: =S26+S5+S12+S15 -> 3189701.033 | U34: Vechicle | V34: =IF(Interface!$J$7<11,0,IF(Interface!$J$7<101,1,IF(Interface!$J$7<201,2,IF(Interface!$J$7<301,3,4)))) -> 1 | Y34: 200000 | Z34: =IF(Interface!F14="YES",0,Y34*V34) -> 200000
B35: TOTAL EXCLUDING Working Capital | J35: =J27+J15+J12+J5 -> 2343549.254 | U35: Buckets/Drums | V35: 1 | W35: =ROUNDUP((Interface!$J$7/5),0)+4 -> 14 | Y35: 273 | Z35: =IF(Interface!F14="YES",0,Y35*W35) -> 3822
U36: Short/long handle nets | V36: 1 | W36: =ROUNDUP(Interface!$J$7/2,0)+1 -> 26 | Y36: 295 | Z36: =IF(Interface!F14="YES",0,Y36*W36) -> 7670
L37: CAGE CULTURE | U37: Freezer | V37: =IF(Interface!$J$7<10,1,0) -> 0 | Y37: 4600 | Z37: =IF(Interface!F14="YES",0,Y37*V37) -> 0
B38: Aeration | D38: RAS | E38: CAGE (TANKS FOR 10-100g) | F38: POND | G38: RACEWAY | H38: Flow-through | I38: Aquaponics fish | J38: Aquaponics plants | U38: TOTAL EXCLUDING Working Capital | Z38: =Z5+Z12+Z15+Z29 -> 3516233.775
B39: Annual biomas production | D39: =Interface!$J$7*1000 -> 50000 | E39: =Interface!$J$7*1000 -> 50000 | F39: =Interface!$J$7*1000 -> 50000 | G39: =Interface!$J$7*1000 -> 50000 | H39: =Interface!$J$7*1000 -> 50000 | I39: =Interface!$J$7*1000 -> 50000 | L39: Item | M39: Units | N39: Number of units | O39: RATIOS | P39: Price per Unit (R) | Q39: TONS | R39: TOTAL | S39: TOTAL: WITH Increases in tonnage
B40: power reqs per year (1 kW/kg fish produced) | D40: =D39*1 -> 50000 | E40: =E39*1 -> 50000 | F40: =F39*1 -> 50000 | G40: =G39*1 -> 50000 | H40: =H39*1 -> 50000 | I40: =D40 -> 50000 | L40: 1. Infrastructure | S40: =SUM(S41:S45) -> 1272853
B41: power reqs for areation per hour (1 kW/kg fish produced) | D41: =D40/365/24 -> 5.707762557 | E41: =E40/365/24 -> 5.707762557 | F41: =F40/365/24 -> 5.707762557 | G41: =G40/365/24 -> 5.707762557 | H41: =H40/365/24 -> 5.707762557 | I41: =D41 -> 5.707762557 | L41: Offices | M41: =(20*HR!C60)+20 -> 40 | N41: 1 | P41: ='Built-In Assumptions'!E20 -> 8350 | Q41: =Interface!$J$7 -> 50 | R41: =M41*P41 -> 334000 | S41: =IF(Interface!$E$14="EXISTING",0,R41) -> 334000 | U41: Raceways
B42: Size of aerators, 0.7kW for 1-10 tons, 4.1 kW for larger | D42: =IF(D41>13,4.1,0.7) -> 0.7 | E42: =IF(E41>13,4.1,0.7) -> 0.7 | F42: 0.7 | G42: 0.7 | H42: 0.7 | I42: 0.7 | L42: Feed Store | M42: =IF(Interface!$J$7<5,0,IF(Interface!$J$7<50,(7*5),IF(Interface!$J$7<101,(8*5),IF(Interface!$J$7<201,(9*5),IF(Interface!$J$7<401,(10*5),IF(Interface!$J$7<601,(15*5),IF(Interface!$J$7<801,(20*5),(25*5)))))))) -> 40 | N42: 1 | O42: =IF(Interface!$J$7<10,0,IF(Interface!$J$7<50,1,(1))) -> 1 | P42: ='Built-In Assumptions'!E21 -> 5850 | Q42: =Interface!$J$7 -> 50 | R42: =(P42*M42*O42)+N42 -> 234001 | S42: =IF(Interface!$E$14="EXISTING",0,R42) -> 234001 | U42: Item | V42: Units | W42: Number of units | X42: RATIO | Y42: Price per Unit (R) | Z42: TONS | AA42: TOTAL | AB42: TOTAL: WITH Increases in tonnage
B43: Number of aerators | D43: =ROUNDUP(D41/D42,0)+1 -> 10 | E43: =ROUNDUP(E41/E42,0)+1 -> 10 | F43: 10 | G43: 10 | H43: 10 | I43: 10 | L43: Cold Store | M43: =IF(Interface!$J$7<5,0,IF(Interface!$J$7<50,(7*5),IF(Interface!$J$7<101,(8*5),IF(Interface!$J$7<201,(9*5),IF(Interface!$J$7<401,(10*5),IF(Interface!$J$7<601,(15*5),IF(Interface!$J$7<801,(20*5),(25*5)))))))) -> 40 | N43: 1 | O43: =IF(Interface!$J$7<10,0,IF(Interface!$J$7<50,1,(1))) -> 1 | P43: ='Built-In Assumptions'!E22 -> 14550 | Q43: =Interface!$J$7 -> 50 | R43: =(P43*M43*O43)+N43 -> 582001 | S43: =IF(Interface!$E$14="EXISTING",0,R43) -> 582001 | U43: 1. Infrastructure | AB43: =SUM(AB44:AB49) -> 1448225
B44: cost of aerator | D44: =IF(D42=4.1,20000,5000) -> 5000 | E44: =IF(E42=4.1,20000,5000) -> 5000 | F44: =IF(F42=4.1,20000,5000) -> 5000 | G44: 5000 | H44: 5000 | I44: 5000 | L44: Pump House | M44: =E54 -> 4 | N44: 1 | O44: 1 | P44: ='Built-In Assumptions'!E21 -> 5850 | Q44: =Interface!$J$7 -> 50 | R44: =P44 -> 5850 | S44: =IF(Interface!$E$14="EXISTING",0,R44) -> 5850 | U44: StoreRoom/Handling Facility | V44: =IF(Interface!$J$7<=5,0,IF(Interface!$J$7<=10,(3*5),(4*5))) -> 20 | W44: =W78 -> 1 | X44: 1 | Y44: ='Built-In Assumptions'!E21 -> 5850 | Z44: =Interface!$J$7 -> 50 | AA44: =Y44*V44*X44 -> 117000 | AB44: =IF(Interface!$E$14="EXISTING",0,AA44) -> 117000
L45: Storeroom/Handling facility | M45: =IF(Interface!$J$7<=5,0,IF(Interface!$J$7<=10,(3*5),(4*5))) -> 20 | N45: 1 | O45: 1 | P45: ='Built-In Assumptions'!E21 -> 5850 | Q45: =Interface!$J$7 -> 50 | R45: =(P45*M45*O45)+N45 -> 117001 | S45: =IF(Interface!$E$14="EXISTING",0,R45) -> 117001 | U45: Offices | V45: =M7 -> 40 | W45: =W79 -> 1 | X45: =X79 -> 1 | Y45: ='Built-In Assumptions'!E20 -> 8350 | Z45: =Interface!$J$7 -> 50 | AA45: 334000 | AB45: =IF(Interface!$E$14="EXISTING",0,AA45) -> 334000
B46: Pumps | I46: =D46 -> 0 | L46: 2. Land | S46: =S47+S48 -> 0 | U46: Tunnels (number) (m) | V46: =C8 -> 87.5 | W46: =E8 -> 1 | X46: 1 | Y46: ='Built-In Assumptions'!E23 -> 638 | Z46: =Interface!$J$7 -> 50 | AA46: 55825 | AB46: =IF(Interface!$E$14="EXISTING",0,AA46) -> 55825
B47: turnover/residence time (hrs) | C47: hrs | D47: 2 | E47: 2 | F47: 2 | G47: 2 | H47: 0.5 | I47: 2 | J47: ='Containment Unit Calculations'!X27 -> 2.5 | L47: Purchase Land (ha) | M47: 1 | N47: =IF(Interface!$J$7<=2,1,1+'System Footprint Sizes'!E46) -> 1.03882 | P47: ='Built-In Assumptions'!E24 -> 246346 | Q47: =Interface!$J$7 -> 50 | R47: =P47*N47*M47 -> 255909.1517 | S47: =IF(OR(Interface!O55="YES",Interface!$E$14="EXISTING"),0,IF(OR(Interface!O55="NO",Interface!$E$14="start-up"),'CAPEX '!R47)) -> FALSE | U47: Feed store | V47: =M9 -> 45 | W47: 1 | X47: =IF(Interface!$J$7<11,0,IF(Interface!$J$7<15,1,(1))) -> 1 | Y47: ='Built-In Assumptions'!E21 -> 5850 | Z47: =Interface!$J$7 -> 50 | AA47: 263250 | AB47: =IF(Interface!$E$14="EXISTING",0,AA47) -> 263250
B48: System volume | D48: ='Production Cycle'!C164+'Production Cycle'!C165+'Bio-Model'!D17+'Bio-Model'!D20 -> 74.61359842 | E48: ='Production Cycle'!C170 -> 4.747053267 | F48: ='Production Cycle'!C162+'Bio-Model'!D34+'Bio-Model'!D37 -> 8.017465395 | G48: ='Production Cycle'!C166+'Production Cycle'!C167+'Bio-Model'!D50+'Bio-Model'!D53 -> 74.61359842 | H48: ='Production Cycle'!C168+'Production Cycle'!C169+'Bio-Model'!I20 -> 164.2761154 | I48: 74.61359842 | J48: ='Containment Unit Calculations'!X32 -> 171.731834 | L48: =L14 -> Basic Earthmoving/Site Clearing | M48: 0 | N48: =M41+M42+M43+M45 -> 140 | O48: 0 | P48: 100 | Q48: =Interface!$J$7 -> 50 | R48: =((N48*P48)) -> 14000 | S48: =IF(OR(Interface!O56="YES",Interface!$E$14="EXISTING"),0,IF(OR(Interface!O56="NO",Interface!$E$14="start-up"),'CAPEX '!R48)) -> FALSE | U48: Pump house | V48: =G54 -> 4 | W48: 1 | X48: 1 | Y48: ='Built-In Assumptions'!E21 -> 5850 | Z48: =Interface!$J$7 -> 50 | AA48: =Y48*V48 -> 23400 | AB48: =IF(Interface!$E$14="EXISTING",0,AA48) -> 23400
B49: Flow rate requied | C49: m3/hr | D49: =D48/D47 -> 37.30679921 | E49: =E48/E47 -> 2.373526633 | F49: =F48/F47 -> 4.008732698 | G49: =G48/G47 -> 37.30679921 | H49: =H48/H47 -> 328.5522308 | I49: 37.30679921 | J49: =J48/J47 -> 68.69273361 | L49: 3. Equipment | S49: =SUM(S50:S55) -> 589966.5952 | U49: Cold Storage | V49: =IF(Interface!$J$7<=11,0,IF(Interface!$J$7<50,(7*5),IF(Interface!$J$7<101,(9*5),IF(Interface!$J$7<201,(10*5),IF(Interface!$J$7<401,(15*5),IF(Interface!$J$7<601,(20*5),IF(Interface!$J$7<801,(25*5),(30*5)))))))) -> 45 | X49: =IF(Interface!$J$7<11,0,IF(Interface!$J$7<15,1,(1))) -> 1 | Y49: ='Built-In Assumptions'!E22 -> 14550 | Z49: =Interface!$J$7 -> 50 | AA49: 654750 | AB49: =IF(Interface!$E$14="EXISTING",0,AA49) -> 654750
B50: flow rate | C50: 1.1kW (flow @10m head is 21m3/hr) or 5.5kW (flow at @10m is 110m3/hr) | D50: =IF(D49<200,21,110) -> 21 | E50: =IF(E49<200,21,110) -> 21 | F50: =IF(F49<200,21,110) -> 21 | G50: =IF(G49<200,21,110) -> 21 | H50: =IF(H49<200,21,110) -> 110 | I50: 21 | J50: =IF(J49<200,21,110) -> 21 | L50: 10-100g Grow out tanks | M50: =IF(Interface!J7<=3,'Containment Unit Calculations'!E4,IF(Interface!$J$7<=5,'Containment Unit Calculations'!F4,IF(Interface!$J$7<=20,'Containment Unit Calculations'!G4,'Containment Unit Calculations'!I4))) -> 5.4 | N50: ='Production Cycle'!B170 -> 4 | P50: =IF(Interface!J7<=3,'Containment Unit Calculations'!O8,IF(Interface!$J$7<=5,'Containment Unit Calculations'!P8,IF(Interface!$J$7<=10,'Containment Unit Calculations'!R8,'Containment Unit Calculations'!S8))) -> 3400 | Q50: =Interface!$J$7 -> 50 | R50: =N50*P50 -> 13600 | S50: =IF(OR(Interface!$E$14="EXISTING",Interface!F14="YES"),0,R50) -> 13600 | U50: 2. Land | AB50: =AB51+AB52 -> 292208.6328
B51: no pumps, plus one spare | C51: 1.1 | D51: =ROUNDUP(($D$49/$D$50),0)+1 -> 3 | E51: =ROUNDUP(($F$49/$F$50),0)+1 -> 2 | F51: =ROUNDUP(($F$49/$F$50),0)+1 -> 2 | G51: =ROUNDUP(($G$49/$G$50),0)+1 -> 3 | H51: =ROUNDUP(($H$49/$H$50),0)+1 -> 4 | I51: 3 | J51: =ROUNDUP(($I$49/$I$50),0)+1 -> 3 | L51: Floating Cages | M51: 1 | N51: ='Production Cycle'!C171 -> 3274.073656 | P51: ='Containment Unit Calculations'!N33 -> 171 | Q51: =Interface!$J$7 -> 50 | R51: =N51*P51 -> 559866.5952 | S51: =IF(OR(Interface!$E$14="EXISTING",Interface!F14="YES"),0,R51) -> 559866.5952 | U51: Purchase Land (ha) | V51: 1 | W51: =IF(Interface!$J$7<=2,1,1+'System Footprint Sizes'!E33) -> 1.0897625 | Y51: ='Built-In Assumptions'!E24 -> 246346 | AA51: =Y51*W51*V51 -> 268458.6328 | AB51: =IF(AND(Interface!P106="YES",Interface!O106="EXISTING"),0,IF(AND(Interface!P106="YES",Interface!O106=Validation!$H$9),0,'CAPEX '!AA51)) -> 268458.6328
B52: Electricity to run pumps (excl spare) full time, annual | C52: =365*24 -> 8760 | D52: =(D51-1)*$C$51*$C$52 -> 19272 | E52: =(E51-1)*$C$51*$C$52 -> 9636 | F52: 9636 | G52: 19272 | H52: 28908 | I52: 19272 | J52: =(J51-1)*$C$51*$C$52 -> 19272 | L52: Water Pumps | N52: =F51 -> 2 | P52: =F53 -> 2250 | Q52: =Interface!$J$7 -> 50 | R52: =N52*P52 -> 4500 | S52: =IF(OR(Interface!$E$14="EXISTING",Interface!F14="YES"),0,R52) -> 4500 | U52: Basic Earthmoving/Site Clearing | V52: 1 | W52: =V44+V45+V46+V47+V49 -> 237.5 | Y52: 100 | AA52: =Y52*W52*V52 -> 23750 | AB52: =IF(AND(Interface!P107="YES",Interface!O107="EXISTING"),0,IF(AND(Interface!P107="YES",Interface!O107=Validation!$H$9),0,'CAPEX '!AA52)) -> 23750
B53: Pump Cost, each | D53: =IF(D50=21, 2250,43000) -> 2250 | E53: =IF(E50=21, 2250,43000) -> 2250 | F53: =IF(F50=21, 2250,43000) -> 2250 | G53: =IF(G50=21, 2250,43000) -> 2250 | H53: =IF(H50=21, 2250,43000) -> 43000 | I53: =D53 -> 2250 | J53: =IF(J50=21, 2250,43000) -> 2250 | L53: Piping (based # grow out containments) | M53: =IF(Interface!J7<=3,'Piping Calculations'!D13,IF(Interface!$J$7<=5,'Piping Calculations'!E13,IF(Interface!$J$7<=10,'Piping Calculations'!G13,'Piping Calculations'!H13))) -> 10 | P53: 200 | Q53: =Interface!$J$7 -> 50 | R53: =M53*P53 -> 2000 | S53: =IF(OR(Interface!$E$14="EXISTING",Interface!F14="YES"),0,R53) -> 2000 | U53: 3. Equipment | AB53: =SUM(AB54:AB64) -> 500677.1774
B54: Pump House Footprint | C54: =IF(D50=21,0.6,0.8) -> 0.6 | D54: =IF(($C$54*D51)<4,4,($C$54*D51)) -> 4 | E54: =IF(($C$54*E51)<4,4,($C$54*E51)) -> 4 | F54: 4 | G54: 4 | H54: 4 | I54: 4 | J54: 4 | U54: 10 -100g grow out containments | V54: =IF(Interface!J7<=3,'Containment Unit Calculations'!O13,IF(Interface!$J$7<=5,'Containment Unit Calculations'!P13,IF(Interface!$J$7<=10,'Containment Unit Calculations'!R13,'Containment Unit Calculations'!S13))) -> 5.4 | W54: ='Production Cycle'!B166 -> 4 | X54: 1 | Y54: =IF(Interface!J7<=3,'Containment Unit Calculations'!O17,IF(Interface!$J$7<=5,'Containment Unit Calculations'!P17,IF(Interface!$J$7<=10,'Containment Unit Calculations'!R17,'Containment Unit Calculations'!S17))) -> 3400 | Z54: =Interface!$J$7 -> 50 | AA54: =Y54*W54 -> 13600 | AB54: =IF(Interface!$E$14="EXISTING",0,AA54) -> 13600
B55: System Electricity | L55: Water quality testing equipment | M55: 0 | N55: 1 | O55: 1 | P55: 10000 | Q55: =Interface!$J$7 -> 50 | R55: =P55*N55*O55 -> 10000 | S55: =IF(Interface!$E$14="EXISTING",0,R55) -> 10000 | U55: 100g + grow out containment | V55: =IF(Interface!J7<=5,'Containment Unit Calculations'!P22,IF(Interface!$J$7<=8,'Containment Unit Calculations'!Q22,IF(Interface!$J$7<=50,'Containment Unit Calculations'!R22,'Containment Unit Calculations'!S22))) -> 5 | W55: ='Production Cycle'!B167 -> 10 | X55: 1 | Y55: =IF(Interface!J7<=5,'Containment Unit Calculations'!P28,IF(Interface!$J$7<=8,'Containment Unit Calculations'!Q28,IF(Interface!$J$7<=50,'Containment Unit Calculations'!R28,'Containment Unit Calculations'!S28))) -> 1906.55 | Z55: =Interface!$J$7 -> 50 | AA55: =Y55*W55 -> 19065.5 | AB55: =IF(Interface!$E$14="EXISTING",0,AA55) -> 19065.5
B56: Systems electricity Kw per year | D56: =D40+D52 -> 69272 | E56: =E40+E52 -> 59636 | F56: 59636 | G56: 69272 | H56: 78908 | I56: 69272 | J56: 19272 | L56: 4. Movable assests | S56: =SUM(S57:S63) -> 380694.6 | U56: Water quality testing equipment | V56: 1 | W56: =O55 -> 1 | X56: 1 | Y56: =IF(Interface!$J$7<20,'Production Assumptions'!F124,'Production Assumptions'!F129) -> 50000 | Z56: =Interface!$J$7 -> 50 | AA56: =Y56*V56 -> 50000 | AB56: =IF(Interface!$E$14="EXISTING",0,AA56) -> 50000
B57: Electicity costs per year | C57: 1.1 | D57: =D56*$C$57 -> 76199.2 | E57: =E56*$C$57 -> 65599.6 | F57: 65599.6 | G57: 76199.2 | H57: 86798.8 | I57: 76199.2 | J57: 21199.2 | L57: Water Storage Tank (Litres) | M57: ='Containment Unit Calculations'!D44 -> 5.4 | N57: =ROUNDUP(('Production Cycle'!B170*'Containment Unit Calculations'!D49/'CAPEX '!M57),0) -> 1 | P57: ='Containment Unit Calculations'!D48 -> 6000 | Q57: =Interface!$J$7 -> 50 | R57: =P57*N57 -> 6000 | S57: =IF(Interface!$E$14="EXISTING",0,R57) -> 6000 | U57: Electrial inst. type (D 5KVA, F 50KVA) | V57: =V44+V45+V47+V49 -> 150 | W57: 1 | X57: 1 | Y57: 500 | Z57: =Interface!$J$7 -> 50 | AA57: =Y57*V57 -> 75000 | AB57: =IF(Interface!$E$14="EXISTING",0,AA57) -> 75000
B58: Electicity costs per month | D58: =D57/12 -> 6349.933333 | E58: =E57/12 -> 5466.633333 | F58: 5466.633333 | G58: 6349.933333 | H58: 7233.233333 | I58: 6349.933333 | J58: =J57/12 -> 1766.6 | L58: Office Equipment | M58: =HR!C60+1 -> 2 | P58: 6000 | Q58: =Interface!$J$7 -> 50 | R58: =P58*M58 -> 12000 | S58: =IF(Interface!$E$14="EXISTING",0,R58) -> 12000 | U58: Water Pumps | W58: =G51 -> 3 | X58: 9 | Y58: =G53 -> 2250 | Z58: =Interface!$J$7 -> 50 | AA58: =Y58*W58 -> 6750 | AB58: =IF(Interface!$E$14="EXISTING",0,AA58) -> 6750
L59: Buckets/drums | M59: =ROUNDUP(Interface!$J$7/2,0)+3 -> 28 | P59: 273.2 | Q59: =Interface!$J$7 -> 50 | R59: =P59*M59 -> 7649.6 | S59: =IF(Interface!$E$14="EXISTING",0,R59) -> 7649.6 | U59: Piping (Based on number of grow out containments) | W59: =IF(Interface!J7<=5,'Piping Calculations'!N6,IF(Interface!$J$7<=8,'Piping Calculations'!O6,IF(Interface!$J$7<=10,'Piping Calculations'!P6,'Piping Calculations'!Q6))) -> 650.8 | Y59: 200 | Z59: =Interface!$J$7 -> 50 | AA59: =Y59*W59 -> 130160 | AB59: =IF(Interface!$E$14="EXISTING",0,AA59) -> 130160
L60: =L31 -> Short/long handle Hand net | M60: =ROUNDUP(Interface!$J$7/1,0)+1 -> 51 | P60: =G32 -> 295 | Q60: =Interface!$J$7 -> 50 | R60: =P60*M60 -> 15045 | S60: =IF(Interface!$E$14="EXISTING",0,R60) -> 15045 | U60: Biofilter Tanks | V60: ='Bio-Model'!D51 -> 5.4 | W60: ='Bio-Model'!D52 -> 3 | Y60: 3400 | Z60: =Interface!$J$7 -> 50 | AA60: =W60*Y60 -> 10200 | AB60: =IF(Interface!$E$14="EXISTING",0,AA60) -> 10200
L61: Freezer/cold storage | M61: =IF(Interface!J7<11,1,0) -> 0 | N61: 0 | O61: 1 | P61: =IF(M61=1,5640,12000) -> 12000 | Q61: =Interface!$J$7 -> 50 | R61: =IF(O61=0,P61*M61,P61*M61*O61) -> 0 | S61: =IF(Interface!$E$14="EXISTING",0,R61) -> 0 | U61: Biofilter Media | W61: ='Bio-Model'!D49 -> 10.73323963 | X61: 1 | Y61: 7000 | Z61: =Interface!$J$7 -> 50 | AA61: =W61*Y61 -> 75132.67738 | AB61: =IF(Interface!$E$14="EXISTING",0,AA61) -> 75132.67738
L62: Boat, trailer, retrofit | M62: =IF(Q62<10,1,2) -> 2 | P62: =IF(Q62=1,25000,70000) -> 70000 | Q62: =Interface!$J$7 -> 50 | R62: =P62*M62 -> 140000 | S62: =IF(Interface!$E$14="EXISTING",0,R62) -> 140000 | U62: Lamella/Swil Tanks | V62: ='Bio-Model'!D54 -> 2.5 | W62: ='Bio-Model'!D55 -> 9 | X62: 1 | Y62: =IF(Interface!J7<=3,'Containment Unit Calculations'!E30,IF(Interface!$J$7<=5,'Containment Unit Calculations'!F30,IF(Interface!$J$7<=10,'Containment Unit Calculations'!H30,'Containment Unit Calculations'!I30))) -> 6000 | Z62: =Interface!$J$7 -> 50 | AA62: 54000 | AB62: =IF(Interface!$E$14="EXISTING",0,AA62) -> 54000
L63: Vehicle | M63: =M33 -> 1 | N63: 0 | P63: 200000 | Q63: =Interface!$J$7 -> 50 | R63: =P63*M63 -> 200000 | S63: =IF(Interface!$E$14="EXISTING",0,R63) -> 200000 | U63: Heating equipment | W63: =IF(Interface!$J$7<=10,1,3) -> 3 | Y63: 18000 | Z63: =Interface!$J$7 -> 50 | AA63: =W63*Y63 -> 54000 | AB63: =IF(Interface!$E$14="EXISTING",0,AA63) -> 54000
L64: TOTAL EXCLUDING Working Capital | S64: =S56+S49+S46+S40 -> 2243514.195 | U64: Ryobi - Generator 4-Stroke With Battery & Key Start - 7.5Kva | W64: 1 | X64: 1 | Y64: 12769 | Z64: 1 | AA64: =Y64*W64 -> 12769 | AB64: =IF(Interface!$E$14="EXISTING",0,AA64) -> 12769
U65: 4. More Equipment | AB65: =SUM(AB66:AB72) -> 303494.8
U66: Buckets/drums | V66: 1 | W66: =ROUNDUP((Interface!$J$7/5),0)+4 -> 14 | X66: 1 | Y66: 273.2 | Z66: =Interface!$J$7 -> 50 | AA66: =Y66*W66 -> 3824.8 | AB66: =IF(Interface!$E$14="EXISTING",0,AA66) -> 3824.8
U67: Water storage tank (Litres) | V67: ='Containment Unit Calculations'!D44 -> 5.4 | W67: =ROUNDUP(('Production Cycle'!B166/'CAPEX '!V67*'Containment Unit Calculations'!D49),0) -> 1 | Y67: ='Containment Unit Calculations'!D48 -> 6000 | Z67: =Interface!$J$7 -> 50 | AA67: =Y67*W67 -> 6000 | AB67: =IF(Interface!$E$14="EXISTING",0,AA67) -> 6000
U68: Freezer | W68: =IF(Interface!$J$7<11,1,0) -> 0 | X68: 1 | Y68: 4600 | Z68: =Interface!$J$7 -> 50 | AA68: =Y68*W68 -> 0 | AB68: =IF(Interface!$E$14="EXISTING",0,AA68) -> 0
U69: office equipment | V69: =ROUNDUP(($C$7/9),0)+1 -> 6 | W69: 3 | X69: 1 | Y69: 6000 | Z69: =Interface!$J$7 -> 50 | AA69: =Y69*V69 -> 36000 | AB69: =IF(Interface!$E$14="EXISTING",0,AA69) -> 36000
U70: Short/long handle Hand net | W70: =ROUNDUP(Interface!$J$7/2,0)+1 -> 26 | X70: 1 | Y70: 295 | Z70: =Interface!$J$7 -> 50 | AA70: =Y70*W70 -> 7670 | AB70: =IF(Interface!$E$14="EXISTING",0,AA70) -> 7670
U71: Aeration | W71: =G43 -> 10 | X71: 1 | Y71: =G44 -> 5000 | Z71: =Interface!$J$7 -> 50 | AA71: =Y71*W71 -> 50000 | AB71: =IF(Interface!$E$14="EXISTING",0,AA71) -> 50000
U72: Vehicle | W72: =IF(Interface!$J$7<11,0,IF(Interface!$J$7<101,1,IF(Interface!$J$7<201,2,IF(Interface!$J$7<301,3,4)))) -> 1 | Y72: 200000 | Z72: =Interface!$J$7 -> 50 | AA72: =Y72*W72 -> 200000 | AB72: =IF(Interface!$E$14="EXISTING",0,AA72) -> 200000
U73: TOTAL EXCLUDING Working Capital | AB73: =AB65+AB53+AB50+AB43 -> 2544605.61
U75: Flow-Through
U76: Item | V76: Size Units | W76: Number of units | X76: RATIO | Y76: Price per Unit (R) | Z76: TONS | AA76: Sub-Total | AB76: TOTAL: Increase with Tonnage
U77: 1. Infrastructure | AB77: =SUM(AB78:AB82) -> 1392400
U78: StoreRoom/Handling facility | V78: =IF(Interface!$J$7<=5,0,IF(Interface!$J$7<=10,(3*5),(4*5))) -> 20 | W78: =E6 -> 1 | X78: 1 | Y78: ='Built-In Assumptions'!E21 -> 5850 | Z78: =Interface!$J$7 -> 50 | AA78: =V78*X78*Y78 -> 117000 | AB78: =IF(Interface!$E$14="EXISTING",0,AA78) -> 117000
U79: Offices | V79: =M7 -> 40 | W79: =E7 -> 1 | X79: =F7 -> 1 | Y79: ='Built-In Assumptions'!E20 -> 8350 | Z79: =Interface!$J$7 -> 50 | AA79: =V79*X79*Y79 -> 334000 | AB79: =IF(Interface!$E$14="EXISTING",0,AA79) -> 334000
U80: Feed store | V80: =M9 -> 45 | W80: =E9 -> 1 | X80: =IF(Interface!$J$7<11,0,IF(Interface!$J$7<15,1,(1))) -> 1 | Y80: ='Built-In Assumptions'!E21 -> 5850 | Z80: =Interface!$J$7 -> 50 | AA80: =V80*X80*Y80 -> 263250 | AB80: =IF(Interface!$E$14="EXISTING",0,AA80) -> 263250
U81: Pump House | V81: =H54 -> 4 | W81: 1 | X81: 1 | Y81: ='Built-In Assumptions'!E21 -> 5850 | Z81: =Interface!$J$7 -> 50 | AA81: =V81*X81*Y81 -> 23400 | AB81: =IF(Interface!$E$14="EXISTING",0,AA81) -> 23400
U82: Cold Storage | V82: =IF(Interface!$J$7<=11,0,IF(Interface!$J$7<50,(7*5),IF(Interface!$J$7<101,(9*5),IF(Interface!$J$7<201,(10*5),IF(Interface!$J$7<401,(15*5),IF(Interface!$J$7<601,(20*5),IF(Interface!$J$7<801,(25*5),(30*5)))))))) -> 45 | X82: =IF(Interface!$J$7<11,0,IF(Interface!$J$7<15,1,(1))) -> 1 | Y82: ='Built-In Assumptions'!E22 -> 14550 | Z82: =Interface!$J$7 -> 50 | AA82: =V82*Y82*X82 -> 654750 | AB82: =IF(Interface!$E$14="EXISTING",0,AA82) -> 654750
U83: 2. Land | AB83: =AB84+AB85 -> 294469.1873
U84: Purchase Land (ha) | V84: 1 | W84: =IF(Interface!$J$7<2,1,1+'System Footprint Sizes'!J32) -> 1.110102 | Y84: ='Built-In Assumptions'!E24 -> 246346 | Z84: =Z78 -> 50 | AA84: =Y84*W84*V84 -> 273469.1873 | AB84: =IF(AND(Interface!F105="YES",Interface!E105="EXISTING"),0,IF(AND(Interface!F105="YES",Interface!E105=Validation!$H$9),0,'CAPEX '!AA84)) -> 273469.1873
U85: Basic Site Clearing/Earthmoving | V85: =V78+V79+V80+V82 -> 150 | Y85: 140 | Z85: =Z79 -> 50 | AA85: =Y85*V85 -> 21000 | AB85: =IF(AND(Interface!F106="YES",Interface!E106="EXISTING"),0,IF(AND(Interface!F106="YES",Interface!E106=Validation!$H$9),0,'CAPEX '!AA85)) -> 21000
U86: 3. Equipment | AB86: =SUM(AB87:AB94) -> 368445
U87: Fingerling Tanks | V87: =IF(Interface!J7<=1,'Containment Unit Calculations'!X13,IF(Interface!$J$7<=8,'Containment Unit Calculations'!AA13,IF(Interface!$J$7<=10,'Containment Unit Calculations'!AB13,'Containment Unit Calculations'!AC13))) -> 5.4 | W87: ='Production Cycle'!B168 -> 4 | X87: 1 | Y87: =IF(Interface!J7<=1,'Containment Unit Calculations'!X17,IF(Interface!$J$7<=8,'Containment Unit Calculations'!AA17,IF(Interface!$J$7<=10,'Containment Unit Calculations'!AB17,'Containment Unit Calculations'!AC17))) -> 3400 | Z87: =Interface!$J$7 -> 50 | AA87: =Y87*W87 -> 13600 | AB87: =IF(Interface!$E$14="EXISTING",0,AA87) -> 13600
U88: Grow-out containments | V88: =IF(Interface!J7<=1,'Containment Unit Calculations'!X4,IF(Interface!$J$7<=8,'Containment Unit Calculations'!AA4,IF(Interface!$J$7<=10,'Containment Unit Calculations'!AB4,'Containment Unit Calculations'!AC4))) -> 13.82 | W88: ='Production Cycle'!B169 -> 10 | X88: 1 | Y88: =IF(Interface!J7<=1,'Containment Unit Calculations'!X8,IF(Interface!$J$7<=8,'Containment Unit Calculations'!AA8,IF(Interface!$J$7<=10,'Containment Unit Calculations'!AB8,'Containment Unit Calculations'!AC8))) -> 6000 | Z88: =Interface!$J$7 -> 50 | AA88: =Y88*W88 -> 60000 | AB88: =IF(Interface!$E$14="EXISTING",0,AA88) -> 60000
U89: Settlement Tanks | V89: =IF(Interface!J7<=3,'Containment Unit Calculations'!E4,IF(Interface!$J$7<=5,'Containment Unit Calculations'!F4,IF(Interface!$J$7<=10,'Containment Unit Calculations'!G4,'Containment Unit Calculations'!I4))) -> 5.4 | W89: ='Bio-Model'!I22 -> 11 | X89: 1 | Y89: =IF(Interface!J7<=3,'Containment Unit Calculations'!E30,IF(Interface!$J$7<=5,'Containment Unit Calculations'!F30,IF(Interface!$J$7<=10,'Containment Unit Calculations'!H30,'Containment Unit Calculations'!I30))) -> 6000 | Z89: =Interface!$J$7 -> 50 | AA89: =Y89*W89 -> 66000 | AB89: =IF(Interface!$E$14="EXISTING",0,AA89) -> 66000
U90: Water quality testing equipment | W90: =O55 -> 1 | Y90: =IF(Interface!$J$7<20,'Production Assumptions'!F124,'Production Assumptions'!F129) -> 50000 | Z90: =Interface!$J$7 -> 50 | AA90: =Y90*W90 -> 50000 | AB90: =IF(Interface!$E$14="EXISTING",0,AA90) -> 50000
U91: Electrial inst. type (D 5KVA, F 50KVA) | W91: =V78+V79+V80+V82 -> 150 | X91: 1 | Y91: 500 | Z91: =Interface!$J$7 -> 50 | AA91: =Y91*W91 -> 75000 | AB91: =IF(Interface!$E$14="EXISTING",0,AA91) -> 75000
U92: Water Pumps | W92: =H51 -> 4 | Y92: 5000 | Z92: =Interface!$J$7 -> 50 | AA92: =W92*Y92 -> 20000 | AB92: =IF(Interface!$E$14="EXISTING",0,AA92) -> 20000
U93: Piping (Based on grow out containments) | W93: =IF(Interface!J7<=1,'Piping Calculations'!L13,IF(Interface!$J$7<=8,'Piping Calculations'!O13,IF(Interface!$J$7<=10,'Piping Calculations'!P13,'Piping Calculations'!Q13))) -> 100 | Y93: 200 | Z93: =Interface!$J$7 -> 50 | AA93: =W93*Y93 -> 20000 | AB93: =IF(Interface!$E$14="EXISTING",0,AA93) -> 20000
U94: Ryobi - Generator 4-Stroke With Battery & Key Start - 7.5Kva | W94: =ROUNDUP((Interface!$J$7/10),0) -> 5 | X94: 1 | Y94: 12769 | Z94: =Interface!$J$7 -> 50 | AA94: =Y94*W94 -> 63845 | AB94: =IF(Interface!$E$14="EXISTING",0,AA94) -> 63845
U95: 4. More Equipment | AB95: =SUM(AB96:AB101) -> 227440.8
U96: Buckets/drums | V96: 1 | W96: =ROUNDUP((Interface!$J$7/5),0)+4 -> 14 | X96: 1 | Y96: 273.2 | Z96: =Interface!$J$7 -> 50 | AA96: =Y96*W96 -> 3824.8 | AB96: =IF(Interface!$E$14="EXISTING",0,AA96) -> 3824.8
U97: Water storage tank (Litres) | V97: ='Containment Unit Calculations'!D44 -> 5.4 | W97: =ROUNDUP(('Production Cycle'!B168/'CAPEX '!V97*'Containment Unit Calculations'!D49),0) -> 1 | Y97: ='Containment Unit Calculations'!D48 -> 6000 | Z97: =Interface!$J$7 -> 50 | AA97: 6000 | AB97: =IF(Interface!$E$14="EXISTING",0,AA97) -> 6000
U98: Freezer | W98: =IF(Interface!$J$7<11,1,0) -> 0 | X98: 1 | Y98: 4600 | Z98: =Interface!$J$7 -> 50 | AA98: 0 | AB98: =IF(Interface!$E$14="EXISTING",0,AA98) -> 0
U99: Office equipment | W99: =HR!C77+1 -> 2 | X99: 1 | Y99: 6000 | Z99: =Interface!$J$7 -> 50 | AA99: 12000 | AB99: =IF(Interface!$E$14="EXISTING",0,AA99) -> 12000
U100: Short/long handle Hand net | W100: =ROUNDUP(Interface!$J$7/2,0)+1 -> 26 | X100: 1 | Y100: 216 | Z100: =Interface!$J$7 -> 50 | AA100: 5616 | AB100: =IF(Interface!$E$14="EXISTING",0,AA100) -> 5616
U101: Vehicle | W101: =IF(Interface!$J$7<11,0,IF(Interface!$J$7<101,1,IF(Interface!$J$7<201,2,IF(Interface!$J$7<301,3,4)))) -> 1 | Y101: 200000 | Z101: =Interface!$J$7 -> 50 | AA101: 200000 | AB101: =IF(Interface!$E$14="EXISTING",0,AA101) -> 200000
U102: TOTAL EXCLUDING Working Capital | AB102: =AB95+AB86+AB83+AB77 -> 2282754.987

Sheet System Footprint Sizes
B2: RAS Space Requirements | G2: Pond Space Requirements
B3: Infrastructure | C3: Space required m2 | D3: % added (space around/ between, for drainage, piping, roads etc as applicable) | E3: Total Space Required | G3: Infrastructure | H3: Space required m2 | I3: % added (space around/ between, for drainage, piping, roads etc as applicable) | J3: Total Space Required
B4: Tanks (Fingerlings) | C4: =HLOOKUP('CAPEX '!C16,'Containment Unit Calculations'!B4:I8,4) -> 49 | D4: 2 | E4: =D4*C4 -> 98 | G4: Tanks - fingerlings | H4: =HLOOKUP('CAPEX '!M16,'Containment Unit Calculations'!B4:I7,4) -> 49 | I4: 2 | J4: =I4*H4 -> 98
B5: Tanks (Grow out) | C5: =HLOOKUP('CAPEX '!C17,'Containment Unit Calculations'!L4:S7,4) -> 122.5 | D5: 2 | E5: 245 | G5: Ponds | H5: =HLOOKUP('CAPEX '!M17,'Containment Unit Calculations'!B12:I18,7) -> 5000 | I5: 2 | J5: =I5*H5 -> 10000
B6: Store rooms | C6: ='CAPEX '!C6 -> 20 | D6: 2 | E6: 40 | G6: Store room/handling facility | H6: ='CAPEX '!M6 -> 20 | I6: 22 | J6: =I6*H6 -> 440
B7: Offices | C7: ='CAPEX '!C7 -> 40 | D7: 2 | E7: =D7*C7 -> 80 | G7: Offices | H7: ='CAPEX '!M7 -> 40 | I7: 2 | J7: 80
B8: Tunnels | C8: ='CAPEX '!C8 -> 87.5 | D8: 2 | E8: 175 | G8: Cold storage | H8: ='CAPEX '!M8 -> 45 | I8: 2 | J8: 90
B9: Feed Store | C9: ='CAPEX '!C9 -> 45 | D9: 2 | E9: 90 | G9: Feed store | H9: ='CAPEX '!M9 -> 45 | I9: 2 | J9: =I9*H9 -> 90
B10: Pump House (m²) - 0.5% of pumps value | C10: ='CAPEX '!C11 -> 40 | D10: 2 | E10: 80 | G10: Storage Dam (m²) | H10: ='CAPEX '!M10 -> 4 | I10: 2 | J10: =I10*H10 -> 8
B11: Settlement - tanks (lamella/swirl) | C11: =HLOOKUP('CAPEX '!C24,'Containment Unit Calculations'!B24:I29,4) -> 17.64 | D11: 2 | E11: 35.28 | G11: Settlement - tanks (lamella/swirl) | H11: =HLOOKUP('CAPEX '!M24,'Containment Unit Calculations'!B24:I29,6) -> 4.41 | I11: 2 | J11: =I11*H11 -> 8.82
B12: Biofilter tanks | C12: =HLOOKUP('CAPEX '!C22,'Bio-Model'!J27:Q32,4) -> 36.75 | D12: 2 | E12: 73.5 | G12: Biofilter tanks | H12: =HLOOKUP('CAPEX '!M22,'Bio-Model'!J27:Q32,5) -> 12.25 | I12: 2 | J12: 24.5
B13: Pump house | C13: ='CAPEX '!D54 -> 4 | D13: 2 | E13: 8 | G13: Storage Dam | H13: ='CAPEX '!M11 -> 1000 | I13: 2 | J13: 2000
B14: Storage tanks | C14: ='CAPEX '!E29*'Containment Unit Calculations'!D47 -> 49 | D14: 2 | E14: 98 | G14: Storage tanks | H14: ='CAPEX '!N28*'Containment Unit Calculations'!D47 -> 49 | I14: 2 | J14: 98
B15: Total m2 | E15: =SUM(E4:E14) -> 1022.78 | G15: Pump House | H15: ='CAPEX '!F54 -> 4 | I15: 2 | J15: =I15*H15 -> 8
B16: Total Hectares Required | E16: =E15/10000 -> 0.102278 | G16: Total m2 | J16: =SUM(J4:J15) -> 12945.32
G17: Total Hectares Required | J17: =J16/10000 -> 1.294532
B19: Raceway Space Requirements
B20: Infrastructure | C20: Space required m2 | D20: % added (space around/ between, for drainage, piping, roads etc as applicable) | E20: Total Space Required | G20: Flow-Through Space Requirements
B21: Tanks Fingerlings | C21: =HLOOKUP('CAPEX '!V54,'Containment Unit Calculations'!L13:S16,4) -> 49 | D21: 2 | E21: =D21*C21 -> 98 | G21: Infrastructure | H21: Space required m2 | I21: % added (space around/ between, for drainage, piping, roads etc as applicable) | J21: Total Space Required
B22: Tanks Grow Out | C22: =HLOOKUP('CAPEX '!V55,'Containment Unit Calculations'!L22:S27,6) -> 45 | D22: 2 | E22: =D22*C22 -> 90 | G22: Tanks Fingerlings | H22: =HLOOKUP('CAPEX '!C16,'Containment Unit Calculations'!B4:I8,4) -> 49 | I22: 2 | J22: =I22*H22 -> 98
B23: Store rooms | C23: ='CAPEX '!V44 -> 20 | D23: 2 | E23: 40 | G23: Tanks Grow Out | H23: =IF('CAPEX '!V88='Containment Unit Calculations'!X4,'Containment Unit Calculations'!X7,IF('CAPEX '!V88='Containment Unit Calculations'!AA4,'Containment Unit Calculations'!AA7,IF('CAPEX '!V88='Containment Unit Calculations'!AB4,'Containment Unit Calculations'!AB7,'Containment Unit Calculations'!AC7))) -> 250 | I23: 2 | J23: =I23*H23 -> 500
B24: Offices | C24: ='CAPEX '!V45 -> 40 | D24: 2 | E24: 80 | G24: Store room/handling faciity | H24: ='CAPEX '!V78 -> 20 | I24: 2 | J24: 40
B25: Tunnels | C25: ='CAPEX '!V46 -> 87.5 | D25: 2 | E25: 175 | G25: Offices | H25: ='CAPEX '!V79 -> 40 | I25: 2 | J25: 80
B26: Feed Store | C26: ='CAPEX '!V47 -> 45 | D26: 2 | E26: 90 | G26: Feed Store | H26: ='CAPEX '!V80 -> 45 | I26: 2 | J26: 90
B27: Cold Storage | C27: ='CAPEX '!V49 -> 45 | D27: 2 | E27: 90 | G27: Cold Storage | H27: ='CAPEX '!V82 -> 45 | I27: 2 | J27: 90
B28: Pump house | C28: ='CAPEX '!G54 -> 4 | D28: 2 | E28: 8 | G28: Pump house | H28: ='CAPEX '!H54 -> 4 | I28: 2 | J28: 8
B29: Biofilter Tanks | C29: =HLOOKUP('CAPEX '!V60,'Bio-Model'!J27:Q32,6) -> 36.75 | D29: 2 | E29: 73.5 | G29: Settlement - tanks (lamella/swirl) | H29: =IF('CAPEX '!V89='Containment Unit Calculations'!F24,(('Containment Unit Calculations'!F25+1)^2)*'Bio-Model'!I22,(('Containment Unit Calculations'!I25+1)^2)*'Bio-Model'!I22) -> 48.51 | I29: 2 | J29: 97.02
B30: Settlement - tanks (lamella/swirl) | C30: =HLOOKUP('CAPEX '!V62,'Containment Unit Calculations'!B24:I29,5) -> 27.5625 | D30: 2 | E30: 55.125 | G30: Storage tanks | H30: ='CAPEX '!W97*'Containment Unit Calculations'!D47 -> 49 | I30: 2 | J30: 98
B31: Storage tanks | C31: ='CAPEX '!W67*'Containment Unit Calculations'!D47 -> 49 | D31: 2 | E31: 98 | G31: Total m2 | J31: =SUM(J22:J30) -> 1101.02
B32: Total m2 | E32: =SUM(E21:E31) -> 897.625 | G32: Total Hectares Required | J32: =J31/10000 -> 0.110102
B33: Total Hectares Required | E33: =E32/10000 -> 0.0897625
G35: Aquaponics Space Requirements
B36: Cage Culture Space Requirements | G36: Infrastructure | H36: Space required m2 | I36: % added (space around/ between, for drainage, piping, roads etc as applicable) | J36: Total Space Required
B37: Infrastructure | C37: Space required m2 | D37: % added (space around/ between, for drainage, piping, roads etc as applicable) | E37: Total Space Required | G37: Tanks - fingerlings | H37: =IF('CAPEX '!V16='Containment Unit Calculations'!I4,'Containment Unit Calculations'!I7,'Containment Unit Calculations'!F7) -> 49 | I37: 1.75 | J37: =I37*H37 -> 85.75
B38: Tanks - fingerlings | C38: =IF('CAPEX '!M50='Containment Unit Calculations'!R39,'Containment Unit Calculations'!R41,'Containment Unit Calculations'!S41) -> 1.1 | D38: 2 | E38: =D38*C38 -> 2.2 | G38: Tanks - Grow out | H38: =IF('CAPEX '!V16='Containment Unit Calculations'!R4,'Containment Unit Calculations'!R7,'Containment Unit Calculations'!S7) -> 122.5 | I38: 1.75 | J38: =I38*H38 -> 214.375
B39: Store room/handling facility | C39: ='CAPEX '!M45 -> 20 | D39: 2 | E39: =D39*C39 -> 40 | G39: Store room/feed storage | H39: ='CAPEX '!V6 -> 30 | I39: 1.75 | J39: =I39*H40 -> 1264.034387
B40: Offices | C40: ='CAPEX '!M41 -> 40 | D40: 2 | E40: 80 | G40: Tunnels | H40: ='CAPEX '!V9 -> 722.3053637 | I40: 1.75 | J40: 35
B41: Cold storage | C41: ='CAPEX '!M43 -> 40 | D41: 2 | E41: 80 | G41: Offices | H41: ='CAPEX '!V7 -> 20 | I41: 1.75 | J41: =I41*H41 -> 35
B42: Feed store | C42: ='CAPEX '!M42 -> 40 | D42: 2 | E42: =D42*C42 -> 80 | G42: Cold storage | H42: ='CAPEX '!V8 -> 45 | I42: 1.75 | J42: 78.75
B43: Pump House | C43: ='CAPEX '!E54 -> 4 | D43: 2 | E43: =D43*C43 -> 8 | G43: ='CAPEX '!U11 -> Handling/Processing Warehouse | H43: ='CAPEX '!V11 -> 36 | I43: 1.75 | J43: =I43*H43 -> 63
B44: Storage tanks | C44: ='CAPEX '!N57*'Containment Unit Calculations'!D47 -> 49 | D44: 2 | E44: =D44*C44 -> 98 | G44: Pump House | H44: ='CAPEX '!I54+'CAPEX '!J54 -> 8 | I44: 1.75 | J44: =I44*H44 -> 14
B45: Total m2 | E45: =SUM(E38:E44) -> 388.2 | G45: Header/Sump Tank | H45: ='Containment Unit Calculations'!AB25 -> 49 | I45: 1.75 | J45: =I45*H45 -> 85.75
B46: Total Hectares Required | E46: =E45/10000 -> 0.03882 | G46: Total m2 | J46: =SUM(J37:J45) -> 1875.659387
G47: Total Hectares Required | J47: =J46/10000 -> 0.1875659387

Sheet TEMPERATURE (hidden)
A1: TEMPERATURE - CATFISH MODEL
A3: Temperature Data ( Average Max and Min Temperature per province in SA | D3: 29 | G3: Electricity
A4: Province | B4: Average Max Temperature (°C) | C4: Average Min Temperature (°C) | D4: AVG | E4: Electricity Cost Ratio | G4: Units No tunnel | H4: Cost no tunnel (R1.09/kWh) | I4: Units Tunnel | J4: Cost tunnel (R1.09/kWh)
A5: Limpopo | B5: 24.77 | C5: 15.99 | D5: =(B5+C5)/2 -> 20.38 | E5: =I5/$I$13 -> 1.115795237 | F5: =G5/$G$13 -> 1.115795237 | G5: =G6/D6*D5 -> 744.3246866 | H5: =G5*1.09 -> 811.3139083 | I5: =G5*95% -> 707.1084522 | J5: =I5*1.09 -> 770.7482129
A6: Gauteng | B6: 21.44 | C6: 10.35 | D6: 15.895 | E6: 0.8702436354 | G6: =G7/D7*D6 -> 580.5221243 | H6: =G6*1.09 -> 632.7691155 | I6: =G6*95% -> 551.4960181 | J6: =I6*1.09 -> 601.1306597
A7: North West | B7: 23.73 | C7: 11.31 | D7: 17.52 | E7: 0.9592116069 | G7: 639.8708787 | H7: =G7*1.09 -> 697.4592578 | I7: 607.8773348 | J7: 662.5862949
A8: Free-State | B8: 23.33 | C8: 8.92 | D8: 16.125 | E8: 0.8828360252 | G8: 588.9222557 | H8: =G8*1.09 -> 641.9252587 | I8: 559.4761429 | J8: 609.8289958
A9: Mpumalanga | B9: 23.67 | C9: 14.91 | D9: 19.29 | E9: 1.056118259 | G9: 704.5153682 | H9: 767.9217513 | I9: 669.2895998 | J9: 729.5256638
A10: KZN | B10: 24.35 | C10: 16.91 | D10: 20.63 | E10: 1.129482617 | G10: 753.4552642 | H10: 821.2662379 | I10: 715.782501 | J10: 780.202926
A11: Western Cape | B11: 23.05 | C11: 12.37 | D11: 17.71 | E11: 0.9696140159 | G11: 646.8101177 | H11: 705.0230283 | I11: 614.4696118 | J11: 669.7718769
A12: Northern Cape | B12: 27.66 | C12: 12.31 | D12: 19.985 | E12: =I12/$I$13 -> 1.094169176 | G12: =G13/D13*D12 -> 729.8983739 | H12: 795.5892276 | I12: 693.4034552 | J12: 755.8097662
A13: Eastern Cape | B13: 22.13 | C13: 14.4 | D13: 18.265 | E13: =I13/I13 -> 1 | G13: ='Production Assumptions'!D33 -> 667.08 | H13: 727.1172 | I13: =G13*95% -> 633.726 | J13: 690.76134
E14: =SUM(E5:E13) -> 9.077470572 | G14: *Price - Eskom (commercial)
A15: The o optimal temperatures under which they thrive fall between 28°C and 30°C.
A16: NOTE: SA Weather Service - charge an hourly rate of R1 070
G17: liter | H17: 1 | I17: weeks per month | J17: 4
G18: converion | H18: 1000 | I18: days in a week | J18: 7 | K18: weeks per year | L18: 52.1775
F19: Evaporation
F20: Province | G20: AVG /mm per day | H20: loss per day/litres | I20: loss per week/litres | J20: loss per month/litres | K20: loss per year/litres | L20: relative loss per annum | M20: relative loss per month
F21: Limpopo | G21: =(3+5)/2 -> 4 | H21: =IF(AND(OR(Interface!G$7=Validation!F$3,Interface!G$7=Validation!F$4),'CAPEX '!$D$17='Containment Unit Calculations'!R4),('Containment Unit Calculations'!Q5*'Containment Unit Calculations'!Q6)*TEMPERATURE!$G21/TEMPERATURE!$H$18*'Production Assumptions'!$C$153,IF(AND(OR(Interface!G$7=Validation!F$3,Interface!G$7=Validation!F$4),'CAPEX '!$D$17='Containment Unit Calculations'!S4),('Containment Unit Calculations'!S5*'Containment Unit Calculations'!S6)*TEMPERATURE!$G21/TEMPERATURE!$H$18*'Production Assumptions'!$C$153,IF(AND(Interface!G$7=Validation!$F$5,'CAPEX '!M17='Containment Unit Calculations'!E12),('Containment Unit Calculations'!E13*'Containment Unit Calculations'!E14*'Containment Unit Calculations'!E15)*TEMPERATURE!$G21/TEMPERATURE!$H$18,IF(AND(Interface!G$7=Validation!$F$5,'CAPEX '!$M$17='Containment Unit Calculations'!F12),('Containment Unit Calculations'!F13*'Containment Unit Calculations'!F14*'Containment Unit Calculations'!F15)*TEMPERATURE!$G21/TEMPERATURE!$H$18,('Containment Unit Calculations'!H13*'Containment Unit Calculations'!H14*'Containment Unit Calculations'!H15)*TEMPERATURE!$G21/TEMPERATURE!$H$18)))) -> 4 | I21: =H21*$J$18 -> 28 | J21: =I21*$J$17 -> 112 | K21: =I21*$L$18 -> 1460.97 | L21: =K21/100000 -> 0.0146097 | M21: =L21/12 -> 0.001217475
F22: Gauteng | G22: =(4.5+6)/2 -> 5.25 | H22: =IF(AND(OR(Interface!G$7=Validation!F$3,Interface!G$7=Validation!F$4),'CAPEX '!$D$17='Containment Unit Calculations'!R4),('Containment Unit Calculations'!Q5*'Containment Unit Calculations'!Q6)*TEMPERATURE!$G22/TEMPERATURE!$H$18*'Production Assumptions'!$C$153,IF(AND(OR(Interface!G$7=Validation!F$3,Interface!G$7=Validation!F$4),'CAPEX '!$D$17='Containment Unit Calculations'!S4),('Containment Unit Calculations'!S5*'Containment Unit Calculations'!S6)*TEMPERATURE!$G22/TEMPERATURE!$H$18*'Production Assumptions'!$C$153,IF(AND(Interface!G$7=Validation!$F$5,'CAPEX '!M17='Containment Unit Calculations'!E12),('Containment Unit Calculations'!E13*'Containment Unit Calculations'!E14*'Containment Unit Calculations'!E15)*TEMPERATURE!$G22/TEMPERATURE!$H$18,IF(AND(Interface!G$7=Validation!$F$5,'CAPEX '!$M$17='Containment Unit Calculations'!F12),('Containment Unit Calculations'!F13*'Containment Unit Calculations'!F14*'Containment Unit Calculations'!F15)*TEMPERATURE!$G22/TEMPERATURE!$H$18,('Containment Unit Calculations'!H13*'Containment Unit Calculations'!H14*'Containment Unit Calculations'!H15)*TEMPERATURE!$G22/TEMPERATURE!$H$18)))) -> 5.25 | I22: =H22*$J$18 -> 36.75 | J22: =I22*$J$17 -> 147 | K22: =I22*$L$18 -> 1917.523125 | L22: =K22/100000 -> 0.01917523125 | M22: =L22/12 -> 0.001597935938
F23: North West | G23: =(4+7)/2 -> 5.5 | H23: =IF(AND(OR(Interface!G$7=Validation!F$3,Interface!G$7=Validation!F$4),'CAPEX '!$D$17='Containment Unit Calculations'!R4),('Containment Unit Calculations'!Q5*'Containment Unit Calculations'!Q6)*TEMPERATURE!$G23/TEMPERATURE!$H$18*'Production Assumptions'!$C$153,IF(AND(OR(Interface!G$7=Validation!F$3,Interface!G$7=Validation!F$4),'CAPEX '!$D$17='Containment Unit Calculations'!S4),('Containment Unit Calculations'!S5*'Containment Unit Calculations'!S6)*TEMPERATURE!$G23/TEMPERATURE!$H$18*'Production Assumptions'!$C$153,IF(AND(Interface!G$7=Validation!$F$5,'CAPEX '!M17='Containment Unit Calculations'!E12),('Containment Unit Calculations'!E13*'Containment Unit Calculations'!E14*'Containment Unit Calculations'!E15)*TEMPERATURE!$G23/TEMPERATURE!$H$18,IF(AND(Interface!G$7=Validation!$F$5,'CAPEX '!$M$17='Containment Unit Calculations'!F12),('Containment Unit Calculations'!F13*'Containment Unit Calculations'!F14*'Containment Unit Calculations'!F15)*TEMPERATURE!$G23/TEMPERATURE!$H$18,('Containment Unit Calculations'!H13*'Containment Unit Calculations'!H14*'Containment Unit Calculations'!H15)*TEMPERATURE!$G23/TEMPERATURE!$H$18)))) -> 5.5 | I23: 38.5 | J23: 154 | K23: 2008.83375 | L23: 0.0200883375 | M23: 0.001674028125
F24: Free-State | G24: =(4+6.5)/2 -> 5.25 | H24: =IF(AND(OR(Interface!G$7=Validation!F$3,Interface!G$7=Validation!F$4),'CAPEX '!$D$17='Containment Unit Calculations'!R4),('Containment Unit Calculations'!Q5*'Containment Unit Calculations'!Q6)*TEMPERATURE!$G24/TEMPERATURE!$H$18*'Production Assumptions'!$C$153,IF(AND(OR(Interface!G$7=Validation!F$3,Interface!G$7=Validation!F$4),'CAPEX '!$D$17='Containment Unit Calculations'!S4),('Containment Unit Calculations'!S5*'Containment Unit Calculations'!S6)*TEMPERATURE!$G24/TEMPERATURE!$H$18*'Production Assumptions'!$C$153,IF(AND(Interface!G$7=Validation!$F$5,'CAPEX '!M17='Containment Unit Calculations'!E12),('Containment Unit Calculations'!E13*'Containment Unit Calculations'!E14*'Containment Unit Calculations'!E15)*TEMPERATURE!$G24/TEMPERATURE!$H$18,IF(AND(Interface!G$7=Validation!$F$5,'CAPEX '!$M$17='Containment Unit Calculations'!F12),('Containment Unit Calculations'!F13*'Containment Unit Calculations'!F14*'Containment Unit Calculations'!F15)*TEMPERATURE!$G24/TEMPERATURE!$H$18,('Containment Unit Calculations'!H13*'Containment Unit Calculations'!H14*'Containment Unit Calculations'!H15)*TEMPERATURE!$G24/TEMPERATURE!$H$18)))) -> 5.25 | I24: 36.75 | J24: 147 | K24: 1917.523125 | L24: 0.01917523125 | M24: 0.001597935938
F25: Mpumalanga | G25: =(0+5.5)/2 -> 2.75 | H25: =IF(AND(OR(Interface!G$7=Validation!F$3,Interface!G$7=Validation!F$4),'CAPEX '!$D$17='Containment Unit Calculations'!R4),('Containment Unit Calculations'!Q5*'Containment Unit Calculations'!Q6)*TEMPERATURE!$G25/TEMPERATURE!$H$18*'Production Assumptions'!$C$153,IF(AND(OR(Interface!G$7=Validation!F$3,Interface!G$7=Validation!F$4),'CAPEX '!$D$17='Containment Unit Calculations'!S4),('Containment Unit Calculations'!S5*'Containment Unit Calculations'!S6)*TEMPERATURE!$G25/TEMPERATURE!$H$18*'Production Assumptions'!$C$153,IF(AND(Interface!G$7=Validation!$F$5,'CAPEX '!M17='Containment Unit Calculations'!E12),('Containment Unit Calculations'!E13*'Containment Unit Calculations'!E14*'Containment Unit Calculations'!E15)*TEMPERATURE!$G25/TEMPERATURE!$H$18,IF(AND(Interface!G$7=Validation!$F$5,'CAPEX '!$M$17='Containment Unit Calculations'!F12),('Containment Unit Calculations'!F13*'Containment Unit Calculations'!F14*'Containment Unit Calculations'!F15)*TEMPERATURE!$G25/TEMPERATURE!$H$18,('Containment Unit Calculations'!H13*'Containment Unit Calculations'!H14*'Containment Unit Calculations'!H15)*TEMPERATURE!$G25/TEMPERATURE!$H$18)))) -> 2.75 | I25: 19.25 | J25: 77 | K25: 1004.416875 | L25: 0.01004416875 | M25: 0.0008370140625
F26: KZN | G26: =(3+5)/2 -> 4 | H26: =IF(AND(OR(Interface!G$7=Validation!F$3,Interface!G$7=Validation!F$4),'CAPEX '!$D$17='Containment Unit Calculations'!R4),('Containment Unit Calculations'!Q5*'Containment Unit Calculations'!Q6)*TEMPERATURE!$G26/TEMPERATURE!$H$18*'Production Assumptions'!$C$153,IF(AND(OR(Interface!G$7=Validation!F$3,Interface!G$7=Validation!F$4),'CAPEX '!$D$17='Containment Unit Calculations'!S4),('Containment Unit Calculations'!S5*'Containment Unit Calculations'!S6)*TEMPERATURE!$G26/TEMPERATURE!$H$18*'Production Assumptions'!$C$153,IF(AND(Interface!G$7=Validation!$F$5,'CAPEX '!M17='Containment Unit Calculations'!E12),('Containment Unit Calculations'!E13*'Containment Unit Calculations'!E14*'Containment Unit Calculations'!E15)*TEMPERATURE!$G26/TEMPERATURE!$H$18,IF(AND(Interface!G$7=Validation!$F$5,'CAPEX '!$M$17='Containment Unit Calculations'!F12),('Containment Unit Calculations'!F13*'Containment Unit Calculations'!F14*'Containment Unit Calculations'!F15)*TEMPERATURE!$G26/TEMPERATURE!$H$18,('Containment Unit Calculations'!H13*'Containment Unit Calculations'!H14*'Containment Unit Calculations'!H15)*TEMPERATURE!$G26/TEMPERATURE!$H$18)))) -> 4 | I26: 28 | J26: 112 | K26: 1460.97 | L26: 0.0146097 | M26: 0.001217475
F27: Western Cape | G27: =(3+5)/2 -> 4 | H27: =IF(AND(OR(Interface!G$7=Validation!F$3,Interface!G$7=Validation!F$4),'CAPEX '!$D$17='Containment Unit Calculations'!R4),('Containment Unit Calculations'!Q5*'Containment Unit Calculations'!Q6)*TEMPERATURE!$G27/TEMPERATURE!$H$18*'Production Assumptions'!$C$153,IF(AND(OR(Interface!G$7=Validation!F$3,Interface!G$7=Validation!F$4),'CAPEX '!$D$17='Containment Unit Calculations'!S4),('Containment Unit Calculations'!S5*'Containment Unit Calculations'!S6)*TEMPERATURE!$G27/TEMPERATURE!$H$18*'Production Assumptions'!$C$153,IF(AND(Interface!G$7=Validation!$F$5,'CAPEX '!M17='Containment Unit Calculations'!E12),('Containment Unit Calculations'!E13*'Containment Unit Calculations'!E14*'Containment Unit Calculations'!E15)*TEMPERATURE!$G27/TEMPERATURE!$H$18,IF(AND(Interface!G$7=Validation!$F$5,'CAPEX '!$M$17='Containment Unit Calculations'!F12),('Containment Unit Calculations'!F13*'Containment Unit Calculations'!F14*'Containment Unit Calculations'!F15)*TEMPERATURE!$G27/TEMPERATURE!$H$18,('Containment Unit Calculations'!H13*'Containment Unit Calculations'!H14*'Containment Unit Calculations'!H15)*TEMPERATURE!$G27/TEMPERATURE!$H$18)))) -> 4 | I27: 28 | J27: 112 | K27: 1460.97 | L27: 0.0146097 | M27: 0.001217475
F28: Northern Cape | G28: =(4.5+9)/2 -> 6.75 | H28: =IF(AND(OR(Interface!G$7=Validation!F$3,Interface!G$7=Validation!F$4),'CAPEX '!$D$17='Containment Unit Calculations'!R4),('Containment Unit Calculations'!Q5*'Containment Unit Calculations'!Q6)*TEMPERATURE!$G28/TEMPERATURE!$H$18*'Production Assumptions'!$C$153,IF(AND(OR(Interface!G$7=Validation!F$3,Interface!G$7=Validation!F$4),'CAPEX '!$D$17='Containment Unit Calculations'!S4),('Containment Unit Calculations'!S5*'Containment Unit Calculations'!S6)*TEMPERATURE!$G28/TEMPERATURE!$H$18*'Production Assumptions'!$C$153,IF(AND(Interface!G$7=Validation!$F$5,'CAPEX '!M17='Containment Unit Calculations'!E12),('Containment Unit Calculations'!E13*'Containment Unit Calculations'!E14*'Containment Unit Calculations'!E15)*TEMPERATURE!$G28/TEMPERATURE!$H$18,IF(AND(Interface!G$7=Validation!$F$5,'CAPEX '!$M$17='Containment Unit Calculations'!F12),('Containment Unit Calculations'!F13*'Containment Unit Calculations'!F14*'Containment Unit Calculations'!F15)*TEMPERATURE!$G28/TEMPERATURE!$H$18,('Containment Unit Calculations'!H13*'Containment Unit Calculations'!H14*'Containment Unit Calculations'!H15)*TEMPERATURE!$G28/TEMPERATURE!$H$18)))) -> 6.75 | I28: 47.25 | J28: 189 | K28: 2465.386875 | L28: 0.02465386875 | M28: 0.002054489063
F29: Eastern Cape | G29: =(3+5.5)/2 -> 4.25 | H29: =IF(AND(OR(Interface!G$7=Validation!F$3,Interface!G$7=Validation!F$4),'CAPEX '!$D$17='Containment Unit Calculations'!R4),('Containment Unit Calculations'!Q5*'Containment Unit Calculations'!Q6)*TEMPERATURE!$G29/TEMPERATURE!$H$18*'Production Assumptions'!$C$153,IF(AND(OR(Interface!G$7=Validation!F$3,Interface!G$7=Validation!F$4),'CAPEX '!$D$17='Containment Unit Calculations'!S4),('Containment Unit Calculations'!S5*'Containment Unit Calculations'!S6)*TEMPERATURE!$G29/TEMPERATURE!$H$18*'Production Assumptions'!$C$153,IF(AND(Interface!G$7=Validation!$F$5,'CAPEX '!M17='Containment Unit Calculations'!E12),('Containment Unit Calculations'!E13*'Containment Unit Calculations'!E14*'Containment Unit Calculations'!E15)*TEMPERATURE!$G29/TEMPERATURE!$H$18,IF(AND(Interface!G$7=Validation!$F$5,'CAPEX '!$M$17='Containment Unit Calculations'!F12),('Containment Unit Calculations'!F13*'Containment Unit Calculations'!F14*'Containment Unit Calculations'!F15)*TEMPERATURE!$G29/TEMPERATURE!$H$18,('Containment Unit Calculations'!H13*'Containment Unit Calculations'!H14*'Containment Unit Calculations'!H15)*TEMPERATURE!$G29/TEMPERATURE!$H$18)))) -> 4.25 | I29: 29.75 | J29: 119 | K29: 1552.280625 | L29: 0.01552280625 | M29: 0.001293567188
A46: *Department of Water Affairs, 2014

Sheet OPEX - Pond
A1: OPERATIONAL EXPENDITURE - POND
P2: 1 | AB2: 1 | AC2: 2 | AD2: 3 | AE2: 4 | AF2: 5 | AG2: 6 | AH2: 7 | AI2: 8 | AJ2: 9
C3: YEAR 1 | D3: =C3 -> YEAR 1 | P3: YEAR 2 | Q3: Year 2 | AC3: YEAR 3 | AD3: YEAR 4 | AE3: YEAR 5 | AF3: YEAR 6 | AG3: YEAR 7 | AH3: YEAR 8 | AI3: YEAR 9 | AJ3: YEAR 10
D4: Month 1 | E4: Month 2 | F4: Month 3 | G4: Month 4 | H4: Month 5 | I4: Month 6 | J4: Month 7 | K4: Month 8 | L4: Month 9 | M4: Month 10 | N4: Month 11 | O4: Month 12 | Q4: Month 1 | R4: Month 2 | S4: Month 3 | T4: Month 4 | U4: Month 5 | V4: Month 6 | W4: Month 7 | X4: Month 8 | Y4: Month 9 | Z4: Month 10 | AA4: Month 11 | AB4: Month 12
B5: Income from Sales:
B6: Catfish (Live, Fresh, frozen) | C6: =SUM(D6:O6) -> 1257244.284 | D6: =IF(Interface!$E$17=Validation!D39,(('Production Cycle'!B9/1000)*Interface!I7),0) -> 0 | E6: =IF(Interface!$E$17=Validation!D39,D6,IF(Interface!$E$17=Validation!D40,(('Production Cycle'!C9/1000)*Interface!I7),0)) -> 0 | F6: =IF(Interface!$E$17=Validation!D39,D6,IF(Interface!$E$17=Validation!D40,E6,IF(Interface!$E$17=Validation!D41,(('Production Cycle'!D9/1000)*Interface!I7),0))) -> 0 | G6: =IF(Interface!$E$17=Validation!D39,D6,IF(Interface!$E$17=Validation!D40,E6,IF(Interface!$E$17=Validation!D41,F6,IF(Interface!$E$17=Validation!D42,(('Production Cycle'!E9/1000)*Interface!I7),0)))) -> 0 | H6: =IF(Interface!$E$17=Validation!D39,D6,IF(Interface!$E$17=Validation!D40,E6,IF(Interface!$E$17=Validation!D41,F6,IF(Interface!$E$17=Validation!D42,G6,IF(Interface!$E$17=Validation!D43,(('Production Cycle'!F9*'Production Cycle'!F8)/1000*Interface!I7),0))))) -> 0 | I6: =IF(Interface!$E$17=Validation!D39,D6,IF(Interface!$E$17=Validation!D40,E6,IF(Interface!$E$17=Validation!D41,F6,IF(Interface!$E$17=Validation!D42,G6,IF(Interface!$E$17=Validation!D43,H6,IF(Interface!$E$17=Validation!D44,(('Production Cycle'!G8*'Production Cycle'!G9)/1000)*Interface!I7,0)))))) -> 0 | J6: =IF(Interface!$E$17=Validation!D39,D6,IF(Interface!$E$17=Validation!D40,E6,IF(Interface!$E$17=Validation!D41,F6,IF(Interface!$E$17=Validation!D42,G6,IF(Interface!$E$17=Validation!D43,H6,IF(Interface!$E$17=Validation!D44,I6,IF(Interface!$E$17=Validation!D45,(('Production Cycle'!H8*'Production Cycle'!H9)/1000)*Interface!I7,0))))))) -> 209540.714 | K6: =IF(Interface!$E$17=Validation!D39,D6,IF(Interface!$E$17=Validation!D40,E6,IF(Interface!$E$17=Validation!D41,F6,IF(Interface!$E$17=Validation!D42,G6,IF(Interface!$E$17=Validation!D43,H6,IF(Interface!$E$17=Validation!D44,I6,IF(Interface!$E$17=Validation!D45,J6,IF(Interface!$E$17=Validation!D46,(('Production Cycle'!I8*'Production Cycle'!I9)/1000)*Interface!I7,0)))))))) -> 209540.714 | L6: =K6 -> 209540.714 | M6: =L6 -> 209540.714 | N6: 209540.714 | O6: 209540.714 | P6: =SUM(Q6:AB6) -> 2642727.485 | Q6: =O6*'Production Assumptions'!C7 -> 220227.2904 | R6: =$Q$6 -> 220227.2904 | S6: =$Q$6 -> 220227.2904 | T6: 220227.2904 | U6: 220227.2904 | V6: 220227.2904 | W6: 220227.2904 | X6: 220227.2904 | Y6: 220227.2904 | Z6: 220227.2904 | AA6: 220227.2904 | AB6: 220227.2904 | AC6: =($AB$6*'Production Assumptions'!$C$7)*12 -> 2777506.587 | AD6: =($AB$6*12)*('Production Assumptions'!$C$7)^AC2 -> 2919159.423 | AE6: =($AB$6*12)*('Production Assumptions'!$C$7)^AD2 -> 3068036.553 | AF6: =($AB$6*12)*('Production Assumptions'!$C$7)^AE2 -> 3224506.417 | AG6: =($AB$6*12)*('Production Assumptions'!$C$7)^AF2 -> 3388956.245 | AH6: =($AB$6*12)*('Production Assumptions'!$C$7)^AG2 -> 3561793.013 | AI6: =($AB$6*12)*('Production Assumptions'!$C$7)^AH2 -> 3743444.457 | AJ6: =($AB$6*12)*('Production Assumptions'!$C$7)^AI2 -> 3934360.124
B7: TOTAL INCOME: | C7: =SUM(D7:O7) -> 1257244.284 | D7: =SUM(D6:D6) -> 0 | E7: 0 | F7: 0 | G7: 0 | H7: 0 | I7: 0 | J7: 209540.714 | K7: 209540.714 | L7: 209540.714 | M7: 209540.714 | N7: 209540.714 | O7: 209540.714 | P7: 2642727.485 | Q7: 220227.2904 | R7: 220227.2904 | S7: 220227.2904 | T7: 220227.2904 | U7: 220227.2904 | V7: 220227.2904 | W7: 220227.2904 | X7: 220227.2904 | Y7: 220227.2904 | Z7: 220227.2904 | AA7: 220227.2904 | AB7: 220227.2904 | AC7: 2777506.587 | AD7: 2919159.423 | AE7: 3068036.553 | AF7: 3224506.417 | AG7: 3388956.245 | AH7: 3561793.013 | AI7: 3743444.457 | AJ7: 3934360.124
B9: VARIABLE COSTS:
B10: Fingerlings | C10: =SUM(D10:O10) -> 91855.48071 | D10: =IF('Production Cycle'!B178<=20000,'Production Cycle'!B178*'Built-In Assumptions'!E15,'Built-In Assumptions'!E16*'Production Cycle'!B178) -> 7654.623393 | E10: =(('Production Cycle'!$B$9)*'Production Assumptions'!$C$17) -> 7654.623393 | F10: =(('Production Cycle'!$B$9)*'Production Assumptions'!$C$17) -> 7654.623393 | G10: =(('Production Cycle'!$B$9)*'Production Assumptions'!$C$17) -> 7654.623393 | H10: =(('Production Cycle'!$B$9)*'Production Assumptions'!$C$17) -> 7654.623393 | I10: =(('Production Cycle'!$B$9)*'Production Assumptions'!$C$17) -> 7654.623393 | J10: =(('Production Cycle'!$B$9)*'Production Assumptions'!$C$17) -> 7654.623393 | K10: =(('Production Cycle'!$B$9)*'Production Assumptions'!$C$17) -> 7654.623393 | L10: =(('Production Cycle'!$B$9)*'Production Assumptions'!$C$17) -> 7654.623393 | M10: =(('Production Cycle'!$B$9)*'Production Assumptions'!$C$17) -> 7654.623393 | N10: =(('Production Cycle'!$B$9)*'Production Assumptions'!$C$17) -> 7654.623393 | O10: =(('Production Cycle'!$B$9)*'Production Assumptions'!$C$17) -> 7654.623393 | P10: =SUM(Q10:AB10) -> 96540.11023 | Q10: =$O$10*('Production Assumptions'!$C$7) -> 8045.009186 | R10: =$O$10*('Production Assumptions'!$C$7) -> 8045.009186 | S10: =$O$10*('Production Assumptions'!$C$7) -> 8045.009186 | T10: =$O$10*('Production Assumptions'!$C$7) -> 8045.009186 | U10: =$O$10*('Production Assumptions'!$C$7) -> 8045.009186 | V10: =$O$10*('Production Assumptions'!$C$7) -> 8045.009186 | W10: =$O$10*('Production Assumptions'!$C$7) -> 8045.009186 | X10: =$O$10*('Production Assumptions'!$C$7) -> 8045.009186 | Y10: =$O$10*('Production Assumptions'!$C$7) -> 8045.009186 | Z10: =$O$10*('Production Assumptions'!$C$7) -> 8045.009186 | AA10: =$O$10*('Production Assumptions'!$C$7) -> 8045.009186 | AB10: =$O$10*('Production Assumptions'!$C$7) -> 8045.009186 | AC10: =P10*('Production Assumptions'!C7) -> 101463.6558 | AD10: =$P$10*('Production Assumptions'!$C$7)^AC2 -> 106638.3023 | AE10: =$P$10*('Production Assumptions'!$C$7)^AD2 -> 112076.8557 | AF10: =$P$10*('Production Assumptions'!$C$7)^AE2 -> 117792.7754 | AG10: =$P$10*('Production Assumptions'!$C$7)^AF2 -> 123800.2069 | AH10: =$P$10*('Production Assumptions'!$C$7)^AG2 -> 130114.0174 | AI10: =$P$10*('Production Assumptions'!$C$7)^AH2 -> 136749.8323 | AJ10: =$P$10*('Production Assumptions'!$C$7)^AI2 -> 143724.0738
B11: Fertiliser | C11: =SUM(D11:O11) -> 24166.66667 | D11: =((('CAPEX '!M17*'Production Assumptions'!G9)*'CAPEX '!N17)/4.5)*'Production Assumptions'!G5 -> 24166.66667 | E11: 0 | F11: 0 | G11: 0 | H11: 0 | I11: 0 | J11: 0 | K11: 0 | L11: 0 | M11: 0 | N11: 0 | O11: 0 | P11: =SUM(Q11:AB11) -> 25399.16667 | Q11: =$D$11*'Production Assumptions'!$C$7^'OPEX - Pond'!$P$2 -> 25399.16667 | R11: 0 | S11: 0 | T11: 0 | U11: 0 | V11: 0 | W11: 0 | X11: 0 | Y11: 0 | Z11: 0 | AA11: 0 | AB11: 0 | AC11: =P11*('Production Assumptions'!C7) -> 26694.52417 | AD11: =$P$11*('Production Assumptions'!$C$7)^AC2 -> 28055.9449 | AE11: =$P$11*('Production Assumptions'!$C$7)^AD2 -> 29486.79809 | AF11: =$P$11*('Production Assumptions'!$C$7)^AE2 -> 30990.62479 | AG11: =$P$11*('Production Assumptions'!$C$7)^AF2 -> 32571.14666 | AH11: =$P$11*('Production Assumptions'!$C$7)^AG2 -> 34232.27514 | AI11: =$P$11*('Production Assumptions'!$C$7)^AH2 -> 35978.12117 | AJ11: =$P$11*('Production Assumptions'!$C$7)^AI2 -> 37813.00535
B12: Feed | C12: =SUM(D12:O12) -> 307674.8329 | D12: =('Production Cycle'!B157*'Production Assumptions'!$H$31) -> 881.8126148 | E12: =IF(('Production Cycle'!C157*'Production Assumptions'!$H$31)=0,D12,('Production Cycle'!C157*'Production Assumptions'!$H$31)) -> 2249.133114 | F12: =IF(('Production Cycle'!D157*'Production Assumptions'!$H$31)=0,E12,('Production Cycle'!D157*'Production Assumptions'!$H$31)) -> 5357.911352 | G12: =IF(('Production Cycle'!E157*'Production Assumptions'!$H$31)=0,F12,('Production Cycle'!E157*'Production Assumptions'!$H$31)) -> 9350.015982 | H12: =IF(('Production Cycle'!F157*'Production Assumptions'!$H$31)=0,G12,('Production Cycle'!F157*'Production Assumptions'!$H$31)) -> 16203.505 | I12: =IF(('Production Cycle'!G157*'Production Assumptions'!$H$31)=0,H12,('Production Cycle'!G157*'Production Assumptions'!$H$31)) -> 26338.61389 | J12: =IF(('Production Cycle'!H157*'Production Assumptions'!$H$31)=0,I12,('Production Cycle'!H157*'Production Assumptions'!$H$31)) -> 41215.64017 | K12: =IF(('Production Cycle'!I157*'Production Assumptions'!$H$31)=0,J12,('Production Cycle'!I157*'Production Assumptions'!$H$31)) -> 41215.64017 | L12: =K12 -> 41215.64017 | M12: =L12 -> 41215.64017 | N12: =M12 -> 41215.64017 | O12: =N12 -> 41215.64017 | P12: 519811.6538 | Q12: =(O12*'Production Assumptions'!C7) -> 43317.63781 | R12: =$Q$12 -> 43317.63781 | S12: =$Q$12 -> 43317.63781 | T12: 43317.63781 | U12: 43317.63781 | V12: 43317.63781 | W12: 43317.63781 | X12: 43317.63781 | Y12: 43317.63781 | Z12: 43317.63781 | AA12: 43317.63781 | AB12: 43317.63781 | AC12: =(AB12*12)*('Production Assumptions'!C7) -> 546322.0481 | AD12: =($AB$12*12)*('Production Assumptions'!$C$7)^AC2 -> 574184.4726 | AE12: =($AB$12*12)*('Production Assumptions'!$C$7)^AD2 -> 603467.8807 | AF12: =($AB$12*12)*('Production Assumptions'!$C$7)^AE2 -> 634244.7426 | AG12: =($AB$12*12)*('Production Assumptions'!$C$7)^AF2 -> 666591.2244 | AH12: =($AB$12*12)*('Production Assumptions'!$C$7)^AG2 -> 700587.3769 | AI12: =($AB$12*12)*('Production Assumptions'!$C$7)^AH2 -> 736317.3331 | AJ12: =($AB$12*12)*('Production Assumptions'!$C$7)^AI2 -> 773869.5171
B13: Water Quality Consumables | C13: =SUM(D13:O13) -> 7500 | D13: =IF(Interface!J7<20,'Production Assumptions'!$F$125,'Production Assumptions'!F131) -> 7500 | P13: =SUM(Q13:AB13) -> 0 | R13: =$O$13*'Production Assumptions'!$C$7 -> 0 | S13: =$O$13*'Production Assumptions'!$C$7 -> 0 | T13: =$O$13*'Production Assumptions'!$C$7 -> 0 | U13: =$O$13*'Production Assumptions'!$C$7 -> 0 | V13: =$O$13*'Production Assumptions'!$C$7 -> 0 | W13: =$O$13*'Production Assumptions'!$C$7 -> 0 | X13: =$O$13*'Production Assumptions'!$C$7 -> 0 | Y13: =$O$13*'Production Assumptions'!$C$7 -> 0 | Z13: =$O$13*'Production Assumptions'!$C$7 -> 0 | AA13: =$O$13*'Production Assumptions'!$C$7 -> 0 | AB13: =$O$13*'Production Assumptions'!$C$7 -> 0 | AC13: =($Q$13*'Production Assumptions'!$C$7^'OPEX - Pond'!AB2) -> 0 | AD13: =($Q$13*'Production Assumptions'!$C$7^'OPEX - Pond'!AC2) -> 0 | AE13: =($Q$13*'Production Assumptions'!$C$7^'OPEX - Pond'!AD2) -> 0 | AF13: =($Q$13*'Production Assumptions'!$C$7^'OPEX - Pond'!AE2) -> 0 | AG13: =($Q$13*'Production Assumptions'!$C$7^'OPEX - Pond'!AF2) -> 0 | AH13: =($Q$13*'Production Assumptions'!$C$7^'OPEX - Pond'!AG2) -> 0 | AI13: =($Q$13*'Production Assumptions'!$C$7^'OPEX - Pond'!AH2) -> 0 | AJ13: =($Q$13*'Production Assumptions'!$C$7^'OPEX - Pond'!AI2) -> 0
B14: Transport Costs | C14: =SUM(D14:O14) -> 361800.0219 | D14: =IF(AND(Interface!$H$7="International Markets",Interface!$E$17=Validation!$D$39),'Production Assumptions'!$C$143,IF(AND(Interface!$H$7=Validation!$H$3,Interface!$E$17=Validation!$D$39),'Production Assumptions'!$C$126,300)) -> 300 | E14: =IF(AND(Interface!$H$7="International Markets",Interface!$E$17=Validation!$D$40),'Production Assumptions'!$C$143,IF(AND(Interface!$H$7=Validation!$H$3,Interface!$E$17=Validation!$D$40),'Production Assumptions'!$C$126,D14)) -> 300 | F14: =IF(AND(Interface!$H$7="International Markets",Interface!$E$17=Validation!$D$41),'Production Assumptions'!$C$143,IF(AND(Interface!$H$7=Validation!$H$3,Interface!$E$17=Validation!$D$41),'Production Assumptions'!$C$126,E14)) -> 300 | G14: =IF(AND(Interface!$H$7="International Markets",Interface!$E$17=Validation!$D$42),'Production Assumptions'!$C$143,IF(AND(Interface!$H$7=Validation!$H$3,Interface!$E$17=Validation!$D$42),'Production Assumptions'!$C$126,F14)) -> 300 | H14: =IF(AND(Interface!$H$7="International Markets",Interface!$E$17=Validation!$D$43),'Production Assumptions'!$C$143,IF(AND(Interface!$H$7=Validation!$H$3,Interface!$E$17=Validation!$D$43),'Production Assumptions'!$C$126,G14)) -> 300 | I14: =IF(AND(Interface!$H$7="International Markets",Interface!$E$17=Validation!$D$44),'Production Assumptions'!$C$143,IF(AND(Interface!$H$7=Validation!$H$3,Interface!$E$17=Validation!$D$44),'Production Assumptions'!$C$126,H14)) -> 300 | J14: =IF(AND(Interface!$H$7="International Markets",Interface!$E$17=Validation!$D$45),'Production Assumptions'!$C$143,IF(AND(Interface!$H$7=Validation!$H$3,Interface!$E$17=Validation!$D$45),'Production Assumptions'!$C$126,I14)) -> 60000.00365 | K14: =IF(AND(Interface!$H$7="International Markets",Interface!$E$17=Validation!$D$46),'Production Assumptions'!$C$143,IF(AND(Interface!$H$7=Validation!$H$3,Interface!$E$17=Validation!$D$46),'Production Assumptions'!$C$126,J14)) -> 60000.00365 | L14: =IF(AND(Interface!$H$7="International Markets",Interface!$E$17=Validation!$D$47),'Production Assumptions'!$C$143,IF(AND(Interface!$H$7=Validation!$H$3,Interface!$E$17=Validation!$D$47),'Production Assumptions'!$C$126,K14)) -> 60000.00365 | M14: =IF(AND(Interface!$H$7="International Markets",Interface!$E$17=Validation!$D$48),'Production Assumptions'!$C$143,IF(AND(Interface!$H$7=Validation!$H$3,Interface!$E$17=Validation!$D$48),'Production Assumptions'!$C$126,L14)) -> 60000.00365 | N14: =IF(AND(Interface!$H$7="International Markets",Interface!$E$17=Validation!$D$49),'Production Assumptions'!$C$143,IF(AND(Interface!$H$7=Validation!$H$3,Interface!$E$17=Validation!$D$49),'Production Assumptions'!$C$126,M14)) -> 60000.00365 | O14: =IF(AND(Interface!$H$7="International Markets",Interface!$E$17=Validation!$D$50),'Production Assumptions'!$C$143,IF(AND(Interface!$H$7=Validation!$H$3,Interface!$E$17=Validation!$D$50),'Production Assumptions'!$C$126,N14)) -> 60000.00365 | P14: =SUM(Q14:AB14) -> 756720.046 | Q14: =O14*'Production Assumptions'!C7 -> 63060.00384 | R14: =Q14 -> 63060.00384 | S14: =R14 -> 63060.00384 | T14: 63060.00384 | U14: 63060.00384 | V14: 63060.00384 | W14: 63060.00384 | X14: 63060.00384 | Y14: 63060.00384 | Z14: 63060.00384 | AA14: 63060.00384 | AB14: 63060.00384 | AC14: =($AB$14*12)*('Production Assumptions'!$C$7) -> 795312.7684 | AD14: =($AB$14*12)*('Production Assumptions'!$C$7)^AC2 -> 835873.7196 | AE14: =($AB$14*12)*('Production Assumptions'!$C$7)^AD2 -> 878503.2793 | AF14: =($AB$14*12)*('Production Assumptions'!$C$7)^AE2 -> 923306.9465 | AG14: =($AB$14*12)*('Production Assumptions'!$C$7)^AF2 -> 970395.6008 | AH14: =($AB$14*12)*('Production Assumptions'!$C$7)^AG2 -> 1019885.776 | AI14: =($AB$14*12)*('Production Assumptions'!$C$7)^AH2 -> 1071899.951 | AJ14: =($AB$14*12)*('Production Assumptions'!$C$7)^AI2 -> 1126566.849
B15: Water | C15: 0 | D15: 0 | E15: 0 | F15: 0 | G15: 0 | H15: 0 | I15: 0 | J15: 0 | K15: 0 | L15: 0 | M15: 0 | N15: 0 | O15: 0 | P15: 0 | Q15: =$O$15*('Production Assumptions'!$C$7) -> 0 | R15: =$O$15*('Production Assumptions'!$C$7) -> 0 | S15: =$O$15*('Production Assumptions'!$C$7) -> 0 | T15: =$O$15*('Production Assumptions'!$C$7) -> 0 | U15: =$O$15*('Production Assumptions'!$C$7) -> 0 | V15: =$O$15*('Production Assumptions'!$C$7) -> 0 | W15: =$O$15*('Production Assumptions'!$C$7) -> 0 | X15: =$O$15*('Production Assumptions'!$C$7) -> 0 | Y15: =$O$15*('Production Assumptions'!$C$7) -> 0 | Z15: =$O$15*('Production Assumptions'!$C$7) -> 0 | AA15: =$O$15*('Production Assumptions'!$C$7) -> 0 | AB15: =$O$15*('Production Assumptions'!$C$7) -> 0 | AC15: =($AB$15*('Production Assumptions'!$C$7)^AB2)*12 -> 0 | AD15: =($AB$15*('Production Assumptions'!$C$7)^AC2)*12 -> 0 | AE15: =($AB$15*('Production Assumptions'!$C$7)^AD2)*12 -> 0 | AF15: =($AB$15*('Production Assumptions'!$C$7)^AE2)*12 -> 0 | AG15: =($AB$15*('Production Assumptions'!$C$7)^AF2)*12 -> 0 | AH15: =($AB$15*('Production Assumptions'!$C$7)^AG2)*12 -> 0 | AI15: =($AB$15*('Production Assumptions'!$C$7)^AH2)*12 -> 0 | AJ15: =($AB$15*('Production Assumptions'!$C$7)^AI2)*12 -> 0
B16: TOTAL VARIABLE COST: | C16: =SUM(C10:C15) -> 792997.0022 | D16: 40503.10267 | E16: 10203.75651 | F16: 13312.53474 | G16: 17304.63937 | H16: 24158.12839 | I16: 34293.23728 | J16: 108870.2672 | K16: 108870.2672 | L16: 108870.2672 | M16: 108870.2672 | N16: 108870.2672 | O16: 108870.2672 | P16: 1398470.977 | Q16: 139821.8175 | R16: 114422.6508 | S16: 114422.6508 | T16: 114422.6508 | U16: 114422.6508 | V16: 114422.6508 | W16: 114422.6508 | X16: 114422.6508 | Y16: 114422.6508 | Z16: 114422.6508 | AA16: 114422.6508 | AB16: 114422.6508 | AC16: 1469792.997 | AD16: 1544752.439 | AE16: 1623534.814 | AF16: 1706335.089 | AG16: 1793358.179 | AH16: 1884819.446 | AI16: 1980945.238 | AJ16: 2081973.445
B18: FIXED COSTS:
B19: Salaries - Staff | C19: =SUM(D19:O19) -> 510000 | D19: =HR!E28 -> 42500 | E19: =HR!F28 -> 42500 | F19: =HR!G28 -> 42500 | G19: =HR!H28 -> 42500 | H19: =HR!I28 -> 42500 | I19: =HR!J28 -> 42500 | J19: =HR!K28 -> 42500 | K19: =HR!L28 -> 42500 | L19: =HR!M28 -> 42500 | M19: =HR!N28 -> 42500 | N19: =HR!O28 -> 42500 | O19: =HR!P28 -> 42500 | P19: =SUM(Q19:AB19) -> 536010 | Q19: =HR!R28 -> 44667.5 | R19: =HR!S28 -> 44667.5 | S19: =HR!T28 -> 44667.5 | T19: =HR!U28 -> 44667.5 | U19: =HR!V28 -> 44667.5 | V19: =HR!W28 -> 44667.5 | W19: =HR!X28 -> 44667.5 | X19: =HR!Y28 -> 44667.5 | Y19: =HR!Z28 -> 44667.5 | Z19: =HR!AA28 -> 44667.5 | AA19: =HR!AB28 -> 44667.5 | AB19: =HR!AC28 -> 44667.5 | AC19: =($AB$19*('Production Assumptions'!$C$7)^AB2)*12 -> 563346.51 | AD19: =($AB$19*('Production Assumptions'!$C$7)^AC2)*12 -> 592077.182 | AE19: =($AB$19*('Production Assumptions'!$C$7)^AD2)*12 -> 622273.1183 | AF19: =($AB$19*('Production Assumptions'!$C$7)^AE2)*12 -> 654009.0473 | AG19: =($AB$19*('Production Assumptions'!$C$7)^AF2)*12 -> 687363.5087 | AH19: =($AB$19*('Production Assumptions'!$C$7)^AG2)*12 -> 722419.0477 | AI19: =($AB$19*('Production Assumptions'!$C$7)^AH2)*12 -> 759262.4191 | AJ19: =($AB$19*('Production Assumptions'!$C$7)^AI2)*12 -> 797984.8025
B20: Insurance | C20: =SUM(D20:O20) -> 120000 | D20: =IF(Interface!$J$7<10,0,'Production Assumptions'!C15*(1+Interface!$J$7*'Production Assumptions'!$C$124)) -> 10000 | E20: =IF(Interface!$J$7<9,0,'Production Assumptions'!$C$15*(1+Interface!$J$7*'Production Assumptions'!$C$124)) -> 10000 | F20: =IF(Interface!$J$7<9,0,'Production Assumptions'!$C$15*(1+Interface!$J$7*'Production Assumptions'!$C$124)) -> 10000 | G20: =IF(Interface!$J$7<9,0,'Production Assumptions'!$C$15*(1+Interface!$J$7*'Production Assumptions'!$C$124)) -> 10000 | H20: =IF(Interface!$J$7<9,0,'Production Assumptions'!$C$15*(1+Interface!$J$7*'Production Assumptions'!$C$124)) -> 10000 | I20: =IF(Interface!$J$7<9,0,'Production Assumptions'!$C$15*(1+Interface!$J$7*'Production Assumptions'!$C$124)) -> 10000 | J20: =IF(Interface!$J$7<9,0,'Production Assumptions'!$C$15*(1+Interface!$J$7*'Production Assumptions'!$C$124)) -> 10000 | K20: =IF(Interface!$J$7<9,0,'Production Assumptions'!$C$15*(1+Interface!$J$7*'Production Assumptions'!$C$124)) -> 10000 | L20: =IF(Interface!$J$7<9,0,'Production Assumptions'!$C$15*(1+Interface!$J$7*'Production Assumptions'!$C$124)) -> 10000 | M20: =IF(Interface!$J$7<9,0,'Production Assumptions'!$C$15*(1+Interface!$J$7*'Production Assumptions'!$C$124)) -> 10000 | N20: =IF(Interface!$J$7<9,0,'Production Assumptions'!$C$15*(1+Interface!$J$7*'Production Assumptions'!$C$124)) -> 10000 | O20: =IF(Interface!$J$7<9,0,'Production Assumptions'!$C$15*(1+Interface!$J$7*'Production Assumptions'!$C$124)) -> 10000 | P20: =SUM(Q20:AB20) -> 126120 | Q20: =IF(Interface!$J$7<9,0,('Production Assumptions'!$C$15*(1+Interface!$J$7*'Production Assumptions'!$C$124))*('Production Assumptions'!$C$7)) -> 10510 | R20: =IF(Interface!$J$7<9,0,('Production Assumptions'!$C$15*(1+Interface!$J$7*'Production Assumptions'!$C$124))*('Production Assumptions'!$C$7)) -> 10510 | S20: =IF(Interface!$J$7<9,0,('Production Assumptions'!$C$15*(1+Interface!$J$7*'Production Assumptions'!$C$124))*('Production Assumptions'!$C$7)) -> 10510 | T20: =IF(Interface!$J$7<9,0,('Production Assumptions'!$C$15*(1+Interface!$J$7*'Production Assumptions'!$C$124))*('Production Assumptions'!$C$7)) -> 10510 | U20: =IF(Interface!$J$7<9,0,('Production Assumptions'!$C$15*(1+Interface!$J$7*'Production Assumptions'!$C$124))*('Production Assumptions'!$C$7)) -> 10510 | V20: =IF(Interface!$J$7<9,0,('Production Assumptions'!$C$15*(1+Interface!$J$7*'Production Assumptions'!$C$124))*('Production Assumptions'!$C$7)) -> 10510 | W20: =IF(Interface!$J$7<9,0,('Production Assumptions'!$C$15*(1+Interface!$J$7*'Production Assumptions'!$C$124))*('Production Assumptions'!$C$7)) -> 10510 | X20: =IF(Interface!$J$7<9,0,('Production Assumptions'!$C$15*(1+Interface!$J$7*'Production Assumptions'!$C$124))*('Production Assumptions'!$C$7)) -> 10510 | Y20: =IF(Interface!$J$7<9,0,('Production Assumptions'!$C$15*(1+Interface!$J$7*'Production Assumptions'!$C$124))*('Production Assumptions'!$C$7)) -> 10510 | Z20: =IF(Interface!$J$7<9,0,('Production Assumptions'!$C$15*(1+Interface!$J$7*'Production Assumptions'!$C$124))*('Production Assumptions'!$C$7)) -> 10510 | AA20: =IF(Interface!$J$7<9,0,('Production Assumptions'!$C$15*(1+Interface!$J$7*'Production Assumptions'!$C$124))*('Production Assumptions'!$C$7)) -> 10510 | AB20: =IF(Interface!$J$7<9,0,('Production Assumptions'!$C$15*(1+Interface!$J$7*'Production Assumptions'!$C$124))*('Production Assumptions'!$C$7)) -> 10510 | AC20: =($O$20*('Production Assumptions'!$C$7)^AB2)*12 -> 126120 | AD20: =($O$20*('Production Assumptions'!$C$7)^AC2)*12 -> 132552.12 | AE20: =($O$20*('Production Assumptions'!$C$7)^AD2)*12 -> 139312.2781 | AF20: =($O$20*('Production Assumptions'!$C$7)^AE2)*12 -> 146417.2043 | AG20: =($O$20*('Production Assumptions'!$C$7)^AF2)*12 -> 153884.4817 | AH20: =($O$20*('Production Assumptions'!$C$7)^AG2)*12 -> 161732.5903 | AI20: =($O$20*('Production Assumptions'!$C$7)^AH2)*12 -> 169980.9524 | AJ20: =($O$20*('Production Assumptions'!$C$7)^AI2)*12 -> 178649.981
B21: Telephone Expenses | C21: 6000 | D21: ='Production Assumptions'!$C$127 -> 500 | E21: ='Production Assumptions'!$C$127 -> 500 | F21: ='Production Assumptions'!$C$127 -> 500 | G21: ='Production Assumptions'!$C$127 -> 500 | H21: ='Production Assumptions'!$C$127 -> 500 | I21: ='Production Assumptions'!$C$127 -> 500 | J21: ='Production Assumptions'!$C$127 -> 500 | K21: ='Production Assumptions'!$C$127 -> 500 | L21: ='Production Assumptions'!$C$127 -> 500 | M21: ='Production Assumptions'!$C$127 -> 500 | N21: ='Production Assumptions'!$C$127 -> 500 | O21: ='Production Assumptions'!$C$127 -> 500 | P21: 6306 | Q21: =$O$21*('Production Assumptions'!$C$7) -> 525.5 | R21: =$O$21*('Production Assumptions'!$C$7) -> 525.5 | S21: =$O$21*('Production Assumptions'!$C$7) -> 525.5 | T21: =$O$21*('Production Assumptions'!$C$7) -> 525.5 | U21: =$O$21*('Production Assumptions'!$C$7) -> 525.5 | V21: =$O$21*('Production Assumptions'!$C$7) -> 525.5 | W21: =$O$21*('Production Assumptions'!$C$7) -> 525.5 | X21: =$O$21*('Production Assumptions'!$C$7) -> 525.5 | Y21: =$O$21*('Production Assumptions'!$C$7) -> 525.5 | Z21: =$O$21*('Production Assumptions'!$C$7) -> 525.5 | AA21: =$O$21*('Production Assumptions'!$C$7) -> 525.5 | AB21: =$O$21*('Production Assumptions'!$C$7) -> 525.5 | AC21: =($AB$21*('Production Assumptions'!$C$7))*12 -> 6627.606 | AD21: =($AB$21*('Production Assumptions'!$C$7)^AC2)*12 -> 6965.613906 | AE21: =($AB$21*('Production Assumptions'!$C$7)^AD2)*12 -> 7320.860215 | AF21: =($AB$21*('Production Assumptions'!$C$7)^AE2)*12 -> 7694.224086 | AG21: =($AB$21*('Production Assumptions'!$C$7)^AF2)*12 -> 8086.629515 | AH21: =($AB$21*('Production Assumptions'!$C$7)^AG2)*12 -> 8499.04762 | AI21: =($AB$21*('Production Assumptions'!$C$7)^AH2)*12 -> 8932.499048 | AJ21: =($AB$21*('Production Assumptions'!$C$7)^AI2)*12 -> 9388.0565
B22: Security (specific to facility) | C22: 19200 | D22: =IF(Interface!$J$7<10,0,'Production Assumptions'!$C$12*(1+Interface!$J$7*'Production Assumptions'!$C$124)) -> 1600 | E22: =IF(Interface!$J$7<10,0,'Production Assumptions'!$C$12*(1+Interface!$J$7*'Production Assumptions'!$C$124)) -> 1600 | F22: =IF(Interface!$J$7<10,0,'Production Assumptions'!$C$12*(1+Interface!$J$7*'Production Assumptions'!$C$124)) -> 1600 | G22: =IF(Interface!$J$7<10,0,'Production Assumptions'!$C$12*(1+Interface!$J$7*'Production Assumptions'!$C$124)) -> 1600 | H22: =IF(Interface!$J$7<10,0,'Production Assumptions'!$C$12*(1+Interface!$J$7*'Production Assumptions'!$C$124)) -> 1600 | I22: =IF(Interface!$J$7<10,0,'Production Assumptions'!$C$12*(1+Interface!$J$7*'Production Assumptions'!$C$124)) -> 1600 | J22: =IF(Interface!$J$7<10,0,'Production Assumptions'!$C$12*(1+Interface!$J$7*'Production Assumptions'!$C$124)) -> 1600 | K22: =IF(Interface!$J$7<10,0,'Production Assumptions'!$C$12*(1+Interface!$J$7*'Production Assumptions'!$C$124)) -> 1600 | L22: =IF(Interface!$J$7<10,0,'Production Assumptions'!$C$12*(1+Interface!$J$7*'Production Assumptions'!$C$124)) -> 1600 | M22: =IF(Interface!$J$7<10,0,'Production Assumptions'!$C$12*(1+Interface!$J$7*'Production Assumptions'!$C$124)) -> 1600 | N22: =IF(Interface!$J$7<10,0,'Production Assumptions'!$C$12*(1+Interface!$J$7*'Production Assumptions'!$C$124)) -> 1600 | O22: =IF(Interface!$J$7<10,0,'Production Assumptions'!$C$12*(1+Interface!$J$7*'Production Assumptions'!$C$124)) -> 1600 | P22: 10089.6 | Q22: =IF(Interface!$J$7<9,0,'Production Assumptions'!$C$12*'Production Assumptions'!$C$7) -> 840.8 | R22: =IF(Interface!$J$7<9,0,'Production Assumptions'!$C$12*'Production Assumptions'!$C$7) -> 840.8 | S22: =IF(Interface!$J$7<9,0,'Production Assumptions'!$C$12*'Production Assumptions'!$C$7) -> 840.8 | T22: =IF(Interface!$J$7<9,0,'Production Assumptions'!$C$12*'Production Assumptions'!$C$7) -> 840.8 | U22: =IF(Interface!$J$7<9,0,'Production Assumptions'!$C$12*'Production Assumptions'!$C$7) -> 840.8 | V22: =IF(Interface!$J$7<9,0,'Production Assumptions'!$C$12*'Production Assumptions'!$C$7) -> 840.8 | W22: =IF(Interface!$J$7<9,0,'Production Assumptions'!$C$12*'Production Assumptions'!$C$7) -> 840.8 | X22: =IF(Interface!$J$7<9,0,'Production Assumptions'!$C$12*'Production Assumptions'!$C$7) -> 840.8 | Y22: =IF(Interface!$J$7<9,0,'Production Assumptions'!$C$12*'Production Assumptions'!$C$7) -> 840.8 | Z22: =IF(Interface!$J$7<9,0,'Production Assumptions'!$C$12*'Production Assumptions'!$C$7) -> 840.8 | AA22: =IF(Interface!$J$7<9,0,'Production Assumptions'!$C$12*'Production Assumptions'!$C$7) -> 840.8 | AB22: =IF(Interface!$J$7<9,0,'Production Assumptions'!$C$12*'Production Assumptions'!$C$7) -> 840.8 | AC22: =($AB$22*'Production Assumptions'!$C$7^'OPEX - Pond'!AB2)*12 -> 10604.1696 | AD22: =($AB$22*'Production Assumptions'!$C$7^'OPEX - Pond'!AC2)*12 -> 11144.98225 | AE22: =($AB$22*'Production Assumptions'!$C$7^'OPEX - Pond'!AD2)*12 -> 11713.37634 | AF22: =($AB$22*'Production Assumptions'!$C$7^'OPEX - Pond'!AE2)*12 -> 12310.75854 | AG22: =($AB$22*'Production Assumptions'!$C$7^'OPEX - Pond'!AF2)*12 -> 12938.60722 | AH22: =($AB$22*'Production Assumptions'!$C$7^'OPEX - Pond'!AG2)*12 -> 13598.47619 | AI22: =($AB$22*'Production Assumptions'!$C$7^'OPEX - Pond'!AH2)*12 -> 14291.99848 | AJ22: =($AB$22*'Production Assumptions'!$C$7^'OPEX - Pond'!AI2)*12 -> 15020.8904
B23: Building Electricity | C23: =SUM(D23:O23) -> 36252 | D23: ='Production Assumptions'!$C$14*('CAPEX '!$M$6+'CAPEX '!$M$7+'CAPEX '!$M$8+'CAPEX '!$M$9) -> 3021 | E23: ='Production Assumptions'!$C$14*('CAPEX '!$M$6+'CAPEX '!$M$7+'CAPEX '!$M$8+'CAPEX '!$M$9) -> 3021 | F23: ='Production Assumptions'!$C$14*('CAPEX '!$M$6+'CAPEX '!$M$7+'CAPEX '!$M$8+'CAPEX '!$M$9) -> 3021 | G23: ='Production Assumptions'!$C$14*('CAPEX '!$M$6+'CAPEX '!$M$7+'CAPEX '!$M$8+'CAPEX '!$M$9) -> 3021 | H23: ='Production Assumptions'!$C$14*('CAPEX '!$M$6+'CAPEX '!$M$7+'CAPEX '!$M$8+'CAPEX '!$M$9) -> 3021 | I23: ='Production Assumptions'!$C$14*('CAPEX '!$M$6+'CAPEX '!$M$7+'CAPEX '!$M$8+'CAPEX '!$M$9) -> 3021 | J23: ='Production Assumptions'!$C$14*('CAPEX '!$M$6+'CAPEX '!$M$7+'CAPEX '!$M$8+'CAPEX '!$M$9) -> 3021 | K23: ='Production Assumptions'!$C$14*('CAPEX '!$M$6+'CAPEX '!$M$7+'CAPEX '!$M$8+'CAPEX '!$M$9) -> 3021 | L23: ='Production Assumptions'!$C$14*('CAPEX '!$M$6+'CAPEX '!$M$7+'CAPEX '!$M$8+'CAPEX '!$M$9) -> 3021 | M23: ='Production Assumptions'!$C$14*('CAPEX '!$M$6+'CAPEX '!$M$7+'CAPEX '!$M$8+'CAPEX '!$M$9) -> 3021 | N23: ='Production Assumptions'!$C$14*('CAPEX '!$M$6+'CAPEX '!$M$7+'CAPEX '!$M$8+'CAPEX '!$M$9) -> 3021 | O23: ='Production Assumptions'!$C$14*('CAPEX '!$M$6+'CAPEX '!$M$7+'CAPEX '!$M$8+'CAPEX '!$M$9) -> 3021 | P23: =SUM(Q23:AB23) -> 38100.852 | Q23: =$O$23*('Production Assumptions'!$C$7) -> 3175.071 | R23: =$O$23*('Production Assumptions'!$C$7) -> 3175.071 | S23: =$O$23*('Production Assumptions'!$C$7) -> 3175.071 | T23: =$O$23*('Production Assumptions'!$C$7) -> 3175.071 | U23: =$O$23*('Production Assumptions'!$C$7) -> 3175.071 | V23: =$O$23*('Production Assumptions'!$C$7) -> 3175.071 | W23: =$O$23*('Production Assumptions'!$C$7) -> 3175.071 | X23: =$O$23*('Production Assumptions'!$C$7) -> 3175.071 | Y23: =$O$23*('Production Assumptions'!$C$7) -> 3175.071 | Z23: =$O$23*('Production Assumptions'!$C$7) -> 3175.071 | AA23: =$O$23*('Production Assumptions'!$C$7) -> 3175.071 | AB23: =$O$23*('Production Assumptions'!$C$7) -> 3175.071 | AC23: =($AB$23*('Production Assumptions'!$C$7))*12 -> 40043.99545 | AD23: =($AB$23*('Production Assumptions'!$C$7)^AC2)*12 -> 42086.23922 | AE23: =($AB$23*('Production Assumptions'!$C$7)^AD2)*12 -> 44232.63742 | AF23: =($AB$23*('Production Assumptions'!$C$7)^AE2)*12 -> 46488.50193 | AG23: =($AB$23*('Production Assumptions'!$C$7)^AF2)*12 -> 48859.41553 | AH23: =($AB$23*('Production Assumptions'!$C$7)^AG2)*12 -> 51351.24572 | AI23: =($AB$23*('Production Assumptions'!$C$7)^AH2)*12 -> 53970.15925 | AJ23: =($AB$23*('Production Assumptions'!$C$7)^AI2)*12 -> 56722.63737
B24: System Electricity | C24: =SUM(D24:O24) -> 65599.6 | D24: ='CAPEX '!$F$58 -> 5466.633333 | E24: ='CAPEX '!$F$58 -> 5466.633333 | F24: ='CAPEX '!$F$58 -> 5466.633333 | G24: ='CAPEX '!$F$58 -> 5466.633333 | H24: ='CAPEX '!$F$58 -> 5466.633333 | I24: ='CAPEX '!$F$58 -> 5466.633333 | J24: ='CAPEX '!$F$58 -> 5466.633333 | K24: ='CAPEX '!$F$58 -> 5466.633333 | L24: ='CAPEX '!$F$58 -> 5466.633333 | M24: ='CAPEX '!$F$58 -> 5466.633333 | N24: ='CAPEX '!$F$58 -> 5466.633333 | O24: ='CAPEX '!$F$58 -> 5466.633333 | P24: 68945.1796 | Q24: =$O$24*('Production Assumptions'!$C$7) -> 5745.431633 | R24: =$O$24*('Production Assumptions'!$C$7) -> 5745.431633 | S24: =$O$24*('Production Assumptions'!$C$7) -> 5745.431633 | T24: =Q24 -> 5745.431633 | U24: =R24 -> 5745.431633 | V24: 5745.431633 | W24: 5745.431633 | X24: 5745.431633 | Y24: 5745.431633 | Z24: 5745.431633 | AA24: 5745.431633 | AB24: 5745.431633 | AC24: =($P$24*('Production Assumptions'!$C$7)) -> 72461.38376 | AD24: =($AC$24*('Production Assumptions'!$C$7)) -> 76156.91433 | AE24: =($AD$24*('Production Assumptions'!$C$7)) -> 80040.91696 | AF24: =($AE$24*('Production Assumptions'!$C$7)) -> 84123.00373 | AG24: =($AF$24*('Production Assumptions'!$C$7)) -> 88413.27692 | AH24: =($AG$24*('Production Assumptions'!$C$7)) -> 92922.35404 | AI24: =($AH$24*('Production Assumptions'!$C$7)) -> 97661.3941 | AJ24: =($AI$24*('Production Assumptions'!$C$7)) -> 102642.1252
B25: Sumps and waste water treatment | C25: =SUM(D25:O25) -> 12000 | D25: ='Production Assumptions'!$C$129 -> 1000 | E25: ='Production Assumptions'!$C$129 -> 1000 | F25: ='Production Assumptions'!$C$129 -> 1000 | G25: ='Production Assumptions'!$C$129 -> 1000 | H25: ='Production Assumptions'!$C$129 -> 1000 | I25: ='Production Assumptions'!$C$129 -> 1000 | J25: ='Production Assumptions'!$C$129 -> 1000 | K25: ='Production Assumptions'!$C$129 -> 1000 | L25: ='Production Assumptions'!$C$129 -> 1000 | M25: ='Production Assumptions'!$C$129 -> 1000 | N25: ='Production Assumptions'!$C$129 -> 1000 | O25: ='Production Assumptions'!$C$129 -> 1000 | P25: =SUM(Q25:AB25) -> 12612 | Q25: =D25*('Production Assumptions'!$C$7) -> 1051 | R25: =E25*('Production Assumptions'!$C$7) -> 1051 | S25: =F25*('Production Assumptions'!$C$7) -> 1051 | T25: =G25*('Production Assumptions'!$C$7) -> 1051 | U25: =H25*('Production Assumptions'!$C$7) -> 1051 | V25: =I25*('Production Assumptions'!$C$7) -> 1051 | W25: =J25*('Production Assumptions'!$C$7) -> 1051 | X25: =K25*('Production Assumptions'!$C$7) -> 1051 | Y25: =L25*('Production Assumptions'!$C$7) -> 1051 | Z25: =M25*('Production Assumptions'!$C$7) -> 1051 | AA25: =N25*('Production Assumptions'!$C$7) -> 1051 | AB25: =O25*('Production Assumptions'!$C$7) -> 1051 | AC25: =($AB$25*('Production Assumptions'!$C$7))*12 -> 13255.212 | AD25: =($AB$25*('Production Assumptions'!$C$7)^AC2)*12 -> 13931.22781 | AE25: =($AB$25*('Production Assumptions'!$C$7)^AD2)*12 -> 14641.72043 | AF25: =($AB$25*('Production Assumptions'!$C$7)^AE2)*12 -> 15388.44817 | AG25: =($AB$25*('Production Assumptions'!$C$7)^AF2)*12 -> 16173.25903 | AH25: =($AB$25*('Production Assumptions'!$C$7)^AG2)*12 -> 16998.09524 | AI25: =($AB$25*('Production Assumptions'!$C$7)^AH2)*12 -> 17864.9981 | AJ25: =($AB$25*('Production Assumptions'!$C$7)^AI2)*12 -> 18776.113
B26: Legal & licencing | C26: 200000 | D26: =IF(Interface!$J$7<Validation!$B$22,'Production Assumptions'!$D$147,IF(Interface!$J$7<Validation!$B$202,'Production Assumptions'!$D$148,'Production Assumptions'!$D$149)) -> 200000 | P26: =SUM(Q26:AB26) -> 0 | Q26: 0 | R26: =E26*('Production Assumptions'!$C$7) -> 0 | S26: =F26*('Production Assumptions'!$C$7) -> 0 | T26: =G26*('Production Assumptions'!$C$7) -> 0 | U26: =H26*('Production Assumptions'!$C$7) -> 0 | V26: =I26*('Production Assumptions'!$C$7) -> 0 | W26: =J26*('Production Assumptions'!$C$7) -> 0 | X26: =K26*('Production Assumptions'!$C$7) -> 0 | Y26: =L26*('Production Assumptions'!$C$7) -> 0 | Z26: =M26*('Production Assumptions'!$C$7) -> 0 | AA26: =N26*('Production Assumptions'!$C$7) -> 0 | AB26: =O26*('Production Assumptions'!$C$7) -> 0 | AC26: =$Q$26*('Production Assumptions'!$C$7) -> 0 | AD26: =$Q$26*('Production Assumptions'!$C$7)^AC2 -> 0 | AE26: =$D$26*('Production Assumptions'!$C$7)^AE2 -> 244028.6738 | AF26: =$Q$26*('Production Assumptions'!$C$7)^AE2 -> 0 | AG26: =$Q$26*('Production Assumptions'!$C$7)^AF2 -> 0 | AH26: =$Q$26*('Production Assumptions'!$C$7)^AG2 -> 0 | AI26: =$Q$26*('Production Assumptions'!$C$7)^AH2 -> 0 | AJ26: =$Q$26*('Production Assumptions'!$C$7)^AI2 -> 0
B27: Health and safety apparel | C27: 3000 | D27: ='Production Assumptions'!$C$132*HR!$D$112 -> 3000 | P27: 3153 | Q27: =D27*('Production Assumptions'!$C$7) -> 3153 | R27: =E27*('Production Assumptions'!$C$7) -> 0 | S27: =F27*('Production Assumptions'!$C$7) -> 0 | T27: =G27*('Production Assumptions'!$C$7) -> 0 | U27: =H27*('Production Assumptions'!$C$7) -> 0 | V27: =I27*('Production Assumptions'!$C$7) -> 0 | W27: =J27*('Production Assumptions'!$C$7) -> 0 | X27: =K27*('Production Assumptions'!$C$7) -> 0 | Y27: =L27*('Production Assumptions'!$C$7) -> 0 | Z27: =M27*('Production Assumptions'!$C$7) -> 0 | AA27: =N27*('Production Assumptions'!$C$7) -> 0 | AB27: =O27*('Production Assumptions'!$C$7) -> 0 | AC27: =$Q$27*('Production Assumptions'!$C$7) -> 3313.803 | AD27: =$Q$27*('Production Assumptions'!$C$7)^AC2 -> 3482.806953 | AE27: =$Q$27*('Production Assumptions'!$C$7)^AD2 -> 3660.430108 | AF27: =$Q$27*('Production Assumptions'!$C$7)^AE2 -> 3847.112043 | AG27: =$Q$27*('Production Assumptions'!$C$7)^AF2 -> 4043.314757 | AH27: =$Q$27*('Production Assumptions'!$C$7)^AG2 -> 4249.52381 | AI27: =$Q$27*('Production Assumptions'!$C$7)^AH2 -> 4466.249524 | AJ27: =$Q$27*('Production Assumptions'!$C$7)^AI2 -> 4694.02825
B28: stationary | C28: =SUM(D28:O28) -> 1200 | D28: =IF(Interface!$J$7<9,0,'Production Assumptions'!$C$133) -> 100 | E28: =IF(Interface!$J$7<9,0,'Production Assumptions'!$C$133) -> 100 | F28: =IF(Interface!$J$7<9,0,'Production Assumptions'!$C$133) -> 100 | G28: =IF(Interface!$J$7<9,0,'Production Assumptions'!$C$133) -> 100 | H28: =IF(Interface!$J$7<9,0,'Production Assumptions'!$C$133) -> 100 | I28: =IF(Interface!$J$7<9,0,'Production Assumptions'!$C$133) -> 100 | J28: =IF(Interface!$J$7<9,0,'Production Assumptions'!$C$133) -> 100 | K28: =IF(Interface!$J$7<9,0,'Production Assumptions'!$C$133) -> 100 | L28: =IF(Interface!$J$7<9,0,'Production Assumptions'!$C$133) -> 100 | M28: =IF(Interface!$J$7<9,0,'Production Assumptions'!$C$133) -> 100 | N28: =IF(Interface!$J$7<9,0,'Production Assumptions'!$C$133) -> 100 | O28: =IF(Interface!$J$7<9,0,'Production Assumptions'!$C$133) -> 100 | P28: =SUM(Q28:AB28) -> 1261.2 | Q28: =$O$28*('Production Assumptions'!$C$7) -> 105.1 | R28: =$O$28*('Production Assumptions'!$C$7) -> 105.1 | S28: =$O$28*('Production Assumptions'!$C$7) -> 105.1 | T28: =$O$28*('Production Assumptions'!$C$7) -> 105.1 | U28: =$O$28*('Production Assumptions'!$C$7) -> 105.1 | V28: =$O$28*('Production Assumptions'!$C$7) -> 105.1 | W28: =$O$28*('Production Assumptions'!$C$7) -> 105.1 | X28: =$O$28*('Production Assumptions'!$C$7) -> 105.1 | Y28: =$O$28*('Production Assumptions'!$C$7) -> 105.1 | Z28: =$O$28*('Production Assumptions'!$C$7) -> 105.1 | AA28: =$O$28*('Production Assumptions'!$C$7) -> 105.1 | AB28: =$O$28*('Production Assumptions'!$C$7) -> 105.1 | AC28: =($AB$28*('Production Assumptions'!$C$7))*12 -> 1325.5212 | AD28: =($AB$28*('Production Assumptions'!$C$7)^AC2)*12 -> 1393.122781 | AE28: =($AB$28*('Production Assumptions'!$C$7)^AD2)*12 -> 1464.172043 | AF28: =($AB$28*('Production Assumptions'!$C$7)^AE2)*12 -> 1538.844817 | AG28: =($AB$28*('Production Assumptions'!$C$7)^AF2)*12 -> 1617.325903 | AH28: =($AB$28*('Production Assumptions'!$C$7)^AG2)*12 -> 1699.809524 | AI28: =($AB$28*('Production Assumptions'!$C$7)^AH2)*12 -> 1786.49981 | AJ28: =($AB$28*('Production Assumptions'!$C$7)^AI2)*12 -> 1877.6113
B29: Cleaning materials | C29: 9600 | D29: ='Production Assumptions'!$C$134 -> 800 | E29: ='Production Assumptions'!$C$134 -> 800 | F29: ='Production Assumptions'!$C$134 -> 800 | G29: ='Production Assumptions'!$C$134 -> 800 | H29: ='Production Assumptions'!$C$134 -> 800 | I29: ='Production Assumptions'!$C$134 -> 800 | J29: ='Production Assumptions'!$C$134 -> 800 | K29: ='Production Assumptions'!$C$134 -> 800 | L29: ='Production Assumptions'!$C$134 -> 800 | M29: ='Production Assumptions'!$C$134 -> 800 | N29: ='Production Assumptions'!$C$134 -> 800 | O29: ='Production Assumptions'!$C$134 -> 800 | P29: 10089.6 | Q29: =$O$29*('Production Assumptions'!$C$7) -> 840.8 | R29: =$O$29*('Production Assumptions'!$C$7) -> 840.8 | S29: =$O$29*('Production Assumptions'!$C$7) -> 840.8 | T29: =$O$29*('Production Assumptions'!$C$7) -> 840.8 | U29: =$O$29*('Production Assumptions'!$C$7) -> 840.8 | V29: =$O$29*('Production Assumptions'!$C$7) -> 840.8 | W29: =$O$29*('Production Assumptions'!$C$7) -> 840.8 | X29: =$O$29*('Production Assumptions'!$C$7) -> 840.8 | Y29: =$O$29*('Production Assumptions'!$C$7) -> 840.8 | Z29: =$O$29*('Production Assumptions'!$C$7) -> 840.8 | AA29: =$O$29*('Production Assumptions'!$C$7) -> 840.8 | AB29: =$O$29*('Production Assumptions'!$C$7) -> 840.8 | AC29: =($AB$29*('Production Assumptions'!$C$7))*12 -> 10604.1696 | AD29: =($AB$29*('Production Assumptions'!$C$7)^AC2)*12 -> 11144.98225 | AE29: =($AB$29*('Production Assumptions'!$C$7)^AD2)*12 -> 11713.37634 | AF29: =($AB$29*('Production Assumptions'!$C$7)^AE2)*12 -> 12310.75854 | AG29: =($AB$29*('Production Assumptions'!$C$7)^AF2)*12 -> 12938.60722 | AH29: =($AB$29*('Production Assumptions'!$C$7)^AG2)*12 -> 13598.47619 | AI29: =($AB$29*('Production Assumptions'!$C$7)^AH2)*12 -> 14291.99848 | AJ29: =($AB$29*('Production Assumptions'!$C$7)^AI2)*12 -> 15020.8904
B30: Vet Services | C30: 22000 | D30: ='Production Assumptions'!$C$136 -> 5500 | G30: =D30 -> 5500 | J30: =D30 -> 5500 | M30: =D30 -> 5500 | P30: 23122 | Q30: =D30*('Production Assumptions'!$C$7) -> 5780.5 | R30: =E30*('Production Assumptions'!$C$7) -> 0 | S30: =F30*('Production Assumptions'!$C$7) -> 0 | T30: =G30*('Production Assumptions'!$C$7) -> 5780.5 | U30: =H30*('Production Assumptions'!$C$7) -> 0 | V30: =I30*('Production Assumptions'!$C$7) -> 0 | W30: =J30*('Production Assumptions'!$C$7) -> 5780.5 | X30: =K30*('Production Assumptions'!$C$7) -> 0 | Y30: =L30*('Production Assumptions'!$C$7) -> 0 | Z30: =M30*('Production Assumptions'!$C$7) -> 5780.5 | AA30: =N30*('Production Assumptions'!$C$7) -> 0 | AB30: =O30*('Production Assumptions'!$C$7) -> 0 | AC30: =($P$30*('Production Assumptions'!$C$7)) -> 24301.222 | AD30: =($P$30*('Production Assumptions'!$C$7)^AC2) -> 25540.58432 | AE30: =($P$30*('Production Assumptions'!$C$7)^AD2) -> 26843.15412 | AF30: =($P$30*('Production Assumptions'!$C$7)^AE2) -> 28212.15498 | AG30: =($P$30*('Production Assumptions'!$C$7)^AF2) -> 29650.97489 | AH30: =($P$30*('Production Assumptions'!$C$7)^AG2) -> 31163.17461 | AI30: =($P$30*('Production Assumptions'!$C$7)^AH2) -> 32752.49651 | AJ30: =($P$30*('Production Assumptions'!$C$7)^AI2) -> 34422.87383
B31: Bank Charges | C31: =SUM(D31:O31) -> 13531.31925 | D31: =IF(D$6=0,60,D$6/100*(1+'Production Assumptions'!$C$138)+60) -> 60 | E31: =IF(E$6=0,60,E$6/100*(1+'Production Assumptions'!$C$138)+60) -> 60 | F31: =IF(F$6=0,60,F$6/100*(1+'Production Assumptions'!$C$138)+60) -> 60 | G31: =IF(G$6=0,60,G$6/100*(1+'Production Assumptions'!$C$138)+60) -> 60 | H31: =IF(H$6=0,60,H$6/100*(1+'Production Assumptions'!$C$138)+60) -> 60 | I31: =IF(I$6=0,60,I$6/100*(1+'Production Assumptions'!$C$138)+60) -> 60 | J31: =IF(J$6=0,60,J$6/100*(1+'Production Assumptions'!$C$138)+60) -> 2195.219876 | K31: =IF(K$6=0,60,K$6/100*(1+'Production Assumptions'!$C$138)+60) -> 2195.219876 | L31: =IF(L$6=0,60,L$6/100*(1+'Production Assumptions'!$C$138)+60) -> 2195.219876 | M31: =IF(M$6=0,60,M$6/100*(1+'Production Assumptions'!$C$138)+60) -> 2195.219876 | N31: =IF(N$6=0,60,N$6/100*(1+'Production Assumptions'!$C$138)+60) -> 2195.219876 | O31: =IF(O$6=0,60,O$6/100*(1+'Production Assumptions'!$C$138)+60) -> 2195.219876 | P31: 27559.99307 | Q31: =IF(Q$6=0,60,Q$6/100*(1+'Production Assumptions'!$C$138)) -> 2244.116089 | R31: =IF(R$6=0,60,R$6/100*(1+'Production Assumptions'!$C$138)) -> 2244.116089 | S31: =$O$31*('Production Assumptions'!$C$7) -> 2307.176089 | T31: =$O$31*('Production Assumptions'!$C$7) -> 2307.176089 | U31: =$O$31*('Production Assumptions'!$C$7) -> 2307.176089 | V31: =$O$31*('Production Assumptions'!$C$7) -> 2307.176089 | W31: =$O$31*('Production Assumptions'!$C$7) -> 2307.176089 | X31: =$O$31*('Production Assumptions'!$C$7) -> 2307.176089 | Y31: =$O$31*('Production Assumptions'!$C$7) -> 2307.176089 | Z31: =$O$31*('Production Assumptions'!$C$7) -> 2307.176089 | AA31: =$O$31*('Production Assumptions'!$C$7) -> 2307.176089 | AB31: =$O$31*('Production Assumptions'!$C$7) -> 2307.176089 | AC31: =($AB31*('Production Assumptions'!$C$7))*12 -> 29098.10484 | AD31: =($AB31*('Production Assumptions'!$C$7)^AC2)*12 -> 30582.10819 | AE31: =($AB31*('Production Assumptions'!$C$7)^AD2)*12 -> 32141.7957 | AF31: =($AB$31*('Production Assumptions'!$C$7)^AE2)*12 -> 33781.02728 | AG31: =($AB$31*('Production Assumptions'!$C$7)^AF2)*12 -> 35503.85968 | AH31: =($AB$31*('Production Assumptions'!$C$7)^AG2)*12 -> 37314.55652 | AI31: =($AB$31*('Production Assumptions'!$C$7)^AH2)*12 -> 39217.5989 | AJ31: =($AB$31*('Production Assumptions'!$C$7)^AI2)*12 -> 41217.69644
B32: Marketing | C32: 9000 | D32: =IF(Interface!$J$7<Validation!$B$17,0,'Production Assumptions'!$C$140) -> 750 | E32: =IF(Interface!$J$7<Validation!$B$17,0,'Production Assumptions'!$C$140) -> 750 | F32: =IF(Interface!$J$7<Validation!$B$17,0,'Production Assumptions'!$C$140) -> 750 | G32: =IF(Interface!$J$7<Validation!$B$17,0,'Production Assumptions'!$C$140) -> 750 | H32: =IF(Interface!$J$7<Validation!$B$17,0,'Production Assumptions'!$C$140) -> 750 | I32: =IF(Interface!$J$7<Validation!$B$17,0,'Production Assumptions'!$C$140) -> 750 | J32: =IF(Interface!$J$7<Validation!$B$17,0,'Production Assumptions'!$C$140) -> 750 | K32: =IF(Interface!$J$7<Validation!$B$17,0,'Production Assumptions'!$C$140) -> 750 | L32: =IF(Interface!$J$7<Validation!$B$17,0,'Production Assumptions'!$C$140) -> 750 | M32: =IF(Interface!$J$7<Validation!$B$17,0,'Production Assumptions'!$C$140) -> 750 | N32: =IF(Interface!$J$7<Validation!$B$17,0,'Production Assumptions'!$C$140) -> 750 | O32: =IF(Interface!$J$7<Validation!$B$17,0,'Production Assumptions'!$C$140) -> 750 | P32: 14188.5 | Q32: =IF(Interface!$J$7<Validation!$B$17,0,('Production Assumptions'!$C$140*(1+'Production Assumptions'!$C$141*Interface!$J$7))*'Production Assumptions'!$C$7) -> 1182.375 | R32: =Q32 -> 1182.375 | S32: =R32 -> 1182.375 | T32: 1182.375 | U32: 1182.375 | V32: 1182.375 | W32: 1182.375 | X32: 1182.375 | Y32: 1182.375 | Z32: 1182.375 | AA32: 1182.375 | AB32: 1182.375 | AC32: =($AB32*('Production Assumptions'!$C$7))*12 -> 14912.1135 | AD32: =($AB32*('Production Assumptions'!$C$7)^AC2)*12 -> 15672.63129 | AE32: =($AB32*('Production Assumptions'!$C$7)^AD2)*12 -> 16471.93548 | AF32: =($AB32*('Production Assumptions'!$C$7)^AE2)*12 -> 17312.00419 | AG32: =($AB32*('Production Assumptions'!$C$7)^AF2)*12 -> 18194.91641 | AH32: =($AB32*('Production Assumptions'!$C$7)^AG2)*12 -> 19122.85714 | AI32: =($AB32*('Production Assumptions'!$C$7)^AH2)*12 -> 20098.12286 | AJ32: =($AB32*('Production Assumptions'!$C$7)^AI2)*12 -> 21123.12712
B33: Reserve & Unforeseen Cost | C33: =SUM(D33:O33) -> 9720.744642 | D33: =D$16*'Production Assumptions'!$C$142 -> 810.0620535 | E33: =$D$33 -> 810.0620535 | F33: =$D$33 -> 810.0620535 | G33: 810.0620535 | H33: 810.0620535 | I33: 810.0620535 | J33: 810.0620535 | K33: 810.0620535 | L33: 810.0620535 | M33: 810.0620535 | N33: 810.0620535 | O33: 810.0620535 | P33: =SUM(Q33:AB33) -> 10216.50262 | Q33: =$O$33*('Production Assumptions'!$C$7) -> 851.3752182 | R33: =$O$33*('Production Assumptions'!$C$7) -> 851.3752182 | S33: =$O$33*('Production Assumptions'!$C$7) -> 851.3752182 | T33: =$O$33*('Production Assumptions'!$C$7) -> 851.3752182 | U33: =$O$33*('Production Assumptions'!$C$7) -> 851.3752182 | V33: =$O$33*('Production Assumptions'!$C$7) -> 851.3752182 | W33: =$O$33*('Production Assumptions'!$C$7) -> 851.3752182 | X33: =$O$33*('Production Assumptions'!$C$7) -> 851.3752182 | Y33: =$O$33*('Production Assumptions'!$C$7) -> 851.3752182 | Z33: =$O$33*('Production Assumptions'!$C$7) -> 851.3752182 | AA33: =$O$33*('Production Assumptions'!$C$7) -> 851.3752182 | AB33: =$O$33*('Production Assumptions'!$C$7) -> 851.3752182 | AC33: =($AB$33*('Production Assumptions'!$C$7))*12 -> 10737.54425 | AD33: =($AB$33*('Production Assumptions'!$C$7)^AC2)*12 -> 11285.15901 | AE33: =($AB$33*('Production Assumptions'!$C$7)^AD2)*12 -> 11860.70212 | AF33: =($AB$33*('Production Assumptions'!$C$7)^AE2)*12 -> 12465.59793 | AG33: =($AB$33*('Production Assumptions'!$C$7)^AF2)*12 -> 13101.34342 | AH33: =($AB$33*('Production Assumptions'!$C$7)^AG2)*12 -> 13769.51194 | AI33: =($AB$33*('Production Assumptions'!$C$7)^AH2)*12 -> 14471.75704 | AJ33: =($AB$33*('Production Assumptions'!$C$7)^AI2)*12 -> 15209.81665
B34: ='Production Assumptions'!E126 -> Test kits for ammonia and nitrite | C34: 0 | D34: =IF(Interface!$J$7<=20,'Production Assumptions'!F126,0) -> 0 | P34: 0 | Q34: =$D$34*'Production Assumptions'!$C$7 -> 0 | AC34: =($Q$34*('Production Assumptions'!$C$7)) -> 0 | AD34: =$Q$34*('Production Assumptions'!$C$7)^AC2 -> 0 | AE34: =$Q$34*('Production Assumptions'!$C$7)^AD2 -> 0 | AF34: =$Q$34*('Production Assumptions'!$C$7)^AE2 -> 0 | AG34: =$Q$34*('Production Assumptions'!$C$7)^AF2 -> 0 | AH34: =$Q$34*('Production Assumptions'!$C$7)^AG2 -> 0 | AI34: =$Q$34*('Production Assumptions'!$C$7)^AH2 -> 0 | AJ34: =$Q$34*('Production Assumptions'!$C$7)^AI2 -> 0
B35: TOTAL FIXED COST: | C35: =SUM(C19:C34) -> 1037103.664 | D35: =SUM(D19:D34) -> 275107.6954 | E35: =SUM(E19:E34) -> 66607.69539 | F35: 66607.69539 | G35: 72107.69539 | H35: 66607.69539 | I35: 66607.69539 | J35: 74242.91526 | K35: 68742.91526 | L35: =SUM(L19:L34) -> 68742.91526 | M35: 74242.91526 | N35: 68742.91526 | O35: 68742.91526 | P35: =SUM(P19:P34) -> 887774.4273 | Q35: 80672.56894 | R35: 71739.06894 | S35: 71802.12894 | T35: 77582.62894 | U35: 71802.12894 | V35: 71802.12894 | W35: 77582.62894 | X35: 71802.12894 | Y35: 71802.12894 | Z35: 77582.62894 | AA35: 71802.12894 | AB35: 71802.12894 | AC35: 926751.3552 | AD35: 974015.6743 | AE35: 1267719.148 | AF35: 1075898.688 | AG35: 1130769.521 | AH35: 1188438.767 | AI35: 1249049.144 | AJ35: 1312750.65
B37: TOTAL EXPENSES: | C37: =C16+C35 -> 1830100.666 | D37: 315610.7981 | E37: 76811.45189 | F37: 79920.23013 | G37: 89412.33476 | H37: 90765.82378 | I37: 100900.9327 | J37: 183113.1825 | K37: 177613.1825 | L37: 177613.1825 | M37: 183113.1825 | N37: 177613.1825 | O37: 177613.1825 | P37: 2286245.404 | Q37: 220494.3864 | R37: 186161.7198 | S37: 186224.7798 | T37: 192005.2798 | U37: 186224.7798 | V37: 186224.7798 | W37: 192005.2798 | X37: 186224.7798 | Y37: 186224.7798 | Z37: 192005.2798 | AA37: 186224.7798 | AB37: 186224.7798 | AC37: 2396544.352 | AD37: 2518768.114 | AE37: 2891253.961 | AF37: 2782233.777 | AG37: 2924127.7 | AH37: =AH16+AH35 -> 3073258.212 | AI37: 3229994.381 | AJ37: 3394724.095
B39: PROFIT OR LOSS: | C39: =C7-C37 -> -572856.3821 | D39: -315610.7981 | E39: -76811.45189 | F39: -79920.23013 | G39: -89412.33476 | H39: -90765.82378 | I39: -100900.9327 | J39: 26427.53153 | K39: 31927.53153 | L39: 31927.53153 | M39: 26427.53153 | N39: 31927.53153 | O39: 31927.53153 | P39: 356482.081 | Q39: -267.0960278 | R39: 34065.57064 | S39: 34002.51064 | T39: 28222.01064 | U39: 34002.51064 | V39: 34002.51064 | W39: 28222.01064 | X39: 34002.51064 | Y39: 34002.51064 | Z39: 28222.01064 | AA39: 34002.51064 | AB39: 34002.51064 | AC39: 380962.235 | AD39: 400391.309 | AE39: 176782.5919 | AF39: 442272.6403 | AG39: 464828.545 | AH39: =AH7-AH37 -> 488534.8008 | AI39: 513450.0756 | AJ39: 539636.0295

Sheet Working Capital - Pond
A1: WORKING CAPITAL - POND
B3: WORKING CAPITAL
C4: Month 1 | D4: Month 2 | E4: Month 3 | F4: Month 4 | G4: Month 5 | H4: Month 6 | I4: Month 7 | J4: Month 8 | K4: TOTAL
B5: VARIABLE COSTS:
B6: ='OPEX - Pond'!B10 -> Fingerlings | C6: ='OPEX - Pond'!D10 -> 7654.623393 | D6: ='OPEX - Pond'!E10 -> 7654.623393 | E6: ='OPEX - Pond'!F10 -> 7654.623393 | F6: ='OPEX - Pond'!G10 -> 7654.623393 | G6: ='OPEX - Pond'!H10 -> 7654.623393 | H6: ='OPEX - Pond'!I10 -> 7654.623393 | I6: ='OPEX - Pond'!J10 -> 7654.623393 | J6: ='OPEX - Pond'!K10 -> 7654.623393 | K6: =IF(Interface!$E$17=Validation!$D$39,C6,IF(Interface!$E$17=Validation!$D$40,SUM(C6:D6),IF(Interface!$E$17=Validation!$D$41,SUM(C6:E6),IF(Interface!$E$17=Validation!$D$42,SUM(C6:F6),IF(Interface!$E$17=Validation!$D$43,SUM(C6:G6),IF(Interface!$E$17=Validation!$D$44,SUM(C6:H6),IF(Interface!$E$17=Validation!$D$45,SUM(C6:I6),IF(Interface!$E$17=Validation!$D$46,SUM(C6:J6),IF(Interface!$E$17=Validation!$D$46,SUM(C6:J6),IF(Interface!$E$17=Validation!$D$46,SUM(C6:J6),IF(Interface!$E$17=Validation!$D$46,SUM(C6:J6),IF(Interface!$E$17=Validation!$D$46,SUM(C6:J6))))))))))))) -> 53582.36375
B7: ='OPEX - Pond'!B11 -> Fertiliser | C7: ='OPEX - Pond'!D11 -> 24166.66667 | D7: ='OPEX - Pond'!E11 -> 0 | E7: ='OPEX - Pond'!F11 -> 0 | F7: ='OPEX - Pond'!G11 -> 0 | G7: ='OPEX - Pond'!H11 -> 0 | H7: ='OPEX - Pond'!I11 -> 0 | I7: ='OPEX - Pond'!J11 -> 0 | J7: ='OPEX - Pond'!K11 -> 0 | K7: =IF(Interface!$E$17=Validation!$D$39,C7,IF(Interface!$E$17=Validation!$D$40,SUM(C7:D7),IF(Interface!$E$17=Validation!$D$41,SUM(C7:E7),IF(Interface!$E$17=Validation!$D$42,SUM(C7:F7),IF(Interface!$E$17=Validation!$D$43,SUM(C7:G7),IF(Interface!$E$17=Validation!$D$44,SUM(C7:H7),IF(Interface!$E$17=Validation!$D$45,SUM(C7:I7),IF(Interface!$E$17=Validation!$D$46,SUM(C7:J7),IF(Interface!$E$17=Validation!$D$46,SUM(C7:J7),IF(Interface!$E$17=Validation!$D$46,SUM(C7:J7),IF(Interface!$E$17=Validation!$D$46,SUM(C7:J7),IF(Interface!$E$17=Validation!$D$46,SUM(C7:J7))))))))))))) -> 24166.66667
B8: ='OPEX - Pond'!B12 -> Feed | C8: ='OPEX - Pond'!D12 -> 881.8126148 | D8: ='OPEX - Pond'!E12 -> 2249.133114 | E8: ='OPEX - Pond'!F12 -> 5357.911352 | F8: ='OPEX - Pond'!G12 -> 9350.015982 | G8: ='OPEX - Pond'!H12 -> 16203.505 | H8: ='OPEX - Pond'!I12 -> 26338.61389 | I8: ='OPEX - Pond'!J12 -> 41215.64017 | J8: ='OPEX - Pond'!K12 -> 41215.64017 | K8: =IF(Interface!$E$17=Validation!$D$39,C8,IF(Interface!$E$17=Validation!$D$40,SUM(C8:D8),IF(Interface!$E$17=Validation!$D$41,SUM(C8:E8),IF(Interface!$E$17=Validation!$D$42,SUM(C8:F8),IF(Interface!$E$17=Validation!$D$43,SUM(C8:G8),IF(Interface!$E$17=Validation!$D$44,SUM(C8:H8),IF(Interface!$E$17=Validation!$D$45,SUM(C8:I8),IF(Interface!$E$17=Validation!$D$46,SUM(C8:J8),IF(Interface!$E$17=Validation!$D$46,SUM(C8:J8),IF(Interface!$E$17=Validation!$D$46,SUM(C8:J8),IF(Interface!$E$17=Validation!$D$46,SUM(C8:J8),IF(Interface!$E$17=Validation!$D$46,SUM(C8:J8))))))))))))) -> 101596.6321
B9: ='OPEX - Pond'!B13 -> Water Quality Consumables | C9: ='OPEX - Pond'!D13 -> 7500 | D9: ='OPEX - Pond'!E13 -> 0 | E9: ='OPEX - Pond'!F13 -> 0 | F9: ='OPEX - Pond'!G13 -> 0 | G9: ='OPEX - Pond'!H13 -> 0 | H9: ='OPEX - Pond'!I13 -> 0 | I9: ='OPEX - Pond'!J13 -> 0 | J9: ='OPEX - Pond'!K13 -> 0 | K9: =IF(Interface!$E$17=Validation!$D$39,C9,IF(Interface!$E$17=Validation!$D$40,SUM(C9:D9),IF(Interface!$E$17=Validation!$D$41,SUM(C9:E9),IF(Interface!$E$17=Validation!$D$42,SUM(C9:F9),IF(Interface!$E$17=Validation!$D$43,SUM(C9:G9),IF(Interface!$E$17=Validation!$D$44,SUM(C9:H9),IF(Interface!$E$17=Validation!$D$45,SUM(C9:I9),IF(Interface!$E$17=Validation!$D$46,SUM(C9:J9),IF(Interface!$E$17=Validation!$D$46,SUM(C9:J9),IF(Interface!$E$17=Validation!$D$46,SUM(C9:J9),IF(Interface!$E$17=Validation!$D$46,SUM(C9:J9),IF(Interface!$E$17=Validation!$D$46,SUM(C9:J9))))))))))))) -> 7500
B10: ='OPEX - Pond'!B14 -> Transport Costs | C10: ='OPEX - Pond'!D14 -> 300 | D10: ='OPEX - Pond'!E14 -> 300 | E10: ='OPEX - Pond'!F14 -> 300 | F10: ='OPEX - Pond'!G14 -> 300 | G10: ='OPEX - Pond'!H14 -> 300 | H10: ='OPEX - Pond'!I14 -> 300 | I10: ='OPEX - Pond'!J14 -> 60000.00365 | J10: ='OPEX - Pond'!K14 -> 60000.00365 | K10: =IF(Interface!$E$17=Validation!$D$39,C10,IF(Interface!$E$17=Validation!$D$40,SUM(C10:D10),IF(Interface!$E$17=Validation!$D$41,SUM(C10:E10),IF(Interface!$E$17=Validation!$D$42,SUM(C10:F10),IF(Interface!$E$17=Validation!$D$43,SUM(C10:G10),IF(Interface!$E$17=Validation!$D$44,SUM(C10:H10),IF(Interface!$E$17=Validation!$D$45,SUM(C10:I10),IF(Interface!$E$17=Validation!$D$46,SUM(C10:J10),IF(Interface!$E$17=Validation!$D$46,SUM(C10:J10),IF(Interface!$E$17=Validation!$D$46,SUM(C10:J10),IF(Interface!$E$17=Validation!$D$46,SUM(C10:J10),IF(Interface!$E$17=Validation!$D$46,SUM(C10:J10))))))))))))) -> 61800.00365
B11: ='OPEX - Pond'!B15 -> Water | C11: ='OPEX - Pond'!D15 -> 0 | D11: ='OPEX - Pond'!E15 -> 0 | E11: ='OPEX - Pond'!F15 -> 0 | F11: ='OPEX - Pond'!G15 -> 0 | G11: ='OPEX - Pond'!H15 -> 0 | H11: ='OPEX - Pond'!I15 -> 0 | I11: ='OPEX - Pond'!J15 -> 0 | J11: ='OPEX - Pond'!K15 -> 0 | K11: =IF(Interface!$E$17=Validation!$D$39,C11,IF(Interface!$E$17=Validation!$D$40,SUM(C11:D11),IF(Interface!$E$17=Validation!$D$41,SUM(C11:E11),IF(Interface!$E$17=Validation!$D$42,SUM(C11:F11),IF(Interface!$E$17=Validation!$D$43,SUM(C11:G11),IF(Interface!$E$17=Validation!$D$44,SUM(C11:H11),IF(Interface!$E$17=Validation!$D$45,SUM(C11:I11),IF(Interface!$E$17=Validation!$D$46,SUM(C11:J11),IF(Interface!$E$17=Validation!$D$46,SUM(C11:J11),IF(Interface!$E$17=Validation!$D$46,SUM(C11:J11),IF(Interface!$E$17=Validation!$D$46,SUM(C11:J11),IF(Interface!$E$17=Validation!$D$46,SUM(C11:J11))))))))))))) -> 0
B12: TOTAL VARIABLE COST: | C12: =SUM(C6:C11) -> 40503.10267 | D12: =SUM(D6:D11) -> 10203.75651 | E12: 13312.53474 | F12: =SUM(F6:F11) -> 17304.63937 | G12: 24158.12839 | H12: 34293.23728 | I12: 108870.2672 | J12: 108870.2672 | K12: =SUM(K6:K11) -> 248645.6662
B14: FIXED COSTS:
